Workbook

Sheet Summary
E1: =" Xilinx Power Estimator (XPE) - " & VERSION -> Xilinx Power Estimator (XPE) - 2019.1.2 | AO1: =VCCINT/1 -> 1 | AQ1: Pkgs | AR1: =IF(PROCESS<>"Maximum",1,IF(OR(GRADE="Commercial",NUM_DICE>2),16,IF(AND(PART="XA7K160T",LEFT(GRADE,1)="Q"),31,IF(OR(LEFT(GRADE,1)="Q",LEFT(GRADE,1)="M",AND(LEFT(SPEEDGRADE,3)="-2L",NOT(LEFT(GRADE,1)="I"))),46,31)))) -> 1 | AS1: CLKROW | AT1: CLKCOL | AU1: LUT | AV1: FF | AW1: BRAM | AX1: MMCM | AY1: PLL | AZ1: DSP | BA1: GT | BB1: PCIE | BD1: 3.3 Pins | BE1: Pins | BF1: Banks | BG1: ThetaJA | BH1: ThetaJB | BI1: ThetaJC | BJ1: JA250 | BK1: JA500 | BL1: JA750
D2: Spartan®-7, Artix®-7, Kintex®-7, Virtex®-7, Zynq®-7000 | O2: ="Release: " & TEXT(RELEASE_DATE,"d-mmm-yyyy") -> Release: 14-Aug-2019 | AQ2: FBG676 | AR2: =MATCH(RIGHT(PART,LEN(PART)-2),PVT_LIST,FALSE) -> 18 | AS2: 7 | AT2: 92 | AU2: 203800 | AV2: 407600 | AW2: 445 | AX2: 10 | AY2: 10 | AZ2: 840 | BA2: 16 | BB2: 1 | BC2: 0 | BD2: 350 | BE2: 500 | BF2: 17 | BG2: 12 | BH2: 4.3 | BI2: 0.06 | BJ2: 8.9 | BK2: 7.9 | BL2: 7.3
AQ3: FBG900 | AR3: =IF(GRADE="Commercial",1,IF(OR(GRADE="Q-Grade",AND(LEFT(SPEEDGRADE,3)="-2L",NOT(LEFT(GRADE,1)="I"))),3,2)) -> 3 | AS3: 1 | AU3: 128000 | BA3: 0
AQ4: FFG676 | AS4: =IF(AND(LEFT(FAMILY,4)="Zynq",OPTIMIZATION="Powered Off"),0,1) -> 1
B5: Project | AQ5: FFG900 | BA5: 0
B6: Settings | G6: Summary | AQ6: FBV676
B7: Device | G7: Total On-Chip Power | J7: =SUM(J12:J29) -> 0.1563244638 | M7: =P7/TOTAL_POWER -> 0 | N7: Transceiver…… | P7: =SUM(J25:J26) -> 0 | AQ7: FBV900
B8: Family | C8: Kintex-7 | M8: =P8/TOTAL_POWER -> 0 | N8: I/O……………… | P8: =J24 -> 0 | AQ8: FFV676
B9: Device | C9: XC7K325T | G9: Junction Temperature | J9: =IF(ISBLANK(USER_TJ),IF(TJA*TOTAL_POWER+AMBIENT_TEMP > 125, "125+",TJA*TOTAL_POWER+AMBIENT_TEMP),USER_TJ) -> 25.28351013 | M9: =P9/TOTAL_POWER -> 0 | N9: =IF(LEFT(FAMILY,4)="Zynq","PS+FPGA Dyn..","Core Dynamic..") -> Core Dynamic.. | P9: =SUM(J16:J23,J27) -> 0 | AQ9: FFV900
B10: Package | C10: FBG900 | G10: Thermal Margin | J10: =IF(ISBLANK(USER_TJ),TJ_MAX - (TJA*TOTAL_POWER + AMBIENT_TEMP),TJ_MAX-USER_TJ) -> 74.71648987 | K10: =IF(ISBLANK(USER_TJ),IF(THERMAL_MARGIN_C/TJA+TOTAL_POWER>=0,(MAX_AMBIENT - AMBIENT_TEMP)/TJA,""),(TJ_MAX-USER_TJ)/TJA) -> 39.79261086 | M10: =P10/TOTAL_POWER -> 1 | N10: Device Static….. | P10: =J28+J29 -> 0.1563244638 | AO10: 10 | AP10: 0.1190916783 | AQ10: 0.1190916783
B11: Speed Grade | C11: -2L | G11: Effective ΘJA | J11: =IF(USER_THETAJA>0,USER_THETAJA,$V54) -> 1.813600505 | L11: Power supplied to off-chip devices… | P11: =VCCO_OFFCHIP+PS_OFFCHIP -> 0 | AO11: 25 | AP11: 0.1556373338 | AQ11: 0.1556373338
B12: Temp Grade | C12: Extended | AO12: 40 | AP12: 0.2222648117 | AQ12: 0.2222648117
B13: Process | C13: Typical | G13: On-Chip Power | M13: Power Supply | AO13: 55 | AP13: 0.3504168173 | AQ13: 0.3504168173
B14: Voltage ID Used | C14: No | G14: Resource | J14: Power | M14: Source | O14: Voltage | P14: Total (A) | Q14: Static | R14: Active | AO14: 70 | AP14: 0.5857731599 | AQ14: 0.5857731599 | AW14: static | AX14: =IF(AND(PROCESS="Maximum",NOT(EXACT($Z$1,"nomtpf"))),1,0) -> 0
B15: Characterization | C15: =Production_Status -> Production | I15: (Jump to sheet) | J15: (W) | K15: (%) | M15: VCCINT | O15: 1 | P15: =MAX(ICCINT_POWERUP,Q15+R15)*PL_POWERED -> 0.06799232034 | Q15: =AX15*(ICCQ_TEMP+IF(NUM_GTZS>1,GTZ_INTQ,0)) -> 0.06799232034 | R15: =(CLOCK_POWER+LOGIC_POWER+IOINT_POWER+Other_INTPOWER+BRAM_INTPOWER+DSP_POWER+MMCMINT_POWER+PLLINT_POWER+GTP_INTPOWER+GTX_INTPOWER+GTH_INTPOWER+GTZ_INTPOWER) / VCCINT -> 0 | AO15: 85 | AP15: 0.988250753 | AQ15: 0.988250753 | AX15: =IF(AND($AX$14>0,OFFSET(QUIESCENT_DATA,FACTOROW,73)>0),OFFSET(QUIESCENT_DATA,FACTOROW,73),1) -> 1
G16: Core Dynamic | J16: =CLOCK_POWER -> 0 | K16: =IF(AND(ISNUMBER(J16),J16>0),J16/TOTAL_POWER,0)*100 -> 0 | M16: VCCBRAM | O16: 1 | P16: =MAX(ICCBRAM_POWERUP,Q16+R16)*PL_POWERED -> 0.001272965596 | Q16: =AX16*ICCBRAM_TEMP -> 0.001272965596 | R16: =BRAM_BRAMPOWER/VCCBRAM -> 0 | AO16: 100 | AP16: 1.632003614 | AQ16: 1.632003614 | AX16: =IF(AND($AX$14>0,OFFSET(QUIESCENT_DATA,FACTOROW,74)>0),OFFSET(QUIESCENT_DATA,FACTOROW,74),1) -> 1
B17: Environment | J17: =LOGIC_POWER -> 0 | K17: 0 | M17: VCCAUX | O17: 1.8 | P17: =MAX(ICCAUX_POWERUP,Q17+R17)*PL_POWERED -> 0.02836620991 | Q17: =AX17*ICCAUXQ_TEMP -> 0.02836620991 | R17: =IO!E6+(MMCMAUX_POWER+PLLAUX_POWER+Other_AUXPOWER) / VCCAUX -> 0 | AX17: =IF(AND($AX$14>0,OFFSET(QUIESCENT_DATA,FACTOROW,75)>0),OFFSET(QUIESCENT_DATA,FACTOROW,75),1) -> 1
B18: Junction Temperature | E18: =JUNCTION_TEMP -> 25.28351013 | J18: =BRAM_POWER -> 0 | K18: 0 | M18: VCCAUX_IO | O18: 2 | P18: =IF(IO!E7>0,MAX(ICCAUXIO_POWERUP,IO!E7),0)*PL_POWERED -> 0 | Q18: 0 | R18: =IO!E7 -> 0 | AO18: =VCC_MIN -> 0.97 | AP18: 0.1494229397 | AX18: 1
B19: Ambient Temp | C19: 25 | J19: =DSP_POWER -> 0 | K19: 0 | M19: VCCO 3.3V | O19: 3.3 | P19: =IF(Q19>0,MAX(ICCO_POWERUP,IO!G8+Q19),0)*PL_POWERED -> 0 | Q19: =AX19*AW19*PL_POWERED -> 0 | R19: =IO!G8 -> 0 | AO19: =(AO18+AO20)/2 -> 0.985 | AP19: 0.1527884749 | AW19: =IF(OR(IO!AY501>0,LEFT(CFG_BANK,1)="3"),ICCOQ_D,0)*PL_POWERED -> 0 | AX19: =IF(AND($AX$14>0,OFFSET(QUIESCENT_DATA,FACTOROW,79)>0),OFFSET(QUIESCENT_DATA,FACTOROW,79),1) -> 1
B20: Effective ΘJA | E20: =TJA -> 1.813600505 | J20: =PLL_POWER -> 0 | K20: 0 | M20: VCCO 2.5V | O20: 2.5 | P20: =IF(Q20>0,MAX(ICCO_POWERUP,IO!G9+Q20),0)*PL_POWERED -> 0 | Q20: 0 | R20: =IO!G9 -> 0 | AO20: =IF(ISOLY,IF(SPEEDGRADE="-2L (0.85V)", 0.85,0.95),IF(SPEEDGRADE="-2L (0.9V)", 0.9,IF(MID(SPEEDGRADE,3,LEN(SPEEDGRADE))="LI (0.95V)",0.95,1))) -> 1 | AP20: 0.1563244638 | AW20: =IF(OR(AND(IO!AZ501>0,IO!AZ555>0),LEFT(CFG_BANK,1)="2"),ICCOQ_D,0)*PL_POWERED -> 0 | AX20: 1
B21: Airflow | C21: 250 | J21: =MMCM_POWER -> 0 | K21: 0 | M21: VCCO 1.8V | O21: 1.8 | P21: =IF(Q21>0,MAX(ICCO_POWERUP,IO!G10+Q21),0)*PL_POWERED -> 0 | Q21: 0 | R21: =IO!G10 -> 0 | AO21: =(AO20+AO22)/2 -> 1.015 | AP21: 0.1600392077 | AW21: =IF(OR(AND(IO!BA501>0,IO!BA555>0),LEFT(CFG_BANK,1)="1"),ICCOQ_D,0)*PL_POWERED -> 0 | AX21: 1
B22: Heat Sink | C22: Medium Profile | J22: =Other_INTPOWER+Other_AUXPOWER+Other_XADCPOWER -> 0 | K22: 0 | M22: VCCO 1.5V | O22: 1.5 | P22: =IF(Q22>0,MAX(ICCO_POWERUP,IO!G11+Q22),0)*PL_POWERED -> 0 | Q22: 0 | R22: =IO!G11 -> 0 | AO22: =VCC_MAX -> 1.03 | AP22: 0.16394141 | AW22: =IF(IO!BB501>0,ICCOQ_D,0)*PL_POWERED -> 0 | AX22: 1
B23: ΘSA | C23: 3.3 | J23: =IF(NUM_PCIES>0,PCIE_POWER,0) -> 0 | K23: 0 | M23: VCCO 1.35V | O23: 1.35 | P23: =IF(Q23>0,MAX(ICCO_POWERUP,IO!G12+Q23),0)*PL_POWERED -> 0 | Q23: 0 | R23: =IO!G12 -> 0 | AW23: =IF(IO!BC501>0,ICCOQ_D,0)*PL_POWERED -> 0 | AX23: 1
B24: Board Selection | C24: Medium (10"x10") | G24: I/O | J24: =IO_POWER -> 0 | K24: =IF(AND(ISNUMBER(J24),J24>0),J24/TOTAL_POWER,0)*100 -> 0 | M24: VCCO 1.2V | O24: 1.2 | P24: =IF(Q24>0,MAX(ICCO_POWERUP,IO!G13+Q24),0)*PL_POWERED -> 0 | Q24: 0 | R24: =IO!G13 -> 0 | AW24: =IF(IO!BD501>0,ICCOQ_D,0)*PL_POWERED -> 0 | AX24: 1
B25: # of Board Layers | C25: 12 to 15 | G25: Transceiver | J25: =IF(NUM_GTS>0,GTX_POWER,IF(NUM_GTHS>0,GTH_POWER,IF(NUM_GTPS>0,GTP_POWER,0))) -> 0 | K25: 0 | M25: MGTVCCAUX | O25: 1.8 | P25: =MAX(IGTVCCAUX_POWERUP,Q25+R25)*PL_POWERED -> 0 | Q25: =IF(AND(O25>0,NUM_GTS>0),GTXAUXQ,IF(AND(O25>0,NUM_GTHS>0),GTHAUXQ,0))*PL_POWERED*AX25 -> 0 | R25: =IF(AND(O25>0,NUM_GTS>0),GTX_AUXPOWER/GTVCCAUX,IF(AND(O25>0,NUM_GTHS>0),GTH_AUXPOWER/GTVCCAUX,0)) -> 0 | AX25: =IF(AND($AX$14>0,OFFSET(QUIESCENT_DATA,FACTOROW,80)>0),OFFSET(QUIESCENT_DATA,FACTOROW,80),1) -> 1
B26: ΘJB | C26: 2.61 | J26: =IF(NUM_GTZS>0,GTZ_POWER,0) -> 0 | K26: 0 | M26: MGTAVCC | O26: 1 | P26: =MAX(IF(NUM_GTS>0,GTXBSCAN_AVCC,IF(NUM_GTHS>0,GTHBSCAN_AVCC,0)),IAVCC_POWERUP,Q26+R26)*PL_POWERED -> 0 | Q26: =IF(AND(O26>0,NUM_GTS>0),AVCCQ,IF(AND(O26>0,NUM_GTHS>0),GTHAVCCQ,IF(AND(O26>0,NUM_GTPS>0),GTPAVCCQ,0)))*PL_POWERED*AX26 -> 0 | R26: =IF(AND(O26>0,NUM_GTS>0),GTAVCC_POWER/O26,IF(AND(O26>0,NUM_GTHS>0),GTH_AVDD/O26,IF(AND(O26>0,NUM_GTPS>0),GTP_AVCCPOWER/O26,0))) -> 0 | AX26: =IF(AND($AX$14>0,OFFSET(QUIESCENT_DATA,FACTOROW,81)>0),OFFSET(QUIESCENT_DATA,FACTOROW,81),1) -> 1
B27: Board Temperature | C27: 25 | G27: =IF(LEFT(FAMILY,4)="Zynq","PS Dynamic Static","") ->  | J27: =IF(LEFT(FAMILY,4)="Zynq",PS_POWER,0) -> 0 | K27: 0 | M27: MGTAVTT | O27: 1.2 | P27: =MAX(IF(NUM_GTS>0,GTXBSCAN_AVTT,IF(NUM_GTHS>0,GTHBSCAN_AVTT,IF(NUM_GTPS>0,GTPBSCAN_AVTT,0))),IAVTT_POWERUP,Q27+R27)*PL_POWERED -> 0 | Q27: =IF(AND(O27>0,NUM_GTS>0),AVTTQ,IF(AND(O27>0,NUM_GTHS>0),GTHVTTXQ,IF(AND(O27>0,NUM_GTPS>0),GTPVTTXQ,0)))*PL_POWERED*AX27 -> 0 | R27: =IF(AND(O27>0,NUM_GTS>0),GTAVTT_POWER/AVTT,IF(AND(O27>0,NUM_GTHS>0),GTH_VTTX/O27,IF(AND(O27>0,NUM_GTPS>0),GTP_AVTTPOWER/O27,0))) -> 0 | AO27: Temp | AP27: 50 | AQ27: 85 | AR27: 100 | AX27: =IF(AND($AX$14>0,OFFSET(QUIESCENT_DATA,FACTOROW,82)>0),OFFSET(QUIESCENT_DATA,FACTOROW,82),1) -> 1
J28: =IF(LEFT(FAMILY,4)="Zynq",PS_STATIC,0) -> 0 | K28: 0 | M28: - | O28: 1.8 | P28: =Q28+R28 -> 0 | Q28: =IF(LEFT(FAMILY,4)="Zynq",$G50*AX28,IF(NUM_GTZS>1,MGTZVCCHQ,0)) -> 0 | R28: =IF(AND(O28>0,LEFT(FAMILY,4)="Zynq"),PS!D5,IF(NUM_GTZS>0,GTZ!D6,0)) -> 0 | AO28: ="Typical (" & IF(SPEEDGRADE="-2L (0.9V)","0.9",IF(MID(SPEEDGRADE,3,2)="LI","0.95","1.0"))&"V)" -> Typical (1.0V) | AP28: 0.2983366266 | AQ28: 0.988250753 | AR28: 1.632003614 | AW28: =IF(LEFT(FAMILY,4)="Zynq",$G50,IF(NUM_GTZS>1,MGTZVCCHQ,0)) -> 0 | AX28: =IF(AND($AX$14>0,OFFSET(QUIESCENT_DATA,FACTOROW,76)>0),OFFSET(QUIESCENT_DATA,FACTOROW,76),1) -> 1
B29: =IF(LEFT(FAMILY,4)="Zynq","PL","")&" Implementation" -> Implementation | G29: =IF(LEFT(FAMILY,4)="Zynq","PL Static ","Device Static") -> Device Static | H29: =J28+J29 -> 0.1563244638 | J29: =PL_STATIC -> 0.1563244638 | K29: 100 | M29: - | O29: 1.075 | P29: 0 | Q29: =IF(LEFT(FAMILY,4)="Zynq",AX29*PS!S3/1000,IF(NUM_GTZS>1,MGTZAVCCQ,0)) -> 0 | R29: =IF(AND(O29>0,LEFT(FAMILY,4)="Zynq"),PS!D6,IF(NUM_GTZS>0,GTZ!D7,0)) -> 0 | AO29: ="Maximum (" & VCC_MAX &"V)" -> Maximum (1.03V) | AP29: 0.4990649928 | AQ29: 1.531620122 | AR29: 2.428447891 | AW29: =IF(LEFT(FAMILY,4)="Zynq",PS!S3/1000,IF(NUM_GTZS>1,MGTZAVCCQ,0)) -> 0 | AX29: =IF(AND($AX$14>0,OFFSET(QUIESCENT_DATA,FACTOROW,77)>0),OFFSET(QUIESCENT_DATA,FACTOROW,77),1) -> 1
B30: =IF(LEFT(FAMILY,4)="Zynq","Usage/","")&"Optimization" -> Optimization | C30: Power Optimization | F30: =IF(C30="Power Optimization",2,1) -> 2 | M30: - | O30: 1.075 | P30: 0 | Q30: =IF(LEFT(FAMILY,4)="Zynq",AX30*PS!S4/1000,IF(NUM_GTZS>1,MGTZVCCLQ,0)) -> 0 | R30: =IF(AND(O30>0,LEFT(FAMILY,4)="Zynq"),PS!D7,IF(NUM_GTZS>0,GTZ!D8,0)) -> 0 | AW30: =IF(LEFT(FAMILY,4)="Zynq",PS!S4/1000,IF(NUM_GTZS>1,MGTZVCCLQ,0)) -> 0 | AX30: =IF(AND($AX$14>0,OFFSET(QUIESCENT_DATA,FACTOROW,78)>0),OFFSET(QUIESCENT_DATA,FACTOROW,78),1) -> 1
M31: - | O31: 1.5 | P31: =Q31+R31 -> 0 | Q31: =IF(AND(R31>0,LEFT(FAMILY,4)="Zynq"),AX31*PS!S5/1000,0) -> 0 | R31: =IF(AND(O31>0,LEFT(FAMILY,4)="Zynq"),PS!D8,0) -> 0 | AX31: =IF(AND($AX$14>0,OFFSET(QUIESCENT_DATA,FACTOROW,83)>0),OFFSET(QUIESCENT_DATA,FACTOROW,83),1) -> 1
B32: Messages | C32: =IF(LEN(OVERMAP)>3,"Number of " & OVERMAP & " exceeds part size.","") ->  | M32: - | O32: 1.8 | P32: 0 | Q32: =IF(AND(R32>0,LEFT(FAMILY,4)="Zynq"),PS!S6/1000,0) -> 0 | R32: =IF(AND(O32>0,LEFT(FAMILY,4)="Zynq"),PS!D9,0) -> 0 | AX32: 1
C33: =IF(IOERRORS>0,"WARNING: Unsupported I/O standard(s) for current selections, ignored for power calculations","") ->  | M33: - | O33: 1.8 | P33: 0 | Q33: =IF(AND(R33>0,LEFT(FAMILY,4)="Zynq"),PS!S6/1000,0) -> 0 | R33: =IF(AND(O33>0,LEFT(FAMILY,4)="Zynq"),PS!D10,0) -> 0 | AX33: 1
M34: VCCADC | O34: 1.8 | P34: =Q34+R34 -> 0.02 | Q34: =AW34*AX34 -> 0.02 | R34: =Other_XADCPOWER/VCCADC -> 0 | AW34: =VCCADCQ -> 0.02 | AX34: =IF(AND($AX$14>0,OFFSET(QUIESCENT_DATA,FACTOROW,84)>0),OFFSET(QUIESCENT_DATA,FACTOROW,84),1) -> 1
B36: XILINX Power Advantage (check for updates) | F36: File Support Request (WebCase) | M36: Xilinx Power Estimator User Guide
B37: =COPYRIGHT -> © Copyright 1994-2019 Xilinx, Inc. All Rights Reserved | F37: Introduction to XPE (video) | J37: Whitepaper - 7 Steps for Worst Case Power Estimation
B39: Legend | D39: User Entry | G39: Calculated Value | I39: Summary Value | L39: User Override | N39: Warning | P39: Error
U41: JEDEC | V41: =IF(AIRFLOW=250,THETAJA250,IF(AIRFLOW=500,THETAJA500,IF(AIRFLOW=750,THETAJA750,THETAJA))) -> 8.9
G43: Piccq | H43: Iccauxq | I43: Tj | J43: Iccq | U43: BoardType | V43: =IF(EXACT("Small (4""x4"")",BOARD),1,IF(EXACT("Medium (10""x10"")",BOARD),2,IF(EXACT("Large (20""x20"")",BOARD),3,0))) -> 2 | X43: Airflow | Y43: Opt | AA43: Leakage | AB43: =PL_POWERED*(ICCQ_TEMP*VCCINT+ICCBRAM_TEMP*VCCBRAM+ICCAUXQ_TEMP*VCCAUX+AW19*VCCO33+AW20*VCCO25+AW21*VCCO18+AW22*VCCO15+AW23*VCCO135+AW24*VCCO12+GTX_LEAKAGE+GTH_LEAKAGE+GTP_LEAKAGE+GTZ_LEAKAGE)+AW34*VCCADC -> 0.1563244638 | AD43: =Q15*1000 -> 67.99232034 | AM43: Utilization | AN43: =AM44&AM45&AM46&AM47&AM48&AM49 -> 
F44: =PL_POWERED*OFFSET(VccScale,2,0)*((P53*F46^4+Q53*F46^3+R53*F46^2+S53*F46+T53)+(Iccbramq*1000/OFFSET(BLOCK_LEAKAGE,2,3)*EXP(F46/OFFSET(BLOCK_LEAKAGE,2,4))))/1000 -> 0.001272965596 | G44: =PS!S$2/OFFSET(PS_DATA,PSFACTOROW,IF(PROCESS<>"Maximum",6,9))*EXP(MIN(155,$I44)/OFFSET(PS_DATA,PSFACTOROW,IF(PROCESS<>"Maximum",7,10)))/1000 -> 0 | H44: =PL_POWERED*VccAuxScale*IF($I44>99,$L77,1)*($P$52*$I44^4+$Q$52*$I44^3+$R$52*$I44^2+$S$52*$I44+$T$52)/1000 -> 0.028370062 | I44: =TemperatureEstimate -> 25.25217688 | J44: =PL_POWERED*VccScale*($P$51*$I44^4+$Q$51*$I44^3+$R$51*$I44^2+$S$51*$I44+$T$51+OFFSET(Iccbramq,0,2))/1000 -> 0.0680994829 | K44: Non-int Leakage | L44: =PL_POWERED*(Iccauxq_d*VCCAUX+IF(IO!AT504>0,ICCOQ_D, 0)*VCCO33+IF(IO!AT508>0,ICCOQ_D, 0)*VCCO25+IF(IO!AT509>0,ICCOQ_D, 0)*VCCO18+IF(IO!AT510>0,ICCOQ_D, 0)*VCCO15+IF(IO!AT511>0,ICCOQ_D, 0)*VCCO135+IF(IO!AT512>0,ICCOQ_D, 0)*VCCO12+GTX_LEAKAGE+GTH_LEAKAGE+GTP_LEAKAGE) -> 0.05101827583 | U44: BoardLyr | V44: =IF(EXACT("8 to 11",LAYERS),1,IF(EXACT("12 to 15",LAYERS),2,IF(EXACT("16 or more",LAYERS),3,0))) -> 2 | X44: N/A | Y44: Default | AA44: CLOCK | AB44: =CLOCK_POWER -> 0 | AD44: =Q16*1000 -> 1.272965596 | AM44: =IF(IO!L11>1,"I/O, ","") -> 
E45: Temp | F45: =MIN($F$47,IF(ISBLANK(USER_TJ),TJA*(SUM(J12:J27,AW34)+PL_POWERED*((P52*F46^4+Q52*F46^3+R52*F46^2+S52*F46+T52)/1000*VccAuxScale*VCCAUX+(P51*F46^4+Q51*F46^3+R51*F46^2+S51*F46+T51)/1000*VccScale*VCCINT))+AMBIENT_TEMP,USER_TJ)) -> 25.25217688 | G45: =PS!S$2/OFFSET(PS_DATA,PSFACTOROW,IF(PROCESS<>"Maximum",6,9))*EXP(MIN(155,$I45)/OFFSET(PS_DATA,PSFACTOROW,IF(PROCESS<>"Maximum",7,10)))/1000 -> 0 | H45: =PL_POWERED*VccAuxScale*IF($I45>99,$L77,1)*($P$52*$I45^4+$Q$52*$I45^3+$R$52*$I45^2+$S$52*$I45+$T$52)/1000 -> 0.02836623187 | I45: =MIN($F$47,IF(ISBLANK(USER_TJ),TJA*(SUM(J$12:J$27)+$G44+$H44*VCCAUX+$J44*VCCINT+IF(NUM_GTZS>1,GTZ_INTQ*VCCINT,0))+AMBIENT_TEMP,USER_TJ)) -> 25.21611878 | J45: 0.06799293138 | K45: Scaled ICCQ_D | L45: =PL_POWERED*ICCQ_DES*PROCESS_FACTOR*VccScale -> 0.0673574016 | P45: Max Adj | Q45: Typ Adj | U45: Airflow | V45: =IF(AIRFLOW=250,1,IF(AIRFLOW=500,2,IF(AIRFLOW=750,3,0))) -> 1 | X45: 0 | Y45: Power Optimization | AA45: LOGIC | AB45: =LOGIC_POWER -> 0 | AD45: 28.36620991 | AM45: =IF(Logic!I4>1,"Registers, ","") -> 
E46: Initial | F46: =MIN($F$47,IF(ISBLANK(USER_TJ),TJA*(SUM(J12:J27)+(Iccauxq_d*VccAuxScale*VCCAUX+ICCQ_DES*VccScale*VCCINT))+AMBIENT_TEMP,USER_TJ)) -> 25.21468619 | G46: =PS!S$2/OFFSET(PS_DATA,PSFACTOROW,IF(PROCESS<>"Maximum",6,9))*EXP(MIN(155,$I46)/OFFSET(PS_DATA,PSFACTOROW,IF(PROCESS<>"Maximum",7,10)))/1000 -> 0 | H46: =PL_POWERED*VccAuxScale*IF($I46>99,$L77,1)*($P$52*$I46^4+$Q$52*$I46^3+$R$52*$I46^2+$S$52*$I46+$T$52)/1000 -> 0.02836621004 | I46: 25.21591304 | J46: 0.06799232383 | K46: Non-aux Leakage | L46: =L45+IF(IO!AT504>0,ICCOQ_D, 0)*VCCO33+IF(IO!AT508>0,ICCOQ_D, 0)*VCCO25+IF(IO!AT509>0,ICCOQ_D, 0)*VCCO18+IF(IO!AS510>0,ICCOQ_D, 0)*VCCO15+IF(IO!AT511>0,ICCOQ_D, 0)*VCCO135+IF(IO!AT512>0,ICCOQ_D, 0)*VCCO12+GTP_LEAKAGE+GTX_LEAKAGE+GTH_LEAKAGE -> 0.0688574016 | O46: MMF Factor | P46: =IF(PROCESS<>"Maximum",1,OFFSET(QUIESCENT_DATA,FACTOROW,IF(GRADE="Commercial",64,IF(AND(PART="XA7K160T",LEFT(GRADE,1)="Q"),65,IF(AND(LEFT(GRADE,1)="Q",LEFT(PART,7)="XQ7Z020"),65,IF(OR(LEFT(GRADE,1)="Q",LEFT(GRADE,1)="M",AND(LEFT(SPEEDGRADE,3)="-2L",NOT(LEFT(SPEEDGRADE,4)="-2LI"))),66,65)))))*OFFSET(POWER_SCALE,10,OFFSET(POWER_SCALE,1,1))*IF(MID(SPEEDGRADE,3,2)="LI",OFFSET(QUIESCENT_DATA,FACTOROW,92),IF(AND(OR(LEFT(GRADE,1)="Q",LEFT(GRADE,1)="M"),LEFT(SPEEDGRADE,3)="-1L"),OFFSET(QUIESCENT_DATA,FACTOROW,104),1))) -> 1 | Q46: =IF(PROCESS="Typical",IF(OR(RIGHT(PART,3)="S50",RIGHT(PART,4)="A15T",RIGHT(PART,4)="A35T",RIGHT(PART,4)="A50T",RIGHT(PART,4)="A75T",RIGHT(PART,5)="A100T",RIGHT(PART,5)="A200T"),IF(OR(RIGHT(PART,4)="A15T",RIGHT(PART,4)="A35T",RIGHT(PART,4)="A50T",RIGHT(PART,4)="A75T",RIGHT(PART,5)="A100T",RIGHT(PART,3)="S50"),IF(RIGHT(SPEEDGRADE,3)="9V)",0.8,0.9),IF(RIGHT(SPEEDGRADE,3)="9V)",0.812,0.9)),IF(LEFT(FAMILY,4)="Zynq",IF(RIGHT(PART,3)<30,0.695,0.7),IF(OR(RIGHT(PART,3)="S75",RIGHT(PART,4)="S100"),IF(LEFT(GRADE,1)="C",0.82026,0.82026),1)))*IF(MID(SPEEDGRADE,3,2)="LI",OFFSET(QUIESCENT_DATA,FACTOROW,85),IF(AND(LEFT(GRADE,1)="Q",LEFT(SPEEDGRADE,3)="-1L"),OFFSET(QUIESCENT_DATA,FACTOROW,104),1)),1) -> 1 | U46: Heatsink | V46: =IF(EXACT("Custom",HEATSINK),1,IF(EXACT("Low Profile",HEATSINK),0,IF(EXACT("Medium Profile",HEATSINK),2,IF(EXACT("High Profile",HEATSINK),4,3)))) -> 2 | X46: 250 | Y46: Powered Off | AA46: BRAM | AB46: =BRAM_POWER -> 0 | AD46: 0 | AM46: =IF(Logic!I5>1,"LUTs, ","") -> 
E47: Max | F47: =IF($Z$3="en_ext_temp",200,125) -> 125 | G47: =PS!S$2/OFFSET(PS_DATA,PSFACTOROW,IF(PROCESS<>"Maximum",6,9))*EXP(MIN(155,$I47)/OFFSET(PS_DATA,PSFACTOROW,IF(PROCESS<>"Maximum",7,10)))/1000 -> 0 | H47: =PL_POWERED*VccAuxScale*IF($I47>99,$L77,1)*($P$52*$I47^4+$Q$52*$I47^3+$R$52*$I47^2+$S$52*$I47+$T$52)/1000 -> 0.02836620992 | I47: 25.21591186 | J47: 0.06799232036 | K47: Scaled ICCAUXQ_D | L47: =Iccauxq_d*IF(PROCESS="Typical",1,2)/0.121 -> 0.2342436907 | O47: MMF Aux | P47: =IF(PROCESS<>"Maximum",1,OFFSET(QUIESCENT_DATA,FACTOROW,IF(GRADE="Commercial",67,IF(AND(PART="XA7K160T",LEFT(GRADE,1)="Q"),68,IF(AND(LEFT(GRADE,1)="Q",LEFT(PART,7)="XQ7Z020"),68,IF(OR(LEFT(GRADE,1)="Q",LEFT(GRADE,1)="M",AND(LEFT(SPEEDGRADE,3)="-2L",NOT(LEFT(SPEEDGRADE,4)="-2LI"))),69,68)))))*OFFSET(POWER_SCALE,10,OFFSET(POWER_SCALE,1,1))*IF(MID(SPEEDGRADE,3,2)="LI",OFFSET(QUIESCENT_DATA,FACTOROW,94),IF(AND(OR(LEFT(GRADE,1)="Q",LEFT(GRADE,1)="M"),LEFT(SPEEDGRADE,3)="-1L"),OFFSET(QUIESCENT_DATA,FACTOROW,104+IF(LEFT(GRADE,1)="M",2,0)),1))) -> 1 | Q47: =IF(PROCESS="Typical",IF(LEFT(PART,5)="XC7VH",IF(RIGHT(PART,4)="580T",1.85538,1.851079),IF(OR(RIGHT(PART,3)="S50",RIGHT(PART,4)="A15T",RIGHT(PART,4)="A35T",RIGHT(PART,4)="A50T",RIGHT(PART,4)="A75T",RIGHT(PART,5)="A100T"),1.38,IF(RIGHT(PART,5)="A200T",1.5,IF(LEFT(FAMILY,4)="Zynq",1.8,IF(OR(RIGHT(PART,3)="S75",RIGHT(PART,4)="S100"),IF(LEFT(GRADE,1)="C",1.302,1.302),1)))))*IF(MID(SPEEDGRADE,3,2)="LI",OFFSET(QUIESCENT_DATA,FACTOROW,87),IF(AND(LEFT(GRADE,1)="Q",LEFT(SPEEDGRADE,3)="-1L"),OFFSET(QUIESCENT_DATA,FACTOROW,106),1)),1) -> 1 | U47: Pkg size | V47: =OFFSET(Data!$A$830,MATCH(PACKAGE,BOARD_PKG_LIST,FALSE),3) -> 961 | X47: 500 | Y47: =IF(LEFT(FAMILY,4)="Zynq","Y44:Y46","Y44:Y45") -> Y44:Y45 | AA47: DSP | AB47: =DSP_POWER -> 0 | AD47: 0 | AM47: =IF(BRAM!H4>1,"BRAMs, ","") -> 
G48: =PS!S$2/OFFSET(PS_DATA,PSFACTOROW,IF(PROCESS<>"Maximum",6,9))*EXP(MIN(155,$I48)/OFFSET(PS_DATA,PSFACTOROW,IF(PROCESS<>"Maximum",7,10)))/1000 -> 0 | H48: =PL_POWERED*VccAuxScale*IF($I48>99,$L77,1)*($P$52*$I48^4+$Q$52*$I48^3+$R$52*$I48^2+$S$52*$I48+$T$52)/1000 -> 0.02836620991 | I48: 25.21591186 | J48: 0.06799232034 | K48: Iccint_c1 | L48: =OFFSET(QUIESCENT_DATA,FACTOROW,FACTORCOL+1) -> 4.599625945e-05 | O48: MMF Bram | P48: =IF(PROCESS<>"Maximum",1,OFFSET(QUIESCENT_DATA,FACTOROW,IF(GRADE="Commercial",70,IF(AND(PART="XA7K160T",LEFT(GRADE,1)="Q"),71,IF(OR(LEFT(GRADE,1)="Q",LEFT(GRADE,1)="M",AND(LEFT(SPEEDGRADE,3)="-2L",NOT(LEFT(SPEEDGRADE,4)="-2LI"))),72,71))))*OFFSET(POWER_SCALE,10,OFFSET(POWER_SCALE,1,1))*IF(MID(SPEEDGRADE,3,2)="LI",OFFSET(QUIESCENT_DATA,FACTOROW,93),IF(AND(OR(LEFT(GRADE,1)="Q",LEFT(GRADE,1)="M"),LEFT(SPEEDGRADE,3)="-1L"),OFFSET(QUIESCENT_DATA,FACTOROW,105),1))) -> 1 | Q48: =IF(PROCESS="Typical",IF(LEFT(PART,5)="XC7VH",IF(RIGHT(PART,4)="580T",0.518477,0.50994),IF(OR(RIGHT(PART,3)="S50",RIGHT(PART,4)="A15T",RIGHT(PART,4)="A35T",RIGHT(PART,4)="A50T",RIGHT(PART,4)="A75T",RIGHT(PART,5)="A100T",RIGHT(PART,5)="A200T"),IF(RIGHT(PART,5)="A100T",0.7,0.7),IF(OR(RIGHT(PART,3)="S75",RIGHT(PART,4)="S100"),IF(LEFT(GRADE,1)="C",1.7391,1.7391),1)))*IF(MID(SPEEDGRADE,3,2)="LI",OFFSET(QUIESCENT_DATA,FACTOROW,86),IF(AND(LEFT(GRADE,1)="Q",LEFT(SPEEDGRADE,3)="-1L"),OFFSET(QUIESCENT_DATA,FACTOROW,105),1)),1) -> 1 | U48: Air | V48: =1/(6*$V47*0.000001) -> 173.4304544 | X48: 750 | AA48: PLL | AB48: =PLL_POWER -> 0 | AD48: 0 | AM48: =IF(DSP!H4>1,"DSPs, ","") -> 
G49: =PS!S$2/OFFSET(PS_DATA,PSFACTOROW,IF(PROCESS<>"Maximum",6,9))*EXP(MIN(155,$I49)/OFFSET(PS_DATA,PSFACTOROW,IF(PROCESS<>"Maximum",7,10)))/1000 -> 0 | H49: =PL_POWERED*VccAuxScale*IF($I49>99,$L77,1)*($P$52*$I49^4+$Q$52*$I49^3+$R$52*$I49^2+$S$52*$I49+$T$52)/1000 -> 0.02836620991 | I49: 25.21591186 | J49: 0.06799232034 | K49: Iccint_c2 | L49: =OFFSET(QUIESCENT_DATA,FACTOROW,FACTORCOL+2) -> 0.01453966058 | O49: VID Factor | P49: =IF(AND(VID_Allowed=1,PROCESS="Maximum",Voltage_Scaling="Yes"),0.7,1) -> 1 | U49: ThetaSA | V49: =IF((HEATSINK="Custom")*(CUSTOMTSA>0),CUSTOMTSA,IF(HEATSINK="None",0,OFFSET(Data!$A$1177,OFFSET(Data!$A$830,MATCH(PACKAGE,BOARD_PKG_LIST,FALSE),2)+IF($V45<=1,0,1)+$V46,3))) -> 3.3 | X49: =IF(OR($C22="None",$C22="Custom"),"X45:X48","X46:X47") -> X46:X47 | AA49: MMCM | AB49: =MMCM_POWER -> 0 | AD49: 0
G50: =PS!S$2/OFFSET(PS_DATA,PSFACTOROW,IF(PROCESS<>"Maximum",6,9))*EXP(MIN(155,$I50)/OFFSET(PS_DATA,PSFACTOROW,IF(PROCESS<>"Maximum",7,10)))/1000 -> 0 | H50: =PL_POWERED*VccAuxScale*IF($I50>99,$L77,1)*($P$52*$I50^4+$Q$52*$I50^3+$R$52*$I50^2+$S$52*$I50+$T$52)/1000 -> 0.02836620991 | I50: 25.21591186 | J50: 0.06799232034 | K50: Iccintq_d | L50: =(P51*390625+Q51*15625+R51*625+S51*25+T51)/1000*OFFSET(POWER_SCALE,9,1) -> 0.06739492411 | O50: Bali Factor | P50: =IF(AND(NUM_DICE>2,PROCESS="Maximum"),0.7*IF(LEFT(SPEEDGRADE,3)="-2L",0.85,1),1) -> 1 | U50: ThetaCS | V50: 0.1 | AA50: PHASER | AB50: =PHASER_POWER -> 0 | AD50: 0
K51: Iccintq_des | L51: =ICCINTQ_D+OFFSET(BLOCK_LEAKAGE,1,1)*BRAM!I4/1000 -> 0.06739492411 | O51: Vccint | P51: =OFFSET(QUIESCENT_DATA,FACTOROW,FACTORCOL) -> 1.024681888e-05 | Q51: =OFFSET(QUIESCENT_DATA,FACTOROW,FACTORCOL+1) -> 4.599625945e-05 | R51: =OFFSET(QUIESCENT_DATA,FACTOROW,FACTORCOL+2) -> 0.01453966058 | S51: =OFFSET(QUIESCENT_DATA,FACTOROW,FACTORCOL+3) -> 1.476393859 | T51: =OFFSET(QUIESCENT_DATA,FACTOROW,FACTORCOL+4) -> 16.67643458 | U51: ThetaJB | V51: =IF((BOARD="Custom")*(CUSTOMTJB>0),CUSTOMTJB,THETAJB) -> 4.3 | AA51: PCIE | AB51: =PCIE_POWER -> 0 | AD51: 0
K52: Iccaux_c1 | L52: =OFFSET(QUIESCENT_DATA,FACTOROW,FACTORCOL+6) -> -4.934776639e-06 | O52: Vccaux | P52: =OFFSET(QUIESCENT_DATA,FACTOROW,IF(AND(PROCESS="Maximum",LEFT(SPEEDGRADE,4)="-1LI"),99,FACTORCOL+5)) -> 6.086615496e-07 | Q52: =OFFSET(QUIESCENT_DATA,FACTOROW,IF(AND(PROCESS="Maximum",LEFT(SPEEDGRADE,4)="-1LI"),100,FACTORCOL+6)) -> -4.934776639e-06 | R52: =OFFSET(QUIESCENT_DATA,FACTOROW,IF(AND(PROCESS="Maximum",LEFT(SPEEDGRADE,4)="-1LI"),101,FACTORCOL+7)) -> 0.001934333736 | S52: =OFFSET(QUIESCENT_DATA,FACTOROW,IF(AND(PROCESS="Maximum",LEFT(SPEEDGRADE,4)="-1LI"),102,FACTORCOL+8)) -> -0.02109488095 | T52: =OFFSET(QUIESCENT_DATA,FACTOROW,IF(AND(PROCESS="Maximum",LEFT(SPEEDGRADE,4)="-1LI"),103,FACTORCOL+9)) -> 27.50124748 | U52: ThetaJA | V52: =IF(BOARD="JEDEC (2S2P)",V41,MIN(V41,OFFSET(Data!$A$937,OFFSET(Data!$A$830,MATCH(PACKAGE,BOARD_PKG_LIST,FALSE),1)+(4*$V45)+$V44,3+$V43))) -> 3.729450549 | AA52: IO | AB52: =IO_POWER -> 0 | AD52: 0
K53: Iccaux_c2 | L53: =OFFSET(QUIESCENT_DATA,FACTOROW,FACTORCOL+7) -> 0.001934333736 | O53: Vccbram | P53: =OFFSET(QUIESCENT_DATA,FACTOROW,FACTORCOL+10) -> 3.812886664e-07 | Q53: =OFFSET(QUIESCENT_DATA,FACTOROW,FACTORCOL+11) -> -7.677678239e-06 | R53: =OFFSET(QUIESCENT_DATA,FACTOROW,FACTORCOL+12) -> 5.087784668e-05 | S53: =OFFSET(QUIESCENT_DATA,FACTOROW,FACTORCOL+13) -> 0.04053298597 | T53: =OFFSET(QUIESCENT_DATA,FACTOROW,FACTORCOL+14) -> 0.1882586949 | U53: ThetaJX | V53: =$V52*(THETAJC+$V48)/(THETAJC+$V48-$V52) -> 3.811382213 | AA53: =IF(NUM_GTS>0,"GTX",IF(NUM_GTHS>0,"GTH",IF(NUM_GTPS>0,"GTP",""))) -> GTX | AB53: =IF(NUM_GTS>0,GTX_POWER,IF(NUM_GTHS>0,GTH_POWER,IF(NUM_GTPS>0,GTP_POWER,0))) -> 0 | AD53: 0
K54: Iccauxq_d | L54: =(P52*390625+Q52*15625+R52*625+S52*25+T52)/1000*OFFSET(POWER_SCALE,10,1) -> 0.02834348657 | U54: eThetaJA | V54: =IF((BOARD="Custom"),$V57,IF($V46=3,$V52,$V53*(THETAJC+$V49+$V50)/($V53+THETAJC+$V49+$V50))) -> 1.813600505 | AA54: =IF(LEFT(FAMILY,4)="Zynq","PS",IF(NUM_GTZS>0,"GTZ","")) ->  | AB54: =IF(LEFT(FAMILY,4)="Zynq",PS_POWER,IF(NUM_GTZS>0,GTZ_POWER,0)) -> 0 | AD54: 0
K55: Iccoq | L55: =OFFSET(QUIESCENT_DATA,FACTOROW,IF(PROCESS="Typical",61,IF(TJ_MAX=85,62,63)))/1000 -> 0.001 | U55: TJA-Top | V55: =IF($V46=3,$V41,$V49+THETAJC) -> 3.36 | AD55: 0
K56: Iccbram_c1 | L56: =OFFSET(QUIESCENT_DATA,FACTOROW,FACTORCOL+11) -> -7.677678239e-06 | U56: TJ | V56: =(TOTAL_POWER*$V55*$V51+$V51*AMBIENT_TEMP+$V55*BOARD_TEMP)/($V55+$V51) -> 25.29485324 | AD56: 0
K57: Iccbram_c2 | L57: =OFFSET(QUIESCENT_DATA,FACTOROW,FACTORCOL+12) -> 5.087784668e-05 | U57: eThetaJA | V57: =($V61 - AMBIENT_TEMP) /$V58 -> 1.88616188 | AD57: 0
K58: Iccbramq | L58: =(IF(PROCESS="Typical",1,OFFSET(BLOCK_LEAKAGE,2,IF(FACTORCOL=16,10,IF(FACTORCOL=31,9,8))))*(OFFSET(BLOCK_LEAKAGE,2,1)*BRAM!I4))/1000*OFFSET(POWER_SCALE,9,1) -> 0 | M58: =(IF(PROCESS="Typical",1,OFFSET(BLOCK_LEAKAGE,2,IF(FACTORCOL=16,10,IF(FACTORCOL=31,9,8))))*(OFFSET(BLOCK_LEAKAGE,1,1)*BRAM!I4))/1000*OFFSET(POWER_SCALE,9,1) -> 0 | N58: =OFFSET(Iccbramq,0,1)*1000/OFFSET(BLOCK_LEAKAGE,2,3)*EXP(F46/OFFSET(BLOCK_LEAKAGE,2,4)) -> 0 | U58: Power | V58: =SUM(J12:J27)+((P52*V62^4+Q52*V62^3+R52*V62^2+S52*V62+T52)/1000*VCCAUX+(P51*V62^4+Q51*V62^3+R51*V62^2+S51*V62+T51)/1000*VccScale*VCCINT) -> 0.1196252721 | AD58: 0
K59: Process | L59: =IF(PROCESS="Typical",1,OFFSET(QUIESCENT_DATA,FACTOROW,FACTORCOL)) -> 1 | U59: Power2 | AD59: 0
K60: I-Grade | L60: =OFFSET(QUIESCENT_DATA,FACTOROW,FACTORCOL+3) -> 1.476393859 | U60: Temp | V60: =MIN($F$47,$V55*$V58+AMBIENT_TEMP) -> 25.40194091 | AD60: 0
K61: Q-Grade | L61: =OFFSET(QUIESCENT_DATA,FACTOROW,FACTORCOL+4) -> 16.67643458 | U61: Temp | V61: =($V58 * $V55 * $V51 + $V51 * AMBIENT_TEMP + $V55 * BOARD_TEMP) / ($V55 + $V51) -> 25.22563263 | AD61: 0
K62: I-Grade | L62: =OFFSET(QUIESCENT_DATA,FACTOROW,FACTORCOL+8) -> -0.02109488095 | U62: Temp | V62: =MIN($F$47,IF(ISBLANK(USER_TJ),$V55*(SUM(J12:J27)+(Iccauxq_d*VccAuxScale*VCCAUX+ICCQ_DES*VccScale*VCCINT))+AMBIENT_TEMP,USER_TJ)) -> 25.39774228 | AD62: 20
K63: Q-Grade | L63: =OFFSET(QUIESCENT_DATA,FACTOROW,FACTORCOL+9) -> 27.50124748
K64: I-Grade | L64: =OFFSET(QUIESCENT_DATA,FACTOROW,FACTORCOL+13) -> 0.04053298597 | P64: PowerUp | Q64: Int | R64: Aux | S64: I/O | T64: Aux_io | U64: Bram | V64: Avcc | W64: Avtt | X64: GTVccaux
K65: Q-Grade | L65: =OFFSET(QUIESCENT_DATA,FACTOROW,FACTORCOL+14) -> 0.1882586949 | P65: Adder | Q65: 0.6 | R65: 0.08 | S65: 0.04 | T65: 0.04 | U65: 0.04 | V65: 0.4 | W65: 0.15 | X65: 0.04
K66: Vcc_c1 | L66: =OFFSET(VOLTAGE_DATA,1,IF(OR(LEFT(FAMILY,1)="A",LEFT(FAMILY,1)="Z",LEFT(FAMILY,1)="S"),1,IF(NUM_GTHS>0,3,2))) -> 0.0794 | P66: Min | Q66: =IF(LEFT(PROCESS,3)="Max",ICCINTQ_D*VccScale+Q65,0) -> 0 | R66: =IF(LEFT(PROCESS,3)="Max",Iccauxq_d*VccAuxScale + R65,0) -> 0 | S66: =IF(LEFT(PROCESS,3)="Max",ICCOQ_D+S65,0) -> 0 | T66: =IF(LEFT(PROCESS,3)="Max",T65,0) -> 0 | U66: =IF(LEFT(PROCESS,3)="Max",Iccbramq+U65,0) -> 0 | V66: =IF(LEFT(PROCESS,3)="Max",OFFSET(AVCCQ,0,-1)+IF(Q26>0,V65,0),0) -> 0 | W66: =IF(LEFT(PROCESS,3)="Max",OFFSET(AVTTQ,0,-1)+IF(Q27>0,W65,0),0) -> 0 | X66: =IF(LEFT(PROCESS,3)="Max",OFFSET(GTXAUXQ,0,-1)+IF(Q25>0,X65,0),0) -> 0
K67: Vcc_c2 | L67: =OFFSET(VOLTAGE_DATA,2,IF(OR(LEFT(FAMILY,1)="A",LEFT(FAMILY,1)="Z",LEFT(FAMILY,1)="S"),1,IF(NUM_GTHS>0,3,2))) -> 2.5327
K68: VccScale | L68: =Vcc_c1*EXP(Vcc_c2*VCCINT)*Bali_Factor*VID_Factor*MMF_Factor*OFFSET(MMF_Factor,0,1)*SCD_FACTOR -> 0.9994432443
K69: VccAuxScale | L69: =Bali_Factor*OFFSET(MMF_Factor,1,0)*OFFSET(MMF_Factor,1,1)*SCD_FACTOR -> 1
K70: VccBramScale | L70: =Vcc_c1*EXP(Vcc_c2*VCCBRAM)*Bali_Factor*VID_Factor*OFFSET(MMF_Factor,2,0)*OFFSET(MMF_Factor,2,1) -> 0.9994432443
K71: AVccScale | L71: =Vcc_c1*EXP(Vcc_c2*AVCC) -> 0.9994432443
K72: Max bram | L72: =Iccbramq/OFFSET(BLOCK_LEAKAGE,2,3)*EXP(TJ_MAX/OFFSET(BLOCK_LEAKAGE,2,4))*VCCBRAM -> 0
K73: Max PS | L73: =PS!S$2/OFFSET(PS_DATA,PSFACTOROW,IF(PROCESS_FACTOR=1,6,9))*EXP(TJ_MAX/OFFSET(PS_DATA,PSFACTOROW,IF(PROCESS_FACTOR=1,7,10)))/1000*VCCPINT -> 0
K74: Max Aux | L74: =($P$52*TJ_MAX^4+$Q$52*TJ_MAX^3+$R$52*TJ_MAX^2+$S$52*TJ_MAX+$T$52)/1000*VCCAUX -> 0.1811996551
K75: Max Int | L75: =($P$51*TJ_MAX^4+$Q$51*TJ_MAX^3+$R$51*TJ_MAX^2+$S$51*TJ_MAX+$T$51)/1000*VCCINT -> 1.380390573
K76: Max Ambient | L76: =IF(ISBLANK(USER_TJ),TJ_MAX-(TJA*(SUM(L72:L75)+SUM(J12:J27)+GTX_LEAKAGE+GTH_LEAKAGE+GTP_LEAKAGE+GTZ_LEAKAGE)),AMBIENT_TEMP) -> 97.16789917
K77: AuxSpecialFact | L77: =IF(AND(PROCESS="Maximum",PART="XC7V2000T",GRADE="Commercial"),1.05,1) -> 1
K78: Oly | L78: =IF(MID(PART,3,1) = "8",1,0) -> 0

Sheet Snapshot
K1: Power Comparison Snapshots
B3: Settings
B7: Part
B8: Ambient Temperature
B9: Process
B10: Implementation
B12: Summary
B13: Total On-Chip Power
B14: Junction Temperature
B15: Effective ΘJA
B17: On-Chip Power
B18: Clocking
B19: Logic
B20: I/O
B21: BRAM
B22: DSP
B23: Transceiver
B24: PS
B25: Device Static
B27: Supply Summary
B28: VCCINT
B29: VCCBRAM
B30: VCCAUX
B31: VCCAUX_IO
B32: VCCO 3.3V
B33: VCCO 2.5V
B34: VCCO 1.8V
B35: VCCO 1.5V
B36: VCCO 1.35V
B37: VCCO 1.2V
B38: MGTVCCAUX
B39: MGTAVCC
B40: MGTAVTT
B41: MGTZVCCH
B42: MGTZAVCC
B43: MGTZVCCL
B44: VCCPINT
B45: VCCPAUX
B46: VCCPLL
B47: VCCO_DDR
B48: VCCO_MIO0
B49: VCCO_MIO1
B50: VCCADC

Sheet Graphs
B41: ="On-Chip Power over Vccint - (" & PROCESS & ", " & INT(JUNCTION_TEMP)& "C)" -> On-Chip Power over Vccint - (Typical, 25C)
B42: ="On-Chip Power - (" & PROCESS & ", " & VCCINT & "V)" -> On-Chip Power - (Typical, 1V)
B43: ="On-Chip Power by Function - (" & PROCESS & ", " & VCCINT & "V, " & INT(JUNCTION_TEMP) & "C)" -> On-Chip Power by Function - (Typical, 1V, 25C)

Sheet IP_Manager
B1: IP Manager | AA1: IP Catalog
AA2: Block Memory
B3: Device | F3: On-Chip Summary | AA3: Distributed Memory
B4: Part | C4: XC7K325TFBG900-2LE | F4: Junction Temp | H4: =JUNCTION_TEMP -> 25.28351013 | AA4: Memory Interface
B5: Process | C5: =PROCESS -> Typical | F5: Static Power | H5: =SUM(Summary!J28:J29) -> 0.1563244638 | AA5: =IF(NUM_GTPS+NUM_GTS+NUM_GTHS>1, "Transceiver Interface","") -> Transceiver Interface
B6: Effective ΘJA | C6: =TJA -> 1.813600505 | F6: Total Power | H6: =TOTAL_POWER -> 0.1563244638 | AA6: =IF(NUM_GTZS>1,"GTZ Transceiver Interface","") -> 
B7: Implementation | C7: =OPTIMIZATION -> Power Optimization
B13: IP Modules | E13: Power (W) | F13: Clocking* | G13: Logic | H13: I/O* | I13: BRAM | J13: DSP | K13: Transceiver* | L13: Source | AA13: Clock | AB13: PLL | AC13: MMCM | AD13: Logic | AE13: I/O | AF13: Phaser | AG13: BRAM | AH13: DSP | AI13: PCIE | AJ13: GTP/X/H | AK13: GTZ
B43: =ROW(IPROWS)-14 -> 29

Sheet Clock
B1: Clock Tree Power | Q1: =CLOCK_ROWS*CLOCK_COLS*2 -> 1288 | R1: 32 | S1: 30 | T1: 20
B3: Power | F3: Utilization | J3: Clocking Resources User Guide
B4: VCCINT | C4: =TEXT(VCCINT,"0.000")&"V" -> 1.000V | D4: =SUM(J10:J200)*OFFSET(POWER_SCALE,2,OFFSET(POWER_SCALE,1,1))*PL_POWERED -> 0 | F4: Global | G4: =SUM(IF((F10:F199="Global")*(E10:E199>0),1)) -> 0 | H4: =IF(AND(G4/NUM_BUFG>=0.995, G4/NUM_BUFG<0.9999),0.99,G4/NUM_BUFG) -> 0
B5: =TEXT(CLOCK_POWER/TOTAL_POWER,"0%")&" of total on-chip power "&TEXT(TOTAL_POWER,"0.000")&"W" -> 0% of total on-chip power 0.156W | F5: Regional | G5: =SUM(IF((F10:F200="Regional")*(E10:E200>0),1)) -> 0 | H5: =IF(AND(G5/NUM_BUFR>=0.995, G5/NUM_BUFR<0.9999),0.99,G5/NUM_BUFR) -> 0 | J5: XPE User Guide
F6: I/O | G6: =SUM(IF((F10:F199="I/O")*(E10:E199>0),1)) -> 0 | H6: =IF(AND(G6/NUM_BUFIO>=0.995, G6/NUM_BUFIO<0.9999),0.99,G6/NUM_BUFIO) -> 0
F7: Other | G7: =SUM(IF((F10:F200="Other")*(E10:E200>0),1)) -> 0 | H7: - | J7: Introduction to XPE (video)
B9: Name | E9: Frequency (MHz) | F9: Type | G9: Fanout | H9: Clock Buffer Enable | I9: Slice Clock Enable | J9: Power (W) | N9: HROW | O9: LEAF | P9: Local | Q9: HROW Utilization | R9: LEAF Utilization | S9: Slices
F10: Global | H10: 1 | I10: 0.5 | J10: =IF($G10>0,SUM($M10:$P10)*(VCCINT/1000)*VCCINT_N,0)*OFFSET(POWER_OPT,OFFSET(OPTIMIZATION,0,3),1) -> 0 | M10: =IF($F10="Other",0.0004,IF($F10="CMT",OFFSET(CLOCK_DATA,5,7),OFFSET(CLOCK_DATA,5,1)))*$E10 -> 0 | N10: =OFFSET(CLOCK_DATA,5,2)*$E10*$H10*$Q10*CLOCK_COLS/2 -> 0 | O10: =OFFSET(CLOCK_DATA,5,3)*$E10*$H10*$R10 -> 0 | P10: =(OFFSET(CLOCK_DATA,5,4)+OFFSET(CLOCK_DATA,5,5)*MIN($H10,$I10))*$E10*$S10 -> 0 | Q10: =IF(AND($G10>0,OR($F10="Global",$F10="Regional")), INT(0.99+MAX(CLOCK_COLS/2000/NUM_DICE,MIN(CLOCK_ROWS*2, 0.5*$G10^0.27))), 0) -> 0 | R10: =IF(AND($G10>0,OR($F10="Global",$F10="Regional")),INT(0.99+MIN(NUM_LEAFS, 0.6*$G10^0.6244)), 0) -> 0 | S10: =INT(0.9 + MIN(NUM_LUTS/4,$G10/3.25)) -> 0
F11: Global | H11: 1 | I11: 0.5 | J11: 0 | M11: 0 | N11: 0 | O11: 0 | P11: 0 | Q11: 0 | R11: 0 | S11: 0
F12: Global | H12: 1 | I12: 0.5 | J12: 0 | M12: 0 | N12: 0 | O12: 0 | P12: 0 | Q12: 0 | R12: 0 | S12: 0
F13: Global | H13: 1 | I13: 0.5 | J13: 0 | M13: 0 | N13: 0 | O13: 0 | P13: 0 | Q13: 0 | R13: 0 | S13: 0
F14: Global | H14: 1 | I14: 0.5 | J14: 0 | M14: 0 | N14: 0 | O14: 0 | P14: 0 | Q14: 0 | R14: 0 | S14: 0
F15: Global | H15: 1 | I15: 0.5 | J15: 0 | M15: 0 | N15: 0 | O15: 0 | P15: 0 | Q15: 0 | R15: 0 | S15: 0
F16: Global | H16: 1 | I16: 0.5 | J16: 0 | M16: 0 | N16: 0 | O16: 0 | P16: 0 | Q16: 0 | R16: 0 | S16: 0
F17: Global | H17: 1 | I17: 0.5 | J17: 0 | M17: 0 | N17: 0 | O17: 0 | P17: 0 | Q17: 0 | R17: 0 | S17: 0
F18: Global | H18: 1 | I18: 0.5 | J18: 0 | M18: 0 | N18: 0 | O18: 0 | P18: 0 | Q18: 0 | R18: 0 | S18: 0
F19: Global | H19: 1 | I19: 0.5 | J19: 0 | M19: 0 | N19: 0 | O19: 0 | P19: 0 | Q19: 0 | R19: 0 | S19: 0
F20: Global | H20: 1 | I20: 0.5 | J20: 0 | M20: 0 | N20: 0 | O20: 0 | P20: 0 | Q20: 0 | R20: 0 | S20: 0
F21: Global | H21: 1 | I21: 0.5 | J21: 0 | M21: 0 | N21: 0 | O21: 0 | P21: 0 | Q21: 0 | R21: 0 | S21: 0
F22: Global | H22: 1 | I22: 0.5 | J22: 0 | M22: 0 | N22: 0 | O22: 0 | P22: 0 | Q22: 0 | R22: 0 | S22: 0
F23: Global | H23: 1 | I23: 0.5 | J23: 0 | M23: 0 | N23: 0 | O23: 0 | P23: 0 | Q23: 0 | R23: 0 | S23: 0
F24: Global | H24: 1 | I24: 0.5 | J24: 0 | M24: 0 | N24: 0 | O24: 0 | P24: 0 | Q24: 0 | R24: 0 | S24: 0
F25: Global | H25: 1 | I25: 0.5 | J25: 0 | M25: 0 | N25: 0 | O25: 0 | P25: 0 | Q25: 0 | R25: 0 | S25: 0
F26: Global | H26: 1 | I26: 0.5 | J26: 0 | M26: 0 | N26: 0 | O26: 0 | P26: 0 | Q26: 0 | R26: 0 | S26: 0
F27: Global | H27: 1 | I27: 0.5 | J27: 0 | M27: 0 | N27: 0 | O27: 0 | P27: 0 | Q27: 0 | R27: 0 | S27: 0
F28: Global | H28: 1 | I28: 0.5 | J28: 0 | M28: 0 | N28: 0 | O28: 0 | P28: 0 | Q28: 0 | R28: 0 | S28: 0
F29: Global | H29: 1 | I29: 0.5 | J29: 0 | M29: 0 | N29: 0 | O29: 0 | P29: 0 | Q29: 0 | R29: 0 | S29: 0
F30: Global | H30: 1 | I30: 0.5 | J30: 0 | M30: 0 | N30: 0 | O30: 0 | P30: 0 | Q30: 0 | R30: 0 | S30: 0
F31: Global | H31: 1 | I31: 0.5 | J31: 0 | M31: 0 | N31: 0 | O31: 0 | P31: 0 | Q31: 0 | R31: 0 | S31: 0
F32: Global | H32: 1 | I32: 0.5 | J32: 0 | M32: 0 | N32: 0 | O32: 0 | P32: 0 | Q32: 0 | R32: 0 | S32: 0
F33: Global | H33: 1 | I33: 0.5 | J33: 0 | M33: 0 | N33: 0 | O33: 0 | P33: 0 | Q33: 0 | R33: 0 | S33: 0
F34: Global | H34: 1 | I34: 0.5 | J34: 0 | M34: 0 | N34: 0 | O34: 0 | P34: 0 | Q34: 0 | R34: 0 | S34: 0
F35: Global | H35: 1 | I35: 0.5 | J35: 0 | M35: 0 | N35: 0 | O35: 0 | P35: 0 | Q35: 0 | R35: 0 | S35: 0
F36: Global | H36: 1 | I36: 0.5 | J36: 0 | M36: 0 | N36: 0 | O36: 0 | P36: 0 | Q36: 0 | R36: 0 | S36: 0
F37: Global | H37: 1 | I37: 0.5 | J37: 0 | M37: 0 | N37: 0 | O37: 0 | P37: 0 | Q37: 0 | R37: 0 | S37: 0
F38: Global | H38: 1 | I38: 0.5 | J38: 0 | M38: 0 | N38: 0 | O38: 0 | P38: 0 | Q38: 0 | R38: 0 | S38: 0
F39: Global | H39: 1 | I39: 0.5 | J39: 0 | M39: 0 | N39: 0 | O39: 0 | P39: 0 | Q39: 0 | R39: 0 | S39: 0
F40: Global | H40: 1 | I40: 0.5 | J40: 0 | M40: 0 | N40: 0 | O40: 0 | P40: 0 | Q40: 0 | R40: 0 | S40: 0
F41: Global | H41: 1 | I41: 0.5 | J41: 0 | M41: 0 | N41: 0 | O41: 0 | P41: 0 | Q41: 0 | R41: 0 | S41: 0
F42: Global | H42: 1 | I42: 0.5 | J42: =IF($G42>0,SUM($M42:$P42)*(VCCINT/1000)*VCCINT_N,0)*OFFSET(POWER_OPT,OFFSET(OPTIMIZATION,0,3),1) -> 0 | M42: 0 | N42: =OFFSET(CLOCK_DATA,5,2)*$E42*$H42*$Q42*CLOCK_COLS/2 -> 0 | O42: =OFFSET(CLOCK_DATA,5,3)*$E42*$H42*$R42 -> 0 | P42: =(OFFSET(CLOCK_DATA,5,4)+OFFSET(CLOCK_DATA,5,5)*MIN($H42,$I42))*$E42*$S42 -> 0 | Q42: 0 | R42: 0 | S42: =INT(0.9 + MIN(NUM_LUTS/4,$G42/3.25)) -> 0
F43: Global | H43: 1 | I43: 0.5 | J43: 0 | M43: 0 | N43: 0 | O43: 0 | P43: 0 | Q43: 0 | R43: 0 | S43: 0
F44: Global | H44: 1 | I44: 0.5 | J44: 0 | M44: 0 | N44: 0 | O44: 0 | P44: 0 | Q44: 0 | R44: 0 | S44: 0
F45: Global | H45: 1 | I45: 0.5 | J45: 0 | M45: 0 | N45: 0 | O45: 0 | P45: 0 | Q45: 0 | R45: 0 | S45: 0
F46: Global | H46: 1 | I46: 0.5 | J46: 0 | M46: 0 | N46: 0 | O46: 0 | P46: 0 | Q46: 0 | R46: 0 | S46: 0
F47: Global | H47: 1 | I47: 0.5 | J47: 0 | M47: 0 | N47: 0 | O47: 0 | P47: 0 | Q47: 0 | R47: 0 | S47: 0
F48: Global | H48: 1 | I48: 0.5 | J48: 0 | M48: 0 | N48: 0 | O48: 0 | P48: 0 | Q48: 0 | R48: 0 | S48: 0
F49: Global | H49: 1 | I49: 0.5 | J49: 0 | M49: 0 | N49: 0 | O49: 0 | P49: 0 | Q49: 0 | R49: 0 | S49: 0
F50: Global | H50: 1 | I50: 0.5 | J50: 0 | M50: 0 | N50: 0 | O50: 0 | P50: 0 | Q50: 0 | R50: 0 | S50: 0
F51: Global | H51: 1 | I51: 0.5 | J51: 0 | M51: 0 | N51: 0 | O51: 0 | P51: 0 | Q51: 0 | R51: 0 | S51: 0
F52: Global | H52: 1 | I52: 0.5 | J52: 0 | M52: 0 | N52: 0 | O52: 0 | P52: 0 | Q52: 0 | R52: 0 | S52: 0
F53: Global | H53: 1 | I53: 0.5 | J53: 0 | M53: 0 | N53: 0 | O53: 0 | P53: 0 | Q53: 0 | R53: 0 | S53: 0
F54: Global | H54: 1 | I54: 0.5 | J54: 0 | M54: 0 | N54: 0 | O54: 0 | P54: 0 | Q54: 0 | R54: 0 | S54: 0
F55: Global | H55: 1 | I55: 0.5 | J55: 0 | M55: 0 | N55: 0 | O55: 0 | P55: 0 | Q55: 0 | R55: 0 | S55: 0
F56: Global | H56: 1 | I56: 0.5 | J56: 0 | M56: 0 | N56: 0 | O56: 0 | P56: 0 | Q56: 0 | R56: 0 | S56: 0
F57: Global | H57: 1 | I57: 0.5 | J57: 0 | M57: 0 | N57: 0 | O57: 0 | P57: 0 | Q57: 0 | R57: 0 | S57: 0
F58: Global | H58: 1 | I58: 0.5 | J58: 0 | M58: 0 | N58: 0 | O58: 0 | P58: 0 | Q58: 0 | R58: 0 | S58: 0
F59: Global | H59: 1 | I59: 0.5 | J59: 0 | M59: 0 | N59: 0 | O59: 0 | P59: 0 | Q59: 0 | R59: 0 | S59: 0
F60: Global | H60: 1 | I60: 0.5 | J60: 0 | M60: 0 | N60: 0 | O60: 0 | P60: 0 | Q60: 0 | R60: 0 | S60: 0
F61: Global | H61: 1 | I61: 0.5 | J61: 0 | M61: 0 | N61: 0 | O61: 0 | P61: 0 | Q61: 0 | R61: 0 | S61: 0
F62: Global | H62: 1 | I62: 0.5 | J62: 0 | M62: 0 | N62: 0 | O62: 0 | P62: 0 | Q62: 0 | R62: 0 | S62: 0
F63: Global | H63: 1 | I63: 0.5 | J63: 0 | M63: 0 | N63: 0 | O63: 0 | P63: 0 | Q63: 0 | R63: 0 | S63: 0
F64: Global | H64: 1 | I64: 0.5 | J64: 0 | M64: 0 | N64: 0 | O64: 0 | P64: 0 | Q64: 0 | R64: 0 | S64: 0
F65: Global | H65: 1 | I65: 0.5 | J65: 0 | M65: 0 | N65: 0 | O65: 0 | P65: 0 | Q65: 0 | R65: 0 | S65: 0
F66: Global | H66: 1 | I66: 0.5 | J66: 0 | M66: 0 | N66: 0 | O66: 0 | P66: 0 | Q66: 0 | R66: 0 | S66: 0
F67: Global | H67: 1 | I67: 0.5 | J67: 0 | M67: 0 | N67: 0 | O67: 0 | P67: 0 | Q67: 0 | R67: 0 | S67: 0
F68: Global | H68: 1 | I68: 0.5 | J68: 0 | M68: 0 | N68: 0 | O68: 0 | P68: 0 | Q68: 0 | R68: 0 | S68: 0
F69: Global | H69: 1 | I69: 0.5 | J69: 0 | M69: 0 | N69: 0 | O69: 0 | P69: 0 | Q69: 0 | R69: 0 | S69: 0
F70: Global | H70: 1 | I70: 0.5 | J70: 0 | M70: 0 | N70: 0 | O70: 0 | P70: 0 | Q70: 0 | R70: 0 | S70: 0
F71: Global | H71: 1 | I71: 0.5 | J71: 0 | M71: 0 | N71: 0 | O71: 0 | P71: 0 | Q71: 0 | R71: 0 | S71: 0
F72: Global | H72: 1 | I72: 0.5 | J72: 0 | M72: 0 | N72: 0 | O72: 0 | P72: 0 | Q72: 0 | R72: 0 | S72: 0
F73: Global | H73: 1 | I73: 0.5 | J73: 0 | M73: 0 | N73: 0 | O73: 0 | P73: 0 | Q73: 0 | R73: 0 | S73: 0
F74: Global | H74: 1 | I74: 0.5 | J74: =IF($G74>0,SUM($M74:$P74)*(VCCINT/1000)*VCCINT_N,0)*OFFSET(POWER_OPT,OFFSET(OPTIMIZATION,0,3),1) -> 0 | M74: =IF($F74="Other",0.0004,IF($F74="CMT",OFFSET(CLOCK_DATA,5,7),OFFSET(CLOCK_DATA,5,1)))*$E74 -> 0 | N74: =OFFSET(CLOCK_DATA,5,2)*$E74*$H74*$Q74*CLOCK_COLS/2 -> 0 | O74: =OFFSET(CLOCK_DATA,5,3)*$E74*$H74*$R74 -> 0 | P74: =(OFFSET(CLOCK_DATA,5,4)+OFFSET(CLOCK_DATA,5,5)*MIN($H74,$I74))*$E74*$S74 -> 0 | Q74: =IF(AND($G74>0,OR($F74="Global",$F74="Regional")), INT(0.99+MAX(CLOCK_COLS/2000/NUM_DICE,MIN(CLOCK_ROWS*2, 0.5*$G74^0.27))), 0) -> 0 | R74: =IF(AND($G74>0,OR($F74="Global",$F74="Regional")),INT(0.99+MIN(NUM_LEAFS, 0.6*$G74^0.6244)), 0) -> 0 | S74: =INT(0.9 + MIN(NUM_LUTS/4,$G74/3.25)) -> 0
F75: Global | H75: 1 | I75: 0.5 | J75: 0 | M75: 0 | N75: 0 | O75: 0 | P75: 0 | Q75: 0 | R75: 0 | S75: 0
F76: Global | H76: 1 | I76: 0.5 | J76: 0 | M76: 0 | N76: 0 | O76: 0 | P76: 0 | Q76: 0 | R76: 0 | S76: 0
F77: Global | H77: 1 | I77: 0.5 | J77: 0 | M77: 0 | N77: 0 | O77: 0 | P77: 0 | Q77: 0 | R77: 0 | S77: 0
F78: Global | H78: 1 | I78: 0.5 | J78: 0 | M78: 0 | N78: 0 | O78: 0 | P78: 0 | Q78: 0 | R78: 0 | S78: 0
F79: Global | H79: 1 | I79: 0.5 | J79: 0 | M79: 0 | N79: 0 | O79: 0 | P79: 0 | Q79: 0 | R79: 0 | S79: 0
F80: Global | H80: 1 | I80: 0.5 | J80: 0 | M80: 0 | N80: 0 | O80: 0 | P80: 0 | Q80: 0 | R80: 0 | S80: 0
F81: Global | H81: 1 | I81: 0.5 | J81: 0 | M81: 0 | N81: 0 | O81: 0 | P81: 0 | Q81: 0 | R81: 0 | S81: 0
F82: Global | H82: 1 | I82: 0.5 | J82: 0 | M82: 0 | N82: 0 | O82: 0 | P82: 0 | Q82: 0 | R82: 0 | S82: 0
F83: Global | H83: 1 | I83: 0.5 | J83: 0 | M83: 0 | N83: 0 | O83: 0 | P83: 0 | Q83: 0 | R83: 0 | S83: 0
F84: Global | H84: 1 | I84: 0.5 | J84: 0 | M84: 0 | N84: 0 | O84: 0 | P84: 0 | Q84: 0 | R84: 0 | S84: 0
F85: Global | H85: 1 | I85: 0.5 | J85: 0 | M85: 0 | N85: 0 | O85: 0 | P85: 0 | Q85: 0 | R85: 0 | S85: 0
F86: Global | H86: 1 | I86: 0.5 | J86: 0 | M86: 0 | N86: 0 | O86: 0 | P86: 0 | Q86: 0 | R86: 0 | S86: 0
F87: Global | H87: 1 | I87: 0.5 | J87: 0 | M87: 0 | N87: 0 | O87: 0 | P87: 0 | Q87: 0 | R87: 0 | S87: 0
F88: Global | H88: 1 | I88: 0.5 | J88: 0 | M88: 0 | N88: 0 | O88: 0 | P88: 0 | Q88: 0 | R88: 0 | S88: 0
F89: Global | H89: 1 | I89: 0.5 | J89: 0 | M89: 0 | N89: 0 | O89: 0 | P89: 0 | Q89: 0 | R89: 0 | S89: 0
F90: Global | H90: 1 | I90: 0.5 | J90: 0 | M90: 0 | N90: 0 | O90: 0 | P90: 0 | Q90: 0 | R90: 0 | S90: 0
F91: Global | H91: 1 | I91: 0.5 | J91: 0 | M91: 0 | N91: 0 | O91: 0 | P91: 0 | Q91: 0 | R91: 0 | S91: 0
F92: Global | H92: 1 | I92: 0.5 | J92: 0 | M92: 0 | N92: 0 | O92: 0 | P92: 0 | Q92: 0 | R92: 0 | S92: 0
F93: Global | H93: 1 | I93: 0.5 | J93: 0 | M93: 0 | N93: 0 | O93: 0 | P93: 0 | Q93: 0 | R93: 0 | S93: 0
F94: Global | H94: 1 | I94: 0.5 | J94: 0 | M94: 0 | N94: 0 | O94: 0 | P94: 0 | Q94: 0 | R94: 0 | S94: 0
F95: Global | H95: 1 | I95: 0.5 | J95: 0 | M95: 0 | N95: 0 | O95: 0 | P95: 0 | Q95: 0 | R95: 0 | S95: 0
F96: Global | H96: 1 | I96: 0.5 | J96: 0 | M96: 0 | N96: 0 | O96: 0 | P96: 0 | Q96: 0 | R96: 0 | S96: 0
F97: Global | H97: 1 | I97: 0.5 | J97: 0 | M97: 0 | N97: 0 | O97: 0 | P97: 0 | Q97: 0 | R97: 0 | S97: 0
F98: Global | H98: 1 | I98: 0.5 | J98: 0 | M98: 0 | N98: 0 | O98: 0 | P98: 0 | Q98: 0 | R98: 0 | S98: 0
F99: Global | H99: 1 | I99: 0.5 | J99: 0 | M99: 0 | N99: 0 | O99: 0 | P99: 0 | Q99: 0 | R99: 0 | S99: 0
F100: Global | H100: 1 | I100: 0.5 | J100: 0 | M100: 0 | N100: 0 | O100: 0 | P100: 0 | Q100: 0 | R100: 0 | S100: 0
F101: Global | H101: 1 | I101: 0.5 | J101: 0 | M101: 0 | N101: 0 | O101: 0 | P101: 0 | Q101: 0 | R101: 0 | S101: 0
F102: Global | H102: 1 | I102: 0.5 | J102: 0 | M102: 0 | N102: 0 | O102: 0 | P102: 0 | Q102: 0 | R102: 0 | S102: 0
F103: Global | H103: 1 | I103: 0.5 | J103: 0 | M103: 0 | N103: 0 | O103: 0 | P103: 0 | Q103: 0 | R103: 0 | S103: 0
F104: Global | H104: 1 | I104: 0.5 | J104: 0 | M104: 0 | N104: 0 | O104: 0 | P104: 0 | Q104: 0 | R104: 0 | S104: 0
F105: Global | H105: 1 | I105: 0.5 | J105: 0 | M105: 0 | N105: 0 | O105: 0 | P105: 0 | Q105: 0 | R105: 0 | S105: 0
F106: Global | H106: 1 | I106: 0.5 | J106: =IF($G106>0,SUM($M106:$P106)*(VCCINT/1000)*VCCINT_N,0)*OFFSET(POWER_OPT,OFFSET(OPTIMIZATION,0,3),1) -> 0 | M106: 0 | N106: =OFFSET(CLOCK_DATA,5,2)*$E106*$H106*$Q106*CLOCK_COLS/2 -> 0 | O106: =OFFSET(CLOCK_DATA,5,3)*$E106*$H106*$R106 -> 0 | P106: =(OFFSET(CLOCK_DATA,5,4)+OFFSET(CLOCK_DATA,5,5)*MIN($H106,$I106))*$E106*$S106 -> 0 | Q106: 0 | R106: 0 | S106: =INT(0.9 + MIN(NUM_LUTS/4,$G106/3.25)) -> 0
F107: Global | H107: 1 | I107: 0.5 | J107: 0 | M107: 0 | N107: 0 | O107: 0 | P107: 0 | Q107: 0 | R107: 0 | S107: 0
F108: Global | H108: 1 | I108: 0.5 | J108: 0 | M108: 0 | N108: 0 | O108: 0 | P108: 0 | Q108: 0 | R108: 0 | S108: 0
F109: Global | H109: 1 | I109: 0.5 | J109: 0 | M109: 0 | N109: 0 | O109: 0 | P109: 0 | Q109: 0 | R109: 0 | S109: 0
F110: Global | H110: 1 | I110: 0.5 | J110: 0 | M110: 0 | N110: 0 | O110: 0 | P110: 0 | Q110: 0 | R110: 0 | S110: 0
F111: Global | H111: 1 | I111: 0.5 | J111: 0 | M111: 0 | N111: 0 | O111: 0 | P111: 0 | Q111: 0 | R111: 0 | S111: 0
F112: Global | H112: 1 | I112: 0.5 | J112: 0 | M112: 0 | N112: 0 | O112: 0 | P112: 0 | Q112: 0 | R112: 0 | S112: 0
F113: Global | H113: 1 | I113: 0.5 | J113: 0 | M113: 0 | N113: 0 | O113: 0 | P113: 0 | Q113: 0 | R113: 0 | S113: 0
F114: Global | H114: 1 | I114: 0.5 | J114: 0 | M114: 0 | N114: 0 | O114: 0 | P114: 0 | Q114: 0 | R114: 0 | S114: 0
F115: Global | H115: 1 | I115: 0.5 | J115: 0 | M115: 0 | N115: 0 | O115: 0 | P115: 0 | Q115: 0 | R115: 0 | S115: 0
F116: Global | H116: 1 | I116: 0.5 | J116: 0 | M116: 0 | N116: 0 | O116: 0 | P116: 0 | Q116: 0 | R116: 0 | S116: 0
F117: Global | H117: 1 | I117: 0.5 | J117: 0 | M117: 0 | N117: 0 | O117: 0 | P117: 0 | Q117: 0 | R117: 0 | S117: 0
F118: Global | H118: 1 | I118: 0.5 | J118: 0 | M118: 0 | N118: 0 | O118: 0 | P118: 0 | Q118: 0 | R118: 0 | S118: 0
F119: Global | H119: 1 | I119: 0.5 | J119: 0 | M119: 0 | N119: 0 | O119: 0 | P119: 0 | Q119: 0 | R119: 0 | S119: 0
F120: Global | H120: 1 | I120: 0.5 | J120: 0 | M120: 0 | N120: 0 | O120: 0 | P120: 0 | Q120: 0 | R120: 0 | S120: 0
F121: Global | H121: 1 | I121: 0.5 | J121: 0 | M121: 0 | N121: 0 | O121: 0 | P121: 0 | Q121: 0 | R121: 0 | S121: 0
F122: Global | H122: 1 | I122: 0.5 | J122: 0 | M122: 0 | N122: 0 | O122: 0 | P122: 0 | Q122: 0 | R122: 0 | S122: 0
F123: Global | H123: 1 | I123: 0.5 | J123: 0 | M123: 0 | N123: 0 | O123: 0 | P123: 0 | Q123: 0 | R123: 0 | S123: 0
F124: Global | H124: 1 | I124: 0.5 | J124: 0 | M124: 0 | N124: 0 | O124: 0 | P124: 0 | Q124: 0 | R124: 0 | S124: 0
F125: Global | H125: 1 | I125: 0.5 | J125: 0 | M125: 0 | N125: 0 | O125: 0 | P125: 0 | Q125: 0 | R125: 0 | S125: 0
F126: Global | H126: 1 | I126: 0.5 | J126: 0 | M126: 0 | N126: 0 | O126: 0 | P126: 0 | Q126: 0 | R126: 0 | S126: 0
F127: Global | H127: 1 | I127: 0.5 | J127: 0 | M127: 0 | N127: 0 | O127: 0 | P127: 0 | Q127: 0 | R127: 0 | S127: 0
F128: Global | H128: 1 | I128: 0.5 | J128: 0 | M128: 0 | N128: 0 | O128: 0 | P128: 0 | Q128: 0 | R128: 0 | S128: 0
F129: Global | H129: 1 | I129: 0.5 | J129: 0 | M129: 0 | N129: 0 | O129: 0 | P129: 0 | Q129: 0 | R129: 0 | S129: 0
F130: Global | H130: 1 | I130: 0.5 | J130: 0 | M130: 0 | N130: 0 | O130: 0 | P130: 0 | Q130: 0 | R130: 0 | S130: 0
F131: Global | H131: 1 | I131: 0.5 | J131: 0 | M131: 0 | N131: 0 | O131: 0 | P131: 0 | Q131: 0 | R131: 0 | S131: 0
F132: Global | H132: 1 | I132: 0.5 | J132: 0 | M132: 0 | N132: 0 | O132: 0 | P132: 0 | Q132: 0 | R132: 0 | S132: 0
F133: Global | H133: 1 | I133: 0.5 | J133: 0 | M133: 0 | N133: 0 | O133: 0 | P133: 0 | Q133: 0 | R133: 0 | S133: 0
F134: Global | H134: 1 | I134: 0.5 | J134: 0 | M134: 0 | N134: 0 | O134: 0 | P134: 0 | Q134: 0 | R134: 0 | S134: 0
F135: Global | H135: 1 | I135: 0.5 | J135: 0 | M135: 0 | N135: 0 | O135: 0 | P135: 0 | Q135: 0 | R135: 0 | S135: 0
F136: Global | H136: 1 | I136: 0.5 | J136: 0 | M136: 0 | N136: 0 | O136: 0 | P136: 0 | Q136: 0 | R136: 0 | S136: 0
F137: Global | H137: 1 | I137: 0.5 | J137: 0 | M137: 0 | N137: 0 | O137: 0 | P137: 0 | Q137: 0 | R137: 0 | S137: 0
F138: Global | H138: 1 | I138: 0.5 | J138: =IF($G138>0,SUM($M138:$P138)*(VCCINT/1000)*VCCINT_N,0)*OFFSET(POWER_OPT,OFFSET(OPTIMIZATION,0,3),1) -> 0 | M138: =IF($F138="Other",0.0004,IF($F138="CMT",OFFSET(CLOCK_DATA,5,7),OFFSET(CLOCK_DATA,5,1)))*$E138 -> 0 | N138: =OFFSET(CLOCK_DATA,5,2)*$E138*$H138*$Q138*CLOCK_COLS/2 -> 0 | O138: =OFFSET(CLOCK_DATA,5,3)*$E138*$H138*$R138 -> 0 | P138: =(OFFSET(CLOCK_DATA,5,4)+OFFSET(CLOCK_DATA,5,5)*MIN($H138,$I138))*$E138*$S138 -> 0 | Q138: =IF(AND($G138>0,OR($F138="Global",$F138="Regional")), INT(0.99+MAX(CLOCK_COLS/2000/NUM_DICE,MIN(CLOCK_ROWS*2, 0.5*$G138^0.27))), 0) -> 0 | R138: =IF(AND($G138>0,OR($F138="Global",$F138="Regional")),INT(0.99+MIN(NUM_LEAFS, 0.6*$G138^0.6244)), 0) -> 0 | S138: =INT(0.9 + MIN(NUM_LUTS/4,$G138/3.25)) -> 0
F139: Global | H139: 1 | I139: 0.5 | J139: 0 | M139: 0 | N139: 0 | O139: 0 | P139: 0 | Q139: 0 | R139: 0 | S139: 0
F140: Global | H140: 1 | I140: 0.5 | J140: 0 | M140: 0 | N140: 0 | O140: 0 | P140: 0 | Q140: 0 | R140: 0 | S140: 0
F141: Global | H141: 1 | I141: 0.5 | J141: 0 | M141: 0 | N141: 0 | O141: 0 | P141: 0 | Q141: 0 | R141: 0 | S141: 0
F142: Global | H142: 1 | I142: 0.5 | J142: 0 | M142: 0 | N142: 0 | O142: 0 | P142: 0 | Q142: 0 | R142: 0 | S142: 0
F143: Global | H143: 1 | I143: 0.5 | J143: 0 | M143: 0 | N143: 0 | O143: 0 | P143: 0 | Q143: 0 | R143: 0 | S143: 0
F144: Global | H144: 1 | I144: 0.5 | J144: 0 | M144: 0 | N144: 0 | O144: 0 | P144: 0 | Q144: 0 | R144: 0 | S144: 0
F145: Global | H145: 1 | I145: 0.5 | J145: 0 | M145: 0 | N145: 0 | O145: 0 | P145: 0 | Q145: 0 | R145: 0 | S145: 0
F146: Global | H146: 1 | I146: 0.5 | J146: 0 | M146: 0 | N146: 0 | O146: 0 | P146: 0 | Q146: 0 | R146: 0 | S146: 0
F147: Global | H147: 1 | I147: 0.5 | J147: 0 | M147: 0 | N147: 0 | O147: 0 | P147: 0 | Q147: 0 | R147: 0 | S147: 0
F148: Global | H148: 1 | I148: 0.5 | J148: 0 | M148: 0 | N148: 0 | O148: 0 | P148: 0 | Q148: 0 | R148: 0 | S148: 0
F149: Global | H149: 1 | I149: 0.5 | J149: 0 | M149: 0 | N149: 0 | O149: 0 | P149: 0 | Q149: 0 | R149: 0 | S149: 0
F150: Global | H150: 1 | I150: 0.5 | J150: 0 | M150: 0 | N150: 0 | O150: 0 | P150: 0 | Q150: 0 | R150: 0 | S150: 0
F151: Global | H151: 1 | I151: 0.5 | J151: 0 | M151: 0 | N151: 0 | O151: 0 | P151: 0 | Q151: 0 | R151: 0 | S151: 0
F152: Global | H152: 1 | I152: 0.5 | J152: 0 | M152: 0 | N152: 0 | O152: 0 | P152: 0 | Q152: 0 | R152: 0 | S152: 0
F153: Global | H153: 1 | I153: 0.5 | J153: 0 | M153: 0 | N153: 0 | O153: 0 | P153: 0 | Q153: 0 | R153: 0 | S153: 0
F154: Global | H154: 1 | I154: 0.5 | J154: 0 | M154: 0 | N154: 0 | O154: 0 | P154: 0 | Q154: 0 | R154: 0 | S154: 0
F155: Global | H155: 1 | I155: 0.5 | J155: 0 | M155: 0 | N155: 0 | O155: 0 | P155: 0 | Q155: 0 | R155: 0 | S155: 0
F156: Global | H156: 1 | I156: 0.5 | J156: 0 | M156: 0 | N156: 0 | O156: 0 | P156: 0 | Q156: 0 | R156: 0 | S156: 0
F157: Global | H157: 1 | I157: 0.5 | J157: 0 | M157: 0 | N157: 0 | O157: 0 | P157: 0 | Q157: 0 | R157: 0 | S157: 0
F158: Global | H158: 1 | I158: 0.5 | J158: 0 | M158: 0 | N158: 0 | O158: 0 | P158: 0 | Q158: 0 | R158: 0 | S158: 0
F159: Global | H159: 1 | I159: 0.5 | J159: 0 | M159: 0 | N159: 0 | O159: 0 | P159: 0 | Q159: 0 | R159: 0 | S159: 0
F160: Global | H160: 1 | I160: 0.5 | J160: 0 | M160: 0 | N160: 0 | O160: 0 | P160: 0 | Q160: 0 | R160: 0 | S160: 0
F161: Global | H161: 1 | I161: 0.5 | J161: 0 | M161: 0 | N161: 0 | O161: 0 | P161: 0 | Q161: 0 | R161: 0 | S161: 0
F162: Global | H162: 1 | I162: 0.5 | J162: 0 | M162: 0 | N162: 0 | O162: 0 | P162: 0 | Q162: 0 | R162: 0 | S162: 0
F163: Global | H163: 1 | I163: 0.5 | J163: 0 | M163: 0 | N163: 0 | O163: 0 | P163: 0 | Q163: 0 | R163: 0 | S163: 0
F164: Global | H164: 1 | I164: 0.5 | J164: 0 | M164: 0 | N164: 0 | O164: 0 | P164: 0 | Q164: 0 | R164: 0 | S164: 0
F165: Global | H165: 1 | I165: 0.5 | J165: 0 | M165: 0 | N165: 0 | O165: 0 | P165: 0 | Q165: 0 | R165: 0 | S165: 0
F166: Global | H166: 1 | I166: 0.5 | J166: 0 | M166: 0 | N166: 0 | O166: 0 | P166: 0 | Q166: 0 | R166: 0 | S166: 0
F167: Global | H167: 1 | I167: 0.5 | J167: 0 | M167: 0 | N167: 0 | O167: 0 | P167: 0 | Q167: 0 | R167: 0 | S167: 0
F168: Global | H168: 1 | I168: 0.5 | J168: 0 | M168: 0 | N168: 0 | O168: 0 | P168: 0 | Q168: 0 | R168: 0 | S168: 0
F169: Global | H169: 1 | I169: 0.5 | J169: 0 | M169: 0 | N169: 0 | O169: 0 | P169: 0 | Q169: 0 | R169: 0 | S169: 0
F170: Global | H170: 1 | I170: 0.5 | J170: =IF($G170>0,SUM($M170:$P170)*(VCCINT/1000)*VCCINT_N,0)*OFFSET(POWER_OPT,OFFSET(OPTIMIZATION,0,3),1) -> 0 | M170: 0 | N170: =OFFSET(CLOCK_DATA,5,2)*$E170*$H170*$Q170*CLOCK_COLS/2 -> 0 | O170: =OFFSET(CLOCK_DATA,5,3)*$E170*$H170*$R170 -> 0 | P170: =(OFFSET(CLOCK_DATA,5,4)+OFFSET(CLOCK_DATA,5,5)*MIN($H170,$I170))*$E170*$S170 -> 0 | Q170: 0 | R170: 0 | S170: =INT(0.9 + MIN(NUM_LUTS/4,$G170/3.25)) -> 0
F171: Global | H171: 1 | I171: 0.5 | J171: 0 | M171: 0 | N171: 0 | O171: 0 | P171: 0 | Q171: 0 | R171: 0 | S171: 0
F172: Global | H172: 1 | I172: 0.5 | J172: 0 | M172: 0 | N172: 0 | O172: 0 | P172: 0 | Q172: 0 | R172: 0 | S172: 0
F173: Global | H173: 1 | I173: 0.5 | J173: 0 | M173: 0 | N173: 0 | O173: 0 | P173: 0 | Q173: 0 | R173: 0 | S173: 0
F174: Global | H174: 1 | I174: 0.5 | J174: 0 | M174: 0 | N174: 0 | O174: 0 | P174: 0 | Q174: 0 | R174: 0 | S174: 0
F175: Global | H175: 1 | I175: 0.5 | J175: 0 | M175: 0 | N175: 0 | O175: 0 | P175: 0 | Q175: 0 | R175: 0 | S175: 0
F176: Global | H176: 1 | I176: 0.5 | J176: 0 | M176: 0 | N176: 0 | O176: 0 | P176: 0 | Q176: 0 | R176: 0 | S176: 0
F177: Global | H177: 1 | I177: 0.5 | J177: 0 | M177: 0 | N177: 0 | O177: 0 | P177: 0 | Q177: 0 | R177: 0 | S177: 0
F178: Global | H178: 1 | I178: 0.5 | J178: 0 | M178: 0 | N178: 0 | O178: 0 | P178: 0 | Q178: 0 | R178: 0 | S178: 0
F179: Global | H179: 1 | I179: 0.5 | J179: 0 | M179: 0 | N179: 0 | O179: 0 | P179: 0 | Q179: 0 | R179: 0 | S179: 0
F180: Global | H180: 1 | I180: 0.5 | J180: 0 | M180: 0 | N180: 0 | O180: 0 | P180: 0 | Q180: 0 | R180: 0 | S180: 0
F181: Global | H181: 1 | I181: 0.5 | J181: 0 | M181: 0 | N181: 0 | O181: 0 | P181: 0 | Q181: 0 | R181: 0 | S181: 0
F182: Global | H182: 1 | I182: 0.5 | J182: 0 | M182: 0 | N182: 0 | O182: 0 | P182: 0 | Q182: 0 | R182: 0 | S182: 0
F183: Global | H183: 1 | I183: 0.5 | J183: 0 | M183: 0 | N183: 0 | O183: 0 | P183: 0 | Q183: 0 | R183: 0 | S183: 0
F184: Global | H184: 1 | I184: 0.5 | J184: 0 | M184: 0 | N184: 0 | O184: 0 | P184: 0 | Q184: 0 | R184: 0 | S184: 0
F185: Global | H185: 1 | I185: 0.5 | J185: 0 | M185: 0 | N185: 0 | O185: 0 | P185: 0 | Q185: 0 | R185: 0 | S185: 0
F186: Global | H186: 1 | I186: 0.5 | J186: 0 | M186: 0 | N186: 0 | O186: 0 | P186: 0 | Q186: 0 | R186: 0 | S186: 0
F187: Global | H187: 1 | I187: 0.5 | J187: 0 | M187: 0 | N187: 0 | O187: 0 | P187: 0 | Q187: 0 | R187: 0 | S187: 0
F188: Global | H188: 1 | I188: 0.5 | J188: 0 | M188: 0 | N188: 0 | O188: 0 | P188: 0 | Q188: 0 | R188: 0 | S188: 0
F189: Global | H189: 1 | I189: 0.5 | J189: 0 | M189: 0 | N189: 0 | O189: 0 | P189: 0 | Q189: 0 | R189: 0 | S189: 0
F190: Global | H190: 1 | I190: 0.5 | J190: 0 | M190: 0 | N190: 0 | O190: 0 | P190: 0 | Q190: 0 | R190: 0 | S190: 0
F191: Global | H191: 1 | I191: 0.5 | J191: 0 | M191: 0 | N191: 0 | O191: 0 | P191: 0 | Q191: 0 | R191: 0 | S191: 0
F192: Global | H192: 1 | I192: 0.5 | J192: 0 | M192: 0 | N192: 0 | O192: 0 | P192: 0 | Q192: 0 | R192: 0 | S192: 0
F193: Global | H193: 1 | I193: 0.5 | J193: 0 | M193: 0 | N193: 0 | O193: 0 | P193: 0 | Q193: 0 | R193: 0 | S193: 0
F194: Global | H194: 1 | I194: 0.5 | J194: 0 | M194: 0 | N194: 0 | O194: 0 | P194: 0 | Q194: 0 | R194: 0 | S194: 0
F195: Global | H195: 1 | I195: 0.5 | J195: 0 | M195: 0 | N195: 0 | O195: 0 | P195: 0 | Q195: 0 | R195: 0 | S195: 0
F196: Global | H196: 1 | I196: 0.5 | J196: 0 | M196: 0 | N196: 0 | O196: 0 | P196: 0 | Q196: 0 | R196: 0 | S196: 0
F197: Global | H197: 1 | I197: 0.5 | J197: 0 | M197: 0 | N197: 0 | O197: 0 | P197: 0 | Q197: 0 | R197: 0 | S197: 0
F198: Global | H198: 1 | I198: 0.5 | J198: 0 | M198: 0 | N198: 0 | O198: 0 | P198: 0 | Q198: 0 | R198: 0 | S198: 0
F199: Global | H199: 1 | I199: 0.5 | J199: 0 | M199: 0 | N199: 0 | O199: 0 | P199: 0 | Q199: 0 | R199: 0 | S199: 0
F200: Global | H200: 1 | I200: 0.5 | J200: 0 | M200: 0 | N200: 0 | O200: 0 | P200: 0 | Q200: 0 | R200: 0 | S200: 0
B201: =ROW(CLOCKROWS)-10 -> 191

Sheet Logic
B1: Logic Power
B3: Power | F3: Utilization | K3: CLB User Guide
B4: VCCINT | C4: =TEXT(VCCINT,"0.000")&"V" -> 1.000V | D4: =SUM(M12:M10000)*OFFSET(POWER_SCALE,3,OFFSET(POWER_SCALE,1,1))*PL_POWERED -> 0 | F4: Registers | H4: =SUM(I12:I10000) -> 0 | I4: =H4/NUM_FFS -> 0
B5: =TEXT(LOGIC_POWER/TOTAL_POWER,"0%")&" of total on-chip power "&TEXT(TOTAL_POWER,"0.000")&"W" -> 0% of total on-chip power 0.156W | F5: LUTs | H5: =SUM(H6:H8) -> 0 | I5: =H5/NUM_LUTS -> 0 | K5: XPE User Guide
F6: Combinatorial | H6: =SUM(F12:F10000) -> 0 | I6: =H6/NUM_LUTS -> 0
F7: Shift Registers | H7: =SUM(G12:G10000) -> 0 | I7: =SUM(H7:H8)/NUM_LUTRAM -> 0 | K7: Introduction to XPE (video)
F8: Distributed RAMs | H8: =SUM(H12:H10000) -> 0
B10: Name | E10: Clock (MHz) | F10: LUTs as | I10: Registers | J10: Toggle Rate | K10: Average Fanout | L10: Signal Rate (Mtr/s) | M10: Power (W) | U10: Routing
F11: Logic | G11: Shift Registers | H11: Distributed RAMs
J12: 0.125 | K12: 3 | L12: =E12*J12 -> 0 | M12: =(VCCINT/1000)*VCCINT_N*IF($R12>0,$R12,($L12/2*(($F12+$I12)*0.45*$U12+($F12*(OFFSET(FANOUT,8,2))+$G12*(OFFSET(FANOUT,8,4)+$U12)+$H12*(OFFSET(FANOUT,8,5)+$U12)+$I12*(OFFSET(FANOUT,8,3)))))*OFFSET(POWER_OPT,OFFSET(OPTIMIZATION,0,3),2)) -> 0 | U12: =OFFSET(FANOUT,8,1)+OFFSET(FANOUT,9,1)*($K12-3) -> 0.0003987701
J13: 0.125 | K13: 3 | L13: =E13*J13 -> 0 | M13: 0 | U13: 0.0003987701
J14: 0.125 | K14: 3 | L14: 0 | M14: 0 | U14: 0.0003987701
J15: 0.125 | K15: 3 | L15: 0 | M15: 0 | U15: 0.0003987701
J16: 0.125 | K16: 3 | L16: 0 | M16: 0 | U16: 0.0003987701
J17: 0.125 | K17: 3 | L17: 0 | M17: 0 | U17: 0.0003987701
J18: 0.125 | K18: 3 | L18: 0 | M18: 0 | U18: 0.0003987701
J19: 0.125 | K19: 3 | L19: 0 | M19: 0 | U19: 0.0003987701
J20: 0.125 | K20: 3 | L20: 0 | M20: 0 | U20: 0.0003987701
J21: 0.125 | K21: 3 | L21: 0 | M21: 0 | U21: 0.0003987701
J22: 0.125 | K22: 3 | L22: 0 | M22: 0 | U22: 0.0003987701
J23: 0.125 | K23: 3 | L23: 0 | M23: 0 | U23: 0.0003987701
J24: 0.125 | K24: 3 | L24: 0 | M24: 0 | U24: 0.0003987701
J25: 0.125 | K25: 3 | L25: 0 | M25: 0 | U25: 0.0003987701
J26: 0.125 | K26: 3 | L26: 0 | M26: 0 | U26: 0.0003987701
J27: 0.125 | K27: 3 | L27: 0 | M27: 0 | U27: 0.0003987701
J28: 0.125 | K28: 3 | L28: 0 | M28: 0 | U28: 0.0003987701
J29: 0.125 | K29: 3 | L29: 0 | M29: 0 | U29: 0.0003987701
J30: 0.125 | K30: 3 | L30: 0 | M30: 0 | U30: 0.0003987701
J31: 0.125 | K31: 3 | L31: 0 | M31: 0 | U31: 0.0003987701
J32: 0.125 | K32: 3 | L32: 0 | M32: 0 | U32: 0.0003987701
J33: 0.125 | K33: 3 | L33: 0 | M33: 0 | U33: 0.0003987701
J34: 0.125 | K34: 3 | L34: 0 | M34: 0 | U34: 0.0003987701
J35: 0.125 | K35: 3 | L35: 0 | M35: 0 | U35: 0.0003987701
J36: 0.125 | K36: 3 | L36: 0 | M36: 0 | U36: 0.0003987701
J37: 0.125 | K37: 3 | L37: 0 | M37: 0 | U37: 0.0003987701
J38: 0.125 | K38: 3 | L38: 0 | M38: 0 | U38: 0.0003987701
J39: 0.125 | K39: 3 | L39: 0 | M39: 0 | U39: 0.0003987701
J40: 0.125 | K40: 3 | L40: 0 | M40: 0 | U40: 0.0003987701
J41: 0.125 | K41: 3 | L41: 0 | M41: 0 | U41: 0.0003987701
J42: 0.125 | K42: 3 | L42: 0 | M42: 0 | U42: 0.0003987701
J43: 0.125 | K43: 3 | L43: 0 | M43: 0 | U43: 0.0003987701
J44: 0.125 | K44: 3 | L44: 0 | M44: =(VCCINT/1000)*VCCINT_N*IF($R44>0,$R44,($L44/2*(($F44+$I44)*0.45*$U44+($F44*(OFFSET(FANOUT,8,2))+$G44*(OFFSET(FANOUT,8,4)+$U44)+$H44*(OFFSET(FANOUT,8,5)+$U44)+$I44*(OFFSET(FANOUT,8,3)))))*OFFSET(POWER_OPT,OFFSET(OPTIMIZATION,0,3),2)) -> 0 | U44: 0.0003987701
J45: 0.125 | K45: 3 | L45: 0 | M45: 0 | U45: 0.0003987701
J46: 0.125 | K46: 3 | L46: 0 | M46: 0 | U46: 0.0003987701
J47: 0.125 | K47: 3 | L47: 0 | M47: 0 | U47: 0.0003987701
J48: 0.125 | K48: 3 | L48: 0 | M48: 0 | U48: 0.0003987701
J49: 0.125 | K49: 3 | L49: 0 | M49: 0 | U49: 0.0003987701
J50: 0.125 | K50: 3 | L50: 0 | M50: 0 | U50: 0.0003987701
J51: 0.125 | K51: 3 | L51: 0 | M51: 0 | U51: 0.0003987701
J52: 0.125 | K52: 3 | L52: 0 | M52: 0 | U52: 0.0003987701
J53: 0.125 | K53: 3 | L53: 0 | M53: 0 | U53: 0.0003987701
J54: 0.125 | K54: 3 | L54: 0 | M54: 0 | U54: 0.0003987701
J55: 0.125 | K55: 3 | L55: 0 | M55: 0 | U55: 0.0003987701
J56: 0.125 | K56: 3 | L56: 0 | M56: 0 | U56: 0.0003987701
J57: 0.125 | K57: 3 | L57: 0 | M57: 0 | U57: 0.0003987701
J58: 0.125 | K58: 3 | L58: 0 | M58: 0 | U58: 0.0003987701
J59: 0.125 | K59: 3 | L59: 0 | M59: 0 | U59: 0.0003987701
J60: 0.125 | K60: 3 | L60: 0 | M60: 0 | U60: 0.0003987701
J61: 0.125 | K61: 3 | L61: 0 | M61: 0 | U61: 0.0003987701
J62: 0.125 | K62: 3 | L62: 0 | M62: 0 | U62: 0.0003987701
J63: 0.125 | K63: 3 | L63: 0 | M63: 0 | U63: 0.0003987701
J64: 0.125 | K64: 3 | L64: 0 | M64: 0 | U64: 0.0003987701
J65: 0.125 | K65: 3 | L65: 0 | M65: 0 | U65: 0.0003987701
J66: 0.125 | K66: 3 | L66: 0 | M66: 0 | U66: 0.0003987701
J67: 0.125 | K67: 3 | L67: 0 | M67: 0 | U67: 0.0003987701
J68: 0.125 | K68: 3 | L68: 0 | M68: 0 | U68: 0.0003987701
J69: 0.125 | K69: 3 | L69: 0 | M69: 0 | U69: 0.0003987701
J70: 0.125 | K70: 3 | L70: 0 | M70: 0 | U70: 0.0003987701
J71: 0.125 | K71: 3 | L71: 0 | M71: 0 | U71: 0.0003987701
J72: 0.125 | K72: 3 | L72: 0 | M72: 0 | U72: 0.0003987701
J73: 0.125 | K73: 3 | L73: 0 | M73: 0 | U73: 0.0003987701
J74: 0.125 | K74: 3 | L74: 0 | M74: 0 | U74: 0.0003987701
J75: 0.125 | K75: 3 | L75: 0 | M75: 0 | U75: 0.0003987701
J76: 0.125 | K76: 3 | L76: 0 | M76: =(VCCINT/1000)*VCCINT_N*IF($R76>0,$R76,($L76/2*(($F76+$I76)*0.45*$U76+($F76*(OFFSET(FANOUT,8,2))+$G76*(OFFSET(FANOUT,8,4)+$U76)+$H76*(OFFSET(FANOUT,8,5)+$U76)+$I76*(OFFSET(FANOUT,8,3)))))*OFFSET(POWER_OPT,OFFSET(OPTIMIZATION,0,3),2)) -> 0 | U76: =OFFSET(FANOUT,8,1)+OFFSET(FANOUT,9,1)*($K76-3) -> 0.0003987701
J77: 0.125 | K77: 3 | L77: =E77*J77 -> 0 | M77: 0 | U77: 0.0003987701
J78: 0.125 | K78: 3 | L78: 0 | M78: 0 | U78: 0.0003987701
J79: 0.125 | K79: 3 | L79: 0 | M79: 0 | U79: 0.0003987701
J80: 0.125 | K80: 3 | L80: 0 | M80: 0 | U80: 0.0003987701
J81: 0.125 | K81: 3 | L81: 0 | M81: 0 | U81: 0.0003987701
J82: 0.125 | K82: 3 | L82: 0 | M82: 0 | U82: 0.0003987701
J83: 0.125 | K83: 3 | L83: 0 | M83: 0 | U83: 0.0003987701
J84: 0.125 | K84: 3 | L84: 0 | M84: 0 | U84: 0.0003987701
J85: 0.125 | K85: 3 | L85: 0 | M85: 0 | U85: 0.0003987701
J86: 0.125 | K86: 3 | L86: 0 | M86: 0 | U86: 0.0003987701
J87: 0.125 | K87: 3 | L87: 0 | M87: 0 | U87: 0.0003987701
J88: 0.125 | K88: 3 | L88: 0 | M88: 0 | U88: 0.0003987701
J89: 0.125 | K89: 3 | L89: 0 | M89: 0 | U89: 0.0003987701
J90: 0.125 | K90: 3 | L90: 0 | M90: 0 | U90: 0.0003987701
J91: 0.125 | K91: 3 | L91: 0 | M91: 0 | U91: 0.0003987701
J92: 0.125 | K92: 3 | L92: 0 | M92: 0 | U92: 0.0003987701
J93: 0.125 | K93: 3 | L93: 0 | M93: 0 | U93: 0.0003987701
J94: 0.125 | K94: 3 | L94: 0 | M94: 0 | U94: 0.0003987701
J95: 0.125 | K95: 3 | L95: 0 | M95: 0 | U95: 0.0003987701
J96: 0.125 | K96: 3 | L96: 0 | M96: 0 | U96: 0.0003987701
J97: 0.125 | K97: 3 | L97: 0 | M97: 0 | U97: 0.0003987701
J98: 0.125 | K98: 3 | L98: 0 | M98: 0 | U98: 0.0003987701
J99: 0.125 | K99: 3 | L99: 0 | M99: 0 | U99: 0.0003987701
J100: 0.125 | K100: 3 | L100: 0 | M100: 0 | U100: 0.0003987701
J101: 0.125 | K101: 3 | L101: 0 | M101: 0 | U101: 0.0003987701
J102: 0.125 | K102: 3 | L102: 0 | M102: 0 | U102: 0.0003987701
J103: 0.125 | K103: 3 | L103: 0 | M103: 0 | U103: 0.0003987701
J104: 0.125 | K104: 3 | L104: 0 | M104: 0 | U104: 0.0003987701
J105: 0.125 | K105: 3 | L105: 0 | M105: 0 | U105: 0.0003987701
J106: 0.125 | K106: 3 | L106: 0 | M106: 0 | U106: 0.0003987701
J107: 0.125 | K107: 3 | L107: 0 | M107: 0 | U107: 0.0003987701
J108: 0.125 | K108: 3 | L108: 0 | M108: =(VCCINT/1000)*VCCINT_N*IF($R108>0,$R108,($L108/2*(($F108+$I108)*0.45*$U108+($F108*(OFFSET(FANOUT,8,2))+$G108*(OFFSET(FANOUT,8,4)+$U108)+$H108*(OFFSET(FANOUT,8,5)+$U108)+$I108*(OFFSET(FANOUT,8,3)))))*OFFSET(POWER_OPT,OFFSET(OPTIMIZATION,0,3),2)) -> 0 | U108: 0.0003987701
J109: 0.125 | K109: 3 | L109: 0 | M109: 0 | U109: 0.0003987701
J110: 0.125 | K110: 3 | L110: 0 | M110: 0 | U110: 0.0003987701
J111: 0.125 | K111: 3 | L111: 0 | M111: 0 | U111: 0.0003987701
J112: 0.125 | K112: 3 | L112: 0 | M112: 0 | U112: 0.0003987701
J113: 0.125 | K113: 3 | L113: 0 | M113: 0 | U113: 0.0003987701
J114: 0.125 | K114: 3 | L114: 0 | M114: 0 | U114: 0.0003987701
J115: 0.125 | K115: 3 | L115: 0 | M115: 0 | U115: 0.0003987701
J116: 0.125 | K116: 3 | L116: 0 | M116: 0 | U116: 0.0003987701
J117: 0.125 | K117: 3 | L117: 0 | M117: 0 | U117: 0.0003987701
J118: 0.125 | K118: 3 | L118: =E118*J118 -> 0 | M118: 0 | U118: 0.0003987701
J119: 0.125 | K119: 3 | L119: 0 | M119: 0 | U119: 0.0003987701
J120: 0.125 | K120: 3 | L120: 0 | M120: 0 | U120: 0.0003987701
J121: 0.125 | K121: 3 | L121: 0 | M121: 0 | U121: 0.0003987701
J122: 0.125 | K122: 3 | L122: 0 | M122: 0 | U122: 0.0003987701
J123: 0.125 | K123: 3 | L123: 0 | M123: 0 | U123: 0.0003987701
J124: 0.125 | K124: 3 | L124: 0 | M124: 0 | U124: 0.0003987701
J125: 0.125 | K125: 3 | L125: 0 | M125: 0 | U125: 0.0003987701
J126: 0.125 | K126: 3 | L126: 0 | M126: 0 | U126: 0.0003987701
J127: 0.125 | K127: 3 | L127: 0 | M127: 0 | U127: 0.0003987701
J128: 0.125 | K128: 3 | L128: 0 | M128: 0 | U128: 0.0003987701
J129: 0.125 | K129: 3 | L129: 0 | M129: 0 | U129: 0.0003987701
J130: 0.125 | K130: 3 | L130: 0 | M130: 0 | U130: 0.0003987701
J131: 0.125 | K131: 3 | L131: 0 | M131: 0 | U131: 0.0003987701
J132: 0.125 | K132: 3 | L132: 0 | M132: 0 | U132: 0.0003987701
J133: 0.125 | K133: 3 | L133: 0 | M133: 0 | U133: 0.0003987701
J134: 0.125 | K134: 3 | L134: 0 | M134: 0 | U134: 0.0003987701
J135: 0.125 | K135: 3 | L135: 0 | M135: 0 | U135: 0.0003987701
J136: 0.125 | K136: 3 | L136: 0 | M136: 0 | U136: 0.0003987701
J137: 0.125 | K137: 3 | L137: 0 | M137: 0 | U137: 0.0003987701
J138: 0.125 | K138: 3 | L138: 0 | M138: 0 | U138: 0.0003987701
J139: 0.125 | K139: 3 | L139: 0 | M139: 0 | U139: 0.0003987701
J140: 0.125 | K140: 3 | L140: 0 | M140: =(VCCINT/1000)*VCCINT_N*IF($R140>0,$R140,($L140/2*(($F140+$I140)*0.45*$U140+($F140*(OFFSET(FANOUT,8,2))+$G140*(OFFSET(FANOUT,8,4)+$U140)+$H140*(OFFSET(FANOUT,8,5)+$U140)+$I140*(OFFSET(FANOUT,8,3)))))*OFFSET(POWER_OPT,OFFSET(OPTIMIZATION,0,3),2)) -> 0 | U140: =OFFSET(FANOUT,8,1)+OFFSET(FANOUT,9,1)*($K140-3) -> 0.0003987701
J141: 0.125 | K141: 3 | L141: =E141*J141 -> 0 | M141: 0 | U141: 0.0003987701
J142: 0.125 | K142: 3 | L142: 0 | M142: 0 | U142: 0.0003987701
J143: 0.125 | K143: 3 | L143: 0 | M143: 0 | U143: 0.0003987701
J144: 0.125 | K144: 3 | L144: 0 | M144: 0 | U144: 0.0003987701
J145: 0.125 | K145: 3 | L145: 0 | M145: 0 | U145: 0.0003987701
J146: 0.125 | K146: 3 | L146: 0 | M146: 0 | U146: 0.0003987701
J147: 0.125 | K147: 3 | L147: 0 | M147: 0 | U147: 0.0003987701
J148: 0.125 | K148: 3 | L148: 0 | M148: 0 | U148: 0.0003987701
J149: 0.125 | K149: 3 | L149: 0 | M149: 0 | U149: 0.0003987701
J150: 0.125 | K150: 3 | L150: 0 | M150: 0 | U150: 0.0003987701
J151: 0.125 | K151: 3 | L151: 0 | M151: 0 | U151: 0.0003987701
J152: 0.125 | K152: 3 | L152: 0 | M152: 0 | U152: 0.0003987701
J153: 0.125 | K153: 3 | L153: 0 | M153: 0 | U153: 0.0003987701
J154: 0.125 | K154: 3 | L154: 0 | M154: 0 | U154: 0.0003987701
J155: 0.125 | K155: 3 | L155: 0 | M155: 0 | U155: 0.0003987701
J156: 0.125 | K156: 3 | L156: 0 | M156: 0 | U156: 0.0003987701
J157: 0.125 | K157: 3 | L157: 0 | M157: 0 | U157: 0.0003987701
J158: 0.125 | K158: 3 | L158: 0 | M158: 0 | U158: 0.0003987701
J159: 0.125 | K159: 3 | L159: 0 | M159: 0 | U159: 0.0003987701
J160: 0.125 | K160: 3 | L160: 0 | M160: 0 | U160: 0.0003987701
J161: 0.125 | K161: 3 | L161: 0 | M161: 0 | U161: 0.0003987701
J162: 0.125 | K162: 3 | L162: 0 | M162: 0 | U162: 0.0003987701
J163: 0.125 | K163: 3 | L163: 0 | M163: 0 | U163: 0.0003987701
J164: 0.125 | K164: 3 | L164: 0 | M164: 0 | U164: 0.0003987701
J165: 0.125 | K165: 3 | L165: 0 | M165: 0 | U165: 0.0003987701
J166: 0.125 | K166: 3 | L166: 0 | M166: 0 | U166: 0.0003987701
J167: 0.125 | K167: 3 | L167: 0 | M167: 0 | U167: 0.0003987701
J168: 0.125 | K168: 3 | L168: 0 | M168: 0 | U168: 0.0003987701
J169: 0.125 | K169: 3 | L169: 0 | M169: 0 | U169: 0.0003987701
J170: 0.125 | K170: 3 | L170: 0 | M170: 0 | U170: 0.0003987701
J171: 0.125 | K171: 3 | L171: 0 | M171: 0 | U171: 0.0003987701
J172: 0.125 | K172: 3 | L172: 0 | M172: =(VCCINT/1000)*VCCINT_N*IF($R172>0,$R172,($L172/2*(($F172+$I172)*0.45*$U172+($F172*(OFFSET(FANOUT,8,2))+$G172*(OFFSET(FANOUT,8,4)+$U172)+$H172*(OFFSET(FANOUT,8,5)+$U172)+$I172*(OFFSET(FANOUT,8,3)))))*OFFSET(POWER_OPT,OFFSET(OPTIMIZATION,0,3),2)) -> 0 | U172: 0.0003987701
J173: 0.125 | K173: 3 | L173: 0 | M173: 0 | U173: 0.0003987701
J174: 0.125 | K174: 3 | L174: 0 | M174: 0 | U174: 0.0003987701
J175: 0.125 | K175: 3 | L175: 0 | M175: 0 | U175: 0.0003987701
J176: 0.125 | K176: 3 | L176: 0 | M176: 0 | U176: 0.0003987701
J177: 0.125 | K177: 3 | L177: 0 | M177: 0 | U177: 0.0003987701
J178: 0.125 | K178: 3 | L178: 0 | M178: 0 | U178: 0.0003987701
J179: 0.125 | K179: 3 | L179: 0 | M179: 0 | U179: 0.0003987701
J180: 0.125 | K180: 3 | L180: 0 | M180: 0 | U180: 0.0003987701
J181: 0.125 | K181: 3 | L181: 0 | M181: 0 | U181: 0.0003987701
J182: 0.125 | K182: 3 | L182: 0 | M182: 0 | U182: 0.0003987701
J183: 0.125 | K183: 3 | L183: 0 | M183: 0 | U183: 0.0003987701
J184: 0.125 | K184: 3 | L184: 0 | M184: 0 | U184: 0.0003987701
J185: 0.125 | K185: 3 | L185: 0 | M185: 0 | U185: 0.0003987701
J186: 0.125 | K186: 3 | L186: 0 | M186: 0 | U186: 0.0003987701
J187: 0.125 | K187: 3 | L187: 0 | M187: 0 | U187: 0.0003987701
J188: 0.125 | K188: 3 | L188: 0 | M188: 0 | U188: 0.0003987701
J189: 0.125 | K189: 3 | L189: 0 | M189: 0 | U189: 0.0003987701
J190: 0.125 | K190: 3 | L190: 0 | M190: 0 | U190: 0.0003987701
J191: 0.125 | K191: 3 | L191: 0 | M191: 0 | U191: 0.0003987701
J192: 0.125 | K192: 3 | L192: 0 | M192: 0 | U192: 0.0003987701
J193: 0.125 | K193: 3 | L193: 0 | M193: 0 | U193: 0.0003987701
J194: 0.125 | K194: 3 | L194: 0 | M194: 0 | U194: 0.0003987701
J195: 0.125 | K195: 3 | L195: 0 | M195: 0 | U195: 0.0003987701
J196: 0.125 | K196: 3 | L196: 0 | M196: 0 | U196: 0.0003987701
J197: 0.125 | K197: 3 | L197: 0 | M197: 0 | U197: 0.0003987701
J198: 0.125 | K198: 3 | L198: 0 | M198: 0 | U198: 0.0003987701
J199: 0.125 | K199: 3 | L199: 0 | M199: 0 | U199: 0.0003987701
J200: 0.125 | K200: 3 | L200: 0 | M200: 0 | U200: 0.0003987701
J201: 0.125 | K201: 3 | L201: 0 | M201: 0 | U201: 0.0003987701
J202: 0.125 | K202: 3 | L202: 0 | M202: 0 | U202: 0.0003987701
... 4298 more rows

Sheet IO
B1: I/O Power | AI1: =IF(AND(NUM_33IOS>0,NUM_PINS<>NUM_33IOS),IF(MID(PACKAGE,2,1)<>"B","AJ1:AJ3","AJ1:AJ2"),IF(NUM_33IOS=0,IF(MID(PACKAGE,2,1)<>"B","AJ2:AJ3","AJ2"),"AJ1")) -> AJ1:AJ2 | AJ1: HR | AK1: =IF(AND(NUM_33IOS>0,NUM_PINS<>NUM_33IOS),"AJ1:AJ2",IF(NUM_33IOS=0,"AJ2","AJ1")) -> AJ1:AJ2 | AL1: =IF(PROCESS_FACTOR>1,2,1) -> 1 | AU1: On-Chip Current | BA1: Off-Chip Current | BT1: 16 | BU1: 2:1 | BV1: DIFF_TERM | BW1: Differential | BX1: ="BX2:BX4" -> BX2:BX4
AJ2: HP | BT2: 18 | BU2: 4:1 | BW2: None | BX2: No | BY2: DCI | BZ2: SPLIT_40
B3: Active Current | I3: Summary | O3: Select I/O User Guide | AJ3: HP_PD | BT3: 32 | BV3: UNTUNED_SPLIT_40 | BW3: Parallel | BX3: Yes | BZ3: SPLIT_50
B4: Source | E4: On-Chip | F4: Off-Chip | G4: Active | I4: Power (on-chip) | L4: =SUM(D5*E5,D6*E6,D7*E7,D8*E8,D9*E9,D10*E10,D11*E11,D12*E12,D13*E13) -> 0 | BT4: 36 | BV4: UNTUNED_SPLIT_50 | BW4: Series | BX4: DDR3 | BZ4: UNTUNED_SPLIT_60
B5: VCCINT | D5: =VCCINT -> 1 | E5: =IOINT_POWER/VCCINT*PL_POWERED -> 0 | G5: =E5 -> 0 | J5: Logic | L5: =IOINT_POWER -> 0 | O5: XPE User Guide | S5: Introduction to XPE (video) | BT5: 64 | BV5: UNTUNED_SPLIT_60 | BW5: Series-Parallel
B6: VCCAUX | D6: =VCCAUX -> 1.8 | E6: =SUM(Y19:Y500)/VCCAUX*OFFSET(POWER_SCALE,8,1)*PL_POWERED -> 0 | G6: =E6 -> 0 | J6: Buffer | L6: =L4-L5 -> 0 | BA6: pairs | BB6: =SUM(IF(RIGHT(F19:F500,14)="DS 2.5V (pair)",J19:K500)) -> 0 | BC6: =SUM(IF(F19:F500="LVDS 1.8V (pair)",J19:K500)) -> 0 | BT6: 72
B7: VCCAUX_IO | D7: =VCCAUX_IO -> 2 | E7: =SUM(Z19:Z500)/VCCAUX_IO*OFFSET(POWER_SCALE,8,1)*PL_POWERED -> 0 | G7: =E7 -> 0 | L7: =SUM(AX19:AX500) -> 0 | O7: Banks With Internal Vref | R7: 0 | BA7: out | BB7: =SUM(IF(RIGHT(F19:F500,14)="DS 2.5V (pair)",J19:K500)) -> 0 | BC7: =SUM(IF(F19:F500="LVDS 1.8V (pair)",J19:K500)) -> 0 | BV7: DCI 40Ω
B8: VCCO33 | D8: =VCCO33 -> 3.3 | E8: =SUM(BA19:BA500)*PL_POWERED -> 0 | F8: =SUM(BG19:BG500) -> 0 | G8: =SUM(E8:F8) -> 0 | I8: =TEXT(IO_POWER/TOTAL_POWER,"0%")&" of total on-chip power "&TEXT(TOTAL_POWER,"0.000")&"W" -> 0% of total on-chip power 0.156W | O8: IO Delay Controllers | R8: 0 | S8: =SUM(IF("Off"=$M19:$M500,0,1)) -> 0 | BA8: banks | BB8: =IF(BB6>0,INT(($BB6*2+48)/48),0) -> 0 | BC8: =IF(BC6>0,INT((BC6*2+48)/48),0) -> 0 | BV8: DCI 50Ω
B9: VCCO25 | D9: =VCCO25 -> 2.5 | E9: =SUM(BB9,BB19:BB500)*PL_POWERED -> 0 | F9: =SUM(BH19:BH500) -> 0 | G9: 0 | I9: Power (off-chip) | L9: =SUM(AE19:AE500) -> 0 | BA9: pwr | BB9: =OFFSET(IODELAY_DATA,27,1)*BB8/1000 -> 0 | BC9: =OFFSET(IODELAY_DATA,26,1)*BC8/1000 -> 0 | BV9: DCI 60Ω
B10: VCCO18 | D10: =VCCO18 -> 1.8 | E10: =SUM(BC9,BC13,BC19:BC500)*PL_POWERED -> 0 | F10: =SUM(BI19:BI500) -> 0 | G10: 0 | I10: I/O Count | L10: =SUM(I501:K501) -> 0
B11: VCCO15 | D11: =VCCO15 -> 1.5 | E11: =SUM(BD13,BD19:BD500)*PL_POWERED -> 0 | F11: =SUM(BJ19:BJ500) -> 0 | G11: 0 | I11: I/O Utilization | L11: =IF(AND(L10/NUM_PINS>=0.995, L10/NUM_PINS<0.9999),0.99,L10/NUM_PINS) -> 0 | BB11: pins | BC11: =SUM(IF(AN19:AN500=VCCO18,IF(AX19:AX500>0,AQ19:AQ500))) -> 0 | BD11: =SUM(IF(AN19:AN500=VCCO15,IF(AX19:AX500>0,AQ19:AQ500))) -> 0 | BE11: =SUM(IF(AN19:AN500=VCCO135,IF(AX19:AX500>0,AQ19:AQ500))) -> 0 | BF11: =SUM(IF(AN19:AN500=VCCO12,IF(AX19:AX500>0,AQ19:AQ500))) -> 0
B12: VCCO135 | D12: =VCCO135 -> 1.35 | E12: =SUM(BE13,BE19:BE500)*PL_POWERED -> 0 | F12: =SUM(BK19:BK500) -> 0 | G12: 0 | J12: High Performance | L12: =IF(M12<=0,0,N12/M12) -> 0 | M12: =NUM_PINS-NUM_33IOS -> 150 | N12: =SUM(IF(E19:E500<>"HR",IF("(pair)"=RIGHT($F19:$F500,6),I19:K500*2,I19:K500),0)) -> 0 | BB12: banks | BC12: =IF(BC11>0,INT((BC11+48)/48),0) -> 0 | BD12: =IF(BD11>0,INT((BD11+48)/48),0) -> 0 | BE12: =IF(BE11>0,INT((BE11+48)/48),0) -> 0 | BF12: =IF(BF11>0,INT((BF11+48)/48),0) -> 0
B13: VCCO12 | D13: =VCCO12 -> 1.2 | E13: =SUM(BF13,BF19:BF500)*PL_POWERED -> 0 | F13: =SUM(BL19:BL500) -> 0 | G13: 0 | J13: High Range | L13: =IF(M13<=0,0,N13/M13) -> 0 | M13: =NUM_33IOS -> 350 | N13: =SUM(IF(E19:E500="HR",IF("(pair)"=RIGHT($F19:$F500,6),I19:K500*2,I19:K500),0)) -> 0 | BB13: pwr | BC13: =BC12*0.021 -> 0 | BD13: =BD12*0.015 -> 0 | BE13: =BE12*0.015 -> 0 | BF13: =BF12*0.015 -> 0
B16: Name | E16: Bank | F16: I/O Settings | P16: Activity | V16: Output Load (pF) | W16: Signal Rate (Mtr/s) | X16: On Chip Power (W) | AB16: External Termination | AE16: Off Chip | BA16: =IF($AZ14<=0,0,OFFSET(IODELAY_DATA,IF($E19="HR",27,26),1)*INT(($AZ16*2+48)/48)/1000) -> 0
E17: I/O Type | F17: I/O Standard | I17: Input Pins | J17: Output Pins | K17: Bidir Pins | L17: I/O LOGIC SERDES | M17: I/O DELAY | N17: IBUF | O17: Input Term | P17: Clock (MHz) | Q17: Toggle Rate | R17: Data Rate | S17: Output Enable | T17: Term Disable | U17: IBUF Disable | X17: VCCINT | Y17: VCCAUX | Z17: VCCAUX_IO | AA17: VCCO | AB17: Output | AE17: VCCO | AQ17: DELAY | AT17: OBUF | AX17: DCI | AY17: IOI | AZ17: LVDS
X18: =TEXT(VCCINT,"0.000")&"V" -> 1.000V | Y18: =TEXT(VCCAUX,"0.000")&"V" -> 1.800V | Z18: =TEXT(VCCAUX_IO,"0.000")&"V" -> 2.000V | AA18: all rails | AB18: Type | AC18: R/RDIFF | AD18: RS | AE18: all rails | AH18: Index | AI18: Fclk | AJ18: Type | AK18: Typ1 | AL18: Typ2 | AM18: Typ3 | AN18: Vcco | AO18: Vtt | AP18: Voh-Vol | AQ18: Pins | AR18: Iccint | AS18: Iccaux | AT18: Iccint | AU18: Iccaux | AV18: Icco | AW18: term | AX18: bank | AY18: Iccint | AZ18: Bias | BA18: Vcco33 | BB18: Vcco25 | BC18: Vcco18 | BD18: Vcco15 | BE18: Vcco135 | BF18: Vcco12 | BG18: Vcco33 | BH18: Vcco25 | BI18: Vcco18 | BJ18: Vcco15 | BK18: Vcco135 | BL18: Vcco12 | BN18: IBUF Iccint | BO18: IBUF Iccaux | BP18: IBUF Icco | BQ18: IBUF LP/HP ROffset | BR18: IBUF LP/HP COffset | BS18: Routing | BT18: Offchip Term | BU18: R_equiv | BV18: Pon-chip | BW18: Poff-chip | BX18: InTerm | BY18: Requiv
E19: HP | F19: LVCMOS 1.8V 12mA (Slow) | L19: No | M19: Off | N19: Low Power | Q19: 0.125 | R19: SDR | S19: 1 | T19: 0 | U19: =$T19 -> 0 | V19: 0 | W19: =P19*IF(RIGHT(R19,1)="R",Q19*IF(R19="DDR",2,1),2) -> 0 | X19: =IF(ISERROR($AH19),0,VCCINT/1000*VCCINT_N*(IF($L19="No",0,$P19*$AQ19*OFFSET(IODELAY_DATA,9,3))+BS19+AY19+BN19)) -> 0 | Y19: =IF(ISERROR($AH19),0,IF(E19="HP_PD",0,MAX(0,($AS19+$AU19+$BO19)*VCCAUX/1000))) -> 0 | Z19: =IF(ISERROR($AH19),0,IF(E19="HP_PD",MAX(0,($AS19+$AU19+$BO19)*VCCAUX_IO/1000),0)) -> 0 | AA19: =IF(ISERROR($AH19),0,MAX(0,OFFSET($AJ19,0,$AJ19)+(($J19+K19)*$S19)*$BV19+$I19*OFFSET(IO_STANDARDS,$AH19,14)/1000+($AW19+$BP19)*$AN19)) -> 0 | AB19: None | AE19: =IF(ISERROR($AH19),0,IF(AB19="None",0,$BW19*(($J19+K19)*$S19))) -> 0 | AH19: =MATCH($F19,IF($E19="HR",SIOSTD_LIST,VIOSTD_LIST),FALSE)+IF($E19="HR",0,ROW(VIOSTD_LIST)-ROW(SIOSTD_LIST)) -> 183 | AI19: =P19*IF(RIGHT(R19,1)="R",Q19*IF(R19="DDR",1,0.5),1) -> 0 | AJ19: =IF(AND($K19>0,$E19="HR",OFFSET(IO_STANDARDS,$AH19,19)>0),3,OFFSET(IO_STANDARDS,$AH19,2)) -> 1 | AK19: =((OFFSET(IO_STANDARDS,$AH19,3)*$AN19+IF(OFFSET(IO_STANDARDS,$AH19,10)=0,$V19,$V19/2)*$AP19)*($J19+$K19)*$AP19*$AI19*$S19)/1000000 -> 0 | AL19: =MAX(0,(OFFSET(IO_STANDARDS,$AH19,3)*($J19+$K19)*$AN19*$AN19*$AI19*$S19/1000000)) -> 0 | AM19: =((OFFSET(IO_STANDARDS,$AH19,3)*$AN19+IF(OFFSET(IO_STANDARDS,$AH19,10)=0,$V19,$V19/2)*$AP19)*($J19+$K19)*$AP19*$AI19*$S19)/1000000 -> 0 | AN19: =IF(ISERROR($AH19),0,OFFSET(IO_STANDARDS,$AH19,1)) -> 1.8 | AO19: =IF(OFFSET(IO_STANDARDS,$AH19,9)=0,0,IF(OR(LEFT($F19,14)="HSTL Class III",LEFT($F19,13)="HSTL Class IV",LEFT($F19,3)="GTL"),$AN19,$AN19/2)) -> 0 | AP19: =IF((OFFSET(IO_STANDARDS,$AH19,8) - OFFSET(IO_STANDARDS,$AH19,9)) =0,$AN19,(OFFSET(IO_STANDARDS,$AH19,8) - OFFSET(IO_STANDARDS,$AH19,9))) -> 1.8 | AQ19: =IF(RIGHT($F19,6) ="(pair)",2,1)*SUM(I19:K19) -> 0 | AR19: =IF($M19="Off",0,$AI19*OFFSET(IODELAY_DATA,2,3)*$AQ19) -> 0 | AS19: =(IF($M19="Low Power",OFFSET(IODELAY_DATA,1,1),IF(LEFT($M19,4)="High",OFFSET(IODELAY_DATA,1,2),0))+IF($M19="Off",0,$AI19*OFFSET(IODELAY_DATA,1,3)))*$AQ19 -> 0 | AT19: =OFFSET(IO_STANDARDS,$AH19,7)*$AI19*$S19*($J19+$K19)/1000 -> 0 | AU19: =OFFSET(IO_STANDARDS,$AH19,4)*$AI19*$S19*($J19+$K19) -> 0 | AV19: =((($I19+$K19*(1-$S19))*OFFSET(IO_STANDARDS,$AH19,11)) + ((($J19+$K19)*$S19)*OFFSET(IO_STANDARDS,$AH19,10)))/1000 + $AX19 -> 0 | AW19: =IF(LEFT($F19,4)="Diff",2,1)*($I19+($K19*IF($AJ19=3,1-$S19,1)))*IF(AND($AJ19=2,$O19="DIFF_TERM"),OFFSET(IO_STANDARDS,$AH19,18),IF($E19<>"HR",IF(OFFSET(IO_STANDARDS,$AH19,6)=0,0,1)*IF(AJ19=3,$AO19*500/$BY19,OFFSET(IO_STANDARDS,$AH19,11)),IF(LEFT($O19,3)="UNT",$AO19*500/$BY19,0))*(1-$T19))/1000 -> 0 | AX19: =IF(IF(LEFT($F19,5)="LVDCI",$J19+$K19,SUM($I19:$K19))>0,((OFFSET(IO_STANDARDS,$AH19,6)*IF(AND($I19+$K19>0,OFFSET(IO_STANDARDS,$AH19,6)<1),100,1)*INT((SUM($I19:$K19)+50)/50))/1000),0) -> 0 | AY19: =IF($L19="No",0,$AI19*(OFFSET(IODELAY_DATA,IF($L19="Yes",3,5),3)*(I19+(1-S19)*K19) + OFFSET(IODELAY_DATA,IF($L19="Yes",4,5),3)*(J19+S19*K19)))+IF($M19="Off",0,$AI19*OFFSET(IODELAY_DATA,2,3)*$AQ19) -> 0 | AZ19: =IF(OR($J19+$K19=0,$AJ19<>2),0,OFFSET(IODELAY_DATA,IF($E19="HR",27,26),1)*INT((SUM($I19:$K19)+50)/50)/1000) -> 0 | BA19: =IF(ISERROR($AH19),0,IF($AN19=VCCO33,$AA19/$AN19+$AX19,0)) -> 0 | BB19: =IF(ISERROR($AH19),0,IF($AN19=VCCO25,$AA19/$AN19+$AX19,0)) -> 0 | BC19: =IF(ISERROR($AH19),0,IF($AN19=VCCO18,$AA19/$AN19,0)) -> 0 | BD19: =IF(ISERROR($AH19),0,IF($AN19=VCCO15,$AA19/$AN19,0)) -> 0 | BE19: =IF(ISERROR($AH19),0,IF($AN19=VCCO135,$AA19/$AN19,0)) -> 0 | BF19: =IF(ISERROR($AH19),0,IF($AN19=VCCO12,$AA19/$AN19,0)) -> 0 | BG19: =IF(ISERROR($AH19),0,IF($AN19=VCCO33,$AE19/$AN19,0)) -> 0 | BH19: =IF(ISERROR($AH19),0,IF($AN19=VCCO25,$AE19/$AN19,0)) -> 0 | BI19: =IF(ISERROR($AH19),0,IF($AN19=VCCO18,$AE19/$AN19,0)) -> 0 | BJ19: =IF(ISERROR($AH19),0,IF($AN19=VCCO15,$AE19/$AN19,0)) -> 0 | BK19: =IF(ISERROR($AH19),0,IF($AN19=VCCO135,$AE19/$AN19,0)) -> 0 | BL19: =IF(ISERROR($AH19),0,IF($AN19=VCCO12,$AE19/$AN19,0)) -> 0 | BN19: =(OFFSET(IODELAY_DATA,$BQ19,$BR19)*(1-$U19)*IF($AJ19=3,(1-$S19),1)+OFFSET(IODELAY_DATA,$BQ19,$BR19+1)*$AI19)*(I19+(1-S19)*K19) -> 0 | BO19: =(OFFSET(IODELAY_DATA,$BQ19,$BR19+4)*(1-$U19)*IF($AJ19=3,(1-$S19),1)+OFFSET(IODELAY_DATA,$BQ19,$BR19+5)*$AI19)*(I19+(1-S19)*K19) -> 0 | BP19: =IF(OFFSET(IO_STANDARDS,$AH19,13)=0,OFFSET(IODELAY_DATA,9+IF($AN19=VCCO18,2,IF($AN19=VCCO15,3,IF($AN19=VCCO12,4,1))),3)*(I19+(1-S19)*K19)*$AI19,0)/1000 -> 0 | BQ19: =IF($E19="HR",22,15)+IF(OFFSET(IO_STANDARDS,$AH19,5)=0,0,IF(ISERR(FIND("pair",OFFSET(IO_STANDARDS,$AH19,0))),1,2))+IF($E19="HP_PD",2,0) -> 15 | BR19: =IF(LEFT($N19,3)="Low",1,3) -> 1 | BS19: =$AI19*2*OFFSET(FANOUT,3,6)*$AQ19 -> 0 | BT19: =IF(OR($AJ19=2,LEFT($F19,4)="Diff"),"BW1:BW2",IF(OFFSET(IO_STANDARDS,$AH19,8)=0,"BW2",IF(AND($J19=2,$F19="HSTL Class I 1.2V"),"BW1:BW5","BW2:BW5"))) -> BW2 | BU19: =IF(LEFT($AB19,8) = "Parallel",IF($AC19<=0,50,$AC19),IF($AB19="Series",IF($AD19<=0,20,$AD19)+50,IF($AB19="Series-Parallel",IF(OR($AD19<=0,$AC19<=0),70,($AD19 + ($AC19))),50))) -> 50 | BV19: =IF(OR(NOT(ISTEXT($AB19)),$AB19="None",$AB19="Differential"),OFFSET(IO_STANDARDS,$AH19,13)/1000,(($AN19-OFFSET(IO_STANDARDS,$AH19,8))*(ABS($AO19-OFFSET(IO_STANDARDS,$AH19,8))/$BU19)+OFFSET(IO_STANDARDS,$AH19,9)*($AO19-OFFSET(IO_STANDARDS,$AH19,9))/$BU19)/2) -> 0 | BW19: =IF($BV19<=0,0,MAX(0,$BV19*OFFSET(IO_STANDARDS,$AH19,1)*OFFSET(IO_STANDARDS,$AH19,10)/OFFSET(IO_STANDARDS,$AH19,13)-$BV19)) -> 0 | BX19: =IF(OFFSET(IO_STANDARDS,$AH19,18)>0,"BV1:BV2",IF(OFFSET(IO_STANDARDS,$AH19,19)>0,IF(E19="HR","BV2:BV5","BV7:BV9"),"BV2")) -> BV2 | BY19: =IF(LEN($O19)<5,50,IF(LEFT($O19,3)="DCI",MID($O19,5,2),IF(ISNUMBER(RIGHT($O19,2)),RIGHT($O19,2),50))) -> 50
E20: HP | F20: LVCMOS 1.8V 12mA (Slow) | L20: No | M20: Off | N20: Low Power | Q20: 0.125 | R20: SDR | S20: 1 | T20: 0 | U20: 0 | V20: 0 | W20: 0 | X20: 0 | Y20: 0 | Z20: 0 | AA20: 0 | AB20: None | AE20: 0 | AH20: 183 | AI20: 0 | AJ20: 1 | AK20: 0 | AL20: 0 | AM20: 0 | AN20: 1.8 | AO20: 0 | AP20: 1.8 | AQ20: 0 | AR20: 0 | AS20: 0 | AT20: 0 | AU20: 0 | AV20: 0 | AW20: 0 | AX20: 0 | AY20: 0 | AZ20: 0 | BA20: 0 | BB20: 0 | BC20: 0 | BD20: 0 | BE20: 0 | BF20: 0 | BG20: 0 | BH20: 0 | BI20: 0 | BJ20: 0 | BK20: 0 | BL20: 0 | BN20: 0 | BO20: 0 | BP20: 0 | BQ20: 15 | BR20: =IF(LEFT($N20,3)="Low",1,3) -> 1 | BS20: 0 | BT20: BW2 | BU20: =IF(LEFT($AB20,8) = "Parallel",IF($AC20<=0,50,$AC20),IF($AB20="Series",IF($AD20<=0,20,$AD20)+50,IF($AB20="Series-Parallel",IF(OR($AD20<=0,$AC20<=0),70,($AD20 + ($AC20))),50))) -> 50 | BV20: 0 | BW20: 0 | BX20: BV2 | BY20: =IF(LEN($O20)<5,50,IF(LEFT($O20,3)="DCI",MID($O20,5,2),IF(ISNUMBER(RIGHT($O20,2)),RIGHT($O20,2),50))) -> 50
E21: HP | F21: LVCMOS 1.8V 12mA (Slow) | L21: No | M21: Off | N21: Low Power | Q21: 0.125 | R21: SDR | S21: 1 | T21: 0 | U21: 0 | V21: 0 | W21: 0 | X21: 0 | Y21: 0 | Z21: 0 | AA21: 0 | AB21: None | AE21: 0 | AH21: 183 | AI21: 0 | AJ21: 1 | AK21: 0 | AL21: 0 | AM21: 0 | AN21: 1.8 | AO21: 0 | AP21: 1.8 | AQ21: 0 | AR21: 0 | AS21: 0 | AT21: 0 | AU21: 0 | AV21: 0 | AW21: 0 | AX21: 0 | AY21: 0 | AZ21: 0 | BA21: 0 | BB21: 0 | BC21: 0 | BD21: 0 | BE21: 0 | BF21: 0 | BG21: 0 | BH21: 0 | BI21: 0 | BJ21: 0 | BK21: 0 | BL21: 0 | BN21: 0 | BO21: 0 | BP21: 0 | BQ21: 15 | BR21: 1 | BS21: 0 | BT21: BW2 | BU21: 50 | BV21: 0 | BW21: 0 | BX21: BV2 | BY21: 50
E22: HP | F22: LVCMOS 1.8V 12mA (Slow) | L22: No | M22: Off | N22: Low Power | Q22: 0.125 | R22: SDR | S22: 1 | T22: 0 | U22: 0 | V22: 0 | W22: 0 | X22: 0 | Y22: 0 | Z22: 0 | AA22: 0 | AB22: None | AE22: 0 | AH22: 183 | AI22: 0 | AJ22: 1 | AK22: 0 | AL22: 0 | AM22: 0 | AN22: 1.8 | AO22: 0 | AP22: 1.8 | AQ22: 0 | AR22: 0 | AS22: 0 | AT22: 0 | AU22: 0 | AV22: 0 | AW22: 0 | AX22: 0 | AY22: 0 | AZ22: 0 | BA22: 0 | BB22: 0 | BC22: 0 | BD22: 0 | BE22: 0 | BF22: 0 | BG22: 0 | BH22: 0 | BI22: 0 | BJ22: 0 | BK22: 0 | BL22: 0 | BN22: 0 | BO22: 0 | BP22: 0 | BQ22: 15 | BR22: 1 | BS22: 0 | BT22: BW2 | BU22: 50 | BV22: 0 | BW22: 0 | BX22: BV2 | BY22: 50
E23: HP | F23: LVCMOS 1.8V 12mA (Slow) | L23: No | M23: Off | N23: Low Power | Q23: 0.125 | R23: SDR | S23: 1 | T23: 0 | U23: 0 | V23: 0 | W23: 0 | X23: 0 | Y23: 0 | Z23: 0 | AA23: 0 | AB23: None | AE23: 0 | AH23: 183 | AI23: 0 | AJ23: 1 | AK23: 0 | AL23: 0 | AM23: 0 | AN23: 1.8 | AO23: 0 | AP23: 1.8 | AQ23: 0 | AR23: 0 | AS23: 0 | AT23: 0 | AU23: 0 | AV23: 0 | AW23: 0 | AX23: 0 | AY23: 0 | AZ23: 0 | BA23: 0 | BB23: 0 | BC23: 0 | BD23: 0 | BE23: 0 | BF23: 0 | BG23: 0 | BH23: 0 | BI23: 0 | BJ23: 0 | BK23: 0 | BL23: 0 | BN23: 0 | BO23: 0 | BP23: 0 | BQ23: 15 | BR23: 1 | BS23: 0 | BT23: BW2 | BU23: 50 | BV23: 0 | BW23: 0 | BX23: BV2 | BY23: 50
E24: HP | F24: LVCMOS 1.8V 12mA (Slow) | L24: No | M24: Off | N24: Low Power | Q24: 0.125 | R24: SDR | S24: 1 | T24: 0 | U24: 0 | V24: 0 | W24: 0 | X24: 0 | Y24: 0 | Z24: 0 | AA24: 0 | AB24: None | AE24: 0 | AH24: 183 | AI24: 0 | AJ24: 1 | AK24: 0 | AL24: 0 | AM24: 0 | AN24: 1.8 | AO24: 0 | AP24: 1.8 | AQ24: 0 | AR24: 0 | AS24: 0 | AT24: 0 | AU24: 0 | AV24: 0 | AW24: 0 | AX24: 0 | AY24: 0 | AZ24: 0 | BA24: 0 | BB24: 0 | BC24: 0 | BD24: 0 | BE24: 0 | BF24: 0 | BG24: 0 | BH24: 0 | BI24: 0 | BJ24: 0 | BK24: 0 | BL24: 0 | BN24: 0 | BO24: 0 | BP24: 0 | BQ24: 15 | BR24: 1 | BS24: 0 | BT24: BW2 | BU24: 50 | BV24: 0 | BW24: 0 | BX24: BV2 | BY24: 50
E25: HP | F25: LVCMOS 1.8V 12mA (Slow) | L25: No | M25: Off | N25: Low Power | Q25: 0.125 | R25: SDR | S25: 1 | T25: 0 | U25: 0 | V25: 0 | W25: 0 | X25: 0 | Y25: 0 | Z25: 0 | AA25: 0 | AB25: None | AE25: 0 | AH25: 183 | AI25: 0 | AJ25: 1 | AK25: 0 | AL25: 0 | AM25: 0 | AN25: 1.8 | AO25: 0 | AP25: 1.8 | AQ25: 0 | AR25: 0 | AS25: 0 | AT25: 0 | AU25: 0 | AV25: 0 | AW25: 0 | AX25: 0 | AY25: 0 | AZ25: 0 | BA25: 0 | BB25: 0 | BC25: 0 | BD25: 0 | BE25: 0 | BF25: 0 | BG25: 0 | BH25: 0 | BI25: 0 | BJ25: 0 | BK25: 0 | BL25: 0 | BN25: 0 | BO25: 0 | BP25: 0 | BQ25: 15 | BR25: 1 | BS25: 0 | BT25: BW2 | BU25: 50 | BV25: 0 | BW25: 0 | BX25: BV2 | BY25: 50
E26: HP | F26: LVCMOS 1.8V 12mA (Slow) | L26: No | M26: Off | N26: Low Power | Q26: 0.125 | R26: SDR | S26: 1 | T26: 0 | U26: 0 | V26: 0 | W26: 0 | X26: 0 | Y26: 0 | Z26: 0 | AA26: 0 | AB26: None | AE26: 0 | AH26: 183 | AI26: 0 | AJ26: 1 | AK26: 0 | AL26: 0 | AM26: 0 | AN26: 1.8 | AO26: 0 | AP26: 1.8 | AQ26: 0 | AR26: 0 | AS26: 0 | AT26: 0 | AU26: 0 | AV26: 0 | AW26: 0 | AX26: 0 | AY26: 0 | AZ26: 0 | BA26: 0 | BB26: 0 | BC26: 0 | BD26: 0 | BE26: 0 | BF26: 0 | BG26: 0 | BH26: 0 | BI26: 0 | BJ26: 0 | BK26: 0 | BL26: 0 | BN26: 0 | BO26: 0 | BP26: 0 | BQ26: 15 | BR26: 1 | BS26: 0 | BT26: BW2 | BU26: 50 | BV26: 0 | BW26: 0 | BX26: BV2 | BY26: 50
E27: HP | F27: LVCMOS 1.8V 12mA (Slow) | L27: No | M27: Off | N27: Low Power | Q27: 0.125 | R27: SDR | S27: 1 | T27: 0 | U27: 0 | V27: 0 | W27: 0 | X27: 0 | Y27: 0 | Z27: 0 | AA27: 0 | AB27: None | AE27: 0 | AH27: 183 | AI27: 0 | AJ27: 1 | AK27: 0 | AL27: 0 | AM27: 0 | AN27: 1.8 | AO27: 0 | AP27: 1.8 | AQ27: 0 | AR27: 0 | AS27: 0 | AT27: 0 | AU27: 0 | AV27: 0 | AW27: 0 | AX27: 0 | AY27: 0 | AZ27: 0 | BA27: 0 | BB27: 0 | BC27: 0 | BD27: 0 | BE27: 0 | BF27: 0 | BG27: 0 | BH27: 0 | BI27: 0 | BJ27: 0 | BK27: 0 | BL27: 0 | BN27: 0 | BO27: 0 | BP27: 0 | BQ27: 15 | BR27: 1 | BS27: 0 | BT27: BW2 | BU27: 50 | BV27: 0 | BW27: 0 | BX27: BV2 | BY27: 50
E28: HP | F28: LVCMOS 1.8V 12mA (Slow) | L28: No | M28: Off | N28: Low Power | Q28: 0.125 | R28: SDR | S28: 1 | T28: 0 | U28: 0 | V28: 0 | W28: 0 | X28: 0 | Y28: 0 | Z28: 0 | AA28: 0 | AB28: None | AE28: 0 | AH28: 183 | AI28: 0 | AJ28: 1 | AK28: 0 | AL28: 0 | AM28: 0 | AN28: 1.8 | AO28: 0 | AP28: 1.8 | AQ28: 0 | AR28: 0 | AS28: 0 | AT28: 0 | AU28: 0 | AV28: 0 | AW28: 0 | AX28: 0 | AY28: 0 | AZ28: 0 | BA28: 0 | BB28: 0 | BC28: 0 | BD28: 0 | BE28: 0 | BF28: 0 | BG28: 0 | BH28: 0 | BI28: 0 | BJ28: 0 | BK28: 0 | BL28: 0 | BN28: 0 | BO28: 0 | BP28: 0 | BQ28: 15 | BR28: 1 | BS28: 0 | BT28: BW2 | BU28: 50 | BV28: 0 | BW28: 0 | BX28: BV2 | BY28: 50
E29: HP | F29: LVCMOS 1.8V 12mA (Slow) | L29: No | M29: Off | N29: Low Power | Q29: 0.125 | R29: SDR | S29: 1 | T29: 0 | U29: 0 | V29: 0 | W29: 0 | X29: 0 | Y29: 0 | Z29: 0 | AA29: 0 | AB29: None | AE29: 0 | AH29: 183 | AI29: 0 | AJ29: 1 | AK29: 0 | AL29: 0 | AM29: 0 | AN29: 1.8 | AO29: 0 | AP29: 1.8 | AQ29: 0 | AR29: 0 | AS29: 0 | AT29: 0 | AU29: 0 | AV29: 0 | AW29: 0 | AX29: 0 | AY29: 0 | AZ29: 0 | BA29: 0 | BB29: 0 | BC29: 0 | BD29: 0 | BE29: 0 | BF29: 0 | BG29: 0 | BH29: 0 | BI29: 0 | BJ29: 0 | BK29: 0 | BL29: 0 | BN29: 0 | BO29: 0 | BP29: 0 | BQ29: 15 | BR29: 1 | BS29: 0 | BT29: BW2 | BU29: 50 | BV29: 0 | BW29: 0 | BX29: BV2 | BY29: 50
E30: HP | F30: LVCMOS 1.8V 12mA (Slow) | L30: No | M30: Off | N30: Low Power | Q30: 0.125 | R30: SDR | S30: 1 | T30: 0 | U30: 0 | V30: 0 | W30: 0 | X30: 0 | Y30: 0 | Z30: 0 | AA30: 0 | AB30: None | AE30: 0 | AH30: 183 | AI30: 0 | AJ30: 1 | AK30: 0 | AL30: 0 | AM30: 0 | AN30: 1.8 | AO30: 0 | AP30: 1.8 | AQ30: 0 | AR30: 0 | AS30: 0 | AT30: 0 | AU30: 0 | AV30: 0 | AW30: 0 | AX30: 0 | AY30: 0 | AZ30: 0 | BA30: 0 | BB30: 0 | BC30: 0 | BD30: 0 | BE30: 0 | BF30: 0 | BG30: 0 | BH30: 0 | BI30: 0 | BJ30: 0 | BK30: 0 | BL30: 0 | BN30: 0 | BO30: 0 | BP30: 0 | BQ30: 15 | BR30: 1 | BS30: 0 | BT30: BW2 | BU30: 50 | BV30: 0 | BW30: 0 | BX30: BV2 | BY30: 50
E31: HP | F31: LVCMOS 1.8V 12mA (Slow) | L31: No | M31: Off | N31: Low Power | Q31: 0.125 | R31: SDR | S31: 1 | T31: 0 | U31: 0 | V31: 0 | W31: 0 | X31: 0 | Y31: 0 | Z31: 0 | AA31: 0 | AB31: None | AE31: 0 | AH31: 183 | AI31: 0 | AJ31: 1 | AK31: 0 | AL31: 0 | AM31: 0 | AN31: 1.8 | AO31: 0 | AP31: 1.8 | AQ31: 0 | AR31: 0 | AS31: 0 | AT31: 0 | AU31: 0 | AV31: 0 | AW31: 0 | AX31: 0 | AY31: 0 | AZ31: 0 | BA31: 0 | BB31: 0 | BC31: 0 | BD31: 0 | BE31: 0 | BF31: 0 | BG31: 0 | BH31: 0 | BI31: 0 | BJ31: 0 | BK31: 0 | BL31: 0 | BN31: 0 | BO31: 0 | BP31: 0 | BQ31: 15 | BR31: 1 | BS31: 0 | BT31: BW2 | BU31: 50 | BV31: 0 | BW31: 0 | BX31: BV2 | BY31: 50
E32: HP | F32: LVCMOS 1.8V 12mA (Slow) | L32: No | M32: Off | N32: Low Power | Q32: 0.125 | R32: SDR | S32: 1 | T32: 0 | U32: 0 | V32: 0 | W32: 0 | X32: 0 | Y32: 0 | Z32: 0 | AA32: 0 | AB32: None | AE32: 0 | AH32: 183 | AI32: 0 | AJ32: 1 | AK32: 0 | AL32: 0 | AM32: 0 | AN32: 1.8 | AO32: 0 | AP32: 1.8 | AQ32: 0 | AR32: 0 | AS32: 0 | AT32: 0 | AU32: 0 | AV32: 0 | AW32: 0 | AX32: 0 | AY32: 0 | AZ32: 0 | BA32: 0 | BB32: 0 | BC32: 0 | BD32: 0 | BE32: 0 | BF32: 0 | BG32: 0 | BH32: 0 | BI32: 0 | BJ32: 0 | BK32: 0 | BL32: 0 | BN32: 0 | BO32: 0 | BP32: 0 | BQ32: 15 | BR32: 1 | BS32: 0 | BT32: BW2 | BU32: 50 | BV32: 0 | BW32: 0 | BX32: BV2 | BY32: 50
E33: HP | F33: LVCMOS 1.8V 12mA (Slow) | L33: No | M33: Off | N33: Low Power | Q33: 0.125 | R33: SDR | S33: 1 | T33: 0 | U33: 0 | V33: 0 | W33: 0 | X33: 0 | Y33: 0 | Z33: 0 | AA33: 0 | AB33: None | AE33: 0 | AH33: 183 | AI33: 0 | AJ33: 1 | AK33: 0 | AL33: 0 | AM33: 0 | AN33: 1.8 | AO33: 0 | AP33: 1.8 | AQ33: 0 | AR33: 0 | AS33: 0 | AT33: 0 | AU33: 0 | AV33: 0 | AW33: 0 | AX33: 0 | AY33: 0 | AZ33: 0 | BA33: 0 | BB33: 0 | BC33: 0 | BD33: 0 | BE33: 0 | BF33: 0 | BG33: 0 | BH33: 0 | BI33: 0 | BJ33: 0 | BK33: 0 | BL33: 0 | BN33: 0 | BO33: 0 | BP33: 0 | BQ33: 15 | BR33: 1 | BS33: 0 | BT33: BW2 | BU33: 50 | BV33: 0 | BW33: 0 | BX33: BV2 | BY33: 50
E34: HP | F34: LVCMOS 1.8V 12mA (Slow) | L34: No | M34: Off | N34: Low Power | Q34: 0.125 | R34: SDR | S34: 1 | T34: 0 | U34: 0 | V34: 0 | W34: 0 | X34: 0 | Y34: 0 | Z34: 0 | AA34: 0 | AB34: None | AE34: 0 | AH34: 183 | AI34: 0 | AJ34: 1 | AK34: 0 | AL34: 0 | AM34: 0 | AN34: 1.8 | AO34: 0 | AP34: 1.8 | AQ34: 0 | AR34: 0 | AS34: 0 | AT34: 0 | AU34: 0 | AV34: 0 | AW34: 0 | AX34: 0 | AY34: 0 | AZ34: 0 | BA34: 0 | BB34: 0 | BC34: 0 | BD34: 0 | BE34: 0 | BF34: 0 | BG34: 0 | BH34: 0 | BI34: 0 | BJ34: 0 | BK34: 0 | BL34: 0 | BN34: 0 | BO34: 0 | BP34: 0 | BQ34: 15 | BR34: 1 | BS34: 0 | BT34: BW2 | BU34: 50 | BV34: 0 | BW34: 0 | BX34: BV2 | BY34: 50
E35: HP | F35: LVCMOS 1.8V 12mA (Slow) | L35: No | M35: Off | N35: Low Power | Q35: 0.125 | R35: SDR | S35: 1 | T35: 0 | U35: 0 | V35: 0 | W35: 0 | X35: 0 | Y35: 0 | Z35: 0 | AA35: 0 | AB35: None | AE35: 0 | AH35: 183 | AI35: 0 | AJ35: 1 | AK35: 0 | AL35: 0 | AM35: 0 | AN35: 1.8 | AO35: 0 | AP35: 1.8 | AQ35: 0 | AR35: 0 | AS35: 0 | AT35: 0 | AU35: 0 | AV35: 0 | AW35: 0 | AX35: 0 | AY35: 0 | AZ35: 0 | BA35: 0 | BB35: 0 | BC35: 0 | BD35: 0 | BE35: 0 | BF35: 0 | BG35: 0 | BH35: 0 | BI35: 0 | BJ35: 0 | BK35: 0 | BL35: 0 | BN35: 0 | BO35: 0 | BP35: 0 | BQ35: 15 | BR35: 1 | BS35: 0 | BT35: BW2 | BU35: 50 | BV35: 0 | BW35: 0 | BX35: BV2 | BY35: 50
E36: HP | F36: LVCMOS 1.8V 12mA (Slow) | L36: No | M36: Off | N36: Low Power | Q36: 0.125 | R36: SDR | S36: 1 | T36: 0 | U36: 0 | V36: 0 | W36: 0 | X36: 0 | Y36: 0 | Z36: 0 | AA36: 0 | AB36: None | AE36: 0 | AH36: 183 | AI36: 0 | AJ36: 1 | AK36: 0 | AL36: 0 | AM36: 0 | AN36: 1.8 | AO36: 0 | AP36: 1.8 | AQ36: 0 | AR36: 0 | AS36: 0 | AT36: 0 | AU36: 0 | AV36: 0 | AW36: 0 | AX36: 0 | AY36: 0 | AZ36: 0 | BA36: 0 | BB36: 0 | BC36: 0 | BD36: 0 | BE36: 0 | BF36: 0 | BG36: 0 | BH36: 0 | BI36: 0 | BJ36: 0 | BK36: 0 | BL36: 0 | BN36: 0 | BO36: 0 | BP36: 0 | BQ36: 15 | BR36: 1 | BS36: 0 | BT36: BW2 | BU36: 50 | BV36: 0 | BW36: 0 | BX36: BV2 | BY36: 50
E37: HP | F37: LVCMOS 1.8V 12mA (Slow) | L37: No | M37: Off | N37: Low Power | Q37: 0.125 | R37: SDR | S37: 1 | T37: 0 | U37: 0 | V37: 0 | W37: 0 | X37: 0 | Y37: 0 | Z37: 0 | AA37: 0 | AB37: None | AE37: 0 | AH37: 183 | AI37: 0 | AJ37: 1 | AK37: 0 | AL37: 0 | AM37: 0 | AN37: 1.8 | AO37: 0 | AP37: 1.8 | AQ37: 0 | AR37: 0 | AS37: 0 | AT37: 0 | AU37: 0 | AV37: 0 | AW37: 0 | AX37: 0 | AY37: 0 | AZ37: 0 | BA37: 0 | BB37: 0 | BC37: 0 | BD37: 0 | BE37: 0 | BF37: 0 | BG37: 0 | BH37: 0 | BI37: 0 | BJ37: 0 | BK37: 0 | BL37: 0 | BN37: 0 | BO37: 0 | BP37: 0 | BQ37: 15 | BR37: 1 | BS37: 0 | BT37: BW2 | BU37: 50 | BV37: 0 | BW37: 0 | BX37: BV2 | BY37: 50
E38: HP | F38: LVCMOS 1.8V 12mA (Slow) | L38: No | M38: Off | N38: Low Power | Q38: 0.125 | R38: SDR | S38: 1 | T38: 0 | U38: 0 | V38: 0 | W38: 0 | X38: 0 | Y38: 0 | Z38: 0 | AA38: 0 | AB38: None | AE38: 0 | AH38: 183 | AI38: 0 | AJ38: 1 | AK38: 0 | AL38: 0 | AM38: 0 | AN38: 1.8 | AO38: 0 | AP38: 1.8 | AQ38: 0 | AR38: 0 | AS38: 0 | AT38: 0 | AU38: 0 | AV38: 0 | AW38: 0 | AX38: 0 | AY38: 0 | AZ38: 0 | BA38: 0 | BB38: 0 | BC38: 0 | BD38: 0 | BE38: 0 | BF38: 0 | BG38: 0 | BH38: 0 | BI38: 0 | BJ38: 0 | BK38: 0 | BL38: 0 | BN38: 0 | BO38: 0 | BP38: 0 | BQ38: 15 | BR38: 1 | BS38: 0 | BT38: BW2 | BU38: 50 | BV38: 0 | BW38: 0 | BX38: BV2 | BY38: 50
E39: HP | F39: LVCMOS 1.8V 12mA (Slow) | L39: No | M39: Off | N39: Low Power | Q39: 0.125 | R39: SDR | S39: 1 | T39: 0 | U39: 0 | V39: 0 | W39: 0 | X39: 0 | Y39: 0 | Z39: 0 | AA39: 0 | AB39: None | AE39: 0 | AH39: 183 | AI39: 0 | AJ39: 1 | AK39: 0 | AL39: 0 | AM39: 0 | AN39: 1.8 | AO39: 0 | AP39: 1.8 | AQ39: 0 | AR39: 0 | AS39: 0 | AT39: 0 | AU39: 0 | AV39: 0 | AW39: 0 | AX39: 0 | AY39: 0 | AZ39: 0 | BA39: 0 | BB39: 0 | BC39: 0 | BD39: 0 | BE39: 0 | BF39: 0 | BG39: 0 | BH39: 0 | BI39: 0 | BJ39: 0 | BK39: 0 | BL39: 0 | BN39: 0 | BO39: 0 | BP39: 0 | BQ39: 15 | BR39: 1 | BS39: 0 | BT39: BW2 | BU39: 50 | BV39: 0 | BW39: 0 | BX39: BV2 | BY39: 50
E40: HP | F40: LVCMOS 1.8V 12mA (Slow) | L40: No | M40: Off | N40: Low Power | Q40: 0.125 | R40: SDR | S40: 1 | T40: 0 | U40: 0 | V40: 0 | W40: 0 | X40: 0 | Y40: 0 | Z40: 0 | AA40: 0 | AB40: None | AE40: 0 | AH40: 183 | AI40: 0 | AJ40: 1 | AK40: 0 | AL40: 0 | AM40: 0 | AN40: 1.8 | AO40: 0 | AP40: 1.8 | AQ40: 0 | AR40: 0 | AS40: 0 | AT40: 0 | AU40: 0 | AV40: 0 | AW40: 0 | AX40: 0 | AY40: 0 | AZ40: 0 | BA40: 0 | BB40: 0 | BC40: 0 | BD40: 0 | BE40: 0 | BF40: 0 | BG40: 0 | BH40: 0 | BI40: 0 | BJ40: 0 | BK40: 0 | BL40: 0 | BN40: 0 | BO40: 0 | BP40: 0 | BQ40: 15 | BR40: 1 | BS40: 0 | BT40: BW2 | BU40: 50 | BV40: 0 | BW40: 0 | BX40: BV2 | BY40: 50
E41: HP | F41: LVCMOS 1.8V 12mA (Slow) | L41: No | M41: Off | N41: Low Power | Q41: 0.125 | R41: SDR | S41: 1 | T41: 0 | U41: 0 | V41: 0 | W41: 0 | X41: 0 | Y41: 0 | Z41: 0 | AA41: 0 | AB41: None | AE41: 0 | AH41: 183 | AI41: 0 | AJ41: 1 | AK41: 0 | AL41: 0 | AM41: 0 | AN41: 1.8 | AO41: 0 | AP41: 1.8 | AQ41: 0 | AR41: 0 | AS41: 0 | AT41: 0 | AU41: 0 | AV41: 0 | AW41: 0 | AX41: 0 | AY41: 0 | AZ41: 0 | BA41: 0 | BB41: 0 | BC41: 0 | BD41: 0 | BE41: 0 | BF41: 0 | BG41: 0 | BH41: 0 | BI41: 0 | BJ41: 0 | BK41: 0 | BL41: 0 | BN41: 0 | BO41: 0 | BP41: 0 | BQ41: 15 | BR41: 1 | BS41: 0 | BT41: BW2 | BU41: 50 | BV41: 0 | BW41: 0 | BX41: BV2 | BY41: 50
E42: HP | F42: LVCMOS 1.8V 12mA (Slow) | L42: No | M42: Off | N42: Low Power | Q42: 0.125 | R42: SDR | S42: 1 | T42: 0 | U42: 0 | V42: 0 | W42: 0 | X42: 0 | Y42: 0 | Z42: 0 | AA42: 0 | AB42: None | AE42: 0 | AH42: 183 | AI42: 0 | AJ42: 1 | AK42: 0 | AL42: 0 | AM42: 0 | AN42: 1.8 | AO42: 0 | AP42: 1.8 | AQ42: 0 | AR42: 0 | AS42: 0 | AT42: 0 | AU42: 0 | AV42: 0 | AW42: 0 | AX42: 0 | AY42: 0 | AZ42: 0 | BA42: 0 | BB42: 0 | BC42: 0 | BD42: 0 | BE42: 0 | BF42: 0 | BG42: 0 | BH42: 0 | BI42: 0 | BJ42: 0 | BK42: 0 | BL42: 0 | BN42: 0 | BO42: 0 | BP42: 0 | BQ42: 15 | BR42: 1 | BS42: 0 | BT42: BW2 | BU42: 50 | BV42: 0 | BW42: 0 | BX42: BV2 | BY42: 50
E43: HP | F43: LVCMOS 1.8V 12mA (Slow) | L43: No | M43: Off | N43: Low Power | Q43: 0.125 | R43: SDR | S43: 1 | T43: 0 | U43: 0 | V43: 0 | W43: 0 | X43: 0 | Y43: 0 | Z43: 0 | AA43: 0 | AB43: None | AE43: 0 | AH43: 183 | AI43: 0 | AJ43: 1 | AK43: 0 | AL43: 0 | AM43: 0 | AN43: 1.8 | AO43: 0 | AP43: 1.8 | AQ43: 0 | AR43: 0 | AS43: 0 | AT43: 0 | AU43: 0 | AV43: 0 | AW43: 0 | AX43: 0 | AY43: 0 | AZ43: 0 | BA43: 0 | BB43: 0 | BC43: 0 | BD43: 0 | BE43: 0 | BF43: 0 | BG43: 0 | BH43: 0 | BI43: 0 | BJ43: 0 | BK43: 0 | BL43: 0 | BN43: 0 | BO43: 0 | BP43: 0 | BQ43: 15 | BR43: 1 | BS43: 0 | BT43: BW2 | BU43: 50 | BV43: 0 | BW43: 0 | BX43: BV2 | BY43: 50
E44: HP | F44: LVCMOS 1.8V 12mA (Slow) | L44: No | M44: Off | N44: Low Power | Q44: 0.125 | R44: SDR | S44: 1 | T44: 0 | U44: 0 | V44: 0 | W44: 0 | X44: 0 | Y44: 0 | Z44: 0 | AA44: 0 | AB44: None | AE44: 0 | AH44: 183 | AI44: 0 | AJ44: 1 | AK44: 0 | AL44: 0 | AM44: 0 | AN44: 1.8 | AO44: 0 | AP44: 1.8 | AQ44: 0 | AR44: 0 | AS44: 0 | AT44: 0 | AU44: 0 | AV44: 0 | AW44: 0 | AX44: 0 | AY44: 0 | AZ44: 0 | BA44: 0 | BB44: 0 | BC44: 0 | BD44: 0 | BE44: 0 | BF44: 0 | BG44: 0 | BH44: 0 | BI44: 0 | BJ44: 0 | BK44: 0 | BL44: 0 | BN44: 0 | BO44: 0 | BP44: 0 | BQ44: 15 | BR44: 1 | BS44: 0 | BT44: BW2 | BU44: 50 | BV44: 0 | BW44: 0 | BX44: BV2 | BY44: 50
E45: HP | F45: LVCMOS 1.8V 12mA (Slow) | L45: No | M45: Off | N45: Low Power | Q45: 0.125 | R45: SDR | S45: 1 | T45: 0 | U45: 0 | V45: 0 | W45: 0 | X45: 0 | Y45: 0 | Z45: 0 | AA45: 0 | AB45: None | AE45: 0 | AH45: 183 | AI45: 0 | AJ45: 1 | AK45: 0 | AL45: 0 | AM45: 0 | AN45: 1.8 | AO45: 0 | AP45: 1.8 | AQ45: 0 | AR45: 0 | AS45: 0 | AT45: 0 | AU45: 0 | AV45: 0 | AW45: 0 | AX45: 0 | AY45: 0 | AZ45: 0 | BA45: 0 | BB45: 0 | BC45: 0 | BD45: 0 | BE45: 0 | BF45: 0 | BG45: 0 | BH45: 0 | BI45: 0 | BJ45: 0 | BK45: 0 | BL45: 0 | BN45: 0 | BO45: 0 | BP45: 0 | BQ45: 15 | BR45: 1 | BS45: 0 | BT45: BW2 | BU45: 50 | BV45: 0 | BW45: 0 | BX45: BV2 | BY45: 50
E46: HP | F46: LVCMOS 1.8V 12mA (Slow) | L46: No | M46: Off | N46: Low Power | Q46: 0.125 | R46: SDR | S46: 1 | T46: 0 | U46: 0 | V46: 0 | W46: 0 | X46: 0 | Y46: 0 | Z46: 0 | AA46: 0 | AB46: None | AE46: 0 | AH46: 183 | AI46: 0 | AJ46: 1 | AK46: 0 | AL46: 0 | AM46: 0 | AN46: 1.8 | AO46: 0 | AP46: 1.8 | AQ46: 0 | AR46: 0 | AS46: 0 | AT46: 0 | AU46: 0 | AV46: 0 | AW46: 0 | AX46: 0 | AY46: 0 | AZ46: 0 | BA46: 0 | BB46: 0 | BC46: 0 | BD46: 0 | BE46: 0 | BF46: 0 | BG46: 0 | BH46: 0 | BI46: 0 | BJ46: 0 | BK46: 0 | BL46: 0 | BN46: 0 | BO46: 0 | BP46: 0 | BQ46: 15 | BR46: 1 | BS46: 0 | BT46: BW2 | BU46: 50 | BV46: 0 | BW46: 0 | BX46: BV2 | BY46: 50
E47: HP | F47: LVCMOS 1.8V 12mA (Slow) | L47: No | M47: Off | N47: Low Power | Q47: 0.125 | R47: SDR | S47: 1 | T47: 0 | U47: 0 | V47: 0 | W47: 0 | X47: 0 | Y47: 0 | Z47: 0 | AA47: 0 | AB47: None | AE47: 0 | AH47: 183 | AI47: 0 | AJ47: 1 | AK47: 0 | AL47: 0 | AM47: 0 | AN47: 1.8 | AO47: 0 | AP47: 1.8 | AQ47: 0 | AR47: 0 | AS47: 0 | AT47: 0 | AU47: 0 | AV47: 0 | AW47: 0 | AX47: 0 | AY47: 0 | AZ47: 0 | BA47: 0 | BB47: 0 | BC47: 0 | BD47: 0 | BE47: 0 | BF47: 0 | BG47: 0 | BH47: 0 | BI47: 0 | BJ47: 0 | BK47: 0 | BL47: 0 | BN47: 0 | BO47: 0 | BP47: 0 | BQ47: 15 | BR47: 1 | BS47: 0 | BT47: BW2 | BU47: 50 | BV47: 0 | BW47: 0 | BX47: BV2 | BY47: 50
E48: HP | F48: LVCMOS 1.8V 12mA (Slow) | L48: No | M48: Off | N48: Low Power | Q48: 0.125 | R48: SDR | S48: 1 | T48: 0 | U48: 0 | V48: 0 | W48: 0 | X48: 0 | Y48: 0 | Z48: 0 | AA48: 0 | AB48: None | AE48: 0 | AH48: 183 | AI48: 0 | AJ48: 1 | AK48: 0 | AL48: 0 | AM48: 0 | AN48: 1.8 | AO48: 0 | AP48: 1.8 | AQ48: 0 | AR48: 0 | AS48: 0 | AT48: 0 | AU48: 0 | AV48: 0 | AW48: 0 | AX48: 0 | AY48: 0 | AZ48: 0 | BA48: 0 | BB48: 0 | BC48: 0 | BD48: 0 | BE48: 0 | BF48: 0 | BG48: 0 | BH48: 0 | BI48: 0 | BJ48: 0 | BK48: 0 | BL48: 0 | BN48: 0 | BO48: 0 | BP48: 0 | BQ48: 15 | BR48: 1 | BS48: 0 | BT48: BW2 | BU48: 50 | BV48: 0 | BW48: 0 | BX48: BV2 | BY48: 50
E49: HP | F49: LVCMOS 1.8V 12mA (Slow) | L49: No | M49: Off | N49: Low Power | Q49: 0.125 | R49: SDR | S49: 1 | T49: 0 | U49: 0 | V49: 0 | W49: =P49*IF(RIGHT(R49,1)="R",Q49*IF(R49="DDR",2,1),2) -> 0 | X49: 0 | Y49: =IF(ISERROR($AH49),0,IF(E49="HP_PD",0,MAX(0,($AS49+$AU49+$BO49)*VCCAUX/1000))) -> 0 | Z49: =IF(ISERROR($AH49),0,IF(E49="HP_PD",MAX(0,($AS49+$AU49+$BO49)*VCCAUX_IO/1000),0)) -> 0 | AA49: 0 | AB49: None | AE49: =IF(ISERROR($AH49),0,IF(AB49="None",0,$BW49*(($J49+K49)*$S49))) -> 0 | AH49: 183 | AI49: =P49*IF(RIGHT(R49,1)="R",Q49*IF(R49="DDR",1,0.5),1) -> 0 | AJ49: 1 | AK49: 0 | AL49: 0 | AM49: 0 | AN49: 1.8 | AO49: 0 | AP49: 1.8 | AQ49: =IF(RIGHT($F49,6) ="(pair)",2,1)*SUM(I49:K49) -> 0 | AR49: 0 | AS49: 0 | AT49: 0 | AU49: 0 | AV49: 0 | AW49: 0 | AX49: 0 | AY49: 0 | AZ49: 0 | BA49: 0 | BB49: 0 | BC49: 0 | BD49: 0 | BE49: 0 | BF49: 0 | BG49: 0 | BH49: 0 | BI49: 0 | BJ49: 0 | BK49: 0 | BL49: 0 | BN49: =(OFFSET(IODELAY_DATA,$BQ49,$BR49)*(1-$U49)*IF($AJ49=3,(1-$S49),1)+OFFSET(IODELAY_DATA,$BQ49,$BR49+1)*$AI49)*(I49+(1-S49)*K49) -> 0 | BO49: =(OFFSET(IODELAY_DATA,$BQ49,$BR49+4)*(1-$U49)*IF($AJ49=3,(1-$S49),1)+OFFSET(IODELAY_DATA,$BQ49,$BR49+5)*$AI49)*(I49+(1-S49)*K49) -> 0 | BP49: =IF(OFFSET(IO_STANDARDS,$AH49,13)=0,OFFSET(IODELAY_DATA,9+IF($AN49=VCCO18,2,IF($AN49=VCCO15,3,IF($AN49=VCCO12,4,1))),3)*(I49+(1-S49)*K49)*$AI49,0)/1000 -> 0 | BQ49: 15 | BR49: 1 | BS49: 0 | BT49: BW2 | BU49: 50 | BV49: 0 | BW49: 0 | BX49: =IF(OFFSET(IO_STANDARDS,$AH49,18)>0,"BV1:BV2",IF(OFFSET(IO_STANDARDS,$AH49,19)>0,IF(E49="HR","BV2:BV5","BV7:BV9"),"BV2")) -> BV2 | BY49: 50
E50: HP | F50: LVCMOS 1.8V 12mA (Slow) | L50: No | M50: Off | N50: Low Power | Q50: 0.125 | R50: SDR | S50: 1 | T50: 0 | U50: 0 | V50: 0 | W50: =P50*IF(RIGHT(R50,1)="R",Q50*IF(R50="DDR",2,1),2) -> 0 | X50: 0 | Y50: =IF(ISERROR($AH50),0,IF(E50="HP_PD",0,MAX(0,($AS50+$AU50+$BO50)*VCCAUX/1000))) -> 0 | Z50: =IF(ISERROR($AH50),0,IF(E50="HP_PD",MAX(0,($AS50+$AU50+$BO50)*VCCAUX_IO/1000),0)) -> 0 | AA50: =IF(ISERROR($AH50),0,MAX(0,OFFSET($AJ50,0,$AJ50)+(($J50+K50)*$S50)*$BV50+$I50*OFFSET(IO_STANDARDS,$AH50,14)/1000+($AW50+$BP50)*$AN50)) -> 0 | AB50: None | AE50: =IF(ISERROR($AH50),0,IF(AB50="None",0,$BW50*(($J50+K50)*$S50))) -> 0 | AH50: 183 | AI50: =P50*IF(RIGHT(R50,1)="R",Q50*IF(R50="DDR",1,0.5),1) -> 0 | AJ50: 1 | AK50: 0 | AL50: 0 | AM50: 0 | AN50: 1.8 | AO50: 0 | AP50: 1.8 | AQ50: =IF(RIGHT($F50,6) ="(pair)",2,1)*SUM(I50:K50) -> 0 | AR50: 0 | AS50: 0 | AT50: 0 | AU50: 0 | AV50: 0 | AW50: =IF(LEFT($F50,4)="Diff",2,1)*($I50+($K50*IF($AJ50=3,1-$S50,1)))*IF(AND($AJ50=2,$O50="DIFF_TERM"),OFFSET(IO_STANDARDS,$AH50,18),IF($E50<>"HR",IF(OFFSET(IO_STANDARDS,$AH50,6)=0,0,1)*IF(AJ50=3,$AO50*500/$BY50,OFFSET(IO_STANDARDS,$AH50,11)),IF(LEFT($O50,3)="UNT",$AO50*500/$BY50,0))*(1-$T50))/1000 -> 0 | AX50: 0 | AY50: 0 | AZ50: 0 | BA50: 0 | BB50: 0 | BC50: 0 | BD50: 0 | BE50: 0 | BF50: 0 | BG50: 0 | BH50: 0 | BI50: 0 | BJ50: 0 | BK50: 0 | BL50: 0 | BN50: =(OFFSET(IODELAY_DATA,$BQ50,$BR50)*(1-$U50)*IF($AJ50=3,(1-$S50),1)+OFFSET(IODELAY_DATA,$BQ50,$BR50+1)*$AI50)*(I50+(1-S50)*K50) -> 0 | BO50: =(OFFSET(IODELAY_DATA,$BQ50,$BR50+4)*(1-$U50)*IF($AJ50=3,(1-$S50),1)+OFFSET(IODELAY_DATA,$BQ50,$BR50+5)*$AI50)*(I50+(1-S50)*K50) -> 0 | BP50: =IF(OFFSET(IO_STANDARDS,$AH50,13)=0,OFFSET(IODELAY_DATA,9+IF($AN50=VCCO18,2,IF($AN50=VCCO15,3,IF($AN50=VCCO12,4,1))),3)*(I50+(1-S50)*K50)*$AI50,0)/1000 -> 0 | BQ50: 15 | BR50: 1 | BS50: 0 | BT50: BW2 | BU50: 50 | BV50: 0 | BW50: 0 | BX50: =IF(OFFSET(IO_STANDARDS,$AH50,18)>0,"BV1:BV2",IF(OFFSET(IO_STANDARDS,$AH50,19)>0,IF(E50="HR","BV2:BV5","BV7:BV9"),"BV2")) -> BV2 | BY50: 50
E51: HP | F51: LVCMOS 1.8V 12mA (Slow) | L51: No | M51: Off | N51: Low Power | Q51: 0.125 | R51: SDR | S51: 1 | T51: 0 | U51: 0 | V51: 0 | W51: 0 | X51: 0 | Y51: 0 | Z51: 0 | AA51: 0 | AB51: None | AE51: 0 | AH51: 183 | AI51: 0 | AJ51: 1 | AK51: 0 | AL51: 0 | AM51: 0 | AN51: 1.8 | AO51: 0 | AP51: 1.8 | AQ51: 0 | AR51: 0 | AS51: 0 | AT51: 0 | AU51: 0 | AV51: 0 | AW51: 0 | AX51: 0 | AY51: 0 | AZ51: 0 | BA51: 0 | BB51: 0 | BC51: 0 | BD51: 0 | BE51: 0 | BF51: 0 | BG51: 0 | BH51: 0 | BI51: 0 | BJ51: 0 | BK51: 0 | BL51: 0 | BN51: 0 | BO51: 0 | BP51: 0 | BQ51: 15 | BR51: 1 | BS51: 0 | BT51: BW2 | BU51: 50 | BV51: 0 | BW51: 0 | BX51: BV2 | BY51: 50
E52: HP | F52: LVCMOS 1.8V 12mA (Slow) | L52: No | M52: Off | N52: Low Power | Q52: 0.125 | R52: SDR | S52: 1 | T52: 0 | U52: 0 | V52: 0 | W52: 0 | X52: 0 | Y52: 0 | Z52: 0 | AA52: 0 | AB52: None | AE52: 0 | AH52: 183 | AI52: 0 | AJ52: 1 | AK52: 0 | AL52: 0 | AM52: 0 | AN52: 1.8 | AO52: 0 | AP52: 1.8 | AQ52: 0 | AR52: 0 | AS52: 0 | AT52: 0 | AU52: 0 | AV52: 0 | AW52: 0 | AX52: 0 | AY52: 0 | AZ52: 0 | BA52: 0 | BB52: 0 | BC52: 0 | BD52: 0 | BE52: 0 | BF52: 0 | BG52: 0 | BH52: 0 | BI52: 0 | BJ52: 0 | BK52: 0 | BL52: 0 | BN52: 0 | BO52: 0 | BP52: 0 | BQ52: 15 | BR52: 1 | BS52: 0 | BT52: BW2 | BU52: 50 | BV52: 0 | BW52: 0 | BX52: BV2 | BY52: 50
E53: HP | F53: LVCMOS 1.8V 12mA (Slow) | L53: No | M53: Off | N53: Low Power | Q53: 0.125 | R53: SDR | S53: 1 | T53: 0 | U53: 0 | V53: 0 | W53: 0 | X53: 0 | Y53: 0 | Z53: 0 | AA53: 0 | AB53: None | AE53: 0 | AH53: 183 | AI53: 0 | AJ53: 1 | AK53: 0 | AL53: 0 | AM53: 0 | AN53: 1.8 | AO53: 0 | AP53: 1.8 | AQ53: 0 | AR53: 0 | AS53: 0 | AT53: 0 | AU53: 0 | AV53: 0 | AW53: 0 | AX53: 0 | AY53: 0 | AZ53: 0 | BA53: 0 | BB53: 0 | BC53: 0 | BD53: 0 | BE53: 0 | BF53: 0 | BG53: 0 | BH53: 0 | BI53: 0 | BJ53: 0 | BK53: 0 | BL53: 0 | BN53: 0 | BO53: 0 | BP53: 0 | BQ53: 15 | BR53: 1 | BS53: 0 | BT53: BW2 | BU53: 50 | BV53: 0 | BW53: 0 | BX53: BV2 | BY53: 50
E54: HP | F54: LVCMOS 1.8V 12mA (Slow) | L54: No | M54: Off | N54: Low Power | Q54: 0.125 | R54: SDR | S54: 1 | T54: 0 | U54: 0 | V54: 0 | W54: 0 | X54: 0 | Y54: 0 | Z54: 0 | AA54: 0 | AB54: None | AE54: 0 | AH54: 183 | AI54: 0 | AJ54: 1 | AK54: 0 | AL54: 0 | AM54: 0 | AN54: 1.8 | AO54: 0 | AP54: 1.8 | AQ54: 0 | AR54: 0 | AS54: 0 | AT54: 0 | AU54: 0 | AV54: 0 | AW54: 0 | AX54: 0 | AY54: 0 | AZ54: 0 | BA54: 0 | BB54: 0 | BC54: 0 | BD54: 0 | BE54: 0 | BF54: 0 | BG54: 0 | BH54: 0 | BI54: 0 | BJ54: 0 | BK54: 0 | BL54: 0 | BN54: 0 | BO54: 0 | BP54: 0 | BQ54: 15 | BR54: 1 | BS54: 0 | BT54: BW2 | BU54: 50 | BV54: 0 | BW54: 0 | BX54: BV2 | BY54: 50
E55: HP | F55: LVCMOS 1.8V 12mA (Slow) | L55: No | M55: Off | N55: Low Power | Q55: 0.125 | R55: SDR | S55: 1 | T55: 0 | U55: 0 | V55: 0 | W55: 0 | X55: 0 | Y55: 0 | Z55: 0 | AA55: 0 | AB55: None | AE55: 0 | AH55: 183 | AI55: 0 | AJ55: 1 | AK55: 0 | AL55: 0 | AM55: 0 | AN55: 1.8 | AO55: 0 | AP55: 1.8 | AQ55: 0 | AR55: 0 | AS55: 0 | AT55: 0 | AU55: 0 | AV55: 0 | AW55: 0 | AX55: 0 | AY55: 0 | AZ55: 0 | BA55: 0 | BB55: 0 | BC55: 0 | BD55: 0 | BE55: 0 | BF55: 0 | BG55: 0 | BH55: 0 | BI55: 0 | BJ55: 0 | BK55: 0 | BL55: 0 | BN55: 0 | BO55: 0 | BP55: 0 | BQ55: 15 | BR55: 1 | BS55: 0 | BT55: BW2 | BU55: 50 | BV55: 0 | BW55: 0 | BX55: BV2 | BY55: 50
E56: HP | F56: LVCMOS 1.8V 12mA (Slow) | L56: No | M56: Off | N56: Low Power | Q56: 0.125 | R56: SDR | S56: 1 | T56: 0 | U56: 0 | V56: 0 | W56: =P56*IF(RIGHT(R56,1)="R",Q56*IF(R56="DDR",2,1),2) -> 0 | X56: 0 | Y56: =IF(ISERROR($AH56),0,IF(E56="HP_PD",0,MAX(0,($AS56+$AU56+$BO56)*VCCAUX/1000))) -> 0 | Z56: =IF(ISERROR($AH56),0,IF(E56="HP_PD",MAX(0,($AS56+$AU56+$BO56)*VCCAUX_IO/1000),0)) -> 0 | AA56: =IF(ISERROR($AH56),0,MAX(0,OFFSET($AJ56,0,$AJ56)+(($J56+K56)*$S56)*$BV56+$I56*OFFSET(IO_STANDARDS,$AH56,14)/1000+($AW56+$BP56)*$AN56)) -> 0 | AB56: None | AE56: =IF(ISERROR($AH56),0,IF(AB56="None",0,$BW56*(($J56+K56)*$S56))) -> 0 | AH56: 183 | AI56: =P56*IF(RIGHT(R56,1)="R",Q56*IF(R56="DDR",1,0.5),1) -> 0 | AJ56: 1 | AK56: 0 | AL56: 0 | AM56: 0 | AN56: 1.8 | AO56: 0 | AP56: 1.8 | AQ56: =IF(RIGHT($F56,6) ="(pair)",2,1)*SUM(I56:K56) -> 0 | AR56: 0 | AS56: 0 | AT56: 0 | AU56: 0 | AV56: 0 | AW56: =IF(LEFT($F56,4)="Diff",2,1)*($I56+($K56*IF($AJ56=3,1-$S56,1)))*IF(AND($AJ56=2,$O56="DIFF_TERM"),OFFSET(IO_STANDARDS,$AH56,18),IF($E56<>"HR",IF(OFFSET(IO_STANDARDS,$AH56,6)=0,0,1)*IF(AJ56=3,$AO56*500/$BY56,OFFSET(IO_STANDARDS,$AH56,11)),IF(LEFT($O56,3)="UNT",$AO56*500/$BY56,0))*(1-$T56))/1000 -> 0 | AX56: 0 | AY56: 0 | AZ56: 0 | BA56: 0 | BB56: 0 | BC56: 0 | BD56: 0 | BE56: 0 | BF56: 0 | BG56: 0 | BH56: 0 | BI56: 0 | BJ56: 0 | BK56: 0 | BL56: 0 | BN56: =(OFFSET(IODELAY_DATA,$BQ56,$BR56)*(1-$U56)*IF($AJ56=3,(1-$S56),1)+OFFSET(IODELAY_DATA,$BQ56,$BR56+1)*$AI56)*(I56+(1-S56)*K56) -> 0 | BO56: =(OFFSET(IODELAY_DATA,$BQ56,$BR56+4)*(1-$U56)*IF($AJ56=3,(1-$S56),1)+OFFSET(IODELAY_DATA,$BQ56,$BR56+5)*$AI56)*(I56+(1-S56)*K56) -> 0 | BP56: =IF(OFFSET(IO_STANDARDS,$AH56,13)=0,OFFSET(IODELAY_DATA,9+IF($AN56=VCCO18,2,IF($AN56=VCCO15,3,IF($AN56=VCCO12,4,1))),3)*(I56+(1-S56)*K56)*$AI56,0)/1000 -> 0 | BQ56: 15 | BR56: 1 | BS56: 0 | BT56: BW2 | BU56: 50 | BV56: 0 | BW56: 0 | BX56: =IF(OFFSET(IO_STANDARDS,$AH56,18)>0,"BV1:BV2",IF(OFFSET(IO_STANDARDS,$AH56,19)>0,IF(E56="HR","BV2:BV5","BV7:BV9"),"BV2")) -> BV2 | BY56: 50
E57: HP | F57: LVCMOS 1.8V 12mA (Slow) | L57: No | M57: Off | N57: Low Power | Q57: 0.125 | R57: SDR | S57: 1 | T57: 0 | U57: 0 | V57: 0 | W57: 0 | X57: 0 | Y57: 0 | Z57: 0 | AA57: 0 | AB57: None | AE57: 0 | AH57: 183 | AI57: 0 | AJ57: 1 | AK57: 0 | AL57: 0 | AM57: 0 | AN57: 1.8 | AO57: 0 | AP57: 1.8 | AQ57: 0 | AR57: 0 | AS57: 0 | AT57: 0 | AU57: 0 | AV57: 0 | AW57: 0 | AX57: 0 | AY57: 0 | AZ57: 0 | BA57: 0 | BB57: 0 | BC57: 0 | BD57: 0 | BE57: 0 | BF57: 0 | BG57: 0 | BH57: 0 | BI57: 0 | BJ57: 0 | BK57: 0 | BL57: 0 | BN57: 0 | BO57: 0 | BP57: 0 | BQ57: 15 | BR57: 1 | BS57: 0 | BT57: BW2 | BU57: 50 | BV57: 0 | BW57: 0 | BX57: BV2 | BY57: 50
E58: HP | F58: LVCMOS 1.8V 12mA (Slow) | L58: No | M58: Off | N58: Low Power | Q58: 0.125 | R58: SDR | S58: 1 | T58: 0 | U58: 0 | V58: 0 | W58: 0 | X58: 0 | Y58: 0 | Z58: 0 | AA58: 0 | AB58: None | AE58: 0 | AH58: 183 | AI58: 0 | AJ58: 1 | AK58: 0 | AL58: 0 | AM58: 0 | AN58: 1.8 | AO58: 0 | AP58: 1.8 | AQ58: 0 | AR58: 0 | AS58: 0 | AT58: 0 | AU58: 0 | AV58: 0 | AW58: 0 | AX58: 0 | AY58: 0 | AZ58: 0 | BA58: 0 | BB58: 0 | BC58: 0 | BD58: 0 | BE58: 0 | BF58: 0 | BG58: 0 | BH58: 0 | BI58: 0 | BJ58: 0 | BK58: 0 | BL58: 0 | BN58: 0 | BO58: 0 | BP58: 0 | BQ58: 15 | BR58: 1 | BS58: 0 | BT58: BW2 | BU58: 50 | BV58: 0 | BW58: 0 | BX58: BV2 | BY58: 50
E59: HP | F59: LVCMOS 1.8V 12mA (Slow) | L59: No | M59: Off | N59: Low Power | Q59: 0.125 | R59: SDR | S59: 1 | T59: 0 | U59: 0 | V59: 0 | W59: 0 | X59: 0 | Y59: 0 | Z59: 0 | AA59: 0 | AB59: None | AE59: 0 | AH59: 183 | AI59: 0 | AJ59: 1 | AK59: 0 | AL59: 0 | AM59: 0 | AN59: 1.8 | AO59: 0 | AP59: 1.8 | AQ59: 0 | AR59: 0 | AS59: 0 | AT59: 0 | AU59: 0 | AV59: 0 | AW59: 0 | AX59: 0 | AY59: 0 | AZ59: 0 | BA59: 0 | BB59: 0 | BC59: 0 | BD59: 0 | BE59: 0 | BF59: 0 | BG59: 0 | BH59: 0 | BI59: 0 | BJ59: 0 | BK59: 0 | BL59: 0 | BN59: 0 | BO59: 0 | BP59: 0 | BQ59: 15 | BR59: 1 | BS59: 0 | BT59: BW2 | BU59: 50 | BV59: 0 | BW59: 0 | BX59: BV2 | BY59: 50
E60: HP | F60: LVCMOS 1.8V 12mA (Slow) | L60: No | M60: Off | N60: Low Power | Q60: 0.125 | R60: SDR | S60: 1 | T60: 0 | U60: 0 | V60: 0 | W60: 0 | X60: 0 | Y60: 0 | Z60: 0 | AA60: 0 | AB60: None | AE60: 0 | AH60: 183 | AI60: 0 | AJ60: 1 | AK60: 0 | AL60: 0 | AM60: 0 | AN60: 1.8 | AO60: 0 | AP60: 1.8 | AQ60: 0 | AR60: 0 | AS60: 0 | AT60: 0 | AU60: 0 | AV60: 0 | AW60: 0 | AX60: 0 | AY60: 0 | AZ60: 0 | BA60: 0 | BB60: 0 | BC60: 0 | BD60: 0 | BE60: 0 | BF60: 0 | BG60: 0 | BH60: 0 | BI60: 0 | BJ60: 0 | BK60: 0 | BL60: 0 | BN60: 0 | BO60: 0 | BP60: 0 | BQ60: 15 | BR60: 1 | BS60: 0 | BT60: BW2 | BU60: 50 | BV60: 0 | BW60: 0 | BX60: BV2 | BY60: 50
E61: HP | F61: LVCMOS 1.8V 12mA (Slow) | L61: No | M61: Off | N61: Low Power | Q61: 0.125 | R61: SDR | S61: 1 | T61: 0 | U61: 0 | V61: 0 | W61: 0 | X61: 0 | Y61: 0 | Z61: 0 | AA61: 0 | AB61: None | AE61: 0 | AH61: 183 | AI61: 0 | AJ61: 1 | AK61: 0 | AL61: 0 | AM61: 0 | AN61: 1.8 | AO61: 0 | AP61: 1.8 | AQ61: 0 | AR61: 0 | AS61: 0 | AT61: 0 | AU61: 0 | AV61: 0 | AW61: 0 | AX61: 0 | AY61: 0 | AZ61: 0 | BA61: 0 | BB61: 0 | BC61: 0 | BD61: 0 | BE61: 0 | BF61: 0 | BG61: 0 | BH61: 0 | BI61: 0 | BJ61: 0 | BK61: 0 | BL61: 0 | BN61: 0 | BO61: 0 | BP61: 0 | BQ61: 15 | BR61: 1 | BS61: 0 | BT61: BW2 | BU61: 50 | BV61: 0 | BW61: 0 | BX61: BV2 | BY61: 50
E62: HP | F62: LVCMOS 1.8V 12mA (Slow) | L62: No | M62: Off | N62: Low Power | Q62: 0.125 | R62: SDR | S62: 1 | T62: 0 | U62: 0 | V62: 0 | W62: =P62*IF(RIGHT(R62,1)="R",Q62*IF(R62="DDR",2,1),2) -> 0 | X62: 0 | Y62: =IF(ISERROR($AH62),0,IF(E62="HP_PD",0,MAX(0,($AS62+$AU62+$BO62)*VCCAUX/1000))) -> 0 | Z62: =IF(ISERROR($AH62),0,IF(E62="HP_PD",MAX(0,($AS62+$AU62+$BO62)*VCCAUX_IO/1000),0)) -> 0 | AA62: =IF(ISERROR($AH62),0,MAX(0,OFFSET($AJ62,0,$AJ62)+(($J62+K62)*$S62)*$BV62+$I62*OFFSET(IO_STANDARDS,$AH62,14)/1000+($AW62+$BP62)*$AN62)) -> 0 | AB62: None | AE62: =IF(ISERROR($AH62),0,IF(AB62="None",0,$BW62*(($J62+K62)*$S62))) -> 0 | AH62: 183 | AI62: =P62*IF(RIGHT(R62,1)="R",Q62*IF(R62="DDR",1,0.5),1) -> 0 | AJ62: 1 | AK62: 0 | AL62: 0 | AM62: 0 | AN62: 1.8 | AO62: 0 | AP62: 1.8 | AQ62: =IF(RIGHT($F62,6) ="(pair)",2,1)*SUM(I62:K62) -> 0 | AR62: 0 | AS62: 0 | AT62: 0 | AU62: 0 | AV62: 0 | AW62: =IF(LEFT($F62,4)="Diff",2,1)*($I62+($K62*IF($AJ62=3,1-$S62,1)))*IF(AND($AJ62=2,$O62="DIFF_TERM"),OFFSET(IO_STANDARDS,$AH62,18),IF($E62<>"HR",IF(OFFSET(IO_STANDARDS,$AH62,6)=0,0,1)*IF(AJ62=3,$AO62*500/$BY62,OFFSET(IO_STANDARDS,$AH62,11)),IF(LEFT($O62,3)="UNT",$AO62*500/$BY62,0))*(1-$T62))/1000 -> 0 | AX62: 0 | AY62: 0 | AZ62: 0 | BA62: 0 | BB62: 0 | BC62: 0 | BD62: 0 | BE62: 0 | BF62: 0 | BG62: 0 | BH62: 0 | BI62: 0 | BJ62: 0 | BK62: 0 | BL62: 0 | BN62: =(OFFSET(IODELAY_DATA,$BQ62,$BR62)*(1-$U62)*IF($AJ62=3,(1-$S62),1)+OFFSET(IODELAY_DATA,$BQ62,$BR62+1)*$AI62)*(I62+(1-S62)*K62) -> 0 | BO62: =(OFFSET(IODELAY_DATA,$BQ62,$BR62+4)*(1-$U62)*IF($AJ62=3,(1-$S62),1)+OFFSET(IODELAY_DATA,$BQ62,$BR62+5)*$AI62)*(I62+(1-S62)*K62) -> 0 | BP62: =IF(OFFSET(IO_STANDARDS,$AH62,13)=0,OFFSET(IODELAY_DATA,9+IF($AN62=VCCO18,2,IF($AN62=VCCO15,3,IF($AN62=VCCO12,4,1))),3)*(I62+(1-S62)*K62)*$AI62,0)/1000 -> 0 | BQ62: 15 | BR62: 1 | BS62: 0 | BT62: BW2 | BU62: 50 | BV62: 0 | BW62: 0 | BX62: =IF(OFFSET(IO_STANDARDS,$AH62,18)>0,"BV1:BV2",IF(OFFSET(IO_STANDARDS,$AH62,19)>0,IF(E62="HR","BV2:BV5","BV7:BV9"),"BV2")) -> BV2 | BY62: 50
E63: HP | F63: LVCMOS 1.8V 12mA (Slow) | L63: No | M63: Off | N63: Low Power | Q63: 0.125 | R63: SDR | S63: 1 | T63: 0 | U63: 0 | V63: 0 | W63: 0 | X63: 0 | Y63: 0 | Z63: 0 | AA63: 0 | AB63: None | AE63: 0 | AH63: 183 | AI63: 0 | AJ63: 1 | AK63: 0 | AL63: 0 | AM63: 0 | AN63: 1.8 | AO63: 0 | AP63: 1.8 | AQ63: 0 | AR63: 0 | AS63: 0 | AT63: 0 | AU63: 0 | AV63: 0 | AW63: 0 | AX63: 0 | AY63: 0 | AZ63: 0 | BA63: 0 | BB63: 0 | BC63: 0 | BD63: 0 | BE63: 0 | BF63: 0 | BG63: 0 | BH63: 0 | BI63: 0 | BJ63: 0 | BK63: 0 | BL63: 0 | BN63: 0 | BO63: 0 | BP63: 0 | BQ63: 15 | BR63: 1 | BS63: 0 | BT63: BW2 | BU63: 50 | BV63: 0 | BW63: 0 | BX63: BV2 | BY63: 50
E64: HP | F64: LVCMOS 1.8V 12mA (Slow) | L64: No | M64: Off | N64: Low Power | Q64: 0.125 | R64: SDR | S64: 1 | T64: 0 | U64: 0 | V64: 0 | W64: 0 | X64: 0 | Y64: 0 | Z64: 0 | AA64: 0 | AB64: None | AE64: 0 | AH64: 183 | AI64: 0 | AJ64: 1 | AK64: 0 | AL64: 0 | AM64: 0 | AN64: 1.8 | AO64: 0 | AP64: 1.8 | AQ64: 0 | AR64: 0 | AS64: 0 | AT64: 0 | AU64: 0 | AV64: 0 | AW64: 0 | AX64: 0 | AY64: 0 | AZ64: 0 | BA64: 0 | BB64: 0 | BC64: 0 | BD64: 0 | BE64: 0 | BF64: 0 | BG64: 0 | BH64: 0 | BI64: 0 | BJ64: 0 | BK64: 0 | BL64: 0 | BN64: 0 | BO64: 0 | BP64: 0 | BQ64: 15 | BR64: 1 | BS64: 0 | BT64: BW2 | BU64: 50 | BV64: 0 | BW64: 0 | BX64: BV2 | BY64: 50
E65: HP | F65: LVCMOS 1.8V 12mA (Slow) | L65: No | M65: Off | N65: Low Power | Q65: 0.125 | R65: SDR | S65: 1 | T65: 0 | U65: 0 | V65: 0 | W65: 0 | X65: 0 | Y65: 0 | Z65: 0 | AA65: 0 | AB65: None | AE65: 0 | AH65: 183 | AI65: 0 | AJ65: 1 | AK65: 0 | AL65: 0 | AM65: 0 | AN65: 1.8 | AO65: 0 | AP65: 1.8 | AQ65: 0 | AR65: 0 | AS65: 0 | AT65: 0 | AU65: 0 | AV65: 0 | AW65: 0 | AX65: 0 | AY65: 0 | AZ65: 0 | BA65: 0 | BB65: 0 | BC65: 0 | BD65: 0 | BE65: 0 | BF65: 0 | BG65: 0 | BH65: 0 | BI65: 0 | BJ65: 0 | BK65: 0 | BL65: 0 | BN65: 0 | BO65: 0 | BP65: 0 | BQ65: 15 | BR65: 1 | BS65: 0 | BT65: BW2 | BU65: 50 | BV65: 0 | BW65: 0 | BX65: BV2 | BY65: 50
E66: HP | F66: LVCMOS 1.8V 12mA (Slow) | L66: No | M66: Off | N66: Low Power | Q66: 0.125 | R66: SDR | S66: 1 | T66: 0 | U66: 0 | V66: 0 | W66: 0 | X66: 0 | Y66: 0 | Z66: 0 | AA66: 0 | AB66: None | AE66: 0 | AH66: 183 | AI66: 0 | AJ66: 1 | AK66: 0 | AL66: 0 | AM66: 0 | AN66: 1.8 | AO66: 0 | AP66: 1.8 | AQ66: 0 | AR66: 0 | AS66: 0 | AT66: 0 | AU66: 0 | AV66: 0 | AW66: 0 | AX66: 0 | AY66: 0 | AZ66: 0 | BA66: 0 | BB66: 0 | BC66: 0 | BD66: 0 | BE66: 0 | BF66: 0 | BG66: 0 | BH66: 0 | BI66: 0 | BJ66: 0 | BK66: 0 | BL66: 0 | BN66: 0 | BO66: 0 | BP66: 0 | BQ66: 15 | BR66: 1 | BS66: 0 | BT66: BW2 | BU66: 50 | BV66: 0 | BW66: 0 | BX66: BV2 | BY66: 50
E67: HP | F67: LVCMOS 1.8V 12mA (Slow) | L67: No | M67: Off | N67: Low Power | Q67: 0.125 | R67: SDR | S67: 1 | T67: 0 | U67: 0 | V67: 0 | W67: 0 | X67: 0 | Y67: 0 | Z67: 0 | AA67: 0 | AB67: None | AE67: 0 | AH67: 183 | AI67: 0 | AJ67: 1 | AK67: 0 | AL67: 0 | AM67: 0 | AN67: 1.8 | AO67: 0 | AP67: 1.8 | AQ67: 0 | AR67: 0 | AS67: 0 | AT67: 0 | AU67: 0 | AV67: 0 | AW67: 0 | AX67: 0 | AY67: 0 | AZ67: 0 | BA67: 0 | BB67: 0 | BC67: 0 | BD67: 0 | BE67: 0 | BF67: 0 | BG67: 0 | BH67: 0 | BI67: 0 | BJ67: 0 | BK67: 0 | BL67: 0 | BN67: 0 | BO67: 0 | BP67: 0 | BQ67: 15 | BR67: 1 | BS67: 0 | BT67: BW2 | BU67: 50 | BV67: 0 | BW67: 0 | BX67: BV2 | BY67: 50
E68: HP | F68: LVCMOS 1.8V 12mA (Slow) | L68: No | M68: Off | N68: Low Power | Q68: 0.125 | R68: SDR | S68: 1 | T68: 0 | U68: 0 | V68: 0 | W68: =P68*IF(RIGHT(R68,1)="R",Q68*IF(R68="DDR",2,1),2) -> 0 | X68: 0 | Y68: =IF(ISERROR($AH68),0,IF(E68="HP_PD",0,MAX(0,($AS68+$AU68+$BO68)*VCCAUX/1000))) -> 0 | Z68: =IF(ISERROR($AH68),0,IF(E68="HP_PD",MAX(0,($AS68+$AU68+$BO68)*VCCAUX_IO/1000),0)) -> 0 | AA68: =IF(ISERROR($AH68),0,MAX(0,OFFSET($AJ68,0,$AJ68)+(($J68+K68)*$S68)*$BV68+$I68*OFFSET(IO_STANDARDS,$AH68,14)/1000+($AW68+$BP68)*$AN68)) -> 0 | AB68: None | AE68: =IF(ISERROR($AH68),0,IF(AB68="None",0,$BW68*(($J68+K68)*$S68))) -> 0 | AH68: 183 | AI68: =P68*IF(RIGHT(R68,1)="R",Q68*IF(R68="DDR",1,0.5),1) -> 0 | AJ68: 1 | AK68: 0 | AL68: 0 | AM68: 0 | AN68: 1.8 | AO68: 0 | AP68: 1.8 | AQ68: =IF(RIGHT($F68,6) ="(pair)",2,1)*SUM(I68:K68) -> 0 | AR68: 0 | AS68: 0 | AT68: 0 | AU68: 0 | AV68: 0 | AW68: =IF(LEFT($F68,4)="Diff",2,1)*($I68+($K68*IF($AJ68=3,1-$S68,1)))*IF(AND($AJ68=2,$O68="DIFF_TERM"),OFFSET(IO_STANDARDS,$AH68,18),IF($E68<>"HR",IF(OFFSET(IO_STANDARDS,$AH68,6)=0,0,1)*IF(AJ68=3,$AO68*500/$BY68,OFFSET(IO_STANDARDS,$AH68,11)),IF(LEFT($O68,3)="UNT",$AO68*500/$BY68,0))*(1-$T68))/1000 -> 0 | AX68: 0 | AY68: 0 | AZ68: 0 | BA68: 0 | BB68: 0 | BC68: 0 | BD68: 0 | BE68: 0 | BF68: 0 | BG68: 0 | BH68: 0 | BI68: 0 | BJ68: 0 | BK68: 0 | BL68: 0 | BN68: =(OFFSET(IODELAY_DATA,$BQ68,$BR68)*(1-$U68)*IF($AJ68=3,(1-$S68),1)+OFFSET(IODELAY_DATA,$BQ68,$BR68+1)*$AI68)*(I68+(1-S68)*K68) -> 0 | BO68: =(OFFSET(IODELAY_DATA,$BQ68,$BR68+4)*(1-$U68)*IF($AJ68=3,(1-$S68),1)+OFFSET(IODELAY_DATA,$BQ68,$BR68+5)*$AI68)*(I68+(1-S68)*K68) -> 0 | BP68: =IF(OFFSET(IO_STANDARDS,$AH68,13)=0,OFFSET(IODELAY_DATA,9+IF($AN68=VCCO18,2,IF($AN68=VCCO15,3,IF($AN68=VCCO12,4,1))),3)*(I68+(1-S68)*K68)*$AI68,0)/1000 -> 0 | BQ68: 15 | BR68: 1 | BS68: 0 | BT68: BW2 | BU68: 50 | BV68: 0 | BW68: 0 | BX68: =IF(OFFSET(IO_STANDARDS,$AH68,18)>0,"BV1:BV2",IF(OFFSET(IO_STANDARDS,$AH68,19)>0,IF(E68="HR","BV2:BV5","BV7:BV9"),"BV2")) -> BV2 | BY68: 50
E69: HP | F69: LVCMOS 1.8V 12mA (Slow) | L69: No | M69: Off | N69: Low Power | Q69: 0.125 | R69: SDR | S69: 1 | T69: 0 | U69: 0 | V69: 0 | W69: 0 | X69: 0 | Y69: 0 | Z69: 0 | AA69: 0 | AB69: None | AE69: 0 | AH69: 183 | AI69: 0 | AJ69: 1 | AK69: 0 | AL69: 0 | AM69: 0 | AN69: 1.8 | AO69: 0 | AP69: 1.8 | AQ69: 0 | AR69: 0 | AS69: 0 | AT69: 0 | AU69: 0 | AV69: 0 | AW69: 0 | AX69: 0 | AY69: 0 | AZ69: 0 | BA69: 0 | BB69: 0 | BC69: 0 | BD69: 0 | BE69: 0 | BF69: 0 | BG69: 0 | BH69: 0 | BI69: 0 | BJ69: 0 | BK69: 0 | BL69: 0 | BN69: 0 | BO69: 0 | BP69: 0 | BQ69: 15 | BR69: 1 | BS69: 0 | BT69: BW2 | BU69: 50 | BV69: 0 | BW69: 0 | BX69: BV2 | BY69: 50
E70: HP | F70: LVCMOS 1.8V 12mA (Slow) | L70: No | M70: Off | N70: Low Power | Q70: 0.125 | R70: SDR | S70: 1 | T70: 0 | U70: 0 | V70: 0 | W70: 0 | X70: 0 | Y70: 0 | Z70: 0 | AA70: 0 | AB70: None | AE70: 0 | AH70: 183 | AI70: 0 | AJ70: 1 | AK70: 0 | AL70: 0 | AM70: 0 | AN70: 1.8 | AO70: 0 | AP70: 1.8 | AQ70: 0 | AR70: 0 | AS70: 0 | AT70: 0 | AU70: 0 | AV70: 0 | AW70: 0 | AX70: 0 | AY70: 0 | AZ70: 0 | BA70: 0 | BB70: 0 | BC70: 0 | BD70: 0 | BE70: 0 | BF70: 0 | BG70: 0 | BH70: 0 | BI70: 0 | BJ70: 0 | BK70: 0 | BL70: 0 | BN70: 0 | BO70: 0 | BP70: 0 | BQ70: 15 | BR70: 1 | BS70: 0 | BT70: BW2 | BU70: 50 | BV70: 0 | BW70: 0 | BX70: BV2 | BY70: 50
E71: HP | F71: LVCMOS 1.8V 12mA (Slow) | L71: No | M71: Off | N71: Low Power | Q71: 0.125 | R71: SDR | S71: 1 | T71: 0 | U71: 0 | V71: 0 | W71: 0 | X71: 0 | Y71: 0 | Z71: 0 | AA71: 0 | AB71: None | AE71: 0 | AH71: 183 | AI71: 0 | AJ71: 1 | AK71: 0 | AL71: 0 | AM71: 0 | AN71: 1.8 | AO71: 0 | AP71: 1.8 | AQ71: 0 | AR71: 0 | AS71: 0 | AT71: 0 | AU71: 0 | AV71: 0 | AW71: 0 | AX71: 0 | AY71: 0 | AZ71: 0 | BA71: 0 | BB71: 0 | BC71: 0 | BD71: 0 | BE71: 0 | BF71: 0 | BG71: 0 | BH71: 0 | BI71: 0 | BJ71: 0 | BK71: 0 | BL71: 0 | BN71: 0 | BO71: 0 | BP71: 0 | BQ71: 15 | BR71: 1 | BS71: 0 | BT71: BW2 | BU71: 50 | BV71: 0 | BW71: 0 | BX71: BV2 | BY71: 50
E72: HP | F72: LVCMOS 1.8V 12mA (Slow) | L72: No | M72: Off | N72: Low Power | Q72: 0.125 | R72: SDR | S72: 1 | T72: 0 | U72: 0 | V72: 0 | W72: 0 | X72: 0 | Y72: 0 | Z72: 0 | AA72: 0 | AB72: None | AE72: 0 | AH72: 183 | AI72: 0 | AJ72: 1 | AK72: 0 | AL72: 0 | AM72: 0 | AN72: 1.8 | AO72: 0 | AP72: 1.8 | AQ72: 0 | AR72: 0 | AS72: 0 | AT72: 0 | AU72: 0 | AV72: 0 | AW72: 0 | AX72: 0 | AY72: 0 | AZ72: 0 | BA72: 0 | BB72: 0 | BC72: 0 | BD72: 0 | BE72: 0 | BF72: 0 | BG72: 0 | BH72: 0 | BI72: 0 | BJ72: 0 | BK72: 0 | BL72: 0 | BN72: 0 | BO72: 0 | BP72: 0 | BQ72: 15 | BR72: 1 | BS72: 0 | BT72: BW2 | BU72: 50 | BV72: 0 | BW72: 0 | BX72: BV2 | BY72: 50
E73: HP | F73: LVCMOS 1.8V 12mA (Slow) | L73: No | M73: Off | N73: Low Power | Q73: 0.125 | R73: SDR | S73: 1 | T73: 0 | U73: 0 | V73: 0 | W73: 0 | X73: 0 | Y73: 0 | Z73: 0 | AA73: 0 | AB73: None | AE73: 0 | AH73: 183 | AI73: 0 | AJ73: 1 | AK73: 0 | AL73: 0 | AM73: 0 | AN73: 1.8 | AO73: 0 | AP73: 1.8 | AQ73: 0 | AR73: 0 | AS73: 0 | AT73: 0 | AU73: 0 | AV73: 0 | AW73: 0 | AX73: 0 | AY73: 0 | AZ73: 0 | BA73: 0 | BB73: 0 | BC73: 0 | BD73: 0 | BE73: 0 | BF73: 0 | BG73: 0 | BH73: 0 | BI73: 0 | BJ73: 0 | BK73: 0 | BL73: 0 | BN73: 0 | BO73: 0 | BP73: 0 | BQ73: 15 | BR73: 1 | BS73: 0 | BT73: BW2 | BU73: 50 | BV73: 0 | BW73: 0 | BX73: BV2 | BY73: 50
E74: HP | F74: LVCMOS 1.8V 12mA (Slow) | L74: No | M74: Off | N74: Low Power | Q74: 0.125 | R74: SDR | S74: 1 | T74: 0 | U74: 0 | V74: 0 | W74: =P74*IF(RIGHT(R74,1)="R",Q74*IF(R74="DDR",2,1),2) -> 0 | X74: 0 | Y74: =IF(ISERROR($AH74),0,IF(E74="HP_PD",0,MAX(0,($AS74+$AU74+$BO74)*VCCAUX/1000))) -> 0 | Z74: =IF(ISERROR($AH74),0,IF(E74="HP_PD",MAX(0,($AS74+$AU74+$BO74)*VCCAUX_IO/1000),0)) -> 0 | AA74: =IF(ISERROR($AH74),0,MAX(0,OFFSET($AJ74,0,$AJ74)+(($J74+K74)*$S74)*$BV74+$I74*OFFSET(IO_STANDARDS,$AH74,14)/1000+($AW74+$BP74)*$AN74)) -> 0 | AB74: None | AE74: =IF(ISERROR($AH74),0,IF(AB74="None",0,$BW74*(($J74+K74)*$S74))) -> 0 | AH74: 183 | AI74: =P74*IF(RIGHT(R74,1)="R",Q74*IF(R74="DDR",1,0.5),1) -> 0 | AJ74: 1 | AK74: 0 | AL74: 0 | AM74: 0 | AN74: 1.8 | AO74: 0 | AP74: 1.8 | AQ74: =IF(RIGHT($F74,6) ="(pair)",2,1)*SUM(I74:K74) -> 0 | AR74: 0 | AS74: 0 | AT74: 0 | AU74: 0 | AV74: 0 | AW74: =IF(LEFT($F74,4)="Diff",2,1)*($I74+($K74*IF($AJ74=3,1-$S74,1)))*IF(AND($AJ74=2,$O74="DIFF_TERM"),OFFSET(IO_STANDARDS,$AH74,18),IF($E74<>"HR",IF(OFFSET(IO_STANDARDS,$AH74,6)=0,0,1)*IF(AJ74=3,$AO74*500/$BY74,OFFSET(IO_STANDARDS,$AH74,11)),IF(LEFT($O74,3)="UNT",$AO74*500/$BY74,0))*(1-$T74))/1000 -> 0 | AX74: 0 | AY74: 0 | AZ74: 0 | BA74: 0 | BB74: 0 | BC74: 0 | BD74: 0 | BE74: 0 | BF74: 0 | BG74: 0 | BH74: 0 | BI74: 0 | BJ74: 0 | BK74: 0 | BL74: 0 | BN74: =(OFFSET(IODELAY_DATA,$BQ74,$BR74)*(1-$U74)*IF($AJ74=3,(1-$S74),1)+OFFSET(IODELAY_DATA,$BQ74,$BR74+1)*$AI74)*(I74+(1-S74)*K74) -> 0 | BO74: =(OFFSET(IODELAY_DATA,$BQ74,$BR74+4)*(1-$U74)*IF($AJ74=3,(1-$S74),1)+OFFSET(IODELAY_DATA,$BQ74,$BR74+5)*$AI74)*(I74+(1-S74)*K74) -> 0 | BP74: =IF(OFFSET(IO_STANDARDS,$AH74,13)=0,OFFSET(IODELAY_DATA,9+IF($AN74=VCCO18,2,IF($AN74=VCCO15,3,IF($AN74=VCCO12,4,1))),3)*(I74+(1-S74)*K74)*$AI74,0)/1000 -> 0 | BQ74: 15 | BR74: 1 | BS74: 0 | BT74: BW2 | BU74: 50 | BV74: 0 | BW74: 0 | BX74: =IF(OFFSET(IO_STANDARDS,$AH74,18)>0,"BV1:BV2",IF(OFFSET(IO_STANDARDS,$AH74,19)>0,IF(E74="HR","BV2:BV5","BV7:BV9"),"BV2")) -> BV2 | BY74: 50
E75: HP | F75: LVCMOS 1.8V 12mA (Slow) | L75: No | M75: Off | N75: Low Power | Q75: 0.125 | R75: SDR | S75: 1 | T75: 0 | U75: 0 | V75: 0 | W75: 0 | X75: 0 | Y75: 0 | Z75: 0 | AA75: 0 | AB75: None | AE75: 0 | AH75: 183 | AI75: 0 | AJ75: 1 | AK75: 0 | AL75: 0 | AM75: 0 | AN75: 1.8 | AO75: 0 | AP75: 1.8 | AQ75: 0 | AR75: 0 | AS75: 0 | AT75: 0 | AU75: 0 | AV75: 0 | AW75: 0 | AX75: 0 | AY75: 0 | AZ75: 0 | BA75: 0 | BB75: 0 | BC75: 0 | BD75: 0 | BE75: 0 | BF75: 0 | BG75: 0 | BH75: 0 | BI75: 0 | BJ75: 0 | BK75: 0 | BL75: 0 | BN75: 0 | BO75: 0 | BP75: 0 | BQ75: 15 | BR75: 1 | BS75: 0 | BT75: BW2 | BU75: 50 | BV75: 0 | BW75: 0 | BX75: BV2 | BY75: 50
E76: HP | F76: LVCMOS 1.8V 12mA (Slow) | L76: No | M76: Off | N76: Low Power | Q76: 0.125 | R76: SDR | S76: 1 | T76: 0 | U76: 0 | V76: 0 | W76: 0 | X76: 0 | Y76: 0 | Z76: 0 | AA76: 0 | AB76: None | AE76: 0 | AH76: 183 | AI76: 0 | AJ76: 1 | AK76: 0 | AL76: 0 | AM76: 0 | AN76: 1.8 | AO76: 0 | AP76: 1.8 | AQ76: 0 | AR76: 0 | AS76: 0 | AT76: 0 | AU76: 0 | AV76: 0 | AW76: 0 | AX76: 0 | AY76: 0 | AZ76: 0 | BA76: 0 | BB76: 0 | BC76: 0 | BD76: 0 | BE76: 0 | BF76: 0 | BG76: 0 | BH76: 0 | BI76: 0 | BJ76: 0 | BK76: 0 | BL76: 0 | BN76: 0 | BO76: 0 | BP76: 0 | BQ76: 15 | BR76: 1 | BS76: 0 | BT76: BW2 | BU76: 50 | BV76: 0 | BW76: 0 | BX76: BV2 | BY76: 50
E77: HP | F77: LVCMOS 1.8V 12mA (Slow) | L77: No | M77: Off | N77: Low Power | Q77: 0.125 | R77: SDR | S77: 1 | T77: 0 | U77: 0 | V77: 0 | W77: 0 | X77: 0 | Y77: 0 | Z77: 0 | AA77: 0 | AB77: None | AE77: 0 | AH77: 183 | AI77: 0 | AJ77: 1 | AK77: 0 | AL77: 0 | AM77: 0 | AN77: 1.8 | AO77: 0 | AP77: 1.8 | AQ77: 0 | AR77: 0 | AS77: 0 | AT77: 0 | AU77: 0 | AV77: 0 | AW77: 0 | AX77: 0 | AY77: 0 | AZ77: 0 | BA77: 0 | BB77: 0 | BC77: 0 | BD77: 0 | BE77: 0 | BF77: 0 | BG77: 0 | BH77: 0 | BI77: 0 | BJ77: 0 | BK77: 0 | BL77: 0 | BN77: 0 | BO77: 0 | BP77: 0 | BQ77: 15 | BR77: 1 | BS77: 0 | BT77: BW2 | BU77: 50 | BV77: 0 | BW77: 0 | BX77: BV2 | BY77: 50
E78: HP | F78: LVCMOS 1.8V 12mA (Slow) | L78: No | M78: Off | N78: Low Power | Q78: 0.125 | R78: SDR | S78: 1 | T78: 0 | U78: 0 | V78: 0 | W78: 0 | X78: 0 | Y78: 0 | Z78: 0 | AA78: 0 | AB78: None | AE78: 0 | AH78: 183 | AI78: 0 | AJ78: 1 | AK78: 0 | AL78: 0 | AM78: 0 | AN78: 1.8 | AO78: 0 | AP78: 1.8 | AQ78: 0 | AR78: 0 | AS78: 0 | AT78: 0 | AU78: 0 | AV78: 0 | AW78: 0 | AX78: 0 | AY78: 0 | AZ78: 0 | BA78: 0 | BB78: 0 | BC78: 0 | BD78: 0 | BE78: 0 | BF78: 0 | BG78: 0 | BH78: 0 | BI78: 0 | BJ78: 0 | BK78: 0 | BL78: 0 | BN78: 0 | BO78: 0 | BP78: 0 | BQ78: 15 | BR78: 1 | BS78: 0 | BT78: BW2 | BU78: 50 | BV78: 0 | BW78: 0 | BX78: BV2 | BY78: 50
E79: HP | F79: LVCMOS 1.8V 12mA (Slow) | L79: No | M79: Off | N79: Low Power | Q79: 0.125 | R79: SDR | S79: 1 | T79: 0 | U79: 0 | V79: 0 | W79: 0 | X79: 0 | Y79: 0 | Z79: 0 | AA79: 0 | AB79: None | AE79: 0 | AH79: 183 | AI79: 0 | AJ79: 1 | AK79: 0 | AL79: 0 | AM79: 0 | AN79: 1.8 | AO79: 0 | AP79: 1.8 | AQ79: 0 | AR79: 0 | AS79: 0 | AT79: 0 | AU79: 0 | AV79: 0 | AW79: 0 | AX79: 0 | AY79: 0 | AZ79: 0 | BA79: 0 | BB79: 0 | BC79: 0 | BD79: 0 | BE79: 0 | BF79: 0 | BG79: 0 | BH79: 0 | BI79: 0 | BJ79: 0 | BK79: 0 | BL79: 0 | BN79: 0 | BO79: 0 | BP79: 0 | BQ79: 15 | BR79: 1 | BS79: 0 | BT79: BW2 | BU79: 50 | BV79: 0 | BW79: 0 | BX79: BV2 | BY79: 50
E80: HP | F80: LVCMOS 1.8V 12mA (Slow) | L80: No | M80: Off | N80: Low Power | Q80: 0.125 | R80: SDR | S80: 1 | T80: 0 | U80: 0 | V80: 0 | W80: =P80*IF(RIGHT(R80,1)="R",Q80*IF(R80="DDR",2,1),2) -> 0 | X80: 0 | Y80: =IF(ISERROR($AH80),0,IF(E80="HP_PD",0,MAX(0,($AS80+$AU80+$BO80)*VCCAUX/1000))) -> 0 | Z80: =IF(ISERROR($AH80),0,IF(E80="HP_PD",MAX(0,($AS80+$AU80+$BO80)*VCCAUX_IO/1000),0)) -> 0 | AA80: =IF(ISERROR($AH80),0,MAX(0,OFFSET($AJ80,0,$AJ80)+(($J80+K80)*$S80)*$BV80+$I80*OFFSET(IO_STANDARDS,$AH80,14)/1000+($AW80+$BP80)*$AN80)) -> 0 | AB80: None | AE80: =IF(ISERROR($AH80),0,IF(AB80="None",0,$BW80*(($J80+K80)*$S80))) -> 0 | AH80: 183 | AI80: =P80*IF(RIGHT(R80,1)="R",Q80*IF(R80="DDR",1,0.5),1) -> 0 | AJ80: 1 | AK80: 0 | AL80: 0 | AM80: 0 | AN80: 1.8 | AO80: 0 | AP80: 1.8 | AQ80: =IF(RIGHT($F80,6) ="(pair)",2,1)*SUM(I80:K80) -> 0 | AR80: 0 | AS80: 0 | AT80: 0 | AU80: 0 | AV80: 0 | AW80: =IF(LEFT($F80,4)="Diff",2,1)*($I80+($K80*IF($AJ80=3,1-$S80,1)))*IF(AND($AJ80=2,$O80="DIFF_TERM"),OFFSET(IO_STANDARDS,$AH80,18),IF($E80<>"HR",IF(OFFSET(IO_STANDARDS,$AH80,6)=0,0,1)*IF(AJ80=3,$AO80*500/$BY80,OFFSET(IO_STANDARDS,$AH80,11)),IF(LEFT($O80,3)="UNT",$AO80*500/$BY80,0))*(1-$T80))/1000 -> 0 | AX80: 0 | AY80: 0 | AZ80: 0 | BA80: 0 | BB80: 0 | BC80: 0 | BD80: 0 | BE80: 0 | BF80: 0 | BG80: 0 | BH80: 0 | BI80: 0 | BJ80: 0 | BK80: 0 | BL80: 0 | BN80: =(OFFSET(IODELAY_DATA,$BQ80,$BR80)*(1-$U80)*IF($AJ80=3,(1-$S80),1)+OFFSET(IODELAY_DATA,$BQ80,$BR80+1)*$AI80)*(I80+(1-S80)*K80) -> 0 | BO80: =(OFFSET(IODELAY_DATA,$BQ80,$BR80+4)*(1-$U80)*IF($AJ80=3,(1-$S80),1)+OFFSET(IODELAY_DATA,$BQ80,$BR80+5)*$AI80)*(I80+(1-S80)*K80) -> 0 | BP80: =IF(OFFSET(IO_STANDARDS,$AH80,13)=0,OFFSET(IODELAY_DATA,9+IF($AN80=VCCO18,2,IF($AN80=VCCO15,3,IF($AN80=VCCO12,4,1))),3)*(I80+(1-S80)*K80)*$AI80,0)/1000 -> 0 | BQ80: 15 | BR80: 1 | BS80: 0 | BT80: BW2 | BU80: 50 | BV80: 0 | BW80: 0 | BX80: =IF(OFFSET(IO_STANDARDS,$AH80,18)>0,"BV1:BV2",IF(OFFSET(IO_STANDARDS,$AH80,19)>0,IF(E80="HR","BV2:BV5","BV7:BV9"),"BV2")) -> BV2 | BY80: 50
E81: HP | F81: LVCMOS 1.8V 12mA (Slow) | L81: No | M81: Off | N81: Low Power | Q81: 0.125 | R81: SDR | S81: 1 | T81: 0 | U81: 0 | V81: 0 | W81: 0 | X81: 0 | Y81: 0 | Z81: 0 | AA81: 0 | AB81: None | AE81: 0 | AH81: 183 | AI81: 0 | AJ81: 1 | AK81: 0 | AL81: 0 | AM81: 0 | AN81: 1.8 | AO81: 0 | AP81: 1.8 | AQ81: 0 | AR81: 0 | AS81: 0 | AT81: 0 | AU81: 0 | AV81: 0 | AW81: 0 | AX81: 0 | AY81: 0 | AZ81: 0 | BA81: 0 | BB81: 0 | BC81: 0 | BD81: 0 | BE81: 0 | BF81: 0 | BG81: 0 | BH81: 0 | BI81: 0 | BJ81: 0 | BK81: 0 | BL81: 0 | BN81: 0 | BO81: 0 | BP81: 0 | BQ81: 15 | BR81: 1 | BS81: 0 | BT81: BW2 | BU81: 50 | BV81: 0 | BW81: 0 | BX81: BV2 | BY81: 50
E82: HP | F82: LVCMOS 1.8V 12mA (Slow) | L82: No | M82: Off | N82: Low Power | Q82: 0.125 | R82: SDR | S82: 1 | T82: 0 | U82: 0 | V82: 0 | W82: 0 | X82: 0 | Y82: 0 | Z82: 0 | AA82: 0 | AB82: None | AE82: 0 | AH82: 183 | AI82: 0 | AJ82: 1 | AK82: 0 | AL82: 0 | AM82: 0 | AN82: 1.8 | AO82: 0 | AP82: 1.8 | AQ82: 0 | AR82: 0 | AS82: 0 | AT82: 0 | AU82: 0 | AV82: 0 | AW82: 0 | AX82: 0 | AY82: 0 | AZ82: 0 | BA82: 0 | BB82: 0 | BC82: 0 | BD82: 0 | BE82: 0 | BF82: 0 | BG82: 0 | BH82: 0 | BI82: 0 | BJ82: 0 | BK82: 0 | BL82: 0 | BN82: 0 | BO82: 0 | BP82: 0 | BQ82: 15 | BR82: 1 | BS82: 0 | BT82: BW2 | BU82: 50 | BV82: 0 | BW82: 0 | BX82: BV2 | BY82: 50
E83: HP | F83: LVCMOS 1.8V 12mA (Slow) | L83: No | M83: Off | N83: Low Power | Q83: 0.125 | R83: SDR | S83: 1 | T83: 0 | U83: =$T83 -> 0 | V83: 0 | W83: 0 | X83: =IF(ISERROR($AH83),0,VCCINT/1000*VCCINT_N*(IF($L83="No",0,$P83*$AQ83*OFFSET(IODELAY_DATA,9,3))+BS83+AY83+BN83)) -> 0 | Y83: 0 | Z83: 0 | AA83: 0 | AB83: None | AE83: 0 | AH83: 183 | AI83: 0 | AJ83: =IF(AND($K83>0,$E83="HR",OFFSET(IO_STANDARDS,$AH83,19)>0),3,OFFSET(IO_STANDARDS,$AH83,2)) -> 1 | AK83: =((OFFSET(IO_STANDARDS,$AH83,3)*$AN83+IF(OFFSET(IO_STANDARDS,$AH83,10)=0,$V83,$V83/2)*$AP83)*($J83+$K83)*$AP83*$AI83*$S83)/1000000 -> 0 | AL83: =MAX(0,(OFFSET(IO_STANDARDS,$AH83,3)*($J83+$K83)*$AN83*$AN83*$AI83*$S83/1000000)) -> 0 | AM83: =((OFFSET(IO_STANDARDS,$AH83,3)*$AN83+IF(OFFSET(IO_STANDARDS,$AH83,10)=0,$V83,$V83/2)*$AP83)*($J83+$K83)*$AP83*$AI83*$S83)/1000000 -> 0 | AN83: =IF(ISERROR($AH83),0,OFFSET(IO_STANDARDS,$AH83,1)) -> 1.8 | AO83: =IF(OFFSET(IO_STANDARDS,$AH83,9)=0,0,IF(OR(LEFT($F83,14)="HSTL Class III",LEFT($F83,13)="HSTL Class IV",LEFT($F83,3)="GTL"),$AN83,$AN83/2)) -> 0 | AP83: =IF((OFFSET(IO_STANDARDS,$AH83,8) - OFFSET(IO_STANDARDS,$AH83,9)) =0,$AN83,(OFFSET(IO_STANDARDS,$AH83,8) - OFFSET(IO_STANDARDS,$AH83,9))) -> 1.8 | AQ83: 0 | AR83: =IF($M83="Off",0,$AI83*OFFSET(IODELAY_DATA,2,3)*$AQ83) -> 0 | AS83: 0 | AT83: =OFFSET(IO_STANDARDS,$AH83,7)*$AI83*$S83*($J83+$K83)/1000 -> 0 | AU83: =OFFSET(IO_STANDARDS,$AH83,4)*$AI83*$S83*($J83+$K83) -> 0 | AV83: =((($I83+$K83*(1-$S83))*OFFSET(IO_STANDARDS,$AH83,11)) + ((($J83+$K83)*$S83)*OFFSET(IO_STANDARDS,$AH83,10)))/1000 + $AX83 -> 0 | AW83: 0 | AX83: =IF(IF(LEFT($F83,5)="LVDCI",$J83+$K83,SUM($I83:$K83))>0,((OFFSET(IO_STANDARDS,$AH83,6)*IF(AND($I83+$K83>0,OFFSET(IO_STANDARDS,$AH83,6)<1),100,1)*INT((SUM($I83:$K83)+50)/50))/1000),0) -> 0 | AY83: =IF($L83="No",0,$AI83*(OFFSET(IODELAY_DATA,IF($L83="Yes",3,5),3)*(I83+(1-S83)*K83) + OFFSET(IODELAY_DATA,IF($L83="Yes",4,5),3)*(J83+S83*K83)))+IF($M83="Off",0,$AI83*OFFSET(IODELAY_DATA,2,3)*$AQ83) -> 0 | AZ83: =IF(OR($J83+$K83=0,$AJ83<>2),0,OFFSET(IODELAY_DATA,IF($E83="HR",27,26),1)*INT((SUM($I83:$K83)+50)/50)/1000) -> 0 | BA83: 0 | BB83: 0 | BC83: 0 | BD83: 0 | BE83: 0 | BF83: 0 | BG83: =IF(ISERROR($AH83),0,IF($AN83=VCCO33,$AE83/$AN83,0)) -> 0 | BH83: =IF(ISERROR($AH83),0,IF($AN83=VCCO25,$AE83/$AN83,0)) -> 0 | BI83: =IF(ISERROR($AH83),0,IF($AN83=VCCO18,$AE83/$AN83,0)) -> 0 | BJ83: =IF(ISERROR($AH83),0,IF($AN83=VCCO15,$AE83/$AN83,0)) -> 0 | BK83: =IF(ISERROR($AH83),0,IF($AN83=VCCO135,$AE83/$AN83,0)) -> 0 | BL83: =IF(ISERROR($AH83),0,IF($AN83=VCCO12,$AE83/$AN83,0)) -> 0 | BN83: 0 | BO83: 0 | BP83: 0 | BQ83: =IF($E83="HR",22,15)+IF(OFFSET(IO_STANDARDS,$AH83,5)=0,0,IF(ISERR(FIND("pair",OFFSET(IO_STANDARDS,$AH83,0))),1,2))+IF($E83="HP_PD",2,0) -> 15 | BR83: 1 | BS83: =$AI83*2*OFFSET(FANOUT,3,6)*$AQ83 -> 0 | BT83: =IF(OR($AJ83=2,LEFT($F83,4)="Diff"),"BW1:BW2",IF(OFFSET(IO_STANDARDS,$AH83,8)=0,"BW2",IF(AND($J83=2,$F83="HSTL Class I 1.2V"),"BW1:BW5","BW2:BW5"))) -> BW2 | BU83: 50 | BV83: =IF(OR(NOT(ISTEXT($AB83)),$AB83="None",$AB83="Differential"),OFFSET(IO_STANDARDS,$AH83,13)/1000,(($AN83-OFFSET(IO_STANDARDS,$AH83,8))*(ABS($AO83-OFFSET(IO_STANDARDS,$AH83,8))/$BU83)+OFFSET(IO_STANDARDS,$AH83,9)*($AO83-OFFSET(IO_STANDARDS,$AH83,9))/$BU83)/2) -> 0 | BW83: =IF($BV83<=0,0,MAX(0,$BV83*OFFSET(IO_STANDARDS,$AH83,1)*OFFSET(IO_STANDARDS,$AH83,10)/OFFSET(IO_STANDARDS,$AH83,13)-$BV83)) -> 0 | BX83: BV2 | BY83: 50
E84: HP | F84: LVCMOS 1.8V 12mA (Slow) | L84: No | M84: Off | N84: Low Power | Q84: 0.125 | R84: SDR | S84: 1 | T84: 0 | U84: 0 | V84: 0 | W84: 0 | X84: 0 | Y84: 0 | Z84: 0 | AA84: 0 | AB84: None | AE84: 0 | AH84: 183 | AI84: 0 | AJ84: 1 | AK84: 0 | AL84: 0 | AM84: 0 | AN84: 1.8 | AO84: 0 | AP84: 1.8 | AQ84: 0 | AR84: 0 | AS84: 0 | AT84: 0 | AU84: 0 | AV84: 0 | AW84: 0 | AX84: 0 | AY84: 0 | AZ84: 0 | BA84: 0 | BB84: 0 | BC84: 0 | BD84: 0 | BE84: 0 | BF84: 0 | BG84: 0 | BH84: 0 | BI84: 0 | BJ84: 0 | BK84: 0 | BL84: 0 | BN84: 0 | BO84: 0 | BP84: 0 | BQ84: 15 | BR84: 1 | BS84: 0 | BT84: BW2 | BU84: 50 | BV84: 0 | BW84: 0 | BX84: BV2 | BY84: =IF(LEN($O84)<5,50,IF(LEFT($O84,3)="DCI",MID($O84,5,2),IF(ISNUMBER(RIGHT($O84,2)),RIGHT($O84,2),50))) -> 50
E85: HP | F85: LVCMOS 1.8V 12mA (Slow) | L85: No | M85: Off | N85: Low Power | Q85: 0.125 | R85: SDR | S85: 1 | T85: 0 | U85: 0 | V85: 0 | W85: 0 | X85: 0 | Y85: 0 | Z85: 0 | AA85: 0 | AB85: None | AE85: 0 | AH85: 183 | AI85: 0 | AJ85: 1 | AK85: 0 | AL85: 0 | AM85: 0 | AN85: 1.8 | AO85: 0 | AP85: 1.8 | AQ85: 0 | AR85: 0 | AS85: 0 | AT85: 0 | AU85: 0 | AV85: 0 | AW85: 0 | AX85: 0 | AY85: 0 | AZ85: 0 | BA85: 0 | BB85: 0 | BC85: 0 | BD85: 0 | BE85: 0 | BF85: 0 | BG85: 0 | BH85: 0 | BI85: 0 | BJ85: 0 | BK85: 0 | BL85: 0 | BN85: 0 | BO85: 0 | BP85: 0 | BQ85: 15 | BR85: 1 | BS85: 0 | BT85: BW2 | BU85: 50 | BV85: 0 | BW85: 0 | BX85: BV2 | BY85: 50
E86: HP | F86: LVCMOS 1.8V 12mA (Slow) | L86: No | M86: Off | N86: Low Power | Q86: 0.125 | R86: SDR | S86: 1 | T86: 0 | U86: 0 | V86: 0 | W86: =P86*IF(RIGHT(R86,1)="R",Q86*IF(R86="DDR",2,1),2) -> 0 | X86: 0 | Y86: =IF(ISERROR($AH86),0,IF(E86="HP_PD",0,MAX(0,($AS86+$AU86+$BO86)*VCCAUX/1000))) -> 0 | Z86: =IF(ISERROR($AH86),0,IF(E86="HP_PD",MAX(0,($AS86+$AU86+$BO86)*VCCAUX_IO/1000),0)) -> 0 | AA86: =IF(ISERROR($AH86),0,MAX(0,OFFSET($AJ86,0,$AJ86)+(($J86+K86)*$S86)*$BV86+$I86*OFFSET(IO_STANDARDS,$AH86,14)/1000+($AW86+$BP86)*$AN86)) -> 0 | AB86: None | AE86: =IF(ISERROR($AH86),0,IF(AB86="None",0,$BW86*(($J86+K86)*$S86))) -> 0 | AH86: 183 | AI86: =P86*IF(RIGHT(R86,1)="R",Q86*IF(R86="DDR",1,0.5),1) -> 0 | AJ86: 1 | AK86: 0 | AL86: 0 | AM86: 0 | AN86: 1.8 | AO86: 0 | AP86: 1.8 | AQ86: =IF(RIGHT($F86,6) ="(pair)",2,1)*SUM(I86:K86) -> 0 | AR86: 0 | AS86: 0 | AT86: 0 | AU86: 0 | AV86: 0 | AW86: =IF(LEFT($F86,4)="Diff",2,1)*($I86+($K86*IF($AJ86=3,1-$S86,1)))*IF(AND($AJ86=2,$O86="DIFF_TERM"),OFFSET(IO_STANDARDS,$AH86,18),IF($E86<>"HR",IF(OFFSET(IO_STANDARDS,$AH86,6)=0,0,1)*IF(AJ86=3,$AO86*500/$BY86,OFFSET(IO_STANDARDS,$AH86,11)),IF(LEFT($O86,3)="UNT",$AO86*500/$BY86,0))*(1-$T86))/1000 -> 0 | AX86: 0 | AY86: 0 | AZ86: 0 | BA86: 0 | BB86: 0 | BC86: 0 | BD86: 0 | BE86: 0 | BF86: 0 | BG86: 0 | BH86: 0 | BI86: 0 | BJ86: 0 | BK86: 0 | BL86: 0 | BN86: =(OFFSET(IODELAY_DATA,$BQ86,$BR86)*(1-$U86)*IF($AJ86=3,(1-$S86),1)+OFFSET(IODELAY_DATA,$BQ86,$BR86+1)*$AI86)*(I86+(1-S86)*K86) -> 0 | BO86: =(OFFSET(IODELAY_DATA,$BQ86,$BR86+4)*(1-$U86)*IF($AJ86=3,(1-$S86),1)+OFFSET(IODELAY_DATA,$BQ86,$BR86+5)*$AI86)*(I86+(1-S86)*K86) -> 0 | BP86: =IF(OFFSET(IO_STANDARDS,$AH86,13)=0,OFFSET(IODELAY_DATA,9+IF($AN86=VCCO18,2,IF($AN86=VCCO15,3,IF($AN86=VCCO12,4,1))),3)*(I86+(1-S86)*K86)*$AI86,0)/1000 -> 0 | BQ86: 15 | BR86: 1 | BS86: 0 | BT86: BW2 | BU86: 50 | BV86: 0 | BW86: 0 | BX86: =IF(OFFSET(IO_STANDARDS,$AH86,18)>0,"BV1:BV2",IF(OFFSET(IO_STANDARDS,$AH86,19)>0,IF(E86="HR","BV2:BV5","BV7:BV9"),"BV2")) -> BV2 | BY86: 50
E87: HP | F87: LVCMOS 1.8V 12mA (Slow) | L87: No | M87: Off | N87: Low Power | Q87: 0.125 | R87: SDR | S87: 1 | T87: 0 | U87: 0 | V87: 0 | W87: 0 | X87: 0 | Y87: 0 | Z87: 0 | AA87: 0 | AB87: None | AE87: 0 | AH87: 183 | AI87: 0 | AJ87: 1 | AK87: 0 | AL87: 0 | AM87: 0 | AN87: 1.8 | AO87: 0 | AP87: 1.8 | AQ87: 0 | AR87: 0 | AS87: 0 | AT87: 0 | AU87: 0 | AV87: 0 | AW87: 0 | AX87: 0 | AY87: 0 | AZ87: 0 | BA87: 0 | BB87: 0 | BC87: 0 | BD87: 0 | BE87: 0 | BF87: 0 | BG87: 0 | BH87: 0 | BI87: 0 | BJ87: 0 | BK87: 0 | BL87: 0 | BN87: 0 | BO87: 0 | BP87: 0 | BQ87: 15 | BR87: 1 | BS87: 0 | BT87: BW2 | BU87: 50 | BV87: 0 | BW87: 0 | BX87: BV2 | BY87: 50
E88: HP | F88: LVCMOS 1.8V 12mA (Slow) | L88: No | M88: Off | N88: Low Power | Q88: 0.125 | R88: SDR | S88: 1 | T88: 0 | U88: 0 | V88: 0 | W88: 0 | X88: 0 | Y88: 0 | Z88: 0 | AA88: 0 | AB88: None | AE88: 0 | AH88: 183 | AI88: 0 | AJ88: 1 | AK88: 0 | AL88: 0 | AM88: 0 | AN88: 1.8 | AO88: 0 | AP88: 1.8 | AQ88: 0 | AR88: 0 | AS88: 0 | AT88: 0 | AU88: 0 | AV88: 0 | AW88: 0 | AX88: 0 | AY88: 0 | AZ88: 0 | BA88: 0 | BB88: 0 | BC88: 0 | BD88: 0 | BE88: 0 | BF88: 0 | BG88: 0 | BH88: 0 | BI88: 0 | BJ88: 0 | BK88: 0 | BL88: 0 | BN88: 0 | BO88: 0 | BP88: 0 | BQ88: 15 | BR88: 1 | BS88: 0 | BT88: BW2 | BU88: 50 | BV88: 0 | BW88: 0 | BX88: BV2 | BY88: 50
E89: HP | F89: LVCMOS 1.8V 12mA (Slow) | L89: No | M89: Off | N89: Low Power | Q89: 0.125 | R89: SDR | S89: 1 | T89: 0 | U89: 0 | V89: 0 | W89: 0 | X89: 0 | Y89: 0 | Z89: 0 | AA89: 0 | AB89: None | AE89: 0 | AH89: 183 | AI89: 0 | AJ89: 1 | AK89: 0 | AL89: 0 | AM89: 0 | AN89: 1.8 | AO89: 0 | AP89: 1.8 | AQ89: 0 | AR89: 0 | AS89: 0 | AT89: 0 | AU89: 0 | AV89: 0 | AW89: 0 | AX89: 0 | AY89: 0 | AZ89: 0 | BA89: 0 | BB89: 0 | BC89: 0 | BD89: 0 | BE89: 0 | BF89: 0 | BG89: 0 | BH89: 0 | BI89: 0 | BJ89: 0 | BK89: 0 | BL89: 0 | BN89: 0 | BO89: 0 | BP89: 0 | BQ89: 15 | BR89: 1 | BS89: 0 | BT89: BW2 | BU89: 50 | BV89: 0 | BW89: 0 | BX89: BV2 | BY89: 50
E90: HP | F90: LVCMOS 1.8V 12mA (Slow) | L90: No | M90: Off | N90: Low Power | Q90: 0.125 | R90: SDR | S90: 1 | T90: 0 | U90: 0 | V90: 0 | W90: 0 | X90: 0 | Y90: 0 | Z90: 0 | AA90: 0 | AB90: None | AE90: 0 | AH90: 183 | AI90: 0 | AJ90: 1 | AK90: 0 | AL90: 0 | AM90: 0 | AN90: 1.8 | AO90: 0 | AP90: 1.8 | AQ90: 0 | AR90: 0 | AS90: 0 | AT90: 0 | AU90: 0 | AV90: 0 | AW90: 0 | AX90: 0 | AY90: 0 | AZ90: 0 | BA90: 0 | BB90: 0 | BC90: 0 | BD90: 0 | BE90: 0 | BF90: 0 | BG90: 0 | BH90: 0 | BI90: 0 | BJ90: 0 | BK90: 0 | BL90: 0 | BN90: 0 | BO90: 0 | BP90: 0 | BQ90: 15 | BR90: 1 | BS90: 0 | BT90: BW2 | BU90: 50 | BV90: 0 | BW90: 0 | BX90: BV2 | BY90: 50
E91: HP | F91: LVCMOS 1.8V 12mA (Slow) | L91: No | M91: Off | N91: Low Power | Q91: 0.125 | R91: SDR | S91: 1 | T91: 0 | U91: 0 | V91: 0 | W91: 0 | X91: 0 | Y91: 0 | Z91: 0 | AA91: 0 | AB91: None | AE91: 0 | AH91: 183 | AI91: 0 | AJ91: 1 | AK91: 0 | AL91: 0 | AM91: 0 | AN91: 1.8 | AO91: 0 | AP91: 1.8 | AQ91: 0 | AR91: 0 | AS91: 0 | AT91: 0 | AU91: 0 | AV91: 0 | AW91: 0 | AX91: 0 | AY91: 0 | AZ91: 0 | BA91: 0 | BB91: 0 | BC91: 0 | BD91: 0 | BE91: 0 | BF91: 0 | BG91: 0 | BH91: 0 | BI91: 0 | BJ91: 0 | BK91: 0 | BL91: 0 | BN91: 0 | BO91: 0 | BP91: 0 | BQ91: 15 | BR91: 1 | BS91: 0 | BT91: BW2 | BU91: 50 | BV91: 0 | BW91: 0 | BX91: BV2 | BY91: 50
E92: HP | F92: LVCMOS 1.8V 12mA (Slow) | L92: No | M92: Off | N92: Low Power | Q92: 0.125 | R92: SDR | S92: 1 | T92: 0 | U92: 0 | V92: 0 | W92: =P92*IF(RIGHT(R92,1)="R",Q92*IF(R92="DDR",2,1),2) -> 0 | X92: 0 | Y92: =IF(ISERROR($AH92),0,IF(E92="HP_PD",0,MAX(0,($AS92+$AU92+$BO92)*VCCAUX/1000))) -> 0 | Z92: =IF(ISERROR($AH92),0,IF(E92="HP_PD",MAX(0,($AS92+$AU92+$BO92)*VCCAUX_IO/1000),0)) -> 0 | AA92: =IF(ISERROR($AH92),0,MAX(0,OFFSET($AJ92,0,$AJ92)+(($J92+K92)*$S92)*$BV92+$I92*OFFSET(IO_STANDARDS,$AH92,14)/1000+($AW92+$BP92)*$AN92)) -> 0 | AB92: None | AE92: =IF(ISERROR($AH92),0,IF(AB92="None",0,$BW92*(($J92+K92)*$S92))) -> 0 | AH92: 183 | AI92: =P92*IF(RIGHT(R92,1)="R",Q92*IF(R92="DDR",1,0.5),1) -> 0 | AJ92: 1 | AK92: 0 | AL92: 0 | AM92: 0 | AN92: 1.8 | AO92: 0 | AP92: 1.8 | AQ92: =IF(RIGHT($F92,6) ="(pair)",2,1)*SUM(I92:K92) -> 0 | AR92: 0 | AS92: 0 | AT92: 0 | AU92: 0 | AV92: 0 | AW92: =IF(LEFT($F92,4)="Diff",2,1)*($I92+($K92*IF($AJ92=3,1-$S92,1)))*IF(AND($AJ92=2,$O92="DIFF_TERM"),OFFSET(IO_STANDARDS,$AH92,18),IF($E92<>"HR",IF(OFFSET(IO_STANDARDS,$AH92,6)=0,0,1)*IF(AJ92=3,$AO92*500/$BY92,OFFSET(IO_STANDARDS,$AH92,11)),IF(LEFT($O92,3)="UNT",$AO92*500/$BY92,0))*(1-$T92))/1000 -> 0 | AX92: 0 | AY92: 0 | AZ92: 0 | BA92: 0 | BB92: 0 | BC92: 0 | BD92: 0 | BE92: 0 | BF92: 0 | BG92: 0 | BH92: 0 | BI92: 0 | BJ92: 0 | BK92: 0 | BL92: 0 | BN92: =(OFFSET(IODELAY_DATA,$BQ92,$BR92)*(1-$U92)*IF($AJ92=3,(1-$S92),1)+OFFSET(IODELAY_DATA,$BQ92,$BR92+1)*$AI92)*(I92+(1-S92)*K92) -> 0 | BO92: =(OFFSET(IODELAY_DATA,$BQ92,$BR92+4)*(1-$U92)*IF($AJ92=3,(1-$S92),1)+OFFSET(IODELAY_DATA,$BQ92,$BR92+5)*$AI92)*(I92+(1-S92)*K92) -> 0 | BP92: =IF(OFFSET(IO_STANDARDS,$AH92,13)=0,OFFSET(IODELAY_DATA,9+IF($AN92=VCCO18,2,IF($AN92=VCCO15,3,IF($AN92=VCCO12,4,1))),3)*(I92+(1-S92)*K92)*$AI92,0)/1000 -> 0 | BQ92: 15 | BR92: 1 | BS92: 0 | BT92: BW2 | BU92: 50 | BV92: 0 | BW92: 0 | BX92: =IF(OFFSET(IO_STANDARDS,$AH92,18)>0,"BV1:BV2",IF(OFFSET(IO_STANDARDS,$AH92,19)>0,IF(E92="HR","BV2:BV5","BV7:BV9"),"BV2")) -> BV2 | BY92: 50
E93: HP | F93: LVCMOS 1.8V 12mA (Slow) | L93: No | M93: Off | N93: Low Power | Q93: 0.125 | R93: SDR | S93: 1 | T93: 0 | U93: 0 | V93: 0 | W93: 0 | X93: 0 | Y93: 0 | Z93: 0 | AA93: 0 | AB93: None | AE93: 0 | AH93: 183 | AI93: 0 | AJ93: 1 | AK93: 0 | AL93: 0 | AM93: 0 | AN93: 1.8 | AO93: 0 | AP93: 1.8 | AQ93: 0 | AR93: 0 | AS93: 0 | AT93: 0 | AU93: 0 | AV93: 0 | AW93: 0 | AX93: 0 | AY93: 0 | AZ93: 0 | BA93: 0 | BB93: 0 | BC93: 0 | BD93: 0 | BE93: 0 | BF93: 0 | BG93: 0 | BH93: 0 | BI93: 0 | BJ93: 0 | BK93: 0 | BL93: 0 | BN93: 0 | BO93: 0 | BP93: 0 | BQ93: 15 | BR93: 1 | BS93: 0 | BT93: BW2 | BU93: 50 | BV93: 0 | BW93: 0 | BX93: BV2 | BY93: 50
E94: HP | F94: LVCMOS 1.8V 12mA (Slow) | L94: No | M94: Off | N94: Low Power | Q94: 0.125 | R94: SDR | S94: 1 | T94: 0 | U94: 0 | V94: 0 | W94: 0 | X94: 0 | Y94: 0 | Z94: 0 | AA94: 0 | AB94: None | AE94: 0 | AH94: 183 | AI94: 0 | AJ94: 1 | AK94: 0 | AL94: 0 | AM94: 0 | AN94: 1.8 | AO94: 0 | AP94: 1.8 | AQ94: 0 | AR94: 0 | AS94: 0 | AT94: 0 | AU94: 0 | AV94: 0 | AW94: 0 | AX94: 0 | AY94: 0 | AZ94: 0 | BA94: 0 | BB94: 0 | BC94: 0 | BD94: 0 | BE94: 0 | BF94: 0 | BG94: 0 | BH94: 0 | BI94: 0 | BJ94: 0 | BK94: 0 | BL94: 0 | BN94: 0 | BO94: 0 | BP94: 0 | BQ94: 15 | BR94: 1 | BS94: 0 | BT94: BW2 | BU94: 50 | BV94: 0 | BW94: 0 | BX94: BV2 | BY94: 50
E95: HP | F95: LVCMOS 1.8V 12mA (Slow) | L95: No | M95: Off | N95: Low Power | Q95: 0.125 | R95: SDR | S95: 1 | T95: 0 | U95: 0 | V95: 0 | W95: 0 | X95: 0 | Y95: 0 | Z95: 0 | AA95: 0 | AB95: None | AE95: 0 | AH95: 183 | AI95: 0 | AJ95: 1 | AK95: 0 | AL95: 0 | AM95: 0 | AN95: 1.8 | AO95: 0 | AP95: 1.8 | AQ95: 0 | AR95: 0 | AS95: 0 | AT95: 0 | AU95: 0 | AV95: 0 | AW95: 0 | AX95: 0 | AY95: 0 | AZ95: 0 | BA95: 0 | BB95: 0 | BC95: 0 | BD95: 0 | BE95: 0 | BF95: 0 | BG95: 0 | BH95: 0 | BI95: 0 | BJ95: 0 | BK95: 0 | BL95: 0 | BN95: 0 | BO95: 0 | BP95: 0 | BQ95: 15 | BR95: 1 | BS95: 0 | BT95: BW2 | BU95: 50 | BV95: 0 | BW95: 0 | BX95: BV2 | BY95: 50
E96: HP | F96: LVCMOS 1.8V 12mA (Slow) | L96: No | M96: Off | N96: Low Power | Q96: 0.125 | R96: SDR | S96: 1 | T96: 0 | U96: 0 | V96: 0 | W96: 0 | X96: 0 | Y96: 0 | Z96: 0 | AA96: 0 | AB96: None | AE96: 0 | AH96: 183 | AI96: 0 | AJ96: 1 | AK96: 0 | AL96: 0 | AM96: 0 | AN96: 1.8 | AO96: 0 | AP96: 1.8 | AQ96: 0 | AR96: 0 | AS96: 0 | AT96: 0 | AU96: 0 | AV96: 0 | AW96: 0 | AX96: 0 | AY96: 0 | AZ96: 0 | BA96: 0 | BB96: 0 | BC96: 0 | BD96: 0 | BE96: 0 | BF96: 0 | BG96: 0 | BH96: 0 | BI96: 0 | BJ96: 0 | BK96: 0 | BL96: 0 | BN96: 0 | BO96: 0 | BP96: 0 | BQ96: 15 | BR96: 1 | BS96: 0 | BT96: BW2 | BU96: 50 | BV96: 0 | BW96: 0 | BX96: BV2 | BY96: 50
E97: HP | F97: LVCMOS 1.8V 12mA (Slow) | L97: No | M97: Off | N97: Low Power | Q97: 0.125 | R97: SDR | S97: 1 | T97: 0 | U97: 0 | V97: 0 | W97: 0 | X97: 0 | Y97: 0 | Z97: 0 | AA97: 0 | AB97: None | AE97: 0 | AH97: 183 | AI97: 0 | AJ97: 1 | AK97: 0 | AL97: 0 | AM97: 0 | AN97: 1.8 | AO97: 0 | AP97: 1.8 | AQ97: 0 | AR97: 0 | AS97: 0 | AT97: 0 | AU97: 0 | AV97: 0 | AW97: 0 | AX97: 0 | AY97: 0 | AZ97: 0 | BA97: 0 | BB97: 0 | BC97: 0 | BD97: 0 | BE97: 0 | BF97: 0 | BG97: 0 | BH97: 0 | BI97: 0 | BJ97: 0 | BK97: 0 | BL97: 0 | BN97: 0 | BO97: 0 | BP97: 0 | BQ97: 15 | BR97: 1 | BS97: 0 | BT97: BW2 | BU97: 50 | BV97: 0 | BW97: 0 | BX97: BV2 | BY97: 50
E98: HP | F98: LVCMOS 1.8V 12mA (Slow) | L98: No | M98: Off | N98: Low Power | Q98: 0.125 | R98: SDR | S98: 1 | T98: 0 | U98: 0 | V98: 0 | W98: =P98*IF(RIGHT(R98,1)="R",Q98*IF(R98="DDR",2,1),2) -> 0 | X98: 0 | Y98: =IF(ISERROR($AH98),0,IF(E98="HP_PD",0,MAX(0,($AS98+$AU98+$BO98)*VCCAUX/1000))) -> 0 | Z98: =IF(ISERROR($AH98),0,IF(E98="HP_PD",MAX(0,($AS98+$AU98+$BO98)*VCCAUX_IO/1000),0)) -> 0 | AA98: =IF(ISERROR($AH98),0,MAX(0,OFFSET($AJ98,0,$AJ98)+(($J98+K98)*$S98)*$BV98+$I98*OFFSET(IO_STANDARDS,$AH98,14)/1000+($AW98+$BP98)*$AN98)) -> 0 | AB98: None | AE98: =IF(ISERROR($AH98),0,IF(AB98="None",0,$BW98*(($J98+K98)*$S98))) -> 0 | AH98: 183 | AI98: =P98*IF(RIGHT(R98,1)="R",Q98*IF(R98="DDR",1,0.5),1) -> 0 | AJ98: 1 | AK98: 0 | AL98: 0 | AM98: 0 | AN98: 1.8 | AO98: 0 | AP98: 1.8 | AQ98: =IF(RIGHT($F98,6) ="(pair)",2,1)*SUM(I98:K98) -> 0 | AR98: 0 | AS98: 0 | AT98: 0 | AU98: 0 | AV98: 0 | AW98: =IF(LEFT($F98,4)="Diff",2,1)*($I98+($K98*IF($AJ98=3,1-$S98,1)))*IF(AND($AJ98=2,$O98="DIFF_TERM"),OFFSET(IO_STANDARDS,$AH98,18),IF($E98<>"HR",IF(OFFSET(IO_STANDARDS,$AH98,6)=0,0,1)*IF(AJ98=3,$AO98*500/$BY98,OFFSET(IO_STANDARDS,$AH98,11)),IF(LEFT($O98,3)="UNT",$AO98*500/$BY98,0))*(1-$T98))/1000 -> 0 | AX98: 0 | AY98: 0 | AZ98: 0 | BA98: 0 | BB98: 0 | BC98: 0 | BD98: 0 | BE98: 0 | BF98: 0 | BG98: 0 | BH98: 0 | BI98: 0 | BJ98: 0 | BK98: 0 | BL98: 0 | BN98: =(OFFSET(IODELAY_DATA,$BQ98,$BR98)*(1-$U98)*IF($AJ98=3,(1-$S98),1)+OFFSET(IODELAY_DATA,$BQ98,$BR98+1)*$AI98)*(I98+(1-S98)*K98) -> 0 | BO98: =(OFFSET(IODELAY_DATA,$BQ98,$BR98+4)*(1-$U98)*IF($AJ98=3,(1-$S98),1)+OFFSET(IODELAY_DATA,$BQ98,$BR98+5)*$AI98)*(I98+(1-S98)*K98) -> 0 | BP98: =IF(OFFSET(IO_STANDARDS,$AH98,13)=0,OFFSET(IODELAY_DATA,9+IF($AN98=VCCO18,2,IF($AN98=VCCO15,3,IF($AN98=VCCO12,4,1))),3)*(I98+(1-S98)*K98)*$AI98,0)/1000 -> 0 | BQ98: 15 | BR98: 1 | BS98: 0 | BT98: BW2 | BU98: 50 | BV98: 0 | BW98: 0 | BX98: =IF(OFFSET(IO_STANDARDS,$AH98,18)>0,"BV1:BV2",IF(OFFSET(IO_STANDARDS,$AH98,19)>0,IF(E98="HR","BV2:BV5","BV7:BV9"),"BV2")) -> BV2 | BY98: 50
E99: HP | F99: LVCMOS 1.8V 12mA (Slow) | L99: No | M99: Off | N99: Low Power | Q99: 0.125 | R99: SDR | S99: 1 | T99: 0 | U99: 0 | V99: 0 | W99: 0 | X99: 0 | Y99: 0 | Z99: 0 | AA99: 0 | AB99: None | AE99: 0 | AH99: 183 | AI99: 0 | AJ99: 1 | AK99: 0 | AL99: 0 | AM99: 0 | AN99: 1.8 | AO99: 0 | AP99: 1.8 | AQ99: 0 | AR99: 0 | AS99: 0 | AT99: 0 | AU99: 0 | AV99: 0 | AW99: 0 | AX99: 0 | AY99: 0 | AZ99: 0 | BA99: 0 | BB99: 0 | BC99: 0 | BD99: 0 | BE99: 0 | BF99: 0 | BG99: 0 | BH99: 0 | BI99: 0 | BJ99: 0 | BK99: 0 | BL99: 0 | BN99: 0 | BO99: 0 | BP99: 0 | BQ99: 15 | BR99: 1 | BS99: 0 | BT99: BW2 | BU99: 50 | BV99: 0 | BW99: 0 | BX99: BV2 | BY99: 50
E100: HP | F100: LVCMOS 1.8V 12mA (Slow) | L100: No | M100: Off | N100: Low Power | Q100: 0.125 | R100: SDR | S100: 1 | T100: 0 | U100: 0 | V100: 0 | W100: 0 | X100: 0 | Y100: 0 | Z100: 0 | AA100: 0 | AB100: None | AE100: 0 | AH100: 183 | AI100: 0 | AJ100: 1 | AK100: 0 | AL100: 0 | AM100: 0 | AN100: 1.8 | AO100: 0 | AP100: 1.8 | AQ100: 0 | AR100: 0 | AS100: 0 | AT100: 0 | AU100: 0 | AV100: 0 | AW100: 0 | AX100: 0 | AY100: 0 | AZ100: 0 | BA100: 0 | BB100: 0 | BC100: 0 | BD100: 0 | BE100: 0 | BF100: 0 | BG100: 0 | BH100: 0 | BI100: 0 | BJ100: 0 | BK100: 0 | BL100: 0 | BN100: 0 | BO100: 0 | BP100: 0 | BQ100: 15 | BR100: 1 | BS100: 0 | BT100: BW2 | BU100: 50 | BV100: 0 | BW100: 0 | BX100: BV2 | BY100: 50
E101: HP | F101: LVCMOS 1.8V 12mA (Slow) | L101: No | M101: Off | N101: Low Power | Q101: 0.125 | R101: SDR | S101: 1 | T101: 0 | U101: 0 | V101: 0 | W101: 0 | X101: 0 | Y101: 0 | Z101: 0 | AA101: 0 | AB101: None | AE101: 0 | AH101: 183 | AI101: 0 | AJ101: 1 | AK101: 0 | AL101: 0 | AM101: 0 | AN101: 1.8 | AO101: 0 | AP101: 1.8 | AQ101: 0 | AR101: 0 | AS101: 0 | AT101: 0 | AU101: 0 | AV101: 0 | AW101: 0 | AX101: 0 | AY101: 0 | AZ101: 0 | BA101: 0 | BB101: 0 | BC101: 0 | BD101: 0 | BE101: 0 | BF101: 0 | BG101: 0 | BH101: 0 | BI101: 0 | BJ101: 0 | BK101: 0 | BL101: 0 | BN101: 0 | BO101: 0 | BP101: 0 | BQ101: 15 | BR101: 1 | BS101: 0 | BT101: BW2 | BU101: 50 | BV101: 0 | BW101: 0 | BX101: BV2 | BY101: 50
E102: HP | F102: LVCMOS 1.8V 12mA (Slow) | L102: No | M102: Off | N102: Low Power | Q102: 0.125 | R102: SDR | S102: 1 | T102: 0 | U102: 0 | V102: 0 | W102: 0 | X102: 0 | Y102: 0 | Z102: 0 | AA102: 0 | AB102: None | AE102: 0 | AH102: 183 | AI102: 0 | AJ102: 1 | AK102: 0 | AL102: 0 | AM102: 0 | AN102: 1.8 | AO102: 0 | AP102: 1.8 | AQ102: 0 | AR102: 0 | AS102: 0 | AT102: 0 | AU102: 0 | AV102: 0 | AW102: 0 | AX102: 0 | AY102: 0 | AZ102: 0 | BA102: 0 | BB102: 0 | BC102: 0 | BD102: 0 | BE102: 0 | BF102: 0 | BG102: 0 | BH102: 0 | BI102: 0 | BJ102: 0 | BK102: 0 | BL102: 0 | BN102: 0 | BO102: 0 | BP102: 0 | BQ102: 15 | BR102: 1 | BS102: 0 | BT102: BW2 | BU102: 50 | BV102: 0 | BW102: 0 | BX102: BV2 | BY102: 50
E103: HP | F103: LVCMOS 1.8V 12mA (Slow) | L103: No | M103: Off | N103: Low Power | Q103: 0.125 | R103: SDR | S103: 1 | T103: 0 | U103: 0 | V103: 0 | W103: 0 | X103: 0 | Y103: 0 | Z103: 0 | AA103: 0 | AB103: None | AE103: 0 | AH103: 183 | AI103: 0 | AJ103: 1 | AK103: 0 | AL103: 0 | AM103: 0 | AN103: 1.8 | AO103: 0 | AP103: 1.8 | AQ103: 0 | AR103: 0 | AS103: 0 | AT103: 0 | AU103: 0 | AV103: 0 | AW103: 0 | AX103: 0 | AY103: 0 | AZ103: 0 | BA103: 0 | BB103: 0 | BC103: 0 | BD103: 0 | BE103: 0 | BF103: 0 | BG103: 0 | BH103: 0 | BI103: 0 | BJ103: 0 | BK103: 0 | BL103: 0 | BN103: 0 | BO103: 0 | BP103: 0 | BQ103: 15 | BR103: 1 | BS103: 0 | BT103: BW2 | BU103: 50 | BV103: 0 | BW103: 0 | BX103: BV2 | BY103: 50
E104: HP | F104: LVCMOS 1.8V 12mA (Slow) | L104: No | M104: Off | N104: Low Power | Q104: 0.125 | R104: SDR | S104: 1 | T104: 0 | U104: 0 | V104: 0 | W104: =P104*IF(RIGHT(R104,1)="R",Q104*IF(R104="DDR",2,1),2) -> 0 | X104: 0 | Y104: =IF(ISERROR($AH104),0,IF(E104="HP_PD",0,MAX(0,($AS104+$AU104+$BO104)*VCCAUX/1000))) -> 0 | Z104: =IF(ISERROR($AH104),0,IF(E104="HP_PD",MAX(0,($AS104+$AU104+$BO104)*VCCAUX_IO/1000),0)) -> 0 | AA104: =IF(ISERROR($AH104),0,MAX(0,OFFSET($AJ104,0,$AJ104)+(($J104+K104)*$S104)*$BV104+$I104*OFFSET(IO_STANDARDS,$AH104,14)/1000+($AW104+$BP104)*$AN104)) -> 0 | AB104: None | AE104: =IF(ISERROR($AH104),0,IF(AB104="None",0,$BW104*(($J104+K104)*$S104))) -> 0 | AH104: 183 | AI104: =P104*IF(RIGHT(R104,1)="R",Q104*IF(R104="DDR",1,0.5),1) -> 0 | AJ104: 1 | AK104: 0 | AL104: 0 | AM104: 0 | AN104: 1.8 | AO104: 0 | AP104: 1.8 | AQ104: =IF(RIGHT($F104,6) ="(pair)",2,1)*SUM(I104:K104) -> 0 | AR104: 0 | AS104: 0 | AT104: 0 | AU104: 0 | AV104: 0 | AW104: =IF(LEFT($F104,4)="Diff",2,1)*($I104+($K104*IF($AJ104=3,1-$S104,1)))*IF(AND($AJ104=2,$O104="DIFF_TERM"),OFFSET(IO_STANDARDS,$AH104,18),IF($E104<>"HR",IF(OFFSET(IO_STANDARDS,$AH104,6)=0,0,1)*IF(AJ104=3,$AO104*500/$BY104,OFFSET(IO_STANDARDS,$AH104,11)),IF(LEFT($O104,3)="UNT",$AO104*500/$BY104,0))*(1-$T104))/1000 -> 0 | AX104: 0 | AY104: 0 | AZ104: 0 | BA104: 0 | BB104: 0 | BC104: 0 | BD104: 0 | BE104: 0 | BF104: 0 | BG104: 0 | BH104: 0 | BI104: 0 | BJ104: 0 | BK104: 0 | BL104: 0 | BN104: =(OFFSET(IODELAY_DATA,$BQ104,$BR104)*(1-$U104)*IF($AJ104=3,(1-$S104),1)+OFFSET(IODELAY_DATA,$BQ104,$BR104+1)*$AI104)*(I104+(1-S104)*K104) -> 0 | BO104: =(OFFSET(IODELAY_DATA,$BQ104,$BR104+4)*(1-$U104)*IF($AJ104=3,(1-$S104),1)+OFFSET(IODELAY_DATA,$BQ104,$BR104+5)*$AI104)*(I104+(1-S104)*K104) -> 0 | BP104: =IF(OFFSET(IO_STANDARDS,$AH104,13)=0,OFFSET(IODELAY_DATA,9+IF($AN104=VCCO18,2,IF($AN104=VCCO15,3,IF($AN104=VCCO12,4,1))),3)*(I104+(1-S104)*K104)*$AI104,0)/1000 -> 0 | BQ104: 15 | BR104: 1 | BS104: 0 | BT104: BW2 | BU104: 50 | BV104: 0 | BW104: 0 | BX104: =IF(OFFSET(IO_STANDARDS,$AH104,18)>0,"BV1:BV2",IF(OFFSET(IO_STANDARDS,$AH104,19)>0,IF(E104="HR","BV2:BV5","BV7:BV9"),"BV2")) -> BV2 | BY104: 50
E105: HP | F105: LVCMOS 1.8V 12mA (Slow) | L105: No | M105: Off | N105: Low Power | Q105: 0.125 | R105: SDR | S105: 1 | T105: 0 | U105: 0 | V105: 0 | W105: 0 | X105: 0 | Y105: 0 | Z105: 0 | AA105: 0 | AB105: None | AE105: 0 | AH105: 183 | AI105: 0 | AJ105: 1 | AK105: 0 | AL105: 0 | AM105: 0 | AN105: 1.8 | AO105: 0 | AP105: 1.8 | AQ105: 0 | AR105: 0 | AS105: 0 | AT105: 0 | AU105: 0 | AV105: 0 | AW105: 0 | AX105: 0 | AY105: 0 | AZ105: 0 | BA105: 0 | BB105: 0 | BC105: 0 | BD105: 0 | BE105: 0 | BF105: 0 | BG105: 0 | BH105: 0 | BI105: 0 | BJ105: 0 | BK105: 0 | BL105: 0 | BN105: 0 | BO105: 0 | BP105: 0 | BQ105: 15 | BR105: 1 | BS105: 0 | BT105: BW2 | BU105: 50 | BV105: 0 | BW105: 0 | BX105: BV2 | BY105: 50
E106: HP | F106: LVCMOS 1.8V 12mA (Slow) | L106: No | M106: Off | N106: Low Power | Q106: 0.125 | R106: SDR | S106: 1 | T106: 0 | U106: 0 | V106: 0 | W106: 0 | X106: 0 | Y106: 0 | Z106: 0 | AA106: 0 | AB106: None | AE106: 0 | AH106: 183 | AI106: 0 | AJ106: 1 | AK106: 0 | AL106: 0 | AM106: 0 | AN106: 1.8 | AO106: 0 | AP106: 1.8 | AQ106: 0 | AR106: 0 | AS106: 0 | AT106: 0 | AU106: 0 | AV106: 0 | AW106: 0 | AX106: 0 | AY106: 0 | AZ106: 0 | BA106: 0 | BB106: 0 | BC106: 0 | BD106: 0 | BE106: 0 | BF106: 0 | BG106: 0 | BH106: 0 | BI106: 0 | BJ106: 0 | BK106: 0 | BL106: 0 | BN106: 0 | BO106: 0 | BP106: 0 | BQ106: 15 | BR106: 1 | BS106: 0 | BT106: BW2 | BU106: 50 | BV106: 0 | BW106: 0 | BX106: BV2 | BY106: 50
E107: HP | F107: LVCMOS 1.8V 12mA (Slow) | L107: No | M107: Off | N107: Low Power | Q107: 0.125 | R107: SDR | S107: 1 | T107: 0 | U107: 0 | V107: 0 | W107: 0 | X107: 0 | Y107: 0 | Z107: 0 | AA107: 0 | AB107: None | AE107: 0 | AH107: 183 | AI107: 0 | AJ107: 1 | AK107: 0 | AL107: 0 | AM107: 0 | AN107: 1.8 | AO107: 0 | AP107: 1.8 | AQ107: 0 | AR107: 0 | AS107: 0 | AT107: 0 | AU107: 0 | AV107: 0 | AW107: 0 | AX107: 0 | AY107: 0 | AZ107: 0 | BA107: 0 | BB107: 0 | BC107: 0 | BD107: 0 | BE107: 0 | BF107: 0 | BG107: 0 | BH107: 0 | BI107: 0 | BJ107: 0 | BK107: 0 | BL107: 0 | BN107: 0 | BO107: 0 | BP107: 0 | BQ107: 15 | BR107: 1 | BS107: 0 | BT107: BW2 | BU107: 50 | BV107: 0 | BW107: 0 | BX107: BV2 | BY107: 50
E108: HP | F108: LVCMOS 1.8V 12mA (Slow) | L108: No | M108: Off | N108: Low Power | Q108: 0.125 | R108: SDR | S108: 1 | T108: 0 | U108: 0 | V108: 0 | W108: 0 | X108: 0 | Y108: 0 | Z108: 0 | AA108: 0 | AB108: None | AE108: 0 | AH108: 183 | AI108: 0 | AJ108: 1 | AK108: 0 | AL108: 0 | AM108: 0 | AN108: 1.8 | AO108: 0 | AP108: 1.8 | AQ108: 0 | AR108: 0 | AS108: 0 | AT108: 0 | AU108: 0 | AV108: 0 | AW108: 0 | AX108: 0 | AY108: 0 | AZ108: 0 | BA108: 0 | BB108: 0 | BC108: 0 | BD108: 0 | BE108: 0 | BF108: 0 | BG108: 0 | BH108: 0 | BI108: 0 | BJ108: 0 | BK108: 0 | BL108: 0 | BN108: 0 | BO108: 0 | BP108: 0 | BQ108: 15 | BR108: 1 | BS108: 0 | BT108: BW2 | BU108: 50 | BV108: 0 | BW108: 0 | BX108: BV2 | BY108: 50
E109: HP | F109: LVCMOS 1.8V 12mA (Slow) | L109: No | M109: Off | N109: Low Power | Q109: 0.125 | R109: SDR | S109: 1 | T109: 0 | U109: 0 | V109: 0 | W109: 0 | X109: 0 | Y109: 0 | Z109: 0 | AA109: 0 | AB109: None | AE109: 0 | AH109: 183 | AI109: 0 | AJ109: 1 | AK109: 0 | AL109: 0 | AM109: 0 | AN109: 1.8 | AO109: 0 | AP109: 1.8 | AQ109: 0 | AR109: 0 | AS109: 0 | AT109: 0 | AU109: 0 | AV109: 0 | AW109: 0 | AX109: 0 | AY109: 0 | AZ109: 0 | BA109: 0 | BB109: 0 | BC109: 0 | BD109: 0 | BE109: 0 | BF109: 0 | BG109: 0 | BH109: 0 | BI109: 0 | BJ109: 0 | BK109: 0 | BL109: 0 | BN109: 0 | BO109: 0 | BP109: 0 | BQ109: 15 | BR109: 1 | BS109: 0 | BT109: BW2 | BU109: 50 | BV109: 0 | BW109: 0 | BX109: BV2 | BY109: 50
E110: HP | F110: LVCMOS 1.8V 12mA (Slow) | L110: No | M110: Off | N110: Low Power | Q110: 0.125 | R110: SDR | S110: 1 | T110: 0 | U110: 0 | V110: 0 | W110: =P110*IF(RIGHT(R110,1)="R",Q110*IF(R110="DDR",2,1),2) -> 0 | X110: 0 | Y110: =IF(ISERROR($AH110),0,IF(E110="HP_PD",0,MAX(0,($AS110+$AU110+$BO110)*VCCAUX/1000))) -> 0 | Z110: =IF(ISERROR($AH110),0,IF(E110="HP_PD",MAX(0,($AS110+$AU110+$BO110)*VCCAUX_IO/1000),0)) -> 0 | AA110: =IF(ISERROR($AH110),0,MAX(0,OFFSET($AJ110,0,$AJ110)+(($J110+K110)*$S110)*$BV110+$I110*OFFSET(IO_STANDARDS,$AH110,14)/1000+($AW110+$BP110)*$AN110)) -> 0 | AB110: None | AE110: =IF(ISERROR($AH110),0,IF(AB110="None",0,$BW110*(($J110+K110)*$S110))) -> 0 | AH110: 183 | AI110: =P110*IF(RIGHT(R110,1)="R",Q110*IF(R110="DDR",1,0.5),1) -> 0 | AJ110: 1 | AK110: 0 | AL110: 0 | AM110: 0 | AN110: 1.8 | AO110: 0 | AP110: 1.8 | AQ110: =IF(RIGHT($F110,6) ="(pair)",2,1)*SUM(I110:K110) -> 0 | AR110: 0 | AS110: 0 | AT110: 0 | AU110: 0 | AV110: 0 | AW110: =IF(LEFT($F110,4)="Diff",2,1)*($I110+($K110*IF($AJ110=3,1-$S110,1)))*IF(AND($AJ110=2,$O110="DIFF_TERM"),OFFSET(IO_STANDARDS,$AH110,18),IF($E110<>"HR",IF(OFFSET(IO_STANDARDS,$AH110,6)=0,0,1)*IF(AJ110=3,$AO110*500/$BY110,OFFSET(IO_STANDARDS,$AH110,11)),IF(LEFT($O110,3)="UNT",$AO110*500/$BY110,0))*(1-$T110))/1000 -> 0 | AX110: 0 | AY110: 0 | AZ110: 0 | BA110: 0 | BB110: 0 | BC110: 0 | BD110: 0 | BE110: 0 | BF110: 0 | BG110: 0 | BH110: 0 | BI110: 0 | BJ110: 0 | BK110: 0 | BL110: 0 | BN110: =(OFFSET(IODELAY_DATA,$BQ110,$BR110)*(1-$U110)*IF($AJ110=3,(1-$S110),1)+OFFSET(IODELAY_DATA,$BQ110,$BR110+1)*$AI110)*(I110+(1-S110)*K110) -> 0 | BO110: =(OFFSET(IODELAY_DATA,$BQ110,$BR110+4)*(1-$U110)*IF($AJ110=3,(1-$S110),1)+OFFSET(IODELAY_DATA,$BQ110,$BR110+5)*$AI110)*(I110+(1-S110)*K110) -> 0 | BP110: =IF(OFFSET(IO_STANDARDS,$AH110,13)=0,OFFSET(IODELAY_DATA,9+IF($AN110=VCCO18,2,IF($AN110=VCCO15,3,IF($AN110=VCCO12,4,1))),3)*(I110+(1-S110)*K110)*$AI110,0)/1000 -> 0 | BQ110: 15 | BR110: 1 | BS110: 0 | BT110: BW2 | BU110: 50 | BV110: 0 | BW110: 0 | BX110: =IF(OFFSET(IO_STANDARDS,$AH110,18)>0,"BV1:BV2",IF(OFFSET(IO_STANDARDS,$AH110,19)>0,IF(E110="HR","BV2:BV5","BV7:BV9"),"BV2")) -> BV2 | BY110: 50
E111: HP | F111: LVCMOS 1.8V 12mA (Slow) | L111: No | M111: Off | N111: Low Power | Q111: 0.125 | R111: SDR | S111: 1 | T111: 0 | U111: 0 | V111: 0 | W111: 0 | X111: 0 | Y111: 0 | Z111: 0 | AA111: 0 | AB111: None | AE111: 0 | AH111: 183 | AI111: 0 | AJ111: 1 | AK111: 0 | AL111: 0 | AM111: 0 | AN111: 1.8 | AO111: 0 | AP111: 1.8 | AQ111: 0 | AR111: 0 | AS111: 0 | AT111: 0 | AU111: 0 | AV111: 0 | AW111: 0 | AX111: 0 | AY111: 0 | AZ111: 0 | BA111: 0 | BB111: 0 | BC111: 0 | BD111: 0 | BE111: 0 | BF111: 0 | BG111: 0 | BH111: 0 | BI111: 0 | BJ111: 0 | BK111: 0 | BL111: 0 | BN111: 0 | BO111: 0 | BP111: 0 | BQ111: 15 | BR111: 1 | BS111: 0 | BT111: BW2 | BU111: 50 | BV111: 0 | BW111: 0 | BX111: BV2 | BY111: 50
E112: HP | F112: LVCMOS 1.8V 12mA (Slow) | L112: No | M112: Off | N112: Low Power | Q112: 0.125 | R112: SDR | S112: 1 | T112: 0 | U112: 0 | V112: 0 | W112: 0 | X112: 0 | Y112: 0 | Z112: 0 | AA112: 0 | AB112: None | AE112: 0 | AH112: 183 | AI112: 0 | AJ112: 1 | AK112: 0 | AL112: 0 | AM112: 0 | AN112: 1.8 | AO112: 0 | AP112: 1.8 | AQ112: 0 | AR112: 0 | AS112: 0 | AT112: 0 | AU112: 0 | AV112: 0 | AW112: 0 | AX112: 0 | AY112: 0 | AZ112: 0 | BA112: 0 | BB112: 0 | BC112: 0 | BD112: 0 | BE112: 0 | BF112: 0 | BG112: 0 | BH112: 0 | BI112: 0 | BJ112: 0 | BK112: 0 | BL112: 0 | BN112: 0 | BO112: 0 | BP112: 0 | BQ112: 15 | BR112: 1 | BS112: 0 | BT112: BW2 | BU112: 50 | BV112: 0 | BW112: 0 | BX112: BV2 | BY112: 50
E113: HP | F113: LVCMOS 1.8V 12mA (Slow) | L113: No | M113: Off | N113: Low Power | Q113: 0.125 | R113: SDR | S113: 1 | T113: 0 | U113: 0 | V113: 0 | W113: 0 | X113: 0 | Y113: 0 | Z113: 0 | AA113: 0 | AB113: None | AE113: 0 | AH113: 183 | AI113: 0 | AJ113: 1 | AK113: 0 | AL113: 0 | AM113: 0 | AN113: 1.8 | AO113: 0 | AP113: 1.8 | AQ113: 0 | AR113: 0 | AS113: 0 | AT113: 0 | AU113: 0 | AV113: 0 | AW113: 0 | AX113: 0 | AY113: 0 | AZ113: 0 | BA113: 0 | BB113: 0 | BC113: 0 | BD113: 0 | BE113: 0 | BF113: 0 | BG113: 0 | BH113: 0 | BI113: 0 | BJ113: 0 | BK113: 0 | BL113: 0 | BN113: 0 | BO113: 0 | BP113: 0 | BQ113: 15 | BR113: 1 | BS113: 0 | BT113: BW2 | BU113: 50 | BV113: 0 | BW113: 0 | BX113: BV2 | BY113: 50
E114: HP | F114: LVCMOS 1.8V 12mA (Slow) | L114: No | M114: Off | N114: Low Power | Q114: 0.125 | R114: SDR | S114: 1 | T114: 0 | U114: 0 | V114: 0 | W114: 0 | X114: 0 | Y114: 0 | Z114: 0 | AA114: 0 | AB114: None | AE114: 0 | AH114: 183 | AI114: 0 | AJ114: 1 | AK114: 0 | AL114: 0 | AM114: 0 | AN114: 1.8 | AO114: 0 | AP114: 1.8 | AQ114: 0 | AR114: 0 | AS114: 0 | AT114: 0 | AU114: 0 | AV114: 0 | AW114: 0 | AX114: 0 | AY114: 0 | AZ114: 0 | BA114: 0 | BB114: 0 | BC114: 0 | BD114: 0 | BE114: 0 | BF114: 0 | BG114: 0 | BH114: 0 | BI114: 0 | BJ114: 0 | BK114: 0 | BL114: 0 | BN114: 0 | BO114: 0 | BP114: 0 | BQ114: 15 | BR114: 1 | BS114: 0 | BT114: BW2 | BU114: 50 | BV114: 0 | BW114: 0 | BX114: BV2 | BY114: 50
E115: HP | F115: LVCMOS 1.8V 12mA (Slow) | L115: No | M115: Off | N115: Low Power | Q115: 0.125 | R115: SDR | S115: 1 | T115: 0 | U115: 0 | V115: 0 | W115: 0 | X115: 0 | Y115: 0 | Z115: 0 | AA115: 0 | AB115: None | AE115: 0 | AH115: 183 | AI115: 0 | AJ115: 1 | AK115: 0 | AL115: 0 | AM115: 0 | AN115: 1.8 | AO115: 0 | AP115: 1.8 | AQ115: 0 | AR115: 0 | AS115: 0 | AT115: 0 | AU115: 0 | AV115: 0 | AW115: 0 | AX115: 0 | AY115: 0 | AZ115: 0 | BA115: 0 | BB115: 0 | BC115: 0 | BD115: 0 | BE115: 0 | BF115: 0 | BG115: 0 | BH115: 0 | BI115: 0 | BJ115: 0 | BK115: 0 | BL115: 0 | BN115: 0 | BO115: 0 | BP115: 0 | BQ115: 15 | BR115: 1 | BS115: 0 | BT115: BW2 | BU115: 50 | BV115: 0 | BW115: 0 | BX115: BV2 | BY115: 50
E116: HP | F116: LVCMOS 1.8V 12mA (Slow) | L116: No | M116: Off | N116: Low Power | Q116: 0.125 | R116: SDR | S116: 1 | T116: 0 | U116: 0 | V116: 0 | W116: =P116*IF(RIGHT(R116,1)="R",Q116*IF(R116="DDR",2,1),2) -> 0 | X116: 0 | Y116: =IF(ISERROR($AH116),0,IF(E116="HP_PD",0,MAX(0,($AS116+$AU116+$BO116)*VCCAUX/1000))) -> 0 | Z116: =IF(ISERROR($AH116),0,IF(E116="HP_PD",MAX(0,($AS116+$AU116+$BO116)*VCCAUX_IO/1000),0)) -> 0 | AA116: =IF(ISERROR($AH116),0,MAX(0,OFFSET($AJ116,0,$AJ116)+(($J116+K116)*$S116)*$BV116+$I116*OFFSET(IO_STANDARDS,$AH116,14)/1000+($AW116+$BP116)*$AN116)) -> 0 | AB116: None | AE116: =IF(ISERROR($AH116),0,IF(AB116="None",0,$BW116*(($J116+K116)*$S116))) -> 0 | AH116: 183 | AI116: =P116*IF(RIGHT(R116,1)="R",Q116*IF(R116="DDR",1,0.5),1) -> 0 | AJ116: 1 | AK116: 0 | AL116: 0 | AM116: 0 | AN116: 1.8 | AO116: 0 | AP116: 1.8 | AQ116: =IF(RIGHT($F116,6) ="(pair)",2,1)*SUM(I116:K116) -> 0 | AR116: 0 | AS116: 0 | AT116: 0 | AU116: 0 | AV116: 0 | AW116: =IF(LEFT($F116,4)="Diff",2,1)*($I116+($K116*IF($AJ116=3,1-$S116,1)))*IF(AND($AJ116=2,$O116="DIFF_TERM"),OFFSET(IO_STANDARDS,$AH116,18),IF($E116<>"HR",IF(OFFSET(IO_STANDARDS,$AH116,6)=0,0,1)*IF(AJ116=3,$AO116*500/$BY116,OFFSET(IO_STANDARDS,$AH116,11)),IF(LEFT($O116,3)="UNT",$AO116*500/$BY116,0))*(1-$T116))/1000 -> 0 | AX116: 0 | AY116: 0 | AZ116: 0 | BA116: 0 | BB116: 0 | BC116: 0 | BD116: 0 | BE116: 0 | BF116: 0 | BG116: 0 | BH116: 0 | BI116: 0 | BJ116: 0 | BK116: 0 | BL116: 0 | BN116: =(OFFSET(IODELAY_DATA,$BQ116,$BR116)*(1-$U116)*IF($AJ116=3,(1-$S116),1)+OFFSET(IODELAY_DATA,$BQ116,$BR116+1)*$AI116)*(I116+(1-S116)*K116) -> 0 | BO116: =(OFFSET(IODELAY_DATA,$BQ116,$BR116+4)*(1-$U116)*IF($AJ116=3,(1-$S116),1)+OFFSET(IODELAY_DATA,$BQ116,$BR116+5)*$AI116)*(I116+(1-S116)*K116) -> 0 | BP116: =IF(OFFSET(IO_STANDARDS,$AH116,13)=0,OFFSET(IODELAY_DATA,9+IF($AN116=VCCO18,2,IF($AN116=VCCO15,3,IF($AN116=VCCO12,4,1))),3)*(I116+(1-S116)*K116)*$AI116,0)/1000 -> 0 | BQ116: 15 | BR116: 1 | BS116: 0 | BT116: BW2 | BU116: 50 | BV116: 0 | BW116: 0 | BX116: =IF(OFFSET(IO_STANDARDS,$AH116,18)>0,"BV1:BV2",IF(OFFSET(IO_STANDARDS,$AH116,19)>0,IF(E116="HR","BV2:BV5","BV7:BV9"),"BV2")) -> BV2 | BY116: 50
E117: HP | F117: LVCMOS 1.8V 12mA (Slow) | L117: No | M117: Off | N117: Low Power | Q117: 0.125 | R117: SDR | S117: 1 | T117: 0 | U117: 0 | V117: 0 | W117: 0 | X117: 0 | Y117: 0 | Z117: 0 | AA117: 0 | AB117: None | AE117: 0 | AH117: 183 | AI117: 0 | AJ117: 1 | AK117: 0 | AL117: 0 | AM117: 0 | AN117: 1.8 | AO117: 0 | AP117: 1.8 | AQ117: 0 | AR117: 0 | AS117: 0 | AT117: 0 | AU117: 0 | AV117: 0 | AW117: 0 | AX117: 0 | AY117: 0 | AZ117: 0 | BA117: 0 | BB117: 0 | BC117: 0 | BD117: 0 | BE117: 0 | BF117: 0 | BG117: 0 | BH117: 0 | BI117: 0 | BJ117: 0 | BK117: 0 | BL117: 0 | BN117: 0 | BO117: 0 | BP117: 0 | BQ117: 15 | BR117: 1 | BS117: 0 | BT117: BW2 | BU117: 50 | BV117: 0 | BW117: 0 | BX117: BV2 | BY117: 50
E118: HP | F118: LVCMOS 1.8V 12mA (Slow) | L118: No | M118: Off | N118: Low Power | Q118: 0.125 | R118: SDR | S118: 1 | T118: 0 | U118: 0 | V118: 0 | W118: 0 | X118: 0 | Y118: 0 | Z118: 0 | AA118: 0 | AB118: None | AE118: 0 | AH118: 183 | AI118: 0 | AJ118: 1 | AK118: 0 | AL118: 0 | AM118: 0 | AN118: 1.8 | AO118: 0 | AP118: 1.8 | AQ118: 0 | AR118: 0 | AS118: 0 | AT118: 0 | AU118: 0 | AV118: 0 | AW118: 0 | AX118: 0 | AY118: 0 | AZ118: 0 | BA118: 0 | BB118: 0 | BC118: 0 | BD118: 0 | BE118: 0 | BF118: 0 | BG118: 0 | BH118: 0 | BI118: 0 | BJ118: 0 | BK118: 0 | BL118: 0 | BN118: 0 | BO118: 0 | BP118: 0 | BQ118: 15 | BR118: 1 | BS118: 0 | BT118: BW2 | BU118: 50 | BV118: 0 | BW118: 0 | BX118: BV2 | BY118: 50
E119: HP | F119: LVCMOS 1.8V 12mA (Slow) | L119: No | M119: Off | N119: Low Power | Q119: 0.125 | R119: SDR | S119: 1 | T119: 0 | U119: 0 | V119: 0 | W119: 0 | X119: 0 | Y119: 0 | Z119: 0 | AA119: 0 | AB119: None | AE119: 0 | AH119: 183 | AI119: 0 | AJ119: 1 | AK119: 0 | AL119: 0 | AM119: 0 | AN119: 1.8 | AO119: 0 | AP119: 1.8 | AQ119: 0 | AR119: 0 | AS119: 0 | AT119: 0 | AU119: 0 | AV119: 0 | AW119: 0 | AX119: 0 | AY119: 0 | AZ119: 0 | BA119: 0 | BB119: 0 | BC119: 0 | BD119: 0 | BE119: 0 | BF119: 0 | BG119: 0 | BH119: 0 | BI119: 0 | BJ119: 0 | BK119: 0 | BL119: 0 | BN119: 0 | BO119: 0 | BP119: 0 | BQ119: 15 | BR119: 1 | BS119: 0 | BT119: BW2 | BU119: 50 | BV119: 0 | BW119: 0 | BX119: BV2 | BY119: 50
E120: HP | F120: LVCMOS 1.8V 12mA (Slow) | L120: No | M120: Off | N120: Low Power | Q120: 0.125 | R120: SDR | S120: 1 | T120: 0 | U120: 0 | V120: 0 | W120: 0 | X120: 0 | Y120: 0 | Z120: 0 | AA120: 0 | AB120: None | AE120: 0 | AH120: 183 | AI120: 0 | AJ120: 1 | AK120: 0 | AL120: 0 | AM120: 0 | AN120: 1.8 | AO120: 0 | AP120: 1.8 | AQ120: 0 | AR120: 0 | AS120: 0 | AT120: 0 | AU120: 0 | AV120: 0 | AW120: 0 | AX120: 0 | AY120: 0 | AZ120: 0 | BA120: 0 | BB120: 0 | BC120: 0 | BD120: 0 | BE120: 0 | BF120: 0 | BG120: 0 | BH120: 0 | BI120: 0 | BJ120: 0 | BK120: 0 | BL120: 0 | BN120: 0 | BO120: 0 | BP120: 0 | BQ120: 15 | BR120: 1 | BS120: 0 | BT120: BW2 | BU120: 50 | BV120: 0 | BW120: 0 | BX120: BV2 | BY120: 50
E121: HP | F121: LVCMOS 1.8V 12mA (Slow) | L121: No | M121: Off | N121: Low Power | Q121: 0.125 | R121: SDR | S121: 1 | T121: 0 | U121: 0 | V121: 0 | W121: 0 | X121: 0 | Y121: 0 | Z121: 0 | AA121: 0 | AB121: None | AE121: 0 | AH121: 183 | AI121: 0 | AJ121: 1 | AK121: 0 | AL121: 0 | AM121: 0 | AN121: 1.8 | AO121: 0 | AP121: 1.8 | AQ121: 0 | AR121: 0 | AS121: 0 | AT121: 0 | AU121: 0 | AV121: 0 | AW121: 0 | AX121: 0 | AY121: 0 | AZ121: 0 | BA121: 0 | BB121: 0 | BC121: 0 | BD121: 0 | BE121: 0 | BF121: 0 | BG121: 0 | BH121: 0 | BI121: 0 | BJ121: 0 | BK121: 0 | BL121: 0 | BN121: 0 | BO121: 0 | BP121: 0 | BQ121: 15 | BR121: 1 | BS121: 0 | BT121: BW2 | BU121: 50 | BV121: 0 | BW121: 0 | BX121: BV2 | BY121: 50
E122: HP | F122: LVCMOS 1.8V 12mA (Slow) | L122: No | M122: Off | N122: Low Power | Q122: 0.125 | R122: SDR | S122: 1 | T122: 0 | U122: 0 | V122: 0 | W122: =P122*IF(RIGHT(R122,1)="R",Q122*IF(R122="DDR",2,1),2) -> 0 | X122: 0 | Y122: =IF(ISERROR($AH122),0,IF(E122="HP_PD",0,MAX(0,($AS122+$AU122+$BO122)*VCCAUX/1000))) -> 0 | Z122: =IF(ISERROR($AH122),0,IF(E122="HP_PD",MAX(0,($AS122+$AU122+$BO122)*VCCAUX_IO/1000),0)) -> 0 | AA122: =IF(ISERROR($AH122),0,MAX(0,OFFSET($AJ122,0,$AJ122)+(($J122+K122)*$S122)*$BV122+$I122*OFFSET(IO_STANDARDS,$AH122,14)/1000+($AW122+$BP122)*$AN122)) -> 0 | AB122: None | AE122: =IF(ISERROR($AH122),0,IF(AB122="None",0,$BW122*(($J122+K122)*$S122))) -> 0 | AH122: 183 | AI122: =P122*IF(RIGHT(R122,1)="R",Q122*IF(R122="DDR",1,0.5),1) -> 0 | AJ122: 1 | AK122: 0 | AL122: 0 | AM122: 0 | AN122: 1.8 | AO122: 0 | AP122: 1.8 | AQ122: =IF(RIGHT($F122,6) ="(pair)",2,1)*SUM(I122:K122) -> 0 | AR122: 0 | AS122: 0 | AT122: 0 | AU122: 0 | AV122: 0 | AW122: =IF(LEFT($F122,4)="Diff",2,1)*($I122+($K122*IF($AJ122=3,1-$S122,1)))*IF(AND($AJ122=2,$O122="DIFF_TERM"),OFFSET(IO_STANDARDS,$AH122,18),IF($E122<>"HR",IF(OFFSET(IO_STANDARDS,$AH122,6)=0,0,1)*IF(AJ122=3,$AO122*500/$BY122,OFFSET(IO_STANDARDS,$AH122,11)),IF(LEFT($O122,3)="UNT",$AO122*500/$BY122,0))*(1-$T122))/1000 -> 0 | AX122: 0 | AY122: 0 | AZ122: 0 | BA122: 0 | BB122: 0 | BC122: 0 | BD122: 0 | BE122: 0 | BF122: 0 | BG122: 0 | BH122: 0 | BI122: 0 | BJ122: 0 | BK122: 0 | BL122: 0 | BN122: =(OFFSET(IODELAY_DATA,$BQ122,$BR122)*(1-$U122)*IF($AJ122=3,(1-$S122),1)+OFFSET(IODELAY_DATA,$BQ122,$BR122+1)*$AI122)*(I122+(1-S122)*K122) -> 0 | BO122: =(OFFSET(IODELAY_DATA,$BQ122,$BR122+4)*(1-$U122)*IF($AJ122=3,(1-$S122),1)+OFFSET(IODELAY_DATA,$BQ122,$BR122+5)*$AI122)*(I122+(1-S122)*K122) -> 0 | BP122: =IF(OFFSET(IO_STANDARDS,$AH122,13)=0,OFFSET(IODELAY_DATA,9+IF($AN122=VCCO18,2,IF($AN122=VCCO15,3,IF($AN122=VCCO12,4,1))),3)*(I122+(1-S122)*K122)*$AI122,0)/1000 -> 0 | BQ122: 15 | BR122: 1 | BS122: 0 | BT122: BW2 | BU122: 50 | BV122: 0 | BW122: 0 | BX122: =IF(OFFSET(IO_STANDARDS,$AH122,18)>0,"BV1:BV2",IF(OFFSET(IO_STANDARDS,$AH122,19)>0,IF(E122="HR","BV2:BV5","BV7:BV9"),"BV2")) -> BV2 | BY122: 50
E123: HP | F123: LVCMOS 1.8V 12mA (Slow) | L123: No | M123: Off | N123: Low Power | Q123: 0.125 | R123: SDR | S123: 1 | T123: 0 | U123: 0 | V123: 0 | W123: 0 | X123: 0 | Y123: 0 | Z123: 0 | AA123: 0 | AB123: None | AE123: 0 | AH123: 183 | AI123: 0 | AJ123: 1 | AK123: 0 | AL123: 0 | AM123: 0 | AN123: 1.8 | AO123: 0 | AP123: 1.8 | AQ123: 0 | AR123: 0 | AS123: 0 | AT123: 0 | AU123: 0 | AV123: 0 | AW123: 0 | AX123: 0 | AY123: 0 | AZ123: 0 | BA123: 0 | BB123: 0 | BC123: 0 | BD123: 0 | BE123: 0 | BF123: 0 | BG123: 0 | BH123: 0 | BI123: 0 | BJ123: 0 | BK123: 0 | BL123: 0 | BN123: 0 | BO123: 0 | BP123: 0 | BQ123: 15 | BR123: 1 | BS123: 0 | BT123: BW2 | BU123: 50 | BV123: 0 | BW123: 0 | BX123: BV2 | BY123: 50
E124: HP | F124: LVCMOS 1.8V 12mA (Slow) | L124: No | M124: Off | N124: Low Power | Q124: 0.125 | R124: SDR | S124: 1 | T124: 0 | U124: 0 | V124: 0 | W124: 0 | X124: 0 | Y124: 0 | Z124: 0 | AA124: 0 | AB124: None | AE124: 0 | AH124: 183 | AI124: 0 | AJ124: 1 | AK124: 0 | AL124: 0 | AM124: 0 | AN124: 1.8 | AO124: 0 | AP124: 1.8 | AQ124: 0 | AR124: 0 | AS124: 0 | AT124: 0 | AU124: 0 | AV124: 0 | AW124: 0 | AX124: 0 | AY124: 0 | AZ124: 0 | BA124: 0 | BB124: 0 | BC124: 0 | BD124: 0 | BE124: 0 | BF124: 0 | BG124: 0 | BH124: 0 | BI124: 0 | BJ124: 0 | BK124: 0 | BL124: 0 | BN124: 0 | BO124: 0 | BP124: 0 | BQ124: 15 | BR124: 1 | BS124: 0 | BT124: BW2 | BU124: 50 | BV124: 0 | BW124: 0 | BX124: BV2 | BY124: 50
E125: HP | F125: LVCMOS 1.8V 12mA (Slow) | L125: No | M125: Off | N125: Low Power | Q125: 0.125 | R125: SDR | S125: 1 | T125: 0 | U125: 0 | V125: 0 | W125: 0 | X125: 0 | Y125: 0 | Z125: 0 | AA125: 0 | AB125: None | AE125: 0 | AH125: 183 | AI125: 0 | AJ125: 1 | AK125: 0 | AL125: 0 | AM125: 0 | AN125: 1.8 | AO125: 0 | AP125: 1.8 | AQ125: 0 | AR125: 0 | AS125: 0 | AT125: 0 | AU125: 0 | AV125: 0 | AW125: 0 | AX125: 0 | AY125: 0 | AZ125: 0 | BA125: 0 | BB125: 0 | BC125: 0 | BD125: 0 | BE125: 0 | BF125: 0 | BG125: 0 | BH125: 0 | BI125: 0 | BJ125: 0 | BK125: 0 | BL125: 0 | BN125: 0 | BO125: 0 | BP125: 0 | BQ125: 15 | BR125: 1 | BS125: 0 | BT125: BW2 | BU125: 50 | BV125: 0 | BW125: 0 | BX125: BV2 | BY125: 50
E126: HP | F126: LVCMOS 1.8V 12mA (Slow) | L126: No | M126: Off | N126: Low Power | Q126: 0.125 | R126: SDR | S126: 1 | T126: 0 | U126: 0 | V126: 0 | W126: 0 | X126: 0 | Y126: 0 | Z126: 0 | AA126: 0 | AB126: None | AE126: 0 | AH126: 183 | AI126: 0 | AJ126: 1 | AK126: 0 | AL126: 0 | AM126: 0 | AN126: 1.8 | AO126: 0 | AP126: 1.8 | AQ126: 0 | AR126: 0 | AS126: 0 | AT126: 0 | AU126: 0 | AV126: 0 | AW126: 0 | AX126: 0 | AY126: 0 | AZ126: 0 | BA126: 0 | BB126: 0 | BC126: 0 | BD126: 0 | BE126: 0 | BF126: 0 | BG126: 0 | BH126: 0 | BI126: 0 | BJ126: 0 | BK126: 0 | BL126: 0 | BN126: 0 | BO126: 0 | BP126: 0 | BQ126: 15 | BR126: 1 | BS126: 0 | BT126: BW2 | BU126: 50 | BV126: 0 | BW126: 0 | BX126: BV2 | BY126: 50
E127: HP | F127: LVCMOS 1.8V 12mA (Slow) | L127: No | M127: Off | N127: Low Power | Q127: 0.125 | R127: SDR | S127: 1 | T127: 0 | U127: 0 | V127: 0 | W127: 0 | X127: 0 | Y127: 0 | Z127: 0 | AA127: 0 | AB127: None | AE127: 0 | AH127: 183 | AI127: 0 | AJ127: 1 | AK127: 0 | AL127: 0 | AM127: 0 | AN127: 1.8 | AO127: 0 | AP127: 1.8 | AQ127: 0 | AR127: 0 | AS127: 0 | AT127: 0 | AU127: 0 | AV127: 0 | AW127: 0 | AX127: 0 | AY127: 0 | AZ127: 0 | BA127: 0 | BB127: 0 | BC127: 0 | BD127: 0 | BE127: 0 | BF127: 0 | BG127: 0 | BH127: 0 | BI127: 0 | BJ127: 0 | BK127: 0 | BL127: 0 | BN127: 0 | BO127: 0 | BP127: 0 | BQ127: 15 | BR127: 1 | BS127: 0 | BT127: BW2 | BU127: 50 | BV127: 0 | BW127: 0 | BX127: BV2 | BY127: 50
E128: HP | F128: LVCMOS 1.8V 12mA (Slow) | L128: No | M128: Off | N128: Low Power | Q128: 0.125 | R128: SDR | S128: 1 | T128: 0 | U128: 0 | V128: 0 | W128: =P128*IF(RIGHT(R128,1)="R",Q128*IF(R128="DDR",2,1),2) -> 0 | X128: 0 | Y128: =IF(ISERROR($AH128),0,IF(E128="HP_PD",0,MAX(0,($AS128+$AU128+$BO128)*VCCAUX/1000))) -> 0 | Z128: =IF(ISERROR($AH128),0,IF(E128="HP_PD",MAX(0,($AS128+$AU128+$BO128)*VCCAUX_IO/1000),0)) -> 0 | AA128: =IF(ISERROR($AH128),0,MAX(0,OFFSET($AJ128,0,$AJ128)+(($J128+K128)*$S128)*$BV128+$I128*OFFSET(IO_STANDARDS,$AH128,14)/1000+($AW128+$BP128)*$AN128)) -> 0 | AB128: None | AE128: =IF(ISERROR($AH128),0,IF(AB128="None",0,$BW128*(($J128+K128)*$S128))) -> 0 | AH128: 183 | AI128: =P128*IF(RIGHT(R128,1)="R",Q128*IF(R128="DDR",1,0.5),1) -> 0 | AJ128: 1 | AK128: 0 | AL128: 0 | AM128: 0 | AN128: 1.8 | AO128: 0 | AP128: 1.8 | AQ128: =IF(RIGHT($F128,6) ="(pair)",2,1)*SUM(I128:K128) -> 0 | AR128: 0 | AS128: 0 | AT128: 0 | AU128: 0 | AV128: 0 | AW128: =IF(LEFT($F128,4)="Diff",2,1)*($I128+($K128*IF($AJ128=3,1-$S128,1)))*IF(AND($AJ128=2,$O128="DIFF_TERM"),OFFSET(IO_STANDARDS,$AH128,18),IF($E128<>"HR",IF(OFFSET(IO_STANDARDS,$AH128,6)=0,0,1)*IF(AJ128=3,$AO128*500/$BY128,OFFSET(IO_STANDARDS,$AH128,11)),IF(LEFT($O128,3)="UNT",$AO128*500/$BY128,0))*(1-$T128))/1000 -> 0 | AX128: 0 | AY128: 0 | AZ128: 0 | BA128: 0 | BB128: 0 | BC128: 0 | BD128: 0 | BE128: 0 | BF128: 0 | BG128: 0 | BH128: 0 | BI128: 0 | BJ128: 0 | BK128: 0 | BL128: 0 | BN128: =(OFFSET(IODELAY_DATA,$BQ128,$BR128)*(1-$U128)*IF($AJ128=3,(1-$S128),1)+OFFSET(IODELAY_DATA,$BQ128,$BR128+1)*$AI128)*(I128+(1-S128)*K128) -> 0 | BO128: =(OFFSET(IODELAY_DATA,$BQ128,$BR128+4)*(1-$U128)*IF($AJ128=3,(1-$S128),1)+OFFSET(IODELAY_DATA,$BQ128,$BR128+5)*$AI128)*(I128+(1-S128)*K128) -> 0 | BP128: =IF(OFFSET(IO_STANDARDS,$AH128,13)=0,OFFSET(IODELAY_DATA,9+IF($AN128=VCCO18,2,IF($AN128=VCCO15,3,IF($AN128=VCCO12,4,1))),3)*(I128+(1-S128)*K128)*$AI128,0)/1000 -> 0 | BQ128: 15 | BR128: 1 | BS128: 0 | BT128: BW2 | BU128: 50 | BV128: 0 | BW128: 0 | BX128: =IF(OFFSET(IO_STANDARDS,$AH128,18)>0,"BV1:BV2",IF(OFFSET(IO_STANDARDS,$AH128,19)>0,IF(E128="HR","BV2:BV5","BV7:BV9"),"BV2")) -> BV2 | BY128: 50
E129: HP | F129: LVCMOS 1.8V 12mA (Slow) | L129: No | M129: Off | N129: Low Power | Q129: 0.125 | R129: SDR | S129: 1 | T129: 0 | U129: 0 | V129: 0 | W129: 0 | X129: 0 | Y129: 0 | Z129: 0 | AA129: 0 | AB129: None | AE129: 0 | AH129: 183 | AI129: 0 | AJ129: 1 | AK129: 0 | AL129: 0 | AM129: 0 | AN129: 1.8 | AO129: 0 | AP129: 1.8 | AQ129: 0 | AR129: 0 | AS129: 0 | AT129: 0 | AU129: 0 | AV129: 0 | AW129: 0 | AX129: 0 | AY129: 0 | AZ129: 0 | BA129: 0 | BB129: 0 | BC129: 0 | BD129: 0 | BE129: 0 | BF129: 0 | BG129: 0 | BH129: 0 | BI129: 0 | BJ129: 0 | BK129: 0 | BL129: 0 | BN129: 0 | BO129: 0 | BP129: 0 | BQ129: 15 | BR129: 1 | BS129: 0 | BT129: BW2 | BU129: 50 | BV129: 0 | BW129: 0 | BX129: BV2 | BY129: 50
E130: HP | F130: LVCMOS 1.8V 12mA (Slow) | L130: No | M130: Off | N130: Low Power | Q130: 0.125 | R130: SDR | S130: 1 | T130: 0 | U130: 0 | V130: 0 | W130: 0 | X130: 0 | Y130: 0 | Z130: 0 | AA130: 0 | AB130: None | AE130: 0 | AH130: 183 | AI130: 0 | AJ130: 1 | AK130: 0 | AL130: 0 | AM130: 0 | AN130: 1.8 | AO130: 0 | AP130: 1.8 | AQ130: 0 | AR130: 0 | AS130: 0 | AT130: 0 | AU130: 0 | AV130: 0 | AW130: 0 | AX130: 0 | AY130: 0 | AZ130: 0 | BA130: 0 | BB130: 0 | BC130: 0 | BD130: 0 | BE130: 0 | BF130: 0 | BG130: 0 | BH130: 0 | BI130: 0 | BJ130: 0 | BK130: 0 | BL130: 0 | BN130: 0 | BO130: 0 | BP130: 0 | BQ130: 15 | BR130: 1 | BS130: 0 | BT130: BW2 | BU130: 50 | BV130: 0 | BW130: 0 | BX130: BV2 | BY130: 50
E131: HP | F131: LVCMOS 1.8V 12mA (Slow) | L131: No | M131: Off | N131: Low Power | Q131: 0.125 | R131: SDR | S131: 1 | T131: 0 | U131: 0 | V131: 0 | W131: 0 | X131: 0 | Y131: 0 | Z131: 0 | AA131: 0 | AB131: None | AE131: 0 | AH131: 183 | AI131: 0 | AJ131: 1 | AK131: 0 | AL131: 0 | AM131: 0 | AN131: 1.8 | AO131: 0 | AP131: 1.8 | AQ131: 0 | AR131: 0 | AS131: 0 | AT131: 0 | AU131: 0 | AV131: 0 | AW131: 0 | AX131: 0 | AY131: 0 | AZ131: 0 | BA131: 0 | BB131: 0 | BC131: 0 | BD131: 0 | BE131: 0 | BF131: 0 | BG131: 0 | BH131: 0 | BI131: 0 | BJ131: 0 | BK131: 0 | BL131: 0 | BN131: 0 | BO131: 0 | BP131: 0 | BQ131: 15 | BR131: 1 | BS131: 0 | BT131: BW2 | BU131: 50 | BV131: 0 | BW131: 0 | BX131: BV2 | BY131: 50
E132: HP | F132: LVCMOS 1.8V 12mA (Slow) | L132: No | M132: Off | N132: Low Power | Q132: 0.125 | R132: SDR | S132: 1 | T132: 0 | U132: 0 | V132: 0 | W132: 0 | X132: 0 | Y132: 0 | Z132: 0 | AA132: 0 | AB132: None | AE132: 0 | AH132: 183 | AI132: 0 | AJ132: 1 | AK132: 0 | AL132: 0 | AM132: 0 | AN132: 1.8 | AO132: 0 | AP132: 1.8 | AQ132: 0 | AR132: 0 | AS132: 0 | AT132: 0 | AU132: 0 | AV132: 0 | AW132: 0 | AX132: 0 | AY132: 0 | AZ132: 0 | BA132: 0 | BB132: 0 | BC132: 0 | BD132: 0 | BE132: 0 | BF132: 0 | BG132: 0 | BH132: 0 | BI132: 0 | BJ132: 0 | BK132: 0 | BL132: 0 | BN132: 0 | BO132: 0 | BP132: 0 | BQ132: 15 | BR132: 1 | BS132: 0 | BT132: BW2 | BU132: 50 | BV132: 0 | BW132: 0 | BX132: BV2 | BY132: 50
E133: HP | F133: LVCMOS 1.8V 12mA (Slow) | L133: No | M133: Off | N133: Low Power | Q133: 0.125 | R133: SDR | S133: 1 | T133: 0 | U133: 0 | V133: 0 | W133: 0 | X133: 0 | Y133: 0 | Z133: 0 | AA133: 0 | AB133: None | AE133: 0 | AH133: 183 | AI133: 0 | AJ133: 1 | AK133: 0 | AL133: 0 | AM133: 0 | AN133: 1.8 | AO133: 0 | AP133: 1.8 | AQ133: 0 | AR133: 0 | AS133: 0 | AT133: 0 | AU133: 0 | AV133: 0 | AW133: 0 | AX133: 0 | AY133: 0 | AZ133: 0 | BA133: 0 | BB133: 0 | BC133: 0 | BD133: 0 | BE133: 0 | BF133: 0 | BG133: 0 | BH133: 0 | BI133: 0 | BJ133: 0 | BK133: 0 | BL133: 0 | BN133: 0 | BO133: 0 | BP133: 0 | BQ133: 15 | BR133: 1 | BS133: 0 | BT133: BW2 | BU133: 50 | BV133: 0 | BW133: 0 | BX133: BV2 | BY133: 50
E134: HP | F134: LVCMOS 1.8V 12mA (Slow) | L134: No | M134: Off | N134: Low Power | Q134: 0.125 | R134: SDR | S134: 1 | T134: 0 | U134: 0 | V134: 0 | W134: =P134*IF(RIGHT(R134,1)="R",Q134*IF(R134="DDR",2,1),2) -> 0 | X134: 0 | Y134: =IF(ISERROR($AH134),0,IF(E134="HP_PD",0,MAX(0,($AS134+$AU134+$BO134)*VCCAUX/1000))) -> 0 | Z134: =IF(ISERROR($AH134),0,IF(E134="HP_PD",MAX(0,($AS134+$AU134+$BO134)*VCCAUX_IO/1000),0)) -> 0 | AA134: =IF(ISERROR($AH134),0,MAX(0,OFFSET($AJ134,0,$AJ134)+(($J134+K134)*$S134)*$BV134+$I134*OFFSET(IO_STANDARDS,$AH134,14)/1000+($AW134+$BP134)*$AN134)) -> 0 | AB134: None | AE134: =IF(ISERROR($AH134),0,IF(AB134="None",0,$BW134*(($J134+K134)*$S134))) -> 0 | AH134: 183 | AI134: =P134*IF(RIGHT(R134,1)="R",Q134*IF(R134="DDR",1,0.5),1) -> 0 | AJ134: 1 | AK134: 0 | AL134: 0 | AM134: 0 | AN134: 1.8 | AO134: 0 | AP134: 1.8 | AQ134: =IF(RIGHT($F134,6) ="(pair)",2,1)*SUM(I134:K134) -> 0 | AR134: 0 | AS134: 0 | AT134: 0 | AU134: 0 | AV134: 0 | AW134: =IF(LEFT($F134,4)="Diff",2,1)*($I134+($K134*IF($AJ134=3,1-$S134,1)))*IF(AND($AJ134=2,$O134="DIFF_TERM"),OFFSET(IO_STANDARDS,$AH134,18),IF($E134<>"HR",IF(OFFSET(IO_STANDARDS,$AH134,6)=0,0,1)*IF(AJ134=3,$AO134*500/$BY134,OFFSET(IO_STANDARDS,$AH134,11)),IF(LEFT($O134,3)="UNT",$AO134*500/$BY134,0))*(1-$T134))/1000 -> 0 | AX134: 0 | AY134: 0 | AZ134: 0 | BA134: 0 | BB134: 0 | BC134: 0 | BD134: 0 | BE134: 0 | BF134: 0 | BG134: 0 | BH134: 0 | BI134: 0 | BJ134: 0 | BK134: 0 | BL134: 0 | BN134: =(OFFSET(IODELAY_DATA,$BQ134,$BR134)*(1-$U134)*IF($AJ134=3,(1-$S134),1)+OFFSET(IODELAY_DATA,$BQ134,$BR134+1)*$AI134)*(I134+(1-S134)*K134) -> 0 | BO134: =(OFFSET(IODELAY_DATA,$BQ134,$BR134+4)*(1-$U134)*IF($AJ134=3,(1-$S134),1)+OFFSET(IODELAY_DATA,$BQ134,$BR134+5)*$AI134)*(I134+(1-S134)*K134) -> 0 | BP134: =IF(OFFSET(IO_STANDARDS,$AH134,13)=0,OFFSET(IODELAY_DATA,9+IF($AN134=VCCO18,2,IF($AN134=VCCO15,3,IF($AN134=VCCO12,4,1))),3)*(I134+(1-S134)*K134)*$AI134,0)/1000 -> 0 | BQ134: 15 | BR134: 1 | BS134: 0 | BT134: BW2 | BU134: 50 | BV134: 0 | BW134: 0 | BX134: =IF(OFFSET(IO_STANDARDS,$AH134,18)>0,"BV1:BV2",IF(OFFSET(IO_STANDARDS,$AH134,19)>0,IF(E134="HR","BV2:BV5","BV7:BV9"),"BV2")) -> BV2 | BY134: 50
E135: HP | F135: LVCMOS 1.8V 12mA (Slow) | L135: No | M135: Off | N135: Low Power | Q135: 0.125 | R135: SDR | S135: 1 | T135: 0 | U135: 0 | V135: 0 | W135: 0 | X135: 0 | Y135: 0 | Z135: 0 | AA135: 0 | AB135: None | AE135: 0 | AH135: 183 | AI135: 0 | AJ135: 1 | AK135: 0 | AL135: 0 | AM135: 0 | AN135: 1.8 | AO135: 0 | AP135: 1.8 | AQ135: 0 | AR135: 0 | AS135: 0 | AT135: 0 | AU135: 0 | AV135: 0 | AW135: 0 | AX135: 0 | AY135: 0 | AZ135: 0 | BA135: 0 | BB135: 0 | BC135: 0 | BD135: 0 | BE135: 0 | BF135: 0 | BG135: 0 | BH135: 0 | BI135: 0 | BJ135: 0 | BK135: 0 | BL135: 0 | BN135: 0 | BO135: 0 | BP135: 0 | BQ135: 15 | BR135: 1 | BS135: 0 | BT135: BW2 | BU135: 50 | BV135: 0 | BW135: 0 | BX135: BV2 | BY135: 50
E136: HP | F136: LVCMOS 1.8V 12mA (Slow) | L136: No | M136: Off | N136: Low Power | Q136: 0.125 | R136: SDR | S136: 1 | T136: 0 | U136: 0 | V136: 0 | W136: 0 | X136: 0 | Y136: 0 | Z136: 0 | AA136: 0 | AB136: None | AE136: 0 | AH136: 183 | AI136: 0 | AJ136: 1 | AK136: 0 | AL136: 0 | AM136: 0 | AN136: 1.8 | AO136: 0 | AP136: 1.8 | AQ136: 0 | AR136: 0 | AS136: 0 | AT136: 0 | AU136: 0 | AV136: 0 | AW136: 0 | AX136: 0 | AY136: 0 | AZ136: 0 | BA136: 0 | BB136: 0 | BC136: 0 | BD136: 0 | BE136: 0 | BF136: 0 | BG136: 0 | BH136: 0 | BI136: 0 | BJ136: 0 | BK136: 0 | BL136: 0 | BN136: 0 | BO136: 0 | BP136: 0 | BQ136: 15 | BR136: 1 | BS136: 0 | BT136: BW2 | BU136: 50 | BV136: 0 | BW136: 0 | BX136: BV2 | BY136: 50
E137: HP | F137: LVCMOS 1.8V 12mA (Slow) | L137: No | M137: Off | N137: Low Power | Q137: 0.125 | R137: SDR | S137: 1 | T137: 0 | U137: 0 | V137: 0 | W137: 0 | X137: 0 | Y137: 0 | Z137: 0 | AA137: 0 | AB137: None | AE137: 0 | AH137: 183 | AI137: 0 | AJ137: 1 | AK137: 0 | AL137: 0 | AM137: 0 | AN137: 1.8 | AO137: 0 | AP137: 1.8 | AQ137: 0 | AR137: 0 | AS137: 0 | AT137: 0 | AU137: 0 | AV137: 0 | AW137: 0 | AX137: 0 | AY137: 0 | AZ137: 0 | BA137: 0 | BB137: 0 | BC137: 0 | BD137: 0 | BE137: 0 | BF137: 0 | BG137: 0 | BH137: 0 | BI137: 0 | BJ137: 0 | BK137: 0 | BL137: 0 | BN137: 0 | BO137: 0 | BP137: 0 | BQ137: 15 | BR137: 1 | BS137: 0 | BT137: BW2 | BU137: 50 | BV137: 0 | BW137: 0 | BX137: BV2 | BY137: 50
E138: HP | F138: LVCMOS 1.8V 12mA (Slow) | L138: No | M138: Off | N138: Low Power | Q138: 0.125 | R138: SDR | S138: 1 | T138: 0 | U138: 0 | V138: 0 | W138: 0 | X138: 0 | Y138: 0 | Z138: 0 | AA138: 0 | AB138: None | AE138: 0 | AH138: 183 | AI138: 0 | AJ138: 1 | AK138: 0 | AL138: 0 | AM138: 0 | AN138: 1.8 | AO138: 0 | AP138: 1.8 | AQ138: 0 | AR138: 0 | AS138: 0 | AT138: 0 | AU138: 0 | AV138: 0 | AW138: 0 | AX138: 0 | AY138: 0 | AZ138: 0 | BA138: 0 | BB138: 0 | BC138: 0 | BD138: 0 | BE138: 0 | BF138: 0 | BG138: 0 | BH138: 0 | BI138: 0 | BJ138: 0 | BK138: 0 | BL138: 0 | BN138: 0 | BO138: 0 | BP138: 0 | BQ138: 15 | BR138: 1 | BS138: 0 | BT138: BW2 | BU138: 50 | BV138: 0 | BW138: 0 | BX138: BV2 | BY138: 50
E139: HP | F139: LVCMOS 1.8V 12mA (Slow) | L139: No | M139: Off | N139: Low Power | Q139: 0.125 | R139: SDR | S139: 1 | T139: 0 | U139: 0 | V139: 0 | W139: 0 | X139: 0 | Y139: 0 | Z139: 0 | AA139: 0 | AB139: None | AE139: 0 | AH139: 183 | AI139: 0 | AJ139: 1 | AK139: 0 | AL139: 0 | AM139: 0 | AN139: 1.8 | AO139: 0 | AP139: 1.8 | AQ139: 0 | AR139: 0 | AS139: 0 | AT139: 0 | AU139: 0 | AV139: 0 | AW139: 0 | AX139: 0 | AY139: 0 | AZ139: 0 | BA139: 0 | BB139: 0 | BC139: 0 | BD139: 0 | BE139: 0 | BF139: 0 | BG139: 0 | BH139: 0 | BI139: 0 | BJ139: 0 | BK139: 0 | BL139: 0 | BN139: 0 | BO139: 0 | BP139: 0 | BQ139: 15 | BR139: 1 | BS139: 0 | BT139: BW2 | BU139: 50 | BV139: 0 | BW139: 0 | BX139: BV2 | BY139: 50
E140: HP | F140: LVCMOS 1.8V 12mA (Slow) | L140: No | M140: Off | N140: Low Power | Q140: 0.125 | R140: SDR | S140: 1 | T140: 0 | U140: 0 | V140: 0 | W140: =P140*IF(RIGHT(R140,1)="R",Q140*IF(R140="DDR",2,1),2) -> 0 | X140: 0 | Y140: =IF(ISERROR($AH140),0,IF(E140="HP_PD",0,MAX(0,($AS140+$AU140+$BO140)*VCCAUX/1000))) -> 0 | Z140: =IF(ISERROR($AH140),0,IF(E140="HP_PD",MAX(0,($AS140+$AU140+$BO140)*VCCAUX_IO/1000),0)) -> 0 | AA140: =IF(ISERROR($AH140),0,MAX(0,OFFSET($AJ140,0,$AJ140)+(($J140+K140)*$S140)*$BV140+$I140*OFFSET(IO_STANDARDS,$AH140,14)/1000+($AW140+$BP140)*$AN140)) -> 0 | AB140: None | AE140: =IF(ISERROR($AH140),0,IF(AB140="None",0,$BW140*(($J140+K140)*$S140))) -> 0 | AH140: 183 | AI140: =P140*IF(RIGHT(R140,1)="R",Q140*IF(R140="DDR",1,0.5),1) -> 0 | AJ140: 1 | AK140: 0 | AL140: 0 | AM140: 0 | AN140: 1.8 | AO140: 0 | AP140: 1.8 | AQ140: =IF(RIGHT($F140,6) ="(pair)",2,1)*SUM(I140:K140) -> 0 | AR140: 0 | AS140: 0 | AT140: 0 | AU140: 0 | AV140: 0 | AW140: =IF(LEFT($F140,4)="Diff",2,1)*($I140+($K140*IF($AJ140=3,1-$S140,1)))*IF(AND($AJ140=2,$O140="DIFF_TERM"),OFFSET(IO_STANDARDS,$AH140,18),IF($E140<>"HR",IF(OFFSET(IO_STANDARDS,$AH140,6)=0,0,1)*IF(AJ140=3,$AO140*500/$BY140,OFFSET(IO_STANDARDS,$AH140,11)),IF(LEFT($O140,3)="UNT",$AO140*500/$BY140,0))*(1-$T140))/1000 -> 0 | AX140: 0 | AY140: 0 | AZ140: 0 | BA140: 0 | BB140: 0 | BC140: 0 | BD140: 0 | BE140: 0 | BF140: 0 | BG140: 0 | BH140: 0 | BI140: 0 | BJ140: 0 | BK140: 0 | BL140: 0 | BN140: =(OFFSET(IODELAY_DATA,$BQ140,$BR140)*(1-$U140)*IF($AJ140=3,(1-$S140),1)+OFFSET(IODELAY_DATA,$BQ140,$BR140+1)*$AI140)*(I140+(1-S140)*K140) -> 0 | BO140: =(OFFSET(IODELAY_DATA,$BQ140,$BR140+4)*(1-$U140)*IF($AJ140=3,(1-$S140),1)+OFFSET(IODELAY_DATA,$BQ140,$BR140+5)*$AI140)*(I140+(1-S140)*K140) -> 0 | BP140: =IF(OFFSET(IO_STANDARDS,$AH140,13)=0,OFFSET(IODELAY_DATA,9+IF($AN140=VCCO18,2,IF($AN140=VCCO15,3,IF($AN140=VCCO12,4,1))),3)*(I140+(1-S140)*K140)*$AI140,0)/1000 -> 0 | BQ140: 15 | BR140: 1 | BS140: 0 | BT140: BW2 | BU140: 50 | BV140: 0 | BW140: 0 | BX140: =IF(OFFSET(IO_STANDARDS,$AH140,18)>0,"BV1:BV2",IF(OFFSET(IO_STANDARDS,$AH140,19)>0,IF(E140="HR","BV2:BV5","BV7:BV9"),"BV2")) -> BV2 | BY140: 50
E141: HP | F141: LVCMOS 1.8V 12mA (Slow) | L141: No | M141: Off | N141: Low Power | Q141: 0.125 | R141: SDR | S141: 1 | T141: 0 | U141: 0 | V141: 0 | W141: 0 | X141: 0 | Y141: 0 | Z141: 0 | AA141: 0 | AB141: None | AE141: 0 | AH141: 183 | AI141: 0 | AJ141: 1 | AK141: 0 | AL141: 0 | AM141: 0 | AN141: 1.8 | AO141: 0 | AP141: 1.8 | AQ141: 0 | AR141: 0 | AS141: 0 | AT141: 0 | AU141: 0 | AV141: 0 | AW141: 0 | AX141: 0 | AY141: 0 | AZ141: 0 | BA141: 0 | BB141: 0 | BC141: 0 | BD141: 0 | BE141: 0 | BF141: 0 | BG141: 0 | BH141: 0 | BI141: 0 | BJ141: 0 | BK141: 0 | BL141: 0 | BN141: 0 | BO141: 0 | BP141: 0 | BQ141: 15 | BR141: 1 | BS141: 0 | BT141: BW2 | BU141: 50 | BV141: 0 | BW141: 0 | BX141: BV2 | BY141: 50
E142: HP | F142: LVCMOS 1.8V 12mA (Slow) | L142: No | M142: Off | N142: Low Power | Q142: 0.125 | R142: SDR | S142: 1 | T142: 0 | U142: 0 | V142: 0 | W142: 0 | X142: 0 | Y142: 0 | Z142: 0 | AA142: 0 | AB142: None | AE142: 0 | AH142: 183 | AI142: 0 | AJ142: 1 | AK142: 0 | AL142: 0 | AM142: 0 | AN142: 1.8 | AO142: 0 | AP142: 1.8 | AQ142: 0 | AR142: 0 | AS142: 0 | AT142: 0 | AU142: 0 | AV142: 0 | AW142: 0 | AX142: 0 | AY142: 0 | AZ142: 0 | BA142: 0 | BB142: 0 | BC142: 0 | BD142: 0 | BE142: 0 | BF142: 0 | BG142: 0 | BH142: 0 | BI142: 0 | BJ142: 0 | BK142: 0 | BL142: 0 | BN142: 0 | BO142: 0 | BP142: 0 | BQ142: 15 | BR142: 1 | BS142: 0 | BT142: BW2 | BU142: 50 | BV142: 0 | BW142: 0 | BX142: BV2 | BY142: 50
E143: HP | F143: LVCMOS 1.8V 12mA (Slow) | L143: No | M143: Off | N143: Low Power | Q143: 0.125 | R143: SDR | S143: 1 | T143: 0 | U143: 0 | V143: 0 | W143: 0 | X143: 0 | Y143: 0 | Z143: 0 | AA143: 0 | AB143: None | AE143: 0 | AH143: 183 | AI143: 0 | AJ143: 1 | AK143: 0 | AL143: 0 | AM143: 0 | AN143: 1.8 | AO143: 0 | AP143: 1.8 | AQ143: 0 | AR143: 0 | AS143: 0 | AT143: 0 | AU143: 0 | AV143: 0 | AW143: 0 | AX143: 0 | AY143: 0 | AZ143: 0 | BA143: 0 | BB143: 0 | BC143: 0 | BD143: 0 | BE143: 0 | BF143: 0 | BG143: 0 | BH143: 0 | BI143: 0 | BJ143: 0 | BK143: 0 | BL143: 0 | BN143: 0 | BO143: 0 | BP143: 0 | BQ143: 15 | BR143: 1 | BS143: 0 | BT143: BW2 | BU143: 50 | BV143: 0 | BW143: 0 | BX143: BV2 | BY143: 50
E144: HP | F144: LVCMOS 1.8V 12mA (Slow) | L144: No | M144: Off | N144: Low Power | Q144: 0.125 | R144: SDR | S144: 1 | T144: 0 | U144: 0 | V144: 0 | W144: 0 | X144: 0 | Y144: 0 | Z144: 0 | AA144: 0 | AB144: None | AE144: 0 | AH144: 183 | AI144: 0 | AJ144: 1 | AK144: 0 | AL144: 0 | AM144: 0 | AN144: 1.8 | AO144: 0 | AP144: 1.8 | AQ144: 0 | AR144: 0 | AS144: 0 | AT144: 0 | AU144: 0 | AV144: 0 | AW144: 0 | AX144: 0 | AY144: 0 | AZ144: 0 | BA144: 0 | BB144: 0 | BC144: 0 | BD144: 0 | BE144: 0 | BF144: 0 | BG144: 0 | BH144: 0 | BI144: 0 | BJ144: 0 | BK144: 0 | BL144: 0 | BN144: 0 | BO144: 0 | BP144: 0 | BQ144: 15 | BR144: 1 | BS144: 0 | BT144: BW2 | BU144: 50 | BV144: 0 | BW144: 0 | BX144: BV2 | BY144: 50
E145: HP | F145: LVCMOS 1.8V 12mA (Slow) | L145: No | M145: Off | N145: Low Power | Q145: 0.125 | R145: SDR | S145: 1 | T145: 0 | U145: 0 | V145: 0 | W145: 0 | X145: 0 | Y145: 0 | Z145: 0 | AA145: 0 | AB145: None | AE145: 0 | AH145: 183 | AI145: 0 | AJ145: 1 | AK145: 0 | AL145: 0 | AM145: 0 | AN145: 1.8 | AO145: 0 | AP145: 1.8 | AQ145: 0 | AR145: 0 | AS145: 0 | AT145: 0 | AU145: 0 | AV145: 0 | AW145: 0 | AX145: 0 | AY145: 0 | AZ145: 0 | BA145: 0 | BB145: 0 | BC145: 0 | BD145: 0 | BE145: 0 | BF145: 0 | BG145: 0 | BH145: 0 | BI145: 0 | BJ145: 0 | BK145: 0 | BL145: 0 | BN145: 0 | BO145: 0 | BP145: 0 | BQ145: 15 | BR145: 1 | BS145: 0 | BT145: BW2 | BU145: 50 | BV145: 0 | BW145: 0 | BX145: BV2 | BY145: 50
E146: HP | F146: LVCMOS 1.8V 12mA (Slow) | L146: No | M146: Off | N146: Low Power | Q146: 0.125 | R146: SDR | S146: 1 | T146: 0 | U146: 0 | V146: 0 | W146: =P146*IF(RIGHT(R146,1)="R",Q146*IF(R146="DDR",2,1),2) -> 0 | X146: 0 | Y146: =IF(ISERROR($AH146),0,IF(E146="HP_PD",0,MAX(0,($AS146+$AU146+$BO146)*VCCAUX/1000))) -> 0 | Z146: =IF(ISERROR($AH146),0,IF(E146="HP_PD",MAX(0,($AS146+$AU146+$BO146)*VCCAUX_IO/1000),0)) -> 0 | AA146: =IF(ISERROR($AH146),0,MAX(0,OFFSET($AJ146,0,$AJ146)+(($J146+K146)*$S146)*$BV146+$I146*OFFSET(IO_STANDARDS,$AH146,14)/1000+($AW146+$BP146)*$AN146)) -> 0 | AB146: None | AE146: =IF(ISERROR($AH146),0,IF(AB146="None",0,$BW146*(($J146+K146)*$S146))) -> 0 | AH146: 183 | AI146: =P146*IF(RIGHT(R146,1)="R",Q146*IF(R146="DDR",1,0.5),1) -> 0 | AJ146: 1 | AK146: 0 | AL146: 0 | AM146: 0 | AN146: 1.8 | AO146: 0 | AP146: 1.8 | AQ146: =IF(RIGHT($F146,6) ="(pair)",2,1)*SUM(I146:K146) -> 0 | AR146: 0 | AS146: 0 | AT146: 0 | AU146: 0 | AV146: 0 | AW146: =IF(LEFT($F146,4)="Diff",2,1)*($I146+($K146*IF($AJ146=3,1-$S146,1)))*IF(AND($AJ146=2,$O146="DIFF_TERM"),OFFSET(IO_STANDARDS,$AH146,18),IF($E146<>"HR",IF(OFFSET(IO_STANDARDS,$AH146,6)=0,0,1)*IF(AJ146=3,$AO146*500/$BY146,OFFSET(IO_STANDARDS,$AH146,11)),IF(LEFT($O146,3)="UNT",$AO146*500/$BY146,0))*(1-$T146))/1000 -> 0 | AX146: 0 | AY146: 0 | AZ146: 0 | BA146: 0 | BB146: 0 | BC146: 0 | BD146: 0 | BE146: 0 | BF146: 0 | BG146: 0 | BH146: 0 | BI146: 0 | BJ146: 0 | BK146: 0 | BL146: 0 | BN146: =(OFFSET(IODELAY_DATA,$BQ146,$BR146)*(1-$U146)*IF($AJ146=3,(1-$S146),1)+OFFSET(IODELAY_DATA,$BQ146,$BR146+1)*$AI146)*(I146+(1-S146)*K146) -> 0 | BO146: =(OFFSET(IODELAY_DATA,$BQ146,$BR146+4)*(1-$U146)*IF($AJ146=3,(1-$S146),1)+OFFSET(IODELAY_DATA,$BQ146,$BR146+5)*$AI146)*(I146+(1-S146)*K146) -> 0 | BP146: =IF(OFFSET(IO_STANDARDS,$AH146,13)=0,OFFSET(IODELAY_DATA,9+IF($AN146=VCCO18,2,IF($AN146=VCCO15,3,IF($AN146=VCCO12,4,1))),3)*(I146+(1-S146)*K146)*$AI146,0)/1000 -> 0 | BQ146: 15 | BR146: 1 | BS146: 0 | BT146: BW2 | BU146: 50 | BV146: 0 | BW146: 0 | BX146: =IF(OFFSET(IO_STANDARDS,$AH146,18)>0,"BV1:BV2",IF(OFFSET(IO_STANDARDS,$AH146,19)>0,IF(E146="HR","BV2:BV5","BV7:BV9"),"BV2")) -> BV2 | BY146: 50
E147: HP | F147: LVCMOS 1.8V 12mA (Slow) | L147: No | M147: Off | N147: Low Power | Q147: 0.125 | R147: SDR | S147: 1 | T147: 0 | U147: =$T147 -> 0 | V147: 0 | W147: 0 | X147: =IF(ISERROR($AH147),0,VCCINT/1000*VCCINT_N*(IF($L147="No",0,$P147*$AQ147*OFFSET(IODELAY_DATA,9,3))+BS147+AY147+BN147)) -> 0 | Y147: 0 | Z147: 0 | AA147: 0 | AB147: None | AE147: 0 | AH147: 183 | AI147: 0 | AJ147: =IF(AND($K147>0,$E147="HR",OFFSET(IO_STANDARDS,$AH147,19)>0),3,OFFSET(IO_STANDARDS,$AH147,2)) -> 1 | AK147: =((OFFSET(IO_STANDARDS,$AH147,3)*$AN147+IF(OFFSET(IO_STANDARDS,$AH147,10)=0,$V147,$V147/2)*$AP147)*($J147+$K147)*$AP147*$AI147*$S147)/1000000 -> 0 | AL147: =MAX(0,(OFFSET(IO_STANDARDS,$AH147,3)*($J147+$K147)*$AN147*$AN147*$AI147*$S147/1000000)) -> 0 | AM147: =((OFFSET(IO_STANDARDS,$AH147,3)*$AN147+IF(OFFSET(IO_STANDARDS,$AH147,10)=0,$V147,$V147/2)*$AP147)*($J147+$K147)*$AP147*$AI147*$S147)/1000000 -> 0 | AN147: =IF(ISERROR($AH147),0,OFFSET(IO_STANDARDS,$AH147,1)) -> 1.8 | AO147: =IF(OFFSET(IO_STANDARDS,$AH147,9)=0,0,IF(OR(LEFT($F147,14)="HSTL Class III",LEFT($F147,13)="HSTL Class IV",LEFT($F147,3)="GTL"),$AN147,$AN147/2)) -> 0 | AP147: =IF((OFFSET(IO_STANDARDS,$AH147,8) - OFFSET(IO_STANDARDS,$AH147,9)) =0,$AN147,(OFFSET(IO_STANDARDS,$AH147,8) - OFFSET(IO_STANDARDS,$AH147,9))) -> 1.8 | AQ147: 0 | AR147: =IF($M147="Off",0,$AI147*OFFSET(IODELAY_DATA,2,3)*$AQ147) -> 0 | AS147: 0 | AT147: =OFFSET(IO_STANDARDS,$AH147,7)*$AI147*$S147*($J147+$K147)/1000 -> 0 | AU147: =OFFSET(IO_STANDARDS,$AH147,4)*$AI147*$S147*($J147+$K147) -> 0 | AV147: =((($I147+$K147*(1-$S147))*OFFSET(IO_STANDARDS,$AH147,11)) + ((($J147+$K147)*$S147)*OFFSET(IO_STANDARDS,$AH147,10)))/1000 + $AX147 -> 0 | AW147: 0 | AX147: =IF(IF(LEFT($F147,5)="LVDCI",$J147+$K147,SUM($I147:$K147))>0,((OFFSET(IO_STANDARDS,$AH147,6)*IF(AND($I147+$K147>0,OFFSET(IO_STANDARDS,$AH147,6)<1),100,1)*INT((SUM($I147:$K147)+50)/50))/1000),0) -> 0 | AY147: =IF($L147="No",0,$AI147*(OFFSET(IODELAY_DATA,IF($L147="Yes",3,5),3)*(I147+(1-S147)*K147) + OFFSET(IODELAY_DATA,IF($L147="Yes",4,5),3)*(J147+S147*K147)))+IF($M147="Off",0,$AI147*OFFSET(IODELAY_DATA,2,3)*$AQ147) -> 0 | AZ147: =IF(OR($J147+$K147=0,$AJ147<>2),0,OFFSET(IODELAY_DATA,IF($E147="HR",27,26),1)*INT((SUM($I147:$K147)+50)/50)/1000) -> 0 | BA147: 0 | BB147: 0 | BC147: 0 | BD147: 0 | BE147: 0 | BF147: 0 | BG147: =IF(ISERROR($AH147),0,IF($AN147=VCCO33,$AE147/$AN147,0)) -> 0 | BH147: =IF(ISERROR($AH147),0,IF($AN147=VCCO25,$AE147/$AN147,0)) -> 0 | BI147: =IF(ISERROR($AH147),0,IF($AN147=VCCO18,$AE147/$AN147,0)) -> 0 | BJ147: =IF(ISERROR($AH147),0,IF($AN147=VCCO15,$AE147/$AN147,0)) -> 0 | BK147: =IF(ISERROR($AH147),0,IF($AN147=VCCO135,$AE147/$AN147,0)) -> 0 | BL147: =IF(ISERROR($AH147),0,IF($AN147=VCCO12,$AE147/$AN147,0)) -> 0 | BN147: 0 | BO147: 0 | BP147: 0 | BQ147: =IF($E147="HR",22,15)+IF(OFFSET(IO_STANDARDS,$AH147,5)=0,0,IF(ISERR(FIND("pair",OFFSET(IO_STANDARDS,$AH147,0))),1,2))+IF($E147="HP_PD",2,0) -> 15 | BR147: 1 | BS147: =$AI147*2*OFFSET(FANOUT,3,6)*$AQ147 -> 0 | BT147: =IF(OR($AJ147=2,LEFT($F147,4)="Diff"),"BW1:BW2",IF(OFFSET(IO_STANDARDS,$AH147,8)=0,"BW2",IF(AND($J147=2,$F147="HSTL Class I 1.2V"),"BW1:BW5","BW2:BW5"))) -> BW2 | BU147: 50 | BV147: =IF(OR(NOT(ISTEXT($AB147)),$AB147="None",$AB147="Differential"),OFFSET(IO_STANDARDS,$AH147,13)/1000,(($AN147-OFFSET(IO_STANDARDS,$AH147,8))*(ABS($AO147-OFFSET(IO_STANDARDS,$AH147,8))/$BU147)+OFFSET(IO_STANDARDS,$AH147,9)*($AO147-OFFSET(IO_STANDARDS,$AH147,9))/$BU147)/2) -> 0 | BW147: =IF($BV147<=0,0,MAX(0,$BV147*OFFSET(IO_STANDARDS,$AH147,1)*OFFSET(IO_STANDARDS,$AH147,10)/OFFSET(IO_STANDARDS,$AH147,13)-$BV147)) -> 0 | BX147: BV2 | BY147: 50
E148: HP | F148: LVCMOS 1.8V 12mA (Slow) | L148: No | M148: Off | N148: Low Power | Q148: 0.125 | R148: SDR | S148: 1 | T148: 0 | U148: 0 | V148: 0 | W148: 0 | X148: 0 | Y148: 0 | Z148: 0 | AA148: 0 | AB148: None | AE148: 0 | AH148: 183 | AI148: 0 | AJ148: 1 | AK148: 0 | AL148: 0 | AM148: 0 | AN148: 1.8 | AO148: 0 | AP148: 1.8 | AQ148: 0 | AR148: 0 | AS148: 0 | AT148: 0 | AU148: 0 | AV148: 0 | AW148: 0 | AX148: 0 | AY148: 0 | AZ148: 0 | BA148: 0 | BB148: 0 | BC148: 0 | BD148: 0 | BE148: 0 | BF148: 0 | BG148: 0 | BH148: 0 | BI148: 0 | BJ148: 0 | BK148: 0 | BL148: 0 | BN148: 0 | BO148: 0 | BP148: 0 | BQ148: 15 | BR148: 1 | BS148: 0 | BT148: BW2 | BU148: 50 | BV148: 0 | BW148: 0 | BX148: BV2 | BY148: =IF(LEN($O148)<5,50,IF(LEFT($O148,3)="DCI",MID($O148,5,2),IF(ISNUMBER(RIGHT($O148,2)),RIGHT($O148,2),50))) -> 50
E149: HP | F149: LVCMOS 1.8V 12mA (Slow) | L149: No | M149: Off | N149: Low Power | Q149: 0.125 | R149: SDR | S149: 1 | T149: 0 | U149: 0 | V149: 0 | W149: 0 | X149: 0 | Y149: 0 | Z149: 0 | AA149: 0 | AB149: None | AE149: 0 | AH149: 183 | AI149: 0 | AJ149: 1 | AK149: 0 | AL149: 0 | AM149: 0 | AN149: 1.8 | AO149: 0 | AP149: 1.8 | AQ149: 0 | AR149: 0 | AS149: 0 | AT149: 0 | AU149: 0 | AV149: 0 | AW149: 0 | AX149: 0 | AY149: 0 | AZ149: 0 | BA149: 0 | BB149: 0 | BC149: 0 | BD149: 0 | BE149: 0 | BF149: 0 | BG149: 0 | BH149: 0 | BI149: 0 | BJ149: 0 | BK149: 0 | BL149: 0 | BN149: 0 | BO149: 0 | BP149: 0 | BQ149: 15 | BR149: 1 | BS149: 0 | BT149: BW2 | BU149: 50 | BV149: 0 | BW149: 0 | BX149: BV2 | BY149: 50
E150: HP | F150: LVCMOS 1.8V 12mA (Slow) | L150: No | M150: Off | N150: Low Power | Q150: 0.125 | R150: SDR | S150: 1 | T150: 0 | U150: 0 | V150: 0 | W150: 0 | X150: 0 | Y150: 0 | Z150: 0 | AA150: 0 | AB150: None | AE150: 0 | AH150: 183 | AI150: 0 | AJ150: 1 | AK150: 0 | AL150: 0 | AM150: 0 | AN150: 1.8 | AO150: 0 | AP150: 1.8 | AQ150: 0 | AR150: 0 | AS150: 0 | AT150: 0 | AU150: 0 | AV150: 0 | AW150: 0 | AX150: 0 | AY150: 0 | AZ150: 0 | BA150: 0 | BB150: 0 | BC150: 0 | BD150: 0 | BE150: 0 | BF150: 0 | BG150: 0 | BH150: 0 | BI150: 0 | BJ150: 0 | BK150: 0 | BL150: 0 | BN150: 0 | BO150: 0 | BP150: 0 | BQ150: 15 | BR150: 1 | BS150: 0 | BT150: BW2 | BU150: 50 | BV150: 0 | BW150: 0 | BX150: BV2 | BY150: 50
E151: HP | F151: LVCMOS 1.8V 12mA (Slow) | L151: No | M151: Off | N151: Low Power | Q151: 0.125 | R151: SDR | S151: 1 | T151: 0 | U151: 0 | V151: 0 | W151: 0 | X151: 0 | Y151: 0 | Z151: 0 | AA151: 0 | AB151: None | AE151: 0 | AH151: 183 | AI151: 0 | AJ151: 1 | AK151: 0 | AL151: 0 | AM151: 0 | AN151: 1.8 | AO151: 0 | AP151: 1.8 | AQ151: 0 | AR151: 0 | AS151: 0 | AT151: 0 | AU151: 0 | AV151: 0 | AW151: 0 | AX151: 0 | AY151: 0 | AZ151: 0 | BA151: 0 | BB151: 0 | BC151: 0 | BD151: 0 | BE151: 0 | BF151: 0 | BG151: 0 | BH151: 0 | BI151: 0 | BJ151: 0 | BK151: 0 | BL151: 0 | BN151: 0 | BO151: 0 | BP151: 0 | BQ151: 15 | BR151: 1 | BS151: 0 | BT151: BW2 | BU151: 50 | BV151: 0 | BW151: 0 | BX151: BV2 | BY151: 50
E152: HP | F152: LVCMOS 1.8V 12mA (Slow) | L152: No | M152: Off | N152: Low Power | Q152: 0.125 | R152: SDR | S152: 1 | T152: 0 | U152: 0 | V152: 0 | W152: =P152*IF(RIGHT(R152,1)="R",Q152*IF(R152="DDR",2,1),2) -> 0 | X152: 0 | Y152: =IF(ISERROR($AH152),0,IF(E152="HP_PD",0,MAX(0,($AS152+$AU152+$BO152)*VCCAUX/1000))) -> 0 | Z152: =IF(ISERROR($AH152),0,IF(E152="HP_PD",MAX(0,($AS152+$AU152+$BO152)*VCCAUX_IO/1000),0)) -> 0 | AA152: =IF(ISERROR($AH152),0,MAX(0,OFFSET($AJ152,0,$AJ152)+(($J152+K152)*$S152)*$BV152+$I152*OFFSET(IO_STANDARDS,$AH152,14)/1000+($AW152+$BP152)*$AN152)) -> 0 | AB152: None | AE152: =IF(ISERROR($AH152),0,IF(AB152="None",0,$BW152*(($J152+K152)*$S152))) -> 0 | AH152: 183 | AI152: =P152*IF(RIGHT(R152,1)="R",Q152*IF(R152="DDR",1,0.5),1) -> 0 | AJ152: 1 | AK152: 0 | AL152: 0 | AM152: 0 | AN152: 1.8 | AO152: 0 | AP152: 1.8 | AQ152: =IF(RIGHT($F152,6) ="(pair)",2,1)*SUM(I152:K152) -> 0 | AR152: 0 | AS152: 0 | AT152: 0 | AU152: 0 | AV152: 0 | AW152: =IF(LEFT($F152,4)="Diff",2,1)*($I152+($K152*IF($AJ152=3,1-$S152,1)))*IF(AND($AJ152=2,$O152="DIFF_TERM"),OFFSET(IO_STANDARDS,$AH152,18),IF($E152<>"HR",IF(OFFSET(IO_STANDARDS,$AH152,6)=0,0,1)*IF(AJ152=3,$AO152*500/$BY152,OFFSET(IO_STANDARDS,$AH152,11)),IF(LEFT($O152,3)="UNT",$AO152*500/$BY152,0))*(1-$T152))/1000 -> 0 | AX152: 0 | AY152: 0 | AZ152: 0 | BA152: 0 | BB152: 0 | BC152: 0 | BD152: 0 | BE152: 0 | BF152: 0 | BG152: 0 | BH152: 0 | BI152: 0 | BJ152: 0 | BK152: 0 | BL152: 0 | BN152: =(OFFSET(IODELAY_DATA,$BQ152,$BR152)*(1-$U152)*IF($AJ152=3,(1-$S152),1)+OFFSET(IODELAY_DATA,$BQ152,$BR152+1)*$AI152)*(I152+(1-S152)*K152) -> 0 | BO152: =(OFFSET(IODELAY_DATA,$BQ152,$BR152+4)*(1-$U152)*IF($AJ152=3,(1-$S152),1)+OFFSET(IODELAY_DATA,$BQ152,$BR152+5)*$AI152)*(I152+(1-S152)*K152) -> 0 | BP152: =IF(OFFSET(IO_STANDARDS,$AH152,13)=0,OFFSET(IODELAY_DATA,9+IF($AN152=VCCO18,2,IF($AN152=VCCO15,3,IF($AN152=VCCO12,4,1))),3)*(I152+(1-S152)*K152)*$AI152,0)/1000 -> 0 | BQ152: 15 | BR152: 1 | BS152: 0 | BT152: BW2 | BU152: 50 | BV152: 0 | BW152: 0 | BX152: =IF(OFFSET(IO_STANDARDS,$AH152,18)>0,"BV1:BV2",IF(OFFSET(IO_STANDARDS,$AH152,19)>0,IF(E152="HR","BV2:BV5","BV7:BV9"),"BV2")) -> BV2 | BY152: 50
E153: HP | F153: LVCMOS 1.8V 12mA (Slow) | L153: No | M153: Off | N153: Low Power | Q153: 0.125 | R153: SDR | S153: 1 | T153: 0 | U153: 0 | V153: 0 | W153: 0 | X153: 0 | Y153: 0 | Z153: 0 | AA153: 0 | AB153: None | AE153: 0 | AH153: 183 | AI153: 0 | AJ153: 1 | AK153: 0 | AL153: 0 | AM153: 0 | AN153: 1.8 | AO153: 0 | AP153: 1.8 | AQ153: 0 | AR153: 0 | AS153: 0 | AT153: 0 | AU153: 0 | AV153: 0 | AW153: 0 | AX153: 0 | AY153: 0 | AZ153: 0 | BA153: 0 | BB153: 0 | BC153: 0 | BD153: 0 | BE153: 0 | BF153: 0 | BG153: 0 | BH153: 0 | BI153: 0 | BJ153: 0 | BK153: 0 | BL153: 0 | BN153: 0 | BO153: 0 | BP153: 0 | BQ153: 15 | BR153: 1 | BS153: 0 | BT153: BW2 | BU153: 50 | BV153: 0 | BW153: 0 | BX153: BV2 | BY153: 50
E154: HP | F154: LVCMOS 1.8V 12mA (Slow) | L154: No | M154: Off | N154: Low Power | Q154: 0.125 | R154: SDR | S154: 1 | T154: 0 | U154: 0 | V154: 0 | W154: 0 | X154: 0 | Y154: 0 | Z154: 0 | AA154: 0 | AB154: None | AE154: 0 | AH154: 183 | AI154: 0 | AJ154: 1 | AK154: 0 | AL154: 0 | AM154: 0 | AN154: 1.8 | AO154: 0 | AP154: 1.8 | AQ154: 0 | AR154: 0 | AS154: 0 | AT154: 0 | AU154: 0 | AV154: 0 | AW154: 0 | AX154: 0 | AY154: 0 | AZ154: 0 | BA154: 0 | BB154: 0 | BC154: 0 | BD154: 0 | BE154: 0 | BF154: 0 | BG154: 0 | BH154: 0 | BI154: 0 | BJ154: 0 | BK154: 0 | BL154: 0 | BN154: 0 | BO154: 0 | BP154: 0 | BQ154: 15 | BR154: 1 | BS154: 0 | BT154: BW2 | BU154: 50 | BV154: 0 | BW154: 0 | BX154: BV2 | BY154: 50
E155: HP | F155: LVCMOS 1.8V 12mA (Slow) | L155: No | M155: Off | N155: Low Power | Q155: 0.125 | R155: SDR | S155: 1 | T155: 0 | U155: 0 | V155: 0 | W155: 0 | X155: 0 | Y155: 0 | Z155: 0 | AA155: 0 | AB155: None | AE155: 0 | AH155: 183 | AI155: 0 | AJ155: 1 | AK155: 0 | AL155: 0 | AM155: 0 | AN155: 1.8 | AO155: 0 | AP155: 1.8 | AQ155: 0 | AR155: 0 | AS155: 0 | AT155: 0 | AU155: 0 | AV155: 0 | AW155: 0 | AX155: 0 | AY155: 0 | AZ155: 0 | BA155: 0 | BB155: 0 | BC155: 0 | BD155: 0 | BE155: 0 | BF155: 0 | BG155: 0 | BH155: 0 | BI155: 0 | BJ155: 0 | BK155: 0 | BL155: 0 | BN155: 0 | BO155: 0 | BP155: 0 | BQ155: 15 | BR155: 1 | BS155: 0 | BT155: BW2 | BU155: 50 | BV155: 0 | BW155: 0 | BX155: BV2 | BY155: 50
E156: HP | F156: LVCMOS 1.8V 12mA (Slow) | L156: No | M156: Off | N156: Low Power | Q156: 0.125 | R156: SDR | S156: 1 | T156: 0 | U156: 0 | V156: 0 | W156: 0 | X156: 0 | Y156: 0 | Z156: 0 | AA156: 0 | AB156: None | AE156: 0 | AH156: 183 | AI156: 0 | AJ156: 1 | AK156: 0 | AL156: 0 | AM156: 0 | AN156: 1.8 | AO156: 0 | AP156: 1.8 | AQ156: 0 | AR156: 0 | AS156: 0 | AT156: 0 | AU156: 0 | AV156: 0 | AW156: 0 | AX156: 0 | AY156: 0 | AZ156: 0 | BA156: 0 | BB156: 0 | BC156: 0 | BD156: 0 | BE156: 0 | BF156: 0 | BG156: 0 | BH156: 0 | BI156: 0 | BJ156: 0 | BK156: 0 | BL156: 0 | BN156: 0 | BO156: 0 | BP156: 0 | BQ156: 15 | BR156: 1 | BS156: 0 | BT156: BW2 | BU156: 50 | BV156: 0 | BW156: 0 | BX156: BV2 | BY156: 50
E157: HP | F157: LVCMOS 1.8V 12mA (Slow) | L157: No | M157: Off | N157: Low Power | Q157: 0.125 | R157: SDR | S157: 1 | T157: 0 | U157: 0 | V157: 0 | W157: 0 | X157: 0 | Y157: 0 | Z157: 0 | AA157: 0 | AB157: None | AE157: 0 | AH157: 183 | AI157: 0 | AJ157: 1 | AK157: 0 | AL157: 0 | AM157: 0 | AN157: 1.8 | AO157: 0 | AP157: 1.8 | AQ157: 0 | AR157: 0 | AS157: 0 | AT157: 0 | AU157: 0 | AV157: 0 | AW157: 0 | AX157: 0 | AY157: 0 | AZ157: 0 | BA157: 0 | BB157: 0 | BC157: 0 | BD157: 0 | BE157: 0 | BF157: 0 | BG157: 0 | BH157: 0 | BI157: 0 | BJ157: 0 | BK157: 0 | BL157: 0 | BN157: 0 | BO157: 0 | BP157: 0 | BQ157: 15 | BR157: 1 | BS157: 0 | BT157: BW2 | BU157: 50 | BV157: 0 | BW157: 0 | BX157: BV2 | BY157: 50
E158: HP | F158: LVCMOS 1.8V 12mA (Slow) | L158: No | M158: Off | N158: Low Power | Q158: 0.125 | R158: SDR | S158: 1 | T158: 0 | U158: 0 | V158: 0 | W158: =P158*IF(RIGHT(R158,1)="R",Q158*IF(R158="DDR",2,1),2) -> 0 | X158: 0 | Y158: =IF(ISERROR($AH158),0,IF(E158="HP_PD",0,MAX(0,($AS158+$AU158+$BO158)*VCCAUX/1000))) -> 0 | Z158: =IF(ISERROR($AH158),0,IF(E158="HP_PD",MAX(0,($AS158+$AU158+$BO158)*VCCAUX_IO/1000),0)) -> 0 | AA158: =IF(ISERROR($AH158),0,MAX(0,OFFSET($AJ158,0,$AJ158)+(($J158+K158)*$S158)*$BV158+$I158*OFFSET(IO_STANDARDS,$AH158,14)/1000+($AW158+$BP158)*$AN158)) -> 0 | AB158: None | AE158: =IF(ISERROR($AH158),0,IF(AB158="None",0,$BW158*(($J158+K158)*$S158))) -> 0 | AH158: 183 | AI158: =P158*IF(RIGHT(R158,1)="R",Q158*IF(R158="DDR",1,0.5),1) -> 0 | AJ158: 1 | AK158: 0 | AL158: 0 | AM158: 0 | AN158: 1.8 | AO158: 0 | AP158: 1.8 | AQ158: =IF(RIGHT($F158,6) ="(pair)",2,1)*SUM(I158:K158) -> 0 | AR158: 0 | AS158: 0 | AT158: 0 | AU158: 0 | AV158: 0 | AW158: =IF(LEFT($F158,4)="Diff",2,1)*($I158+($K158*IF($AJ158=3,1-$S158,1)))*IF(AND($AJ158=2,$O158="DIFF_TERM"),OFFSET(IO_STANDARDS,$AH158,18),IF($E158<>"HR",IF(OFFSET(IO_STANDARDS,$AH158,6)=0,0,1)*IF(AJ158=3,$AO158*500/$BY158,OFFSET(IO_STANDARDS,$AH158,11)),IF(LEFT($O158,3)="UNT",$AO158*500/$BY158,0))*(1-$T158))/1000 -> 0 | AX158: 0 | AY158: 0 | AZ158: 0 | BA158: 0 | BB158: 0 | BC158: 0 | BD158: 0 | BE158: 0 | BF158: 0 | BG158: 0 | BH158: 0 | BI158: 0 | BJ158: 0 | BK158: 0 | BL158: 0 | BN158: =(OFFSET(IODELAY_DATA,$BQ158,$BR158)*(1-$U158)*IF($AJ158=3,(1-$S158),1)+OFFSET(IODELAY_DATA,$BQ158,$BR158+1)*$AI158)*(I158+(1-S158)*K158) -> 0 | BO158: =(OFFSET(IODELAY_DATA,$BQ158,$BR158+4)*(1-$U158)*IF($AJ158=3,(1-$S158),1)+OFFSET(IODELAY_DATA,$BQ158,$BR158+5)*$AI158)*(I158+(1-S158)*K158) -> 0 | BP158: =IF(OFFSET(IO_STANDARDS,$AH158,13)=0,OFFSET(IODELAY_DATA,9+IF($AN158=VCCO18,2,IF($AN158=VCCO15,3,IF($AN158=VCCO12,4,1))),3)*(I158+(1-S158)*K158)*$AI158,0)/1000 -> 0 | BQ158: 15 | BR158: 1 | BS158: 0 | BT158: BW2 | BU158: 50 | BV158: 0 | BW158: 0 | BX158: =IF(OFFSET(IO_STANDARDS,$AH158,18)>0,"BV1:BV2",IF(OFFSET(IO_STANDARDS,$AH158,19)>0,IF(E158="HR","BV2:BV5","BV7:BV9"),"BV2")) -> BV2 | BY158: 50
E159: HP | F159: LVCMOS 1.8V 12mA (Slow) | L159: No | M159: Off | N159: Low Power | Q159: 0.125 | R159: SDR | S159: 1 | T159: 0 | U159: 0 | V159: 0 | W159: 0 | X159: 0 | Y159: 0 | Z159: 0 | AA159: 0 | AB159: None | AE159: 0 | AH159: 183 | AI159: 0 | AJ159: 1 | AK159: 0 | AL159: 0 | AM159: 0 | AN159: 1.8 | AO159: 0 | AP159: 1.8 | AQ159: 0 | AR159: 0 | AS159: 0 | AT159: 0 | AU159: 0 | AV159: 0 | AW159: 0 | AX159: 0 | AY159: 0 | AZ159: 0 | BA159: 0 | BB159: 0 | BC159: 0 | BD159: 0 | BE159: 0 | BF159: 0 | BG159: 0 | BH159: 0 | BI159: 0 | BJ159: 0 | BK159: 0 | BL159: 0 | BN159: 0 | BO159: 0 | BP159: 0 | BQ159: 15 | BR159: 1 | BS159: 0 | BT159: BW2 | BU159: 50 | BV159: 0 | BW159: 0 | BX159: BV2 | BY159: 50
E160: HP | F160: LVCMOS 1.8V 12mA (Slow) | L160: No | M160: Off | N160: Low Power | Q160: 0.125 | R160: SDR | S160: 1 | T160: 0 | U160: 0 | V160: 0 | W160: 0 | X160: 0 | Y160: 0 | Z160: 0 | AA160: 0 | AB160: None | AE160: 0 | AH160: 183 | AI160: 0 | AJ160: 1 | AK160: 0 | AL160: 0 | AM160: 0 | AN160: 1.8 | AO160: 0 | AP160: 1.8 | AQ160: 0 | AR160: 0 | AS160: 0 | AT160: 0 | AU160: 0 | AV160: 0 | AW160: 0 | AX160: 0 | AY160: 0 | AZ160: 0 | BA160: 0 | BB160: 0 | BC160: 0 | BD160: 0 | BE160: 0 | BF160: 0 | BG160: 0 | BH160: 0 | BI160: 0 | BJ160: 0 | BK160: 0 | BL160: 0 | BN160: 0 | BO160: 0 | BP160: 0 | BQ160: 15 | BR160: 1 | BS160: 0 | BT160: BW2 | BU160: 50 | BV160: 0 | BW160: 0 | BX160: BV2 | BY160: 50
E161: HP | F161: LVCMOS 1.8V 12mA (Slow) | L161: No | M161: Off | N161: Low Power | Q161: 0.125 | R161: SDR | S161: 1 | T161: 0 | U161: 0 | V161: 0 | W161: 0 | X161: 0 | Y161: 0 | Z161: 0 | AA161: 0 | AB161: None | AE161: 0 | AH161: 183 | AI161: 0 | AJ161: 1 | AK161: 0 | AL161: 0 | AM161: 0 | AN161: 1.8 | AO161: 0 | AP161: 1.8 | AQ161: 0 | AR161: 0 | AS161: 0 | AT161: 0 | AU161: 0 | AV161: 0 | AW161: 0 | AX161: 0 | AY161: 0 | AZ161: 0 | BA161: 0 | BB161: 0 | BC161: 0 | BD161: 0 | BE161: 0 | BF161: 0 | BG161: 0 | BH161: 0 | BI161: 0 | BJ161: 0 | BK161: 0 | BL161: 0 | BN161: 0 | BO161: 0 | BP161: 0 | BQ161: 15 | BR161: 1 | BS161: 0 | BT161: BW2 | BU161: 50 | BV161: 0 | BW161: 0 | BX161: BV2 | BY161: 50
E162: HP | F162: LVCMOS 1.8V 12mA (Slow) | L162: No | M162: Off | N162: Low Power | Q162: 0.125 | R162: SDR | S162: 1 | T162: 0 | U162: 0 | V162: 0 | W162: 0 | X162: 0 | Y162: 0 | Z162: 0 | AA162: 0 | AB162: None | AE162: 0 | AH162: 183 | AI162: 0 | AJ162: 1 | AK162: 0 | AL162: 0 | AM162: 0 | AN162: 1.8 | AO162: 0 | AP162: 1.8 | AQ162: 0 | AR162: 0 | AS162: 0 | AT162: 0 | AU162: 0 | AV162: 0 | AW162: 0 | AX162: 0 | AY162: 0 | AZ162: 0 | BA162: 0 | BB162: 0 | BC162: 0 | BD162: 0 | BE162: 0 | BF162: 0 | BG162: 0 | BH162: 0 | BI162: 0 | BJ162: 0 | BK162: 0 | BL162: 0 | BN162: 0 | BO162: 0 | BP162: 0 | BQ162: 15 | BR162: 1 | BS162: 0 | BT162: BW2 | BU162: 50 | BV162: 0 | BW162: 0 | BX162: BV2 | BY162: 50
E163: HP | F163: LVCMOS 1.8V 12mA (Slow) | L163: No | M163: Off | N163: Low Power | Q163: 0.125 | R163: SDR | S163: 1 | T163: 0 | U163: 0 | V163: 0 | W163: 0 | X163: 0 | Y163: 0 | Z163: 0 | AA163: 0 | AB163: None | AE163: 0 | AH163: 183 | AI163: 0 | AJ163: 1 | AK163: 0 | AL163: 0 | AM163: 0 | AN163: 1.8 | AO163: 0 | AP163: 1.8 | AQ163: 0 | AR163: 0 | AS163: 0 | AT163: 0 | AU163: 0 | AV163: 0 | AW163: 0 | AX163: 0 | AY163: 0 | AZ163: 0 | BA163: 0 | BB163: 0 | BC163: 0 | BD163: 0 | BE163: 0 | BF163: 0 | BG163: 0 | BH163: 0 | BI163: 0 | BJ163: 0 | BK163: 0 | BL163: 0 | BN163: 0 | BO163: 0 | BP163: 0 | BQ163: 15 | BR163: 1 | BS163: 0 | BT163: BW2 | BU163: 50 | BV163: 0 | BW163: 0 | BX163: BV2 | BY163: 50
E164: HP | F164: LVCMOS 1.8V 12mA (Slow) | L164: No | M164: Off | N164: Low Power | Q164: 0.125 | R164: SDR | S164: 1 | T164: 0 | U164: 0 | V164: 0 | W164: =P164*IF(RIGHT(R164,1)="R",Q164*IF(R164="DDR",2,1),2) -> 0 | X164: 0 | Y164: =IF(ISERROR($AH164),0,IF(E164="HP_PD",0,MAX(0,($AS164+$AU164+$BO164)*VCCAUX/1000))) -> 0 | Z164: =IF(ISERROR($AH164),0,IF(E164="HP_PD",MAX(0,($AS164+$AU164+$BO164)*VCCAUX_IO/1000),0)) -> 0 | AA164: =IF(ISERROR($AH164),0,MAX(0,OFFSET($AJ164,0,$AJ164)+(($J164+K164)*$S164)*$BV164+$I164*OFFSET(IO_STANDARDS,$AH164,14)/1000+($AW164+$BP164)*$AN164)) -> 0 | AB164: None | AE164: =IF(ISERROR($AH164),0,IF(AB164="None",0,$BW164*(($J164+K164)*$S164))) -> 0 | AH164: 183 | AI164: =P164*IF(RIGHT(R164,1)="R",Q164*IF(R164="DDR",1,0.5),1) -> 0 | AJ164: 1 | AK164: 0 | AL164: 0 | AM164: 0 | AN164: 1.8 | AO164: 0 | AP164: 1.8 | AQ164: =IF(RIGHT($F164,6) ="(pair)",2,1)*SUM(I164:K164) -> 0 | AR164: 0 | AS164: 0 | AT164: 0 | AU164: 0 | AV164: 0 | AW164: =IF(LEFT($F164,4)="Diff",2,1)*($I164+($K164*IF($AJ164=3,1-$S164,1)))*IF(AND($AJ164=2,$O164="DIFF_TERM"),OFFSET(IO_STANDARDS,$AH164,18),IF($E164<>"HR",IF(OFFSET(IO_STANDARDS,$AH164,6)=0,0,1)*IF(AJ164=3,$AO164*500/$BY164,OFFSET(IO_STANDARDS,$AH164,11)),IF(LEFT($O164,3)="UNT",$AO164*500/$BY164,0))*(1-$T164))/1000 -> 0 | AX164: 0 | AY164: 0 | AZ164: 0 | BA164: 0 | BB164: 0 | BC164: 0 | BD164: 0 | BE164: 0 | BF164: 0 | BG164: 0 | BH164: 0 | BI164: 0 | BJ164: 0 | BK164: 0 | BL164: 0 | BN164: =(OFFSET(IODELAY_DATA,$BQ164,$BR164)*(1-$U164)*IF($AJ164=3,(1-$S164),1)+OFFSET(IODELAY_DATA,$BQ164,$BR164+1)*$AI164)*(I164+(1-S164)*K164) -> 0 | BO164: =(OFFSET(IODELAY_DATA,$BQ164,$BR164+4)*(1-$U164)*IF($AJ164=3,(1-$S164),1)+OFFSET(IODELAY_DATA,$BQ164,$BR164+5)*$AI164)*(I164+(1-S164)*K164) -> 0 | BP164: =IF(OFFSET(IO_STANDARDS,$AH164,13)=0,OFFSET(IODELAY_DATA,9+IF($AN164=VCCO18,2,IF($AN164=VCCO15,3,IF($AN164=VCCO12,4,1))),3)*(I164+(1-S164)*K164)*$AI164,0)/1000 -> 0 | BQ164: 15 | BR164: 1 | BS164: 0 | BT164: BW2 | BU164: 50 | BV164: 0 | BW164: 0 | BX164: =IF(OFFSET(IO_STANDARDS,$AH164,18)>0,"BV1:BV2",IF(OFFSET(IO_STANDARDS,$AH164,19)>0,IF(E164="HR","BV2:BV5","BV7:BV9"),"BV2")) -> BV2 | BY164: 50
E165: HP | F165: LVCMOS 1.8V 12mA (Slow) | L165: No | M165: Off | N165: Low Power | Q165: 0.125 | R165: SDR | S165: 1 | T165: 0 | U165: 0 | V165: 0 | W165: 0 | X165: 0 | Y165: 0 | Z165: 0 | AA165: 0 | AB165: None | AE165: 0 | AH165: 183 | AI165: 0 | AJ165: 1 | AK165: 0 | AL165: 0 | AM165: 0 | AN165: 1.8 | AO165: 0 | AP165: 1.8 | AQ165: 0 | AR165: 0 | AS165: 0 | AT165: 0 | AU165: 0 | AV165: 0 | AW165: 0 | AX165: 0 | AY165: 0 | AZ165: 0 | BA165: 0 | BB165: 0 | BC165: 0 | BD165: 0 | BE165: 0 | BF165: 0 | BG165: 0 | BH165: 0 | BI165: 0 | BJ165: 0 | BK165: 0 | BL165: 0 | BN165: 0 | BO165: 0 | BP165: 0 | BQ165: 15 | BR165: 1 | BS165: 0 | BT165: BW2 | BU165: 50 | BV165: 0 | BW165: 0 | BX165: BV2 | BY165: 50
E166: HP | F166: LVCMOS 1.8V 12mA (Slow) | L166: No | M166: Off | N166: Low Power | Q166: 0.125 | R166: SDR | S166: 1 | T166: 0 | U166: 0 | V166: 0 | W166: 0 | X166: 0 | Y166: 0 | Z166: 0 | AA166: 0 | AB166: None | AE166: 0 | AH166: 183 | AI166: 0 | AJ166: 1 | AK166: 0 | AL166: 0 | AM166: 0 | AN166: 1.8 | AO166: 0 | AP166: 1.8 | AQ166: 0 | AR166: 0 | AS166: 0 | AT166: 0 | AU166: 0 | AV166: 0 | AW166: 0 | AX166: 0 | AY166: 0 | AZ166: 0 | BA166: 0 | BB166: 0 | BC166: 0 | BD166: 0 | BE166: 0 | BF166: 0 | BG166: 0 | BH166: 0 | BI166: 0 | BJ166: 0 | BK166: 0 | BL166: 0 | BN166: 0 | BO166: 0 | BP166: 0 | BQ166: 15 | BR166: 1 | BS166: 0 | BT166: BW2 | BU166: 50 | BV166: 0 | BW166: 0 | BX166: BV2 | BY166: 50
E167: HP | F167: LVCMOS 1.8V 12mA (Slow) | L167: No | M167: Off | N167: Low Power | Q167: 0.125 | R167: SDR | S167: 1 | T167: 0 | U167: 0 | V167: 0 | W167: 0 | X167: 0 | Y167: 0 | Z167: 0 | AA167: 0 | AB167: None | AE167: 0 | AH167: 183 | AI167: 0 | AJ167: 1 | AK167: 0 | AL167: 0 | AM167: 0 | AN167: 1.8 | AO167: 0 | AP167: 1.8 | AQ167: 0 | AR167: 0 | AS167: 0 | AT167: 0 | AU167: 0 | AV167: 0 | AW167: 0 | AX167: 0 | AY167: 0 | AZ167: 0 | BA167: 0 | BB167: 0 | BC167: 0 | BD167: 0 | BE167: 0 | BF167: 0 | BG167: 0 | BH167: 0 | BI167: 0 | BJ167: 0 | BK167: 0 | BL167: 0 | BN167: 0 | BO167: 0 | BP167: 0 | BQ167: 15 | BR167: 1 | BS167: 0 | BT167: BW2 | BU167: 50 | BV167: 0 | BW167: 0 | BX167: BV2 | BY167: 50
E168: HP | F168: LVCMOS 1.8V 12mA (Slow) | L168: No | M168: Off | N168: Low Power | Q168: 0.125 | R168: SDR | S168: 1 | T168: 0 | U168: 0 | V168: 0 | W168: 0 | X168: 0 | Y168: 0 | Z168: 0 | AA168: 0 | AB168: None | AE168: 0 | AH168: 183 | AI168: 0 | AJ168: 1 | AK168: 0 | AL168: 0 | AM168: 0 | AN168: 1.8 | AO168: 0 | AP168: 1.8 | AQ168: 0 | AR168: 0 | AS168: 0 | AT168: 0 | AU168: 0 | AV168: 0 | AW168: 0 | AX168: 0 | AY168: 0 | AZ168: 0 | BA168: 0 | BB168: 0 | BC168: 0 | BD168: 0 | BE168: 0 | BF168: 0 | BG168: 0 | BH168: 0 | BI168: 0 | BJ168: 0 | BK168: 0 | BL168: 0 | BN168: 0 | BO168: 0 | BP168: 0 | BQ168: 15 | BR168: 1 | BS168: 0 | BT168: BW2 | BU168: 50 | BV168: 0 | BW168: 0 | BX168: BV2 | BY168: 50
E169: HP | F169: LVCMOS 1.8V 12mA (Slow) | L169: No | M169: Off | N169: Low Power | Q169: 0.125 | R169: SDR | S169: 1 | T169: 0 | U169: 0 | V169: 0 | W169: 0 | X169: 0 | Y169: 0 | Z169: 0 | AA169: 0 | AB169: None | AE169: 0 | AH169: 183 | AI169: 0 | AJ169: 1 | AK169: 0 | AL169: 0 | AM169: 0 | AN169: 1.8 | AO169: 0 | AP169: 1.8 | AQ169: 0 | AR169: 0 | AS169: 0 | AT169: 0 | AU169: 0 | AV169: 0 | AW169: 0 | AX169: 0 | AY169: 0 | AZ169: 0 | BA169: 0 | BB169: 0 | BC169: 0 | BD169: 0 | BE169: 0 | BF169: 0 | BG169: 0 | BH169: 0 | BI169: 0 | BJ169: 0 | BK169: 0 | BL169: 0 | BN169: 0 | BO169: 0 | BP169: 0 | BQ169: 15 | BR169: 1 | BS169: 0 | BT169: BW2 | BU169: 50 | BV169: 0 | BW169: 0 | BX169: BV2 | BY169: 50
E170: HP | F170: LVCMOS 1.8V 12mA (Slow) | L170: No | M170: Off | N170: Low Power | Q170: 0.125 | R170: SDR | S170: 1 | T170: 0 | U170: 0 | V170: 0 | W170: =P170*IF(RIGHT(R170,1)="R",Q170*IF(R170="DDR",2,1),2) -> 0 | X170: 0 | Y170: =IF(ISERROR($AH170),0,IF(E170="HP_PD",0,MAX(0,($AS170+$AU170+$BO170)*VCCAUX/1000))) -> 0 | Z170: =IF(ISERROR($AH170),0,IF(E170="HP_PD",MAX(0,($AS170+$AU170+$BO170)*VCCAUX_IO/1000),0)) -> 0 | AA170: =IF(ISERROR($AH170),0,MAX(0,OFFSET($AJ170,0,$AJ170)+(($J170+K170)*$S170)*$BV170+$I170*OFFSET(IO_STANDARDS,$AH170,14)/1000+($AW170+$BP170)*$AN170)) -> 0 | AB170: None | AE170: =IF(ISERROR($AH170),0,IF(AB170="None",0,$BW170*(($J170+K170)*$S170))) -> 0 | AH170: 183 | AI170: =P170*IF(RIGHT(R170,1)="R",Q170*IF(R170="DDR",1,0.5),1) -> 0 | AJ170: 1 | AK170: 0 | AL170: 0 | AM170: 0 | AN170: 1.8 | AO170: 0 | AP170: 1.8 | AQ170: =IF(RIGHT($F170,6) ="(pair)",2,1)*SUM(I170:K170) -> 0 | AR170: 0 | AS170: 0 | AT170: 0 | AU170: 0 | AV170: 0 | AW170: =IF(LEFT($F170,4)="Diff",2,1)*($I170+($K170*IF($AJ170=3,1-$S170,1)))*IF(AND($AJ170=2,$O170="DIFF_TERM"),OFFSET(IO_STANDARDS,$AH170,18),IF($E170<>"HR",IF(OFFSET(IO_STANDARDS,$AH170,6)=0,0,1)*IF(AJ170=3,$AO170*500/$BY170,OFFSET(IO_STANDARDS,$AH170,11)),IF(LEFT($O170,3)="UNT",$AO170*500/$BY170,0))*(1-$T170))/1000 -> 0 | AX170: 0 | AY170: 0 | AZ170: 0 | BA170: 0 | BB170: 0 | BC170: 0 | BD170: 0 | BE170: 0 | BF170: 0 | BG170: 0 | BH170: 0 | BI170: 0 | BJ170: 0 | BK170: 0 | BL170: 0 | BN170: =(OFFSET(IODELAY_DATA,$BQ170,$BR170)*(1-$U170)*IF($AJ170=3,(1-$S170),1)+OFFSET(IODELAY_DATA,$BQ170,$BR170+1)*$AI170)*(I170+(1-S170)*K170) -> 0 | BO170: =(OFFSET(IODELAY_DATA,$BQ170,$BR170+4)*(1-$U170)*IF($AJ170=3,(1-$S170),1)+OFFSET(IODELAY_DATA,$BQ170,$BR170+5)*$AI170)*(I170+(1-S170)*K170) -> 0 | BP170: =IF(OFFSET(IO_STANDARDS,$AH170,13)=0,OFFSET(IODELAY_DATA,9+IF($AN170=VCCO18,2,IF($AN170=VCCO15,3,IF($AN170=VCCO12,4,1))),3)*(I170+(1-S170)*K170)*$AI170,0)/1000 -> 0 | BQ170: 15 | BR170: 1 | BS170: 0 | BT170: BW2 | BU170: 50 | BV170: 0 | BW170: 0 | BX170: =IF(OFFSET(IO_STANDARDS,$AH170,18)>0,"BV1:BV2",IF(OFFSET(IO_STANDARDS,$AH170,19)>0,IF(E170="HR","BV2:BV5","BV7:BV9"),"BV2")) -> BV2 | BY170: 50
E171: HP | F171: LVCMOS 1.8V 12mA (Slow) | L171: No | M171: Off | N171: Low Power | Q171: 0.125 | R171: SDR | S171: 1 | T171: 0 | U171: 0 | V171: 0 | W171: 0 | X171: 0 | Y171: 0 | Z171: 0 | AA171: 0 | AB171: None | AE171: 0 | AH171: 183 | AI171: 0 | AJ171: 1 | AK171: 0 | AL171: 0 | AM171: 0 | AN171: 1.8 | AO171: 0 | AP171: 1.8 | AQ171: 0 | AR171: 0 | AS171: 0 | AT171: 0 | AU171: 0 | AV171: 0 | AW171: 0 | AX171: 0 | AY171: 0 | AZ171: 0 | BA171: 0 | BB171: 0 | BC171: 0 | BD171: 0 | BE171: 0 | BF171: 0 | BG171: 0 | BH171: 0 | BI171: 0 | BJ171: 0 | BK171: 0 | BL171: 0 | BN171: 0 | BO171: 0 | BP171: 0 | BQ171: 15 | BR171: 1 | BS171: 0 | BT171: BW2 | BU171: 50 | BV171: 0 | BW171: 0 | BX171: BV2 | BY171: 50
E172: HP | F172: LVCMOS 1.8V 12mA (Slow) | L172: No | M172: Off | N172: Low Power | Q172: 0.125 | R172: SDR | S172: 1 | T172: 0 | U172: 0 | V172: 0 | W172: 0 | X172: 0 | Y172: 0 | Z172: 0 | AA172: 0 | AB172: None | AE172: 0 | AH172: 183 | AI172: 0 | AJ172: 1 | AK172: 0 | AL172: 0 | AM172: 0 | AN172: 1.8 | AO172: 0 | AP172: 1.8 | AQ172: 0 | AR172: 0 | AS172: 0 | AT172: 0 | AU172: 0 | AV172: 0 | AW172: 0 | AX172: 0 | AY172: 0 | AZ172: 0 | BA172: 0 | BB172: 0 | BC172: 0 | BD172: 0 | BE172: 0 | BF172: 0 | BG172: 0 | BH172: 0 | BI172: 0 | BJ172: 0 | BK172: 0 | BL172: 0 | BN172: 0 | BO172: 0 | BP172: 0 | BQ172: 15 | BR172: 1 | BS172: 0 | BT172: BW2 | BU172: 50 | BV172: 0 | BW172: 0 | BX172: BV2 | BY172: 50
E173: HP | F173: LVCMOS 1.8V 12mA (Slow) | L173: No | M173: Off | N173: Low Power | Q173: 0.125 | R173: SDR | S173: 1 | T173: 0 | U173: 0 | V173: 0 | W173: 0 | X173: 0 | Y173: 0 | Z173: 0 | AA173: 0 | AB173: None | AE173: 0 | AH173: 183 | AI173: 0 | AJ173: 1 | AK173: 0 | AL173: 0 | AM173: 0 | AN173: 1.8 | AO173: 0 | AP173: 1.8 | AQ173: 0 | AR173: 0 | AS173: 0 | AT173: 0 | AU173: 0 | AV173: 0 | AW173: 0 | AX173: 0 | AY173: 0 | AZ173: 0 | BA173: 0 | BB173: 0 | BC173: 0 | BD173: 0 | BE173: 0 | BF173: 0 | BG173: 0 | BH173: 0 | BI173: 0 | BJ173: 0 | BK173: 0 | BL173: 0 | BN173: 0 | BO173: 0 | BP173: 0 | BQ173: 15 | BR173: 1 | BS173: 0 | BT173: BW2 | BU173: 50 | BV173: 0 | BW173: 0 | BX173: BV2 | BY173: 50
E174: HP | F174: LVCMOS 1.8V 12mA (Slow) | L174: No | M174: Off | N174: Low Power | Q174: 0.125 | R174: SDR | S174: 1 | T174: 0 | U174: 0 | V174: 0 | W174: 0 | X174: 0 | Y174: 0 | Z174: 0 | AA174: 0 | AB174: None | AE174: 0 | AH174: 183 | AI174: 0 | AJ174: 1 | AK174: 0 | AL174: 0 | AM174: 0 | AN174: 1.8 | AO174: 0 | AP174: 1.8 | AQ174: 0 | AR174: 0 | AS174: 0 | AT174: 0 | AU174: 0 | AV174: 0 | AW174: 0 | AX174: 0 | AY174: 0 | AZ174: 0 | BA174: 0 | BB174: 0 | BC174: 0 | BD174: 0 | BE174: 0 | BF174: 0 | BG174: 0 | BH174: 0 | BI174: 0 | BJ174: 0 | BK174: 0 | BL174: 0 | BN174: 0 | BO174: 0 | BP174: 0 | BQ174: 15 | BR174: 1 | BS174: 0 | BT174: BW2 | BU174: 50 | BV174: 0 | BW174: 0 | BX174: BV2 | BY174: 50
E175: HP | F175: LVCMOS 1.8V 12mA (Slow) | L175: No | M175: Off | N175: Low Power | Q175: 0.125 | R175: SDR | S175: 1 | T175: 0 | U175: 0 | V175: 0 | W175: 0 | X175: 0 | Y175: 0 | Z175: 0 | AA175: 0 | AB175: None | AE175: 0 | AH175: 183 | AI175: 0 | AJ175: 1 | AK175: 0 | AL175: 0 | AM175: 0 | AN175: 1.8 | AO175: 0 | AP175: 1.8 | AQ175: 0 | AR175: 0 | AS175: 0 | AT175: 0 | AU175: 0 | AV175: 0 | AW175: 0 | AX175: 0 | AY175: 0 | AZ175: 0 | BA175: 0 | BB175: 0 | BC175: 0 | BD175: 0 | BE175: 0 | BF175: 0 | BG175: 0 | BH175: 0 | BI175: 0 | BJ175: 0 | BK175: 0 | BL175: 0 | BN175: 0 | BO175: 0 | BP175: 0 | BQ175: 15 | BR175: 1 | BS175: 0 | BT175: BW2 | BU175: 50 | BV175: 0 | BW175: 0 | BX175: BV2 | BY175: 50
E176: HP | F176: LVCMOS 1.8V 12mA (Slow) | L176: No | M176: Off | N176: Low Power | Q176: 0.125 | R176: SDR | S176: 1 | T176: 0 | U176: 0 | V176: 0 | W176: =P176*IF(RIGHT(R176,1)="R",Q176*IF(R176="DDR",2,1),2) -> 0 | X176: 0 | Y176: =IF(ISERROR($AH176),0,IF(E176="HP_PD",0,MAX(0,($AS176+$AU176+$BO176)*VCCAUX/1000))) -> 0 | Z176: =IF(ISERROR($AH176),0,IF(E176="HP_PD",MAX(0,($AS176+$AU176+$BO176)*VCCAUX_IO/1000),0)) -> 0 | AA176: =IF(ISERROR($AH176),0,MAX(0,OFFSET($AJ176,0,$AJ176)+(($J176+K176)*$S176)*$BV176+$I176*OFFSET(IO_STANDARDS,$AH176,14)/1000+($AW176+$BP176)*$AN176)) -> 0 | AB176: None | AE176: =IF(ISERROR($AH176),0,IF(AB176="None",0,$BW176*(($J176+K176)*$S176))) -> 0 | AH176: 183 | AI176: =P176*IF(RIGHT(R176,1)="R",Q176*IF(R176="DDR",1,0.5),1) -> 0 | AJ176: 1 | AK176: 0 | AL176: 0 | AM176: 0 | AN176: 1.8 | AO176: 0 | AP176: 1.8 | AQ176: =IF(RIGHT($F176,6) ="(pair)",2,1)*SUM(I176:K176) -> 0 | AR176: 0 | AS176: 0 | AT176: 0 | AU176: 0 | AV176: 0 | AW176: =IF(LEFT($F176,4)="Diff",2,1)*($I176+($K176*IF($AJ176=3,1-$S176,1)))*IF(AND($AJ176=2,$O176="DIFF_TERM"),OFFSET(IO_STANDARDS,$AH176,18),IF($E176<>"HR",IF(OFFSET(IO_STANDARDS,$AH176,6)=0,0,1)*IF(AJ176=3,$AO176*500/$BY176,OFFSET(IO_STANDARDS,$AH176,11)),IF(LEFT($O176,3)="UNT",$AO176*500/$BY176,0))*(1-$T176))/1000 -> 0 | AX176: 0 | AY176: 0 | AZ176: 0 | BA176: 0 | BB176: 0 | BC176: 0 | BD176: 0 | BE176: 0 | BF176: 0 | BG176: 0 | BH176: 0 | BI176: 0 | BJ176: 0 | BK176: 0 | BL176: 0 | BN176: =(OFFSET(IODELAY_DATA,$BQ176,$BR176)*(1-$U176)*IF($AJ176=3,(1-$S176),1)+OFFSET(IODELAY_DATA,$BQ176,$BR176+1)*$AI176)*(I176+(1-S176)*K176) -> 0 | BO176: =(OFFSET(IODELAY_DATA,$BQ176,$BR176+4)*(1-$U176)*IF($AJ176=3,(1-$S176),1)+OFFSET(IODELAY_DATA,$BQ176,$BR176+5)*$AI176)*(I176+(1-S176)*K176) -> 0 | BP176: =IF(OFFSET(IO_STANDARDS,$AH176,13)=0,OFFSET(IODELAY_DATA,9+IF($AN176=VCCO18,2,IF($AN176=VCCO15,3,IF($AN176=VCCO12,4,1))),3)*(I176+(1-S176)*K176)*$AI176,0)/1000 -> 0 | BQ176: 15 | BR176: 1 | BS176: 0 | BT176: BW2 | BU176: 50 | BV176: 0 | BW176: 0 | BX176: =IF(OFFSET(IO_STANDARDS,$AH176,18)>0,"BV1:BV2",IF(OFFSET(IO_STANDARDS,$AH176,19)>0,IF(E176="HR","BV2:BV5","BV7:BV9"),"BV2")) -> BV2 | BY176: 50
E177: HP | F177: LVCMOS 1.8V 12mA (Slow) | L177: No | M177: Off | N177: Low Power | Q177: 0.125 | R177: SDR | S177: 1 | T177: 0 | U177: 0 | V177: 0 | W177: 0 | X177: 0 | Y177: 0 | Z177: 0 | AA177: 0 | AB177: None | AE177: 0 | AH177: 183 | AI177: 0 | AJ177: 1 | AK177: 0 | AL177: 0 | AM177: 0 | AN177: 1.8 | AO177: 0 | AP177: 1.8 | AQ177: 0 | AR177: 0 | AS177: 0 | AT177: 0 | AU177: 0 | AV177: 0 | AW177: 0 | AX177: 0 | AY177: 0 | AZ177: 0 | BA177: 0 | BB177: 0 | BC177: 0 | BD177: 0 | BE177: 0 | BF177: 0 | BG177: 0 | BH177: 0 | BI177: 0 | BJ177: 0 | BK177: 0 | BL177: 0 | BN177: 0 | BO177: 0 | BP177: 0 | BQ177: 15 | BR177: 1 | BS177: 0 | BT177: BW2 | BU177: 50 | BV177: 0 | BW177: 0 | BX177: BV2 | BY177: 50
E178: HP | F178: LVCMOS 1.8V 12mA (Slow) | L178: No | M178: Off | N178: Low Power | Q178: 0.125 | R178: SDR | S178: 1 | T178: 0 | U178: 0 | V178: 0 | W178: 0 | X178: 0 | Y178: 0 | Z178: 0 | AA178: 0 | AB178: None | AE178: 0 | AH178: 183 | AI178: 0 | AJ178: 1 | AK178: 0 | AL178: 0 | AM178: 0 | AN178: 1.8 | AO178: 0 | AP178: 1.8 | AQ178: 0 | AR178: 0 | AS178: 0 | AT178: 0 | AU178: 0 | AV178: 0 | AW178: 0 | AX178: 0 | AY178: 0 | AZ178: 0 | BA178: 0 | BB178: 0 | BC178: 0 | BD178: 0 | BE178: 0 | BF178: 0 | BG178: 0 | BH178: 0 | BI178: 0 | BJ178: 0 | BK178: 0 | BL178: 0 | BN178: 0 | BO178: 0 | BP178: 0 | BQ178: 15 | BR178: 1 | BS178: 0 | BT178: BW2 | BU178: 50 | BV178: 0 | BW178: 0 | BX178: BV2 | BY178: 50
E179: HP | F179: LVCMOS 1.8V 12mA (Slow) | L179: No | M179: Off | N179: Low Power | Q179: 0.125 | R179: SDR | S179: 1 | T179: 0 | U179: 0 | V179: 0 | W179: 0 | X179: 0 | Y179: 0 | Z179: 0 | AA179: 0 | AB179: None | AE179: 0 | AH179: 183 | AI179: 0 | AJ179: 1 | AK179: 0 | AL179: 0 | AM179: 0 | AN179: 1.8 | AO179: 0 | AP179: 1.8 | AQ179: 0 | AR179: 0 | AS179: 0 | AT179: 0 | AU179: 0 | AV179: 0 | AW179: 0 | AX179: 0 | AY179: 0 | AZ179: 0 | BA179: 0 | BB179: 0 | BC179: 0 | BD179: 0 | BE179: 0 | BF179: 0 | BG179: 0 | BH179: 0 | BI179: 0 | BJ179: 0 | BK179: 0 | BL179: 0 | BN179: 0 | BO179: 0 | BP179: 0 | BQ179: 15 | BR179: 1 | BS179: 0 | BT179: BW2 | BU179: 50 | BV179: 0 | BW179: 0 | BX179: BV2 | BY179: 50
E180: HP | F180: LVCMOS 1.8V 12mA (Slow) | L180: No | M180: Off | N180: Low Power | Q180: 0.125 | R180: SDR | S180: 1 | T180: 0 | U180: 0 | V180: 0 | W180: 0 | X180: 0 | Y180: 0 | Z180: 0 | AA180: 0 | AB180: None | AE180: 0 | AH180: 183 | AI180: 0 | AJ180: 1 | AK180: 0 | AL180: 0 | AM180: 0 | AN180: 1.8 | AO180: 0 | AP180: 1.8 | AQ180: 0 | AR180: 0 | AS180: 0 | AT180: 0 | AU180: 0 | AV180: 0 | AW180: 0 | AX180: 0 | AY180: 0 | AZ180: 0 | BA180: 0 | BB180: 0 | BC180: 0 | BD180: 0 | BE180: 0 | BF180: 0 | BG180: 0 | BH180: 0 | BI180: 0 | BJ180: 0 | BK180: 0 | BL180: 0 | BN180: 0 | BO180: 0 | BP180: 0 | BQ180: 15 | BR180: 1 | BS180: 0 | BT180: BW2 | BU180: 50 | BV180: 0 | BW180: 0 | BX180: BV2 | BY180: 50
E181: HP | F181: LVCMOS 1.8V 12mA (Slow) | L181: No | M181: Off | N181: Low Power | Q181: 0.125 | R181: SDR | S181: 1 | T181: 0 | U181: 0 | V181: 0 | W181: 0 | X181: 0 | Y181: 0 | Z181: 0 | AA181: 0 | AB181: None | AE181: 0 | AH181: 183 | AI181: 0 | AJ181: 1 | AK181: 0 | AL181: 0 | AM181: 0 | AN181: 1.8 | AO181: 0 | AP181: 1.8 | AQ181: 0 | AR181: 0 | AS181: 0 | AT181: 0 | AU181: 0 | AV181: 0 | AW181: 0 | AX181: 0 | AY181: 0 | AZ181: 0 | BA181: 0 | BB181: 0 | BC181: 0 | BD181: 0 | BE181: 0 | BF181: 0 | BG181: 0 | BH181: 0 | BI181: 0 | BJ181: 0 | BK181: 0 | BL181: 0 | BN181: 0 | BO181: 0 | BP181: 0 | BQ181: 15 | BR181: 1 | BS181: 0 | BT181: BW2 | BU181: 50 | BV181: 0 | BW181: 0 | BX181: BV2 | BY181: 50
E182: HP | F182: LVCMOS 1.8V 12mA (Slow) | L182: No | M182: Off | N182: Low Power | Q182: 0.125 | R182: SDR | S182: 1 | T182: 0 | U182: 0 | V182: 0 | W182: =P182*IF(RIGHT(R182,1)="R",Q182*IF(R182="DDR",2,1),2) -> 0 | X182: 0 | Y182: =IF(ISERROR($AH182),0,IF(E182="HP_PD",0,MAX(0,($AS182+$AU182+$BO182)*VCCAUX/1000))) -> 0 | Z182: =IF(ISERROR($AH182),0,IF(E182="HP_PD",MAX(0,($AS182+$AU182+$BO182)*VCCAUX_IO/1000),0)) -> 0 | AA182: =IF(ISERROR($AH182),0,MAX(0,OFFSET($AJ182,0,$AJ182)+(($J182+K182)*$S182)*$BV182+$I182*OFFSET(IO_STANDARDS,$AH182,14)/1000+($AW182+$BP182)*$AN182)) -> 0 | AB182: None | AE182: =IF(ISERROR($AH182),0,IF(AB182="None",0,$BW182*(($J182+K182)*$S182))) -> 0 | AH182: 183 | AI182: =P182*IF(RIGHT(R182,1)="R",Q182*IF(R182="DDR",1,0.5),1) -> 0 | AJ182: 1 | AK182: 0 | AL182: 0 | AM182: 0 | AN182: 1.8 | AO182: 0 | AP182: 1.8 | AQ182: =IF(RIGHT($F182,6) ="(pair)",2,1)*SUM(I182:K182) -> 0 | AR182: 0 | AS182: 0 | AT182: 0 | AU182: 0 | AV182: 0 | AW182: =IF(LEFT($F182,4)="Diff",2,1)*($I182+($K182*IF($AJ182=3,1-$S182,1)))*IF(AND($AJ182=2,$O182="DIFF_TERM"),OFFSET(IO_STANDARDS,$AH182,18),IF($E182<>"HR",IF(OFFSET(IO_STANDARDS,$AH182,6)=0,0,1)*IF(AJ182=3,$AO182*500/$BY182,OFFSET(IO_STANDARDS,$AH182,11)),IF(LEFT($O182,3)="UNT",$AO182*500/$BY182,0))*(1-$T182))/1000 -> 0 | AX182: 0 | AY182: 0 | AZ182: 0 | BA182: 0 | BB182: 0 | BC182: 0 | BD182: 0 | BE182: 0 | BF182: 0 | BG182: 0 | BH182: 0 | BI182: 0 | BJ182: 0 | BK182: 0 | BL182: 0 | BN182: =(OFFSET(IODELAY_DATA,$BQ182,$BR182)*(1-$U182)*IF($AJ182=3,(1-$S182),1)+OFFSET(IODELAY_DATA,$BQ182,$BR182+1)*$AI182)*(I182+(1-S182)*K182) -> 0 | BO182: =(OFFSET(IODELAY_DATA,$BQ182,$BR182+4)*(1-$U182)*IF($AJ182=3,(1-$S182),1)+OFFSET(IODELAY_DATA,$BQ182,$BR182+5)*$AI182)*(I182+(1-S182)*K182) -> 0 | BP182: =IF(OFFSET(IO_STANDARDS,$AH182,13)=0,OFFSET(IODELAY_DATA,9+IF($AN182=VCCO18,2,IF($AN182=VCCO15,3,IF($AN182=VCCO12,4,1))),3)*(I182+(1-S182)*K182)*$AI182,0)/1000 -> 0 | BQ182: 15 | BR182: 1 | BS182: 0 | BT182: BW2 | BU182: 50 | BV182: 0 | BW182: 0 | BX182: =IF(OFFSET(IO_STANDARDS,$AH182,18)>0,"BV1:BV2",IF(OFFSET(IO_STANDARDS,$AH182,19)>0,IF(E182="HR","BV2:BV5","BV7:BV9"),"BV2")) -> BV2 | BY182: 50
E183: HP | F183: LVCMOS 1.8V 12mA (Slow) | L183: No | M183: Off | N183: Low Power | Q183: 0.125 | R183: SDR | S183: 1 | T183: 0 | U183: 0 | V183: 0 | W183: 0 | X183: 0 | Y183: 0 | Z183: 0 | AA183: 0 | AB183: None | AE183: 0 | AH183: 183 | AI183: 0 | AJ183: 1 | AK183: 0 | AL183: 0 | AM183: 0 | AN183: 1.8 | AO183: 0 | AP183: 1.8 | AQ183: 0 | AR183: 0 | AS183: 0 | AT183: 0 | AU183: 0 | AV183: 0 | AW183: 0 | AX183: 0 | AY183: 0 | AZ183: 0 | BA183: 0 | BB183: 0 | BC183: 0 | BD183: 0 | BE183: 0 | BF183: 0 | BG183: 0 | BH183: 0 | BI183: 0 | BJ183: 0 | BK183: 0 | BL183: 0 | BN183: 0 | BO183: 0 | BP183: 0 | BQ183: 15 | BR183: 1 | BS183: 0 | BT183: BW2 | BU183: 50 | BV183: 0 | BW183: 0 | BX183: BV2 | BY183: 50
E184: HP | F184: LVCMOS 1.8V 12mA (Slow) | L184: No | M184: Off | N184: Low Power | Q184: 0.125 | R184: SDR | S184: 1 | T184: 0 | U184: 0 | V184: 0 | W184: 0 | X184: 0 | Y184: 0 | Z184: 0 | AA184: 0 | AB184: None | AE184: 0 | AH184: 183 | AI184: 0 | AJ184: 1 | AK184: 0 | AL184: 0 | AM184: 0 | AN184: 1.8 | AO184: 0 | AP184: 1.8 | AQ184: 0 | AR184: 0 | AS184: 0 | AT184: 0 | AU184: 0 | AV184: 0 | AW184: 0 | AX184: 0 | AY184: 0 | AZ184: 0 | BA184: 0 | BB184: 0 | BC184: 0 | BD184: 0 | BE184: 0 | BF184: 0 | BG184: 0 | BH184: 0 | BI184: 0 | BJ184: 0 | BK184: 0 | BL184: 0 | BN184: 0 | BO184: 0 | BP184: 0 | BQ184: 15 | BR184: 1 | BS184: 0 | BT184: BW2 | BU184: 50 | BV184: 0 | BW184: 0 | BX184: BV2 | BY184: 50
E185: HP | F185: LVCMOS 1.8V 12mA (Slow) | L185: No | M185: Off | N185: Low Power | Q185: 0.125 | R185: SDR | S185: 1 | T185: 0 | U185: 0 | V185: 0 | W185: 0 | X185: 0 | Y185: 0 | Z185: 0 | AA185: 0 | AB185: None | AE185: 0 | AH185: 183 | AI185: 0 | AJ185: 1 | AK185: 0 | AL185: 0 | AM185: 0 | AN185: 1.8 | AO185: 0 | AP185: 1.8 | AQ185: 0 | AR185: 0 | AS185: 0 | AT185: 0 | AU185: 0 | AV185: 0 | AW185: 0 | AX185: 0 | AY185: 0 | AZ185: 0 | BA185: 0 | BB185: 0 | BC185: 0 | BD185: 0 | BE185: 0 | BF185: 0 | BG185: 0 | BH185: 0 | BI185: 0 | BJ185: 0 | BK185: 0 | BL185: 0 | BN185: 0 | BO185: 0 | BP185: 0 | BQ185: 15 | BR185: 1 | BS185: 0 | BT185: BW2 | BU185: 50 | BV185: 0 | BW185: 0 | BX185: BV2 | BY185: 50
E186: HP | F186: LVCMOS 1.8V 12mA (Slow) | L186: No | M186: Off | N186: Low Power | Q186: 0.125 | R186: SDR | S186: 1 | T186: 0 | U186: 0 | V186: 0 | W186: 0 | X186: 0 | Y186: 0 | Z186: 0 | AA186: 0 | AB186: None | AE186: 0 | AH186: 183 | AI186: 0 | AJ186: 1 | AK186: 0 | AL186: 0 | AM186: 0 | AN186: 1.8 | AO186: 0 | AP186: 1.8 | AQ186: 0 | AR186: 0 | AS186: 0 | AT186: 0 | AU186: 0 | AV186: 0 | AW186: 0 | AX186: 0 | AY186: 0 | AZ186: 0 | BA186: 0 | BB186: 0 | BC186: 0 | BD186: 0 | BE186: 0 | BF186: 0 | BG186: 0 | BH186: 0 | BI186: 0 | BJ186: 0 | BK186: 0 | BL186: 0 | BN186: 0 | BO186: 0 | BP186: 0 | BQ186: 15 | BR186: 1 | BS186: 0 | BT186: BW2 | BU186: 50 | BV186: 0 | BW186: 0 | BX186: BV2 | BY186: 50
E187: HP | F187: LVCMOS 1.8V 12mA (Slow) | L187: No | M187: Off | N187: Low Power | Q187: 0.125 | R187: SDR | S187: 1 | T187: 0 | U187: 0 | V187: 0 | W187: 0 | X187: 0 | Y187: 0 | Z187: 0 | AA187: 0 | AB187: None | AE187: 0 | AH187: 183 | AI187: 0 | AJ187: 1 | AK187: 0 | AL187: 0 | AM187: 0 | AN187: 1.8 | AO187: 0 | AP187: 1.8 | AQ187: 0 | AR187: 0 | AS187: 0 | AT187: 0 | AU187: 0 | AV187: 0 | AW187: 0 | AX187: 0 | AY187: 0 | AZ187: 0 | BA187: 0 | BB187: 0 | BC187: 0 | BD187: 0 | BE187: 0 | BF187: 0 | BG187: 0 | BH187: 0 | BI187: 0 | BJ187: 0 | BK187: 0 | BL187: 0 | BN187: 0 | BO187: 0 | BP187: 0 | BQ187: 15 | BR187: 1 | BS187: 0 | BT187: BW2 | BU187: 50 | BV187: 0 | BW187: 0 | BX187: BV2 | BY187: 50
E188: HP | F188: LVCMOS 1.8V 12mA (Slow) | L188: No | M188: Off | N188: Low Power | Q188: 0.125 | R188: SDR | S188: 1 | T188: 0 | U188: 0 | V188: 0 | W188: =P188*IF(RIGHT(R188,1)="R",Q188*IF(R188="DDR",2,1),2) -> 0 | X188: 0 | Y188: =IF(ISERROR($AH188),0,IF(E188="HP_PD",0,MAX(0,($AS188+$AU188+$BO188)*VCCAUX/1000))) -> 0 | Z188: =IF(ISERROR($AH188),0,IF(E188="HP_PD",MAX(0,($AS188+$AU188+$BO188)*VCCAUX_IO/1000),0)) -> 0 | AA188: =IF(ISERROR($AH188),0,MAX(0,OFFSET($AJ188,0,$AJ188)+(($J188+K188)*$S188)*$BV188+$I188*OFFSET(IO_STANDARDS,$AH188,14)/1000+($AW188+$BP188)*$AN188)) -> 0 | AB188: None | AE188: =IF(ISERROR($AH188),0,IF(AB188="None",0,$BW188*(($J188+K188)*$S188))) -> 0 | AH188: 183 | AI188: =P188*IF(RIGHT(R188,1)="R",Q188*IF(R188="DDR",1,0.5),1) -> 0 | AJ188: 1 | AK188: 0 | AL188: 0 | AM188: 0 | AN188: 1.8 | AO188: 0 | AP188: 1.8 | AQ188: =IF(RIGHT($F188,6) ="(pair)",2,1)*SUM(I188:K188) -> 0 | AR188: 0 | AS188: 0 | AT188: 0 | AU188: 0 | AV188: 0 | AW188: =IF(LEFT($F188,4)="Diff",2,1)*($I188+($K188*IF($AJ188=3,1-$S188,1)))*IF(AND($AJ188=2,$O188="DIFF_TERM"),OFFSET(IO_STANDARDS,$AH188,18),IF($E188<>"HR",IF(OFFSET(IO_STANDARDS,$AH188,6)=0,0,1)*IF(AJ188=3,$AO188*500/$BY188,OFFSET(IO_STANDARDS,$AH188,11)),IF(LEFT($O188,3)="UNT",$AO188*500/$BY188,0))*(1-$T188))/1000 -> 0 | AX188: 0 | AY188: 0 | AZ188: 0 | BA188: 0 | BB188: 0 | BC188: 0 | BD188: 0 | BE188: 0 | BF188: 0 | BG188: 0 | BH188: 0 | BI188: 0 | BJ188: 0 | BK188: 0 | BL188: 0 | BN188: =(OFFSET(IODELAY_DATA,$BQ188,$BR188)*(1-$U188)*IF($AJ188=3,(1-$S188),1)+OFFSET(IODELAY_DATA,$BQ188,$BR188+1)*$AI188)*(I188+(1-S188)*K188) -> 0 | BO188: =(OFFSET(IODELAY_DATA,$BQ188,$BR188+4)*(1-$U188)*IF($AJ188=3,(1-$S188),1)+OFFSET(IODELAY_DATA,$BQ188,$BR188+5)*$AI188)*(I188+(1-S188)*K188) -> 0 | BP188: =IF(OFFSET(IO_STANDARDS,$AH188,13)=0,OFFSET(IODELAY_DATA,9+IF($AN188=VCCO18,2,IF($AN188=VCCO15,3,IF($AN188=VCCO12,4,1))),3)*(I188+(1-S188)*K188)*$AI188,0)/1000 -> 0 | BQ188: 15 | BR188: 1 | BS188: 0 | BT188: BW2 | BU188: 50 | BV188: 0 | BW188: 0 | BX188: =IF(OFFSET(IO_STANDARDS,$AH188,18)>0,"BV1:BV2",IF(OFFSET(IO_STANDARDS,$AH188,19)>0,IF(E188="HR","BV2:BV5","BV7:BV9"),"BV2")) -> BV2 | BY188: 50
E189: HP | F189: LVCMOS 1.8V 12mA (Slow) | L189: No | M189: Off | N189: Low Power | Q189: 0.125 | R189: SDR | S189: 1 | T189: 0 | U189: 0 | V189: 0 | W189: 0 | X189: 0 | Y189: 0 | Z189: 0 | AA189: 0 | AB189: None | AE189: 0 | AH189: 183 | AI189: 0 | AJ189: 1 | AK189: 0 | AL189: 0 | AM189: 0 | AN189: 1.8 | AO189: 0 | AP189: 1.8 | AQ189: 0 | AR189: 0 | AS189: 0 | AT189: 0 | AU189: 0 | AV189: 0 | AW189: 0 | AX189: 0 | AY189: 0 | AZ189: 0 | BA189: 0 | BB189: 0 | BC189: 0 | BD189: 0 | BE189: 0 | BF189: 0 | BG189: 0 | BH189: 0 | BI189: 0 | BJ189: 0 | BK189: 0 | BL189: 0 | BN189: 0 | BO189: 0 | BP189: 0 | BQ189: 15 | BR189: 1 | BS189: 0 | BT189: BW2 | BU189: 50 | BV189: 0 | BW189: 0 | BX189: BV2 | BY189: 50
E190: HP | F190: LVCMOS 1.8V 12mA (Slow) | L190: No | M190: Off | N190: Low Power | Q190: 0.125 | R190: SDR | S190: 1 | T190: 0 | U190: 0 | V190: 0 | W190: 0 | X190: 0 | Y190: 0 | Z190: 0 | AA190: 0 | AB190: None | AE190: 0 | AH190: 183 | AI190: 0 | AJ190: 1 | AK190: 0 | AL190: 0 | AM190: 0 | AN190: 1.8 | AO190: 0 | AP190: 1.8 | AQ190: 0 | AR190: 0 | AS190: 0 | AT190: 0 | AU190: 0 | AV190: 0 | AW190: 0 | AX190: 0 | AY190: 0 | AZ190: 0 | BA190: 0 | BB190: 0 | BC190: 0 | BD190: 0 | BE190: 0 | BF190: 0 | BG190: 0 | BH190: 0 | BI190: 0 | BJ190: 0 | BK190: 0 | BL190: 0 | BN190: 0 | BO190: 0 | BP190: 0 | BQ190: 15 | BR190: 1 | BS190: 0 | BT190: BW2 | BU190: 50 | BV190: 0 | BW190: 0 | BX190: BV2 | BY190: 50
E191: HP | F191: LVCMOS 1.8V 12mA (Slow) | L191: No | M191: Off | N191: Low Power | Q191: 0.125 | R191: SDR | S191: 1 | T191: 0 | U191: 0 | V191: 0 | W191: 0 | X191: 0 | Y191: 0 | Z191: 0 | AA191: 0 | AB191: None | AE191: 0 | AH191: 183 | AI191: 0 | AJ191: 1 | AK191: 0 | AL191: 0 | AM191: 0 | AN191: 1.8 | AO191: 0 | AP191: 1.8 | AQ191: 0 | AR191: 0 | AS191: 0 | AT191: 0 | AU191: 0 | AV191: 0 | AW191: 0 | AX191: 0 | AY191: 0 | AZ191: 0 | BA191: 0 | BB191: 0 | BC191: 0 | BD191: 0 | BE191: 0 | BF191: 0 | BG191: 0 | BH191: 0 | BI191: 0 | BJ191: 0 | BK191: 0 | BL191: 0 | BN191: 0 | BO191: 0 | BP191: 0 | BQ191: 15 | BR191: 1 | BS191: 0 | BT191: BW2 | BU191: 50 | BV191: 0 | BW191: 0 | BX191: BV2 | BY191: 50
E192: HP | F192: LVCMOS 1.8V 12mA (Slow) | L192: No | M192: Off | N192: Low Power | Q192: 0.125 | R192: SDR | S192: 1 | T192: 0 | U192: 0 | V192: 0 | W192: 0 | X192: 0 | Y192: 0 | Z192: 0 | AA192: 0 | AB192: None | AE192: 0 | AH192: 183 | AI192: 0 | AJ192: 1 | AK192: 0 | AL192: 0 | AM192: 0 | AN192: 1.8 | AO192: 0 | AP192: 1.8 | AQ192: 0 | AR192: 0 | AS192: 0 | AT192: 0 | AU192: 0 | AV192: 0 | AW192: 0 | AX192: 0 | AY192: 0 | AZ192: 0 | BA192: 0 | BB192: 0 | BC192: 0 | BD192: 0 | BE192: 0 | BF192: 0 | BG192: 0 | BH192: 0 | BI192: 0 | BJ192: 0 | BK192: 0 | BL192: 0 | BN192: 0 | BO192: 0 | BP192: 0 | BQ192: 15 | BR192: 1 | BS192: 0 | BT192: BW2 | BU192: 50 | BV192: 0 | BW192: 0 | BX192: BV2 | BY192: 50
E193: HP | F193: LVCMOS 1.8V 12mA (Slow) | L193: No | M193: Off | N193: Low Power | Q193: 0.125 | R193: SDR | S193: 1 | T193: 0 | U193: 0 | V193: 0 | W193: 0 | X193: 0 | Y193: 0 | Z193: 0 | AA193: 0 | AB193: None | AE193: 0 | AH193: 183 | AI193: 0 | AJ193: 1 | AK193: 0 | AL193: 0 | AM193: 0 | AN193: 1.8 | AO193: 0 | AP193: 1.8 | AQ193: 0 | AR193: 0 | AS193: 0 | AT193: 0 | AU193: 0 | AV193: 0 | AW193: 0 | AX193: 0 | AY193: 0 | AZ193: 0 | BA193: 0 | BB193: 0 | BC193: 0 | BD193: 0 | BE193: 0 | BF193: 0 | BG193: 0 | BH193: 0 | BI193: 0 | BJ193: 0 | BK193: 0 | BL193: 0 | BN193: 0 | BO193: 0 | BP193: 0 | BQ193: 15 | BR193: 1 | BS193: 0 | BT193: BW2 | BU193: 50 | BV193: 0 | BW193: 0 | BX193: BV2 | BY193: 50
E194: HP | F194: LVCMOS 1.8V 12mA (Slow) | L194: No | M194: Off | N194: Low Power | Q194: 0.125 | R194: SDR | S194: 1 | T194: 0 | U194: 0 | V194: 0 | W194: =P194*IF(RIGHT(R194,1)="R",Q194*IF(R194="DDR",2,1),2) -> 0 | X194: 0 | Y194: =IF(ISERROR($AH194),0,IF(E194="HP_PD",0,MAX(0,($AS194+$AU194+$BO194)*VCCAUX/1000))) -> 0 | Z194: =IF(ISERROR($AH194),0,IF(E194="HP_PD",MAX(0,($AS194+$AU194+$BO194)*VCCAUX_IO/1000),0)) -> 0 | AA194: =IF(ISERROR($AH194),0,MAX(0,OFFSET($AJ194,0,$AJ194)+(($J194+K194)*$S194)*$BV194+$I194*OFFSET(IO_STANDARDS,$AH194,14)/1000+($AW194+$BP194)*$AN194)) -> 0 | AB194: None | AE194: =IF(ISERROR($AH194),0,IF(AB194="None",0,$BW194*(($J194+K194)*$S194))) -> 0 | AH194: 183 | AI194: =P194*IF(RIGHT(R194,1)="R",Q194*IF(R194="DDR",1,0.5),1) -> 0 | AJ194: 1 | AK194: 0 | AL194: 0 | AM194: 0 | AN194: 1.8 | AO194: 0 | AP194: 1.8 | AQ194: =IF(RIGHT($F194,6) ="(pair)",2,1)*SUM(I194:K194) -> 0 | AR194: 0 | AS194: 0 | AT194: 0 | AU194: 0 | AV194: 0 | AW194: =IF(LEFT($F194,4)="Diff",2,1)*($I194+($K194*IF($AJ194=3,1-$S194,1)))*IF(AND($AJ194=2,$O194="DIFF_TERM"),OFFSET(IO_STANDARDS,$AH194,18),IF($E194<>"HR",IF(OFFSET(IO_STANDARDS,$AH194,6)=0,0,1)*IF(AJ194=3,$AO194*500/$BY194,OFFSET(IO_STANDARDS,$AH194,11)),IF(LEFT($O194,3)="UNT",$AO194*500/$BY194,0))*(1-$T194))/1000 -> 0 | AX194: 0 | AY194: 0 | AZ194: 0 | BA194: 0 | BB194: 0 | BC194: 0 | BD194: 0 | BE194: 0 | BF194: 0 | BG194: 0 | BH194: 0 | BI194: 0 | BJ194: 0 | BK194: 0 | BL194: 0 | BN194: =(OFFSET(IODELAY_DATA,$BQ194,$BR194)*(1-$U194)*IF($AJ194=3,(1-$S194),1)+OFFSET(IODELAY_DATA,$BQ194,$BR194+1)*$AI194)*(I194+(1-S194)*K194) -> 0 | BO194: =(OFFSET(IODELAY_DATA,$BQ194,$BR194+4)*(1-$U194)*IF($AJ194=3,(1-$S194),1)+OFFSET(IODELAY_DATA,$BQ194,$BR194+5)*$AI194)*(I194+(1-S194)*K194) -> 0 | BP194: =IF(OFFSET(IO_STANDARDS,$AH194,13)=0,OFFSET(IODELAY_DATA,9+IF($AN194=VCCO18,2,IF($AN194=VCCO15,3,IF($AN194=VCCO12,4,1))),3)*(I194+(1-S194)*K194)*$AI194,0)/1000 -> 0 | BQ194: 15 | BR194: 1 | BS194: 0 | BT194: BW2 | BU194: 50 | BV194: 0 | BW194: 0 | BX194: =IF(OFFSET(IO_STANDARDS,$AH194,18)>0,"BV1:BV2",IF(OFFSET(IO_STANDARDS,$AH194,19)>0,IF(E194="HR","BV2:BV5","BV7:BV9"),"BV2")) -> BV2 | BY194: 50
E195: HP | F195: LVCMOS 1.8V 12mA (Slow) | L195: No | M195: Off | N195: Low Power | Q195: 0.125 | R195: SDR | S195: 1 | T195: 0 | U195: 0 | V195: 0 | W195: 0 | X195: 0 | Y195: 0 | Z195: 0 | AA195: 0 | AB195: None | AE195: 0 | AH195: 183 | AI195: 0 | AJ195: 1 | AK195: 0 | AL195: 0 | AM195: 0 | AN195: 1.8 | AO195: 0 | AP195: 1.8 | AQ195: 0 | AR195: 0 | AS195: 0 | AT195: 0 | AU195: 0 | AV195: 0 | AW195: 0 | AX195: 0 | AY195: 0 | AZ195: 0 | BA195: 0 | BB195: 0 | BC195: 0 | BD195: 0 | BE195: 0 | BF195: 0 | BG195: 0 | BH195: 0 | BI195: 0 | BJ195: 0 | BK195: 0 | BL195: 0 | BN195: 0 | BO195: 0 | BP195: 0 | BQ195: 15 | BR195: 1 | BS195: 0 | BT195: BW2 | BU195: 50 | BV195: 0 | BW195: 0 | BX195: BV2 | BY195: 50
E196: HP | F196: LVCMOS 1.8V 12mA (Slow) | L196: No | M196: Off | N196: Low Power | Q196: 0.125 | R196: SDR | S196: 1 | T196: 0 | U196: 0 | V196: 0 | W196: 0 | X196: 0 | Y196: 0 | Z196: 0 | AA196: 0 | AB196: None | AE196: 0 | AH196: 183 | AI196: 0 | AJ196: 1 | AK196: 0 | AL196: 0 | AM196: 0 | AN196: 1.8 | AO196: 0 | AP196: 1.8 | AQ196: 0 | AR196: 0 | AS196: 0 | AT196: 0 | AU196: 0 | AV196: 0 | AW196: 0 | AX196: 0 | AY196: 0 | AZ196: 0 | BA196: 0 | BB196: 0 | BC196: 0 | BD196: 0 | BE196: 0 | BF196: 0 | BG196: 0 | BH196: 0 | BI196: 0 | BJ196: 0 | BK196: 0 | BL196: 0 | BN196: 0 | BO196: 0 | BP196: 0 | BQ196: 15 | BR196: 1 | BS196: 0 | BT196: BW2 | BU196: 50 | BV196: 0 | BW196: 0 | BX196: BV2 | BY196: 50
E197: HP | F197: LVCMOS 1.8V 12mA (Slow) | L197: No | M197: Off | N197: Low Power | Q197: 0.125 | R197: SDR | S197: 1 | T197: 0 | U197: 0 | V197: 0 | W197: 0 | X197: 0 | Y197: 0 | Z197: 0 | AA197: 0 | AB197: None | AE197: 0 | AH197: 183 | AI197: 0 | AJ197: 1 | AK197: 0 | AL197: 0 | AM197: 0 | AN197: 1.8 | AO197: 0 | AP197: 1.8 | AQ197: 0 | AR197: 0 | AS197: 0 | AT197: 0 | AU197: 0 | AV197: 0 | AW197: 0 | AX197: 0 | AY197: 0 | AZ197: 0 | BA197: 0 | BB197: 0 | BC197: 0 | BD197: 0 | BE197: 0 | BF197: 0 | BG197: 0 | BH197: 0 | BI197: 0 | BJ197: 0 | BK197: 0 | BL197: 0 | BN197: 0 | BO197: 0 | BP197: 0 | BQ197: 15 | BR197: 1 | BS197: 0 | BT197: BW2 | BU197: 50 | BV197: 0 | BW197: 0 | BX197: BV2 | BY197: 50
E198: HP | F198: LVCMOS 1.8V 12mA (Slow) | L198: No | M198: Off | N198: Low Power | Q198: 0.125 | R198: SDR | S198: 1 | T198: 0 | U198: 0 | V198: 0 | W198: 0 | X198: 0 | Y198: 0 | Z198: 0 | AA198: 0 | AB198: None | AE198: 0 | AH198: 183 | AI198: 0 | AJ198: 1 | AK198: 0 | AL198: 0 | AM198: 0 | AN198: 1.8 | AO198: 0 | AP198: 1.8 | AQ198: 0 | AR198: 0 | AS198: 0 | AT198: 0 | AU198: 0 | AV198: 0 | AW198: 0 | AX198: 0 | AY198: 0 | AZ198: 0 | BA198: 0 | BB198: 0 | BC198: 0 | BD198: 0 | BE198: 0 | BF198: 0 | BG198: 0 | BH198: 0 | BI198: 0 | BJ198: 0 | BK198: 0 | BL198: 0 | BN198: 0 | BO198: 0 | BP198: 0 | BQ198: 15 | BR198: 1 | BS198: 0 | BT198: BW2 | BU198: 50 | BV198: 0 | BW198: 0 | BX198: BV2 | BY198: 50
E199: HP | F199: LVCMOS 1.8V 12mA (Slow) | L199: No | M199: Off | N199: Low Power | Q199: 0.125 | R199: SDR | S199: 1 | T199: 0 | U199: 0 | V199: 0 | W199: 0 | X199: 0 | Y199: 0 | Z199: 0 | AA199: 0 | AB199: None | AE199: 0 | AH199: 183 | AI199: 0 | AJ199: 1 | AK199: 0 | AL199: 0 | AM199: 0 | AN199: 1.8 | AO199: 0 | AP199: 1.8 | AQ199: 0 | AR199: 0 | AS199: 0 | AT199: 0 | AU199: 0 | AV199: 0 | AW199: 0 | AX199: 0 | AY199: 0 | AZ199: 0 | BA199: 0 | BB199: 0 | BC199: 0 | BD199: 0 | BE199: 0 | BF199: 0 | BG199: 0 | BH199: 0 | BI199: 0 | BJ199: 0 | BK199: 0 | BL199: 0 | BN199: 0 | BO199: 0 | BP199: 0 | BQ199: 15 | BR199: 1 | BS199: 0 | BT199: BW2 | BU199: 50 | BV199: 0 | BW199: 0 | BX199: BV2 | BY199: 50
E200: HP | F200: LVCMOS 1.8V 12mA (Slow) | L200: No | M200: Off | N200: Low Power | Q200: 0.125 | R200: SDR | S200: 1 | T200: 0 | U200: 0 | V200: 0 | W200: =P200*IF(RIGHT(R200,1)="R",Q200*IF(R200="DDR",2,1),2) -> 0 | X200: 0 | Y200: =IF(ISERROR($AH200),0,IF(E200="HP_PD",0,MAX(0,($AS200+$AU200+$BO200)*VCCAUX/1000))) -> 0 | Z200: =IF(ISERROR($AH200),0,IF(E200="HP_PD",MAX(0,($AS200+$AU200+$BO200)*VCCAUX_IO/1000),0)) -> 0 | AA200: =IF(ISERROR($AH200),0,MAX(0,OFFSET($AJ200,0,$AJ200)+(($J200+K200)*$S200)*$BV200+$I200*OFFSET(IO_STANDARDS,$AH200,14)/1000+($AW200+$BP200)*$AN200)) -> 0 | AB200: None | AE200: =IF(ISERROR($AH200),0,IF(AB200="None",0,$BW200*(($J200+K200)*$S200))) -> 0 | AH200: 183 | AI200: =P200*IF(RIGHT(R200,1)="R",Q200*IF(R200="DDR",1,0.5),1) -> 0 | AJ200: 1 | AK200: 0 | AL200: 0 | AM200: 0 | AN200: 1.8 | AO200: 0 | AP200: 1.8 | AQ200: =IF(RIGHT($F200,6) ="(pair)",2,1)*SUM(I200:K200) -> 0 | AR200: 0 | AS200: 0 | AT200: 0 | AU200: 0 | AV200: 0 | AW200: =IF(LEFT($F200,4)="Diff",2,1)*($I200+($K200*IF($AJ200=3,1-$S200,1)))*IF(AND($AJ200=2,$O200="DIFF_TERM"),OFFSET(IO_STANDARDS,$AH200,18),IF($E200<>"HR",IF(OFFSET(IO_STANDARDS,$AH200,6)=0,0,1)*IF(AJ200=3,$AO200*500/$BY200,OFFSET(IO_STANDARDS,$AH200,11)),IF(LEFT($O200,3)="UNT",$AO200*500/$BY200,0))*(1-$T200))/1000 -> 0 | AX200: 0 | AY200: 0 | AZ200: 0 | BA200: 0 | BB200: 0 | BC200: 0 | BD200: 0 | BE200: 0 | BF200: 0 | BG200: 0 | BH200: 0 | BI200: 0 | BJ200: 0 | BK200: 0 | BL200: 0 | BN200: =(OFFSET(IODELAY_DATA,$BQ200,$BR200)*(1-$U200)*IF($AJ200=3,(1-$S200),1)+OFFSET(IODELAY_DATA,$BQ200,$BR200+1)*$AI200)*(I200+(1-S200)*K200) -> 0 | BO200: =(OFFSET(IODELAY_DATA,$BQ200,$BR200+4)*(1-$U200)*IF($AJ200=3,(1-$S200),1)+OFFSET(IODELAY_DATA,$BQ200,$BR200+5)*$AI200)*(I200+(1-S200)*K200) -> 0 | BP200: =IF(OFFSET(IO_STANDARDS,$AH200,13)=0,OFFSET(IODELAY_DATA,9+IF($AN200=VCCO18,2,IF($AN200=VCCO15,3,IF($AN200=VCCO12,4,1))),3)*(I200+(1-S200)*K200)*$AI200,0)/1000 -> 0 | BQ200: 15 | BR200: 1 | BS200: 0 | BT200: BW2 | BU200: 50 | BV200: 0 | BW200: 0 | BX200: =IF(OFFSET(IO_STANDARDS,$AH200,18)>0,"BV1:BV2",IF(OFFSET(IO_STANDARDS,$AH200,19)>0,IF(E200="HR","BV2:BV5","BV7:BV9"),"BV2")) -> BV2 | BY200: 50
E201: HP | F201: LVCMOS 1.8V 12mA (Slow) | L201: No | M201: Off | N201: Low Power | Q201: 0.125 | R201: SDR | S201: 1 | T201: 0 | U201: 0 | V201: 0 | W201: 0 | X201: 0 | Y201: 0 | Z201: 0 | AA201: 0 | AB201: None | AE201: 0 | AH201: 183 | AI201: 0 | AJ201: 1 | AK201: 0 | AL201: 0 | AM201: 0 | AN201: 1.8 | AO201: 0 | AP201: 1.8 | AQ201: 0 | AR201: 0 | AS201: 0 | AT201: 0 | AU201: 0 | AV201: 0 | AW201: 0 | AX201: 0 | AY201: 0 | AZ201: 0 | BA201: 0 | BB201: 0 | BC201: 0 | BD201: 0 | BE201: 0 | BF201: 0 | BG201: 0 | BH201: 0 | BI201: 0 | BJ201: 0 | BK201: 0 | BL201: 0 | BN201: 0 | BO201: 0 | BP201: 0 | BQ201: 15 | BR201: 1 | BS201: 0 | BT201: BW2 | BU201: 50 | BV201: 0 | BW201: 0 | BX201: BV2 | BY201: 50
E202: HP | F202: LVCMOS 1.8V 12mA (Slow) | L202: No | M202: Off | N202: Low Power | Q202: 0.125 | R202: SDR | S202: 1 | T202: 0 | U202: 0 | V202: 0 | W202: 0 | X202: 0 | Y202: 0 | Z202: 0 | AA202: 0 | AB202: None | AE202: 0 | AH202: 183 | AI202: 0 | AJ202: 1 | AK202: 0 | AL202: 0 | AM202: 0 | AN202: 1.8 | AO202: 0 | AP202: 1.8 | AQ202: 0 | AR202: 0 | AS202: 0 | AT202: 0 | AU202: 0 | AV202: 0 | AW202: 0 | AX202: 0 | AY202: 0 | AZ202: 0 | BA202: 0 | BB202: 0 | BC202: 0 | BD202: 0 | BE202: 0 | BF202: 0 | BG202: 0 | BH202: 0 | BI202: 0 | BJ202: 0 | BK202: 0 | BL202: 0 | BN202: 0 | BO202: 0 | BP202: 0 | BQ202: 15 | BR202: 1 | BS202: 0 | BT202: BW2 | BU202: 50 | BV202: 0 | BW202: 0 | BX202: BV2 | BY202: 50
... 316 more rows

Sheet BRAM
B1: Block RAM Power | AI1: 0
AI2: 1 | AJ2: READ_FIRST
B3: Power | F3: Utilization | J3: Memory Resources User Guide | AI3: 2 | AJ3: WRITE_FIRST
B4: VCCINT | C4: =VCCINT -> 1 | D4: =SUM(S10:S500)*OFFSET(POWER_SCALE,4,OFFSET(POWER_SCALE,1,1))*PL_POWERED -> 0 | E4: =D4+D5 -> 0 | F4: RAMB18 | G4: =SUM(IF((LEFT(F10:F500,6)="RAMB18")+(LEFT(F10:F500,6)="FIFO18"),E10:E500)) -> 0 | H4: =IF(AND(G4/(NUM_BRAMS*2)>=0.995, G4/(NUM_BRAMS*2)<0.9999),0.99,G4/(NUM_BRAMS*2)) -> 0 | I4: =G5+INT((G4+1)/2) -> 0 | AI4: 4 | AJ4: NO_CHANGE
B5: VCCBRAM | C5: =VCCBRAM -> 1 | D5: =SUM(T10:T500)*OFFSET(POWER_SCALE,4,OFFSET(POWER_SCALE,1,1))*PL_POWERED -> 0 | F5: RAMB36 | G5: =SUM(IF((LEFT(F10:F500,6)<>"RAMB18")*(LEFT(F10:F500,6)<>"FIFO18"),E10:E500))+SUM(IF(LEFT(F10:F500,4)="CASC",E10:E500)) -> 0 | H5: =IF(AND(G5/NUM_BRAMS>=0.995, G5/NUM_BRAMS<0.9999),0.99,G5/NUM_BRAMS) -> 0 | J5: XPE User Guide | N5: Introduction to XPE (video) | AI5: 9
B6: =TEXT(BRAM_POWER/TOTAL_POWER,"0%")&" of total on-chip power "&TEXT(TOTAL_POWER,"0.000")&"W" -> 0% of total on-chip power 0.156W | AI6: 18
H7: Port A | M7: Port B | R7: Signal Rate (Mtr/s) | S7: Power (W) | AI7: 36 | AK7: optimized
B8: Name | E8: Block RAMs | F8: Mode | G8: Toggle Rate | H8: Clock (MHz) | I8: Enable Rate | J8: Bit Width | K8: Write Mode | L8: Write Rate | M8: Clock (MHz) | N8: Enable Rate | O8: Bit Width | P8: Write Mode | Q8: Write Rate | S8: VCCINT | T8: VCCBRAM | U8: PortA Column index into BRAM data table | V8: PortB Column index into BRAM data table | W8: PortA Row index into BRAM data table | X8: PortB Row index into BRAM data table | Y8: # RAMB36 blocks used | Z8: FIFO or SDP (yes = 1) | AA8: Bit width range | AC8: Clocking | AD8: PortA power | AF8: PortB power | AH8: Routing power | AI8: 72 | AK8: PortA | AL8: PortB
S9: =TEXT(VCCINT,"0.000")&"V" -> 1.000V | T9: =TEXT(VCCBRAM,"0.000")&"V" -> 1.000V | AD9: Vccint | AE9: Vccbram | AF9: Vccint | AG9: Vccbram | AI9: 64 | AJ9: optimize | AK9: no change | AL9: no change
F10: RAMB18 | G10: 0.5 | I10: 0.25 | J10: 1 | K10: NO_CHANGE | L10: 0.5 | N10: 0.25 | O10: 1 | P10: NO_CHANGE | Q10: 0.5 | R10: =IF((AD10+AF10)<=0,0,((IF($AF10>0,$O10+8,0)*$M10*$N10+IF($AD10>0,$J10+8,0)*$H10*$I10)*$G10/(IF($AF10>0,$O10+8,0)+IF($AD10>0,$J10+8,0)))) -> 0 | S10: =(VCCINT/1000)*VCCINT_N*(IF($Z10=1,MAX($AD10,$AF10),$AD10+$AF10)+$AC10+$AH10)*IF($AJ10>0,OFFSET(POWER_OPT,OFFSET(OPTIMIZATION,0,3),3),1) -> 0 | T10: =VCCBRAM/1000*(IF($Z10=1,MAX($AE10,$AG10),$AE10+$AG10))*IF($AJ10>0,OFFSET(POWER_OPT,OFFSET(OPTIMIZATION,0,3),3),1) -> 0 | U10: =IF(LEN($F10)=0,0,MATCH(IF((LEFT($F10,4)="RAMB")+($F10="CASC (pair)"),$F10 & IF($AK10=1,"NO_CHANGE",$K10),IF(AND($H10<>$M10,OR($F10="FIFO18",$F10="FIFO36")),"ASYNC_" & $F10,$F10)),BRAM_MODE_LIST,FALSE)) -> 5 | V10: =IF(LEN($F10)=0,0,MATCH(IF((LEFT($F10,4)="RAMB")+($F10="CASC (pair)"),$F10 & IF((RIGHT($F10,3)="SDP"),"NO_CHANGE", IF($AL10=1,"NO_CHANGE",$P10)),IF(AND($H10<>$M10,OR($F10="FIFO18",$F10="FIFO36")),"ASYNC_" & $F10,$F10)),BRAM_MODE_LIST,FALSE)) -> 5 | W10: =MATCH(IF(J10=64,72,J10),BRAM_WIDTH_LIST,FALSE) -> 2 | X10: =MATCH(IF(O10=64,72,O10),BRAM_WIDTH_LIST,FALSE) -> 2 | Y10: =IF(($F10="RAMB18")+($F10="RAMB18SDP")+($F10="FIFO18")+($F10="FIFO18_36"),INT(($E10+1)/2),IF(($F10="CASC (pair)"),2*$E10,$E10)) -> 0 | Z10: =IF(($F10="RAMB18")+($F10="RAMB36")+($F10="CASC (pair)"),0,IF(ISERR(FIND("SDP", $F10)),1,2)) -> 0 | AA10: =IF(LEN($F10)=0,"AI1:AI1",IF($F10="RAMB18","AI1:AI6",IF($F10="RAMB36","AI1:AI7",IF($F10="FIFO18","AI4:AI6",IF($F10="FIFO36","AI4:AI7",IF(($F10="FIFO18_36")+(F10="RAMB18SDP"),"AI7",IF($F10="CASC (pair)","AI2",IF(RIGHT(F10,3)="ECC","AI9","AI8")))))))) -> AI1:AI6 | AB10: =IF(LEFT($F10,4)="FIFO","AJ1",IF((LEN($F10)>8)*(MID($F10,7,3)="SDP"),"AJ2:AJ3","AJ2:AJ4")) -> AJ2:AJ4 | AC10: =$Y10*4*($H10+$M10)*OFFSET(CLOCK_DATA,5,4) -> 0 | AD10: =$E10*MIN(1,LN(1+$G10*5 + 1.33))*(($H10*IF(AND($AJ10=1,$N10=1,$Z10=2),MIN($I10,$Q10),IF(AND($AJ10=1,$I10=1,$L10>0,$N10>0,$Q10=0),$L10,$I10))*IF($Z10=0,(1-$L10),1)*OFFSET(BRAM_TABLE,$W10,$U10)) + ($H10*IF(AND($AJ10=1,$N10=1,$Z10=2),MIN($I10,$Q10),IF(AND($AJ10=1,$I10=1,$L10>0,$N10>0,$Q10=0),$L10,$I10))*IF($Z10=0,$L10,0)*OFFSET(BRAM_TABLE,$W10,$U10+1)))/1000 -> 0 | AE10: =$E10*0.7*(($H10*IF(AND($AJ10=1,$N10=1,$Z10=2),MIN($I10,$Q10),IF(AND($AJ10=1,$I10=1,$L10>0,$N10>0,$Q10=0),$L10,$I10))*IF($Z10=0,(1-$L10),IF($Z10=1,1,0.5)))*OFFSET(BRAM_TABLE,$W10+9,$U10) + ($H10*IF(AND($AJ10=1,$N10=1,$Z10=2),MIN($I10,$Q10),IF(AND($AJ10=1,$I10=1,$L10>0,$N10>0,$Q10=0),$L10,$I10))*IF($Z10=0,$L10,0))*OFFSET(BRAM_TABLE,$W10+9,$U10+1))/1000 -> 0 | AF10: =$E10*MIN(1,LN(1+$G10*5 + 1.33))*($M10*IF(AND($Z10=0,$AJ10=1,$N10=1,$Q10>0,$I10>0,$L10=0),$Q10,$N10)*IF($Z10=0,1-$Q10,IF($Z10=1,0,0.5))*OFFSET(BRAM_TABLE,$X10,$V10) + ($M10*IF(AND($Z10=0,$AJ10=1,$N10=1,$Q10>0,$I10>0,$L10=0),$Q10,$N10)*$Q10)*OFFSET(BRAM_TABLE,$X10,$V10+1))/1000 -> 0 | AG10: =$E10*0.7*($M10*IF(AND($Z10=0,$AJ10=1,$N10=1,$Q10>0,$I10>0,$L10=0),$Q10,$N10)*IF($Z10=0,1-$L10,IF($Z10=1,0,0.5))*OFFSET(BRAM_TABLE,$X10+9,$V10)+$Q10*$M10*IF(AND($Z10=0,$AJ10=1,$N10=1,$Q10>0,$I10>0,$L10=0),$Q10,$N10)*OFFSET(BRAM_TABLE,$X10+9,$V10+1))/1000 -> 0 | AH10: =(IF(Z10=0,IF(OR($P10="NO_CHANGE",$AL10=1),1-$Q10,2),0)*$O10*$M10*IF(AND($Z10=0,$AJ10=1,$N10=1,$Q10>0,$I10>0,$L10=0),$Q10,$N10)+IF(Z10>0,1,IF(OR($K10="NO_CHANGE",$AK10=1),1-$L10,2))*$J10*$H10*IF(AND($AJ10=1,$N10=1,$Z10=2),MIN($I10,$Q10),IF(AND($AJ10=1,$Z10=0,$I10=1,$L10>0,$N10>0,$Q10=0),$L10,$I10)))*$E10*$G10*OFFSET(FANOUT,5,13) -> 0 | AJ10: =IF(AND($Z10<>1,$A10<>1,$U$1<>"off"),1,0) -> 1 | AK10: =IF(AND($AJ10=1,OR($Z10=2,$Q10=0,$L10=0),$H10<>$M10),1,0) -> 0 | AL10: =IF(AND($AJ10=1,OR($Z10=2,$Q10=0,$L10=0),$H10<>$M10),1,0) -> 0
F11: RAMB18 | G11: 0.5 | I11: 0.25 | J11: 1 | K11: NO_CHANGE | L11: 0.5 | N11: 0.25 | O11: 1 | P11: NO_CHANGE | Q11: 0.5 | R11: =IF((AD11+AF11)<=0,0,((IF($AF11>0,$O11+8,0)*$M11*$N11+IF($AD11>0,$J11+8,0)*$H11*$I11)*$G11/(IF($AF11>0,$O11+8,0)+IF($AD11>0,$J11+8,0)))) -> 0 | S11: 0 | T11: 0 | U11: 5 | V11: 5 | W11: =MATCH(IF(J11=64,72,J11),BRAM_WIDTH_LIST,FALSE) -> 2 | X11: =MATCH(IF(O11=64,72,O11),BRAM_WIDTH_LIST,FALSE) -> 2 | Y11: =IF(($F11="RAMB18")+($F11="RAMB18SDP")+($F11="FIFO18")+($F11="FIFO18_36"),INT(($E11+1)/2),IF(($F11="CASC (pair)"),2*$E11,$E11)) -> 0 | Z11: =IF(($F11="RAMB18")+($F11="RAMB36")+($F11="CASC (pair)"),0,IF(ISERR(FIND("SDP", $F11)),1,2)) -> 0 | AA11: =IF(LEN($F11)=0,"AI1:AI1",IF($F11="RAMB18","AI1:AI6",IF($F11="RAMB36","AI1:AI7",IF($F11="FIFO18","AI4:AI6",IF($F11="FIFO36","AI4:AI7",IF(($F11="FIFO18_36")+(F11="RAMB18SDP"),"AI7",IF($F11="CASC (pair)","AI2",IF(RIGHT(F11,3)="ECC","AI9","AI8")))))))) -> AI1:AI6 | AB11: =IF(LEFT($F11,4)="FIFO","AJ1",IF((LEN($F11)>8)*(MID($F11,7,3)="SDP"),"AJ2:AJ3","AJ2:AJ4")) -> AJ2:AJ4 | AC11: 0 | AD11: 0 | AE11: 0 | AF11: 0 | AG11: 0 | AH11: 0 | AJ11: =IF(AND($Z11<>1,$A11<>1,$U$1<>"off"),1,0) -> 1 | AK11: =IF(AND($AJ11=1,OR($Z11=2,$Q11=0,$L11=0),$H11<>$M11),1,0) -> 0 | AL11: 0
F12: RAMB18 | G12: 0.5 | I12: 0.25 | J12: 1 | K12: NO_CHANGE | L12: 0.5 | N12: 0.25 | O12: 1 | P12: NO_CHANGE | Q12: 0.5 | R12: 0 | S12: 0 | T12: 0 | U12: 5 | V12: 5 | W12: 2 | X12: 2 | Y12: 0 | Z12: 0 | AA12: AI1:AI6 | AB12: AJ2:AJ4 | AC12: 0 | AD12: 0 | AE12: 0 | AF12: 0 | AG12: 0 | AH12: 0 | AJ12: 1 | AK12: 0 | AL12: 0
F13: RAMB18 | G13: 0.5 | I13: 0.25 | J13: 1 | K13: NO_CHANGE | L13: 0.5 | N13: 0.25 | O13: 1 | P13: NO_CHANGE | Q13: 0.5 | R13: 0 | S13: 0 | T13: 0 | U13: 5 | V13: 5 | W13: 2 | X13: 2 | Y13: 0 | Z13: 0 | AA13: AI1:AI6 | AB13: AJ2:AJ4 | AC13: 0 | AD13: 0 | AE13: 0 | AF13: 0 | AG13: 0 | AH13: 0 | AJ13: 1 | AK13: 0 | AL13: 0
F14: RAMB18 | G14: 0.5 | I14: 0.25 | J14: 1 | K14: NO_CHANGE | L14: 0.5 | N14: 0.25 | O14: 1 | P14: NO_CHANGE | Q14: 0.5 | R14: 0 | S14: 0 | T14: 0 | U14: 5 | V14: 5 | W14: 2 | X14: 2 | Y14: 0 | Z14: 0 | AA14: AI1:AI6 | AB14: AJ2:AJ4 | AC14: 0 | AD14: 0 | AE14: 0 | AF14: 0 | AG14: 0 | AH14: 0 | AJ14: 1 | AK14: 0 | AL14: 0
F15: RAMB18 | G15: 0.5 | I15: 0.25 | J15: 1 | K15: NO_CHANGE | L15: 0.5 | N15: 0.25 | O15: 1 | P15: NO_CHANGE | Q15: 0.5 | R15: 0 | S15: 0 | T15: 0 | U15: 5 | V15: 5 | W15: 2 | X15: 2 | Y15: 0 | Z15: 0 | AA15: AI1:AI6 | AB15: AJ2:AJ4 | AC15: 0 | AD15: 0 | AE15: 0 | AF15: 0 | AG15: 0 | AH15: 0 | AJ15: 1 | AK15: 0 | AL15: 0
F16: RAMB18 | G16: 0.5 | I16: 0.25 | J16: 1 | K16: NO_CHANGE | L16: 0.5 | N16: 0.25 | O16: 1 | P16: NO_CHANGE | Q16: 0.5 | R16: 0 | S16: 0 | T16: 0 | U16: 5 | V16: 5 | W16: 2 | X16: 2 | Y16: 0 | Z16: 0 | AA16: AI1:AI6 | AB16: AJ2:AJ4 | AC16: 0 | AD16: 0 | AE16: 0 | AF16: 0 | AG16: 0 | AH16: 0 | AJ16: 1 | AK16: 0 | AL16: 0
F17: RAMB18 | G17: 0.5 | I17: 0.25 | J17: 1 | K17: NO_CHANGE | L17: 0.5 | N17: 0.25 | O17: 1 | P17: NO_CHANGE | Q17: 0.5 | R17: 0 | S17: 0 | T17: 0 | U17: 5 | V17: 5 | W17: 2 | X17: 2 | Y17: 0 | Z17: 0 | AA17: AI1:AI6 | AB17: AJ2:AJ4 | AC17: 0 | AD17: 0 | AE17: 0 | AF17: 0 | AG17: 0 | AH17: 0 | AJ17: 1 | AK17: 0 | AL17: 0
F18: RAMB18 | G18: 0.5 | I18: 0.25 | J18: 1 | K18: NO_CHANGE | L18: 0.5 | N18: 0.25 | O18: 1 | P18: NO_CHANGE | Q18: 0.5 | R18: 0 | S18: 0 | T18: 0 | U18: 5 | V18: 5 | W18: 2 | X18: 2 | Y18: 0 | Z18: 0 | AA18: AI1:AI6 | AB18: AJ2:AJ4 | AC18: 0 | AD18: 0 | AE18: 0 | AF18: 0 | AG18: 0 | AH18: 0 | AJ18: 1 | AK18: 0 | AL18: 0
F19: RAMB18 | G19: 0.5 | I19: 0.25 | J19: 1 | K19: NO_CHANGE | L19: 0.5 | N19: 0.25 | O19: 1 | P19: NO_CHANGE | Q19: 0.5 | R19: 0 | S19: 0 | T19: 0 | U19: 5 | V19: 5 | W19: 2 | X19: 2 | Y19: 0 | Z19: 0 | AA19: AI1:AI6 | AB19: AJ2:AJ4 | AC19: 0 | AD19: 0 | AE19: 0 | AF19: 0 | AG19: 0 | AH19: 0 | AJ19: 1 | AK19: 0 | AL19: 0
F20: RAMB18 | G20: 0.5 | I20: 0.25 | J20: 1 | K20: NO_CHANGE | L20: 0.5 | N20: 0.25 | O20: 1 | P20: NO_CHANGE | Q20: 0.5 | R20: 0 | S20: 0 | T20: 0 | U20: 5 | V20: 5 | W20: 2 | X20: 2 | Y20: 0 | Z20: 0 | AA20: AI1:AI6 | AB20: AJ2:AJ4 | AC20: 0 | AD20: 0 | AE20: 0 | AF20: 0 | AG20: 0 | AH20: 0 | AJ20: 1 | AK20: 0 | AL20: 0
F21: RAMB18 | G21: 0.5 | I21: 0.25 | J21: 1 | K21: NO_CHANGE | L21: 0.5 | N21: 0.25 | O21: 1 | P21: NO_CHANGE | Q21: 0.5 | R21: 0 | S21: 0 | T21: 0 | U21: 5 | V21: 5 | W21: 2 | X21: 2 | Y21: 0 | Z21: 0 | AA21: AI1:AI6 | AB21: AJ2:AJ4 | AC21: 0 | AD21: 0 | AE21: 0 | AF21: 0 | AG21: 0 | AH21: 0 | AJ21: 1 | AK21: 0 | AL21: 0
F22: RAMB18 | G22: 0.5 | I22: 0.25 | J22: 1 | K22: NO_CHANGE | L22: 0.5 | N22: 0.25 | O22: 1 | P22: NO_CHANGE | Q22: 0.5 | R22: 0 | S22: 0 | T22: 0 | U22: 5 | V22: 5 | W22: 2 | X22: 2 | Y22: 0 | Z22: 0 | AA22: AI1:AI6 | AB22: AJ2:AJ4 | AC22: 0 | AD22: 0 | AE22: 0 | AF22: 0 | AG22: 0 | AH22: 0 | AJ22: 1 | AK22: 0 | AL22: 0
F23: RAMB18 | G23: 0.5 | I23: 0.25 | J23: 1 | K23: NO_CHANGE | L23: 0.5 | N23: 0.25 | O23: 1 | P23: NO_CHANGE | Q23: 0.5 | R23: 0 | S23: 0 | T23: 0 | U23: 5 | V23: 5 | W23: 2 | X23: 2 | Y23: 0 | Z23: 0 | AA23: AI1:AI6 | AB23: AJ2:AJ4 | AC23: 0 | AD23: 0 | AE23: 0 | AF23: 0 | AG23: 0 | AH23: 0 | AJ23: 1 | AK23: 0 | AL23: 0
F24: RAMB18 | G24: 0.5 | I24: 0.25 | J24: 1 | K24: NO_CHANGE | L24: 0.5 | N24: 0.25 | O24: 1 | P24: NO_CHANGE | Q24: 0.5 | R24: 0 | S24: 0 | T24: 0 | U24: 5 | V24: 5 | W24: 2 | X24: 2 | Y24: 0 | Z24: 0 | AA24: AI1:AI6 | AB24: AJ2:AJ4 | AC24: 0 | AD24: 0 | AE24: 0 | AF24: 0 | AG24: 0 | AH24: 0 | AJ24: 1 | AK24: 0 | AL24: 0
F25: RAMB18 | G25: 0.5 | I25: 0.25 | J25: 1 | K25: NO_CHANGE | L25: 0.5 | N25: 0.25 | O25: 1 | P25: NO_CHANGE | Q25: 0.5 | R25: 0 | S25: 0 | T25: 0 | U25: 5 | V25: 5 | W25: 2 | X25: 2 | Y25: 0 | Z25: 0 | AA25: AI1:AI6 | AB25: AJ2:AJ4 | AC25: 0 | AD25: 0 | AE25: 0 | AF25: 0 | AG25: 0 | AH25: 0 | AJ25: 1 | AK25: 0 | AL25: 0
F26: RAMB18 | G26: 0.5 | I26: 0.25 | J26: 1 | K26: NO_CHANGE | L26: 0.5 | N26: 0.25 | O26: 1 | P26: NO_CHANGE | Q26: 0.5 | R26: 0 | S26: 0 | T26: 0 | U26: 5 | V26: 5 | W26: 2 | X26: 2 | Y26: 0 | Z26: 0 | AA26: AI1:AI6 | AB26: AJ2:AJ4 | AC26: 0 | AD26: 0 | AE26: 0 | AF26: 0 | AG26: 0 | AH26: 0 | AJ26: 1 | AK26: 0 | AL26: 0
F27: RAMB18 | G27: 0.5 | I27: 0.25 | J27: 1 | K27: NO_CHANGE | L27: 0.5 | N27: 0.25 | O27: 1 | P27: NO_CHANGE | Q27: 0.5 | R27: 0 | S27: 0 | T27: 0 | U27: 5 | V27: 5 | W27: 2 | X27: 2 | Y27: 0 | Z27: 0 | AA27: AI1:AI6 | AB27: AJ2:AJ4 | AC27: 0 | AD27: 0 | AE27: 0 | AF27: 0 | AG27: 0 | AH27: 0 | AJ27: 1 | AK27: 0 | AL27: 0
F28: RAMB18 | G28: 0.5 | I28: 0.25 | J28: 1 | K28: NO_CHANGE | L28: 0.5 | N28: 0.25 | O28: 1 | P28: NO_CHANGE | Q28: 0.5 | R28: 0 | S28: 0 | T28: 0 | U28: 5 | V28: 5 | W28: 2 | X28: 2 | Y28: 0 | Z28: 0 | AA28: AI1:AI6 | AB28: AJ2:AJ4 | AC28: 0 | AD28: 0 | AE28: 0 | AF28: 0 | AG28: 0 | AH28: 0 | AJ28: 1 | AK28: 0 | AL28: 0
F29: RAMB18 | G29: 0.5 | I29: 0.25 | J29: 1 | K29: NO_CHANGE | L29: 0.5 | N29: 0.25 | O29: 1 | P29: NO_CHANGE | Q29: 0.5 | R29: 0 | S29: 0 | T29: 0 | U29: 5 | V29: 5 | W29: 2 | X29: 2 | Y29: 0 | Z29: 0 | AA29: AI1:AI6 | AB29: AJ2:AJ4 | AC29: 0 | AD29: 0 | AE29: 0 | AF29: 0 | AG29: 0 | AH29: 0 | AJ29: 1 | AK29: 0 | AL29: 0
F30: RAMB18 | G30: 0.5 | I30: 0.25 | J30: 1 | K30: NO_CHANGE | L30: 0.5 | N30: 0.25 | O30: 1 | P30: NO_CHANGE | Q30: 0.5 | R30: 0 | S30: 0 | T30: 0 | U30: 5 | V30: 5 | W30: 2 | X30: 2 | Y30: 0 | Z30: 0 | AA30: AI1:AI6 | AB30: AJ2:AJ4 | AC30: 0 | AD30: 0 | AE30: 0 | AF30: 0 | AG30: 0 | AH30: 0 | AJ30: 1 | AK30: 0 | AL30: 0
F31: RAMB18 | G31: 0.5 | I31: 0.25 | J31: 1 | K31: NO_CHANGE | L31: 0.5 | N31: 0.25 | O31: 1 | P31: NO_CHANGE | Q31: 0.5 | R31: 0 | S31: 0 | T31: 0 | U31: 5 | V31: 5 | W31: 2 | X31: 2 | Y31: 0 | Z31: 0 | AA31: AI1:AI6 | AB31: AJ2:AJ4 | AC31: 0 | AD31: 0 | AE31: 0 | AF31: 0 | AG31: 0 | AH31: 0 | AJ31: 1 | AK31: 0 | AL31: 0
F32: RAMB18 | G32: 0.5 | I32: 0.25 | J32: 1 | K32: NO_CHANGE | L32: 0.5 | N32: 0.25 | O32: 1 | P32: NO_CHANGE | Q32: 0.5 | R32: 0 | S32: 0 | T32: 0 | U32: 5 | V32: 5 | W32: 2 | X32: 2 | Y32: 0 | Z32: 0 | AA32: AI1:AI6 | AB32: AJ2:AJ4 | AC32: 0 | AD32: 0 | AE32: 0 | AF32: 0 | AG32: 0 | AH32: 0 | AJ32: 1 | AK32: 0 | AL32: 0
F33: RAMB18 | G33: 0.5 | I33: 0.25 | J33: 1 | K33: NO_CHANGE | L33: 0.5 | N33: 0.25 | O33: 1 | P33: NO_CHANGE | Q33: 0.5 | R33: 0 | S33: 0 | T33: 0 | U33: 5 | V33: 5 | W33: 2 | X33: 2 | Y33: 0 | Z33: 0 | AA33: AI1:AI6 | AB33: AJ2:AJ4 | AC33: 0 | AD33: 0 | AE33: 0 | AF33: 0 | AG33: 0 | AH33: 0 | AJ33: 1 | AK33: 0 | AL33: 0
F34: RAMB18 | G34: 0.5 | I34: 0.25 | J34: 1 | K34: NO_CHANGE | L34: 0.5 | N34: 0.25 | O34: 1 | P34: NO_CHANGE | Q34: 0.5 | R34: 0 | S34: 0 | T34: 0 | U34: 5 | V34: 5 | W34: 2 | X34: 2 | Y34: 0 | Z34: 0 | AA34: AI1:AI6 | AB34: AJ2:AJ4 | AC34: 0 | AD34: 0 | AE34: 0 | AF34: 0 | AG34: 0 | AH34: 0 | AJ34: 1 | AK34: 0 | AL34: 0
F35: RAMB18 | G35: 0.5 | I35: 0.25 | J35: 1 | K35: NO_CHANGE | L35: 0.5 | N35: 0.25 | O35: 1 | P35: NO_CHANGE | Q35: 0.5 | R35: 0 | S35: 0 | T35: 0 | U35: 5 | V35: 5 | W35: 2 | X35: 2 | Y35: 0 | Z35: 0 | AA35: AI1:AI6 | AB35: AJ2:AJ4 | AC35: 0 | AD35: 0 | AE35: 0 | AF35: 0 | AG35: 0 | AH35: 0 | AJ35: 1 | AK35: 0 | AL35: 0
F36: RAMB18 | G36: 0.5 | I36: 0.25 | J36: 1 | K36: NO_CHANGE | L36: 0.5 | N36: 0.25 | O36: 1 | P36: NO_CHANGE | Q36: 0.5 | R36: 0 | S36: 0 | T36: 0 | U36: 5 | V36: 5 | W36: 2 | X36: 2 | Y36: 0 | Z36: 0 | AA36: AI1:AI6 | AB36: AJ2:AJ4 | AC36: 0 | AD36: 0 | AE36: 0 | AF36: 0 | AG36: 0 | AH36: 0 | AJ36: 1 | AK36: 0 | AL36: 0
F37: RAMB18 | G37: 0.5 | I37: 0.25 | J37: 1 | K37: NO_CHANGE | L37: 0.5 | N37: 0.25 | O37: 1 | P37: NO_CHANGE | Q37: 0.5 | R37: 0 | S37: 0 | T37: 0 | U37: 5 | V37: 5 | W37: 2 | X37: 2 | Y37: 0 | Z37: 0 | AA37: AI1:AI6 | AB37: AJ2:AJ4 | AC37: 0 | AD37: 0 | AE37: 0 | AF37: 0 | AG37: 0 | AH37: 0 | AJ37: 1 | AK37: 0 | AL37: 0
F38: RAMB18 | G38: 0.5 | I38: 0.25 | J38: 1 | K38: NO_CHANGE | L38: 0.5 | N38: 0.25 | O38: 1 | P38: NO_CHANGE | Q38: 0.5 | R38: 0 | S38: 0 | T38: 0 | U38: 5 | V38: 5 | W38: 2 | X38: 2 | Y38: 0 | Z38: 0 | AA38: AI1:AI6 | AB38: AJ2:AJ4 | AC38: 0 | AD38: 0 | AE38: 0 | AF38: 0 | AG38: 0 | AH38: 0 | AJ38: 1 | AK38: 0 | AL38: 0
F39: RAMB18 | G39: 0.5 | I39: 0.25 | J39: 1 | K39: NO_CHANGE | L39: 0.5 | N39: 0.25 | O39: 1 | P39: NO_CHANGE | Q39: 0.5 | R39: 0 | S39: 0 | T39: 0 | U39: 5 | V39: 5 | W39: 2 | X39: 2 | Y39: 0 | Z39: 0 | AA39: AI1:AI6 | AB39: AJ2:AJ4 | AC39: 0 | AD39: 0 | AE39: 0 | AF39: 0 | AG39: 0 | AH39: 0 | AJ39: 1 | AK39: 0 | AL39: 0
F40: RAMB18 | G40: 0.5 | I40: 0.25 | J40: 1 | K40: NO_CHANGE | L40: 0.5 | N40: 0.25 | O40: 1 | P40: NO_CHANGE | Q40: 0.5 | R40: 0 | S40: 0 | T40: 0 | U40: 5 | V40: 5 | W40: 2 | X40: 2 | Y40: 0 | Z40: 0 | AA40: AI1:AI6 | AB40: AJ2:AJ4 | AC40: 0 | AD40: 0 | AE40: 0 | AF40: 0 | AG40: 0 | AH40: 0 | AJ40: 1 | AK40: 0 | AL40: 0
F41: RAMB18 | G41: 0.5 | I41: 0.25 | J41: 1 | K41: NO_CHANGE | L41: 0.5 | N41: 0.25 | O41: 1 | P41: NO_CHANGE | Q41: 0.5 | R41: 0 | S41: 0 | T41: 0 | U41: 5 | V41: 5 | W41: 2 | X41: 2 | Y41: 0 | Z41: 0 | AA41: AI1:AI6 | AB41: AJ2:AJ4 | AC41: 0 | AD41: 0 | AE41: 0 | AF41: 0 | AG41: 0 | AH41: 0 | AJ41: 1 | AK41: 0 | AL41: 0
F42: RAMB18 | G42: 0.5 | I42: 0.25 | J42: 1 | K42: NO_CHANGE | L42: 0.5 | N42: 0.25 | O42: 1 | P42: NO_CHANGE | Q42: 0.5 | R42: 0 | S42: 0 | T42: 0 | U42: 5 | V42: 5 | W42: 2 | X42: 2 | Y42: 0 | Z42: 0 | AA42: AI1:AI6 | AB42: AJ2:AJ4 | AC42: 0 | AD42: 0 | AE42: 0 | AF42: 0 | AG42: 0 | AH42: 0 | AJ42: 1 | AK42: 0 | AL42: 0
F43: RAMB18 | G43: 0.5 | I43: 0.25 | J43: 1 | K43: NO_CHANGE | L43: 0.5 | N43: 0.25 | O43: 1 | P43: NO_CHANGE | Q43: 0.5 | R43: 0 | S43: 0 | T43: 0 | U43: 5 | V43: 5 | W43: 2 | X43: 2 | Y43: 0 | Z43: 0 | AA43: AI1:AI6 | AB43: AJ2:AJ4 | AC43: 0 | AD43: 0 | AE43: 0 | AF43: 0 | AG43: 0 | AH43: 0 | AJ43: 1 | AK43: 0 | AL43: 0
F44: RAMB18 | G44: 0.5 | I44: 0.25 | J44: 1 | K44: NO_CHANGE | L44: 0.5 | N44: 0.25 | O44: 1 | P44: NO_CHANGE | Q44: 0.5 | R44: 0 | S44: 0 | T44: 0 | U44: 5 | V44: 5 | W44: 2 | X44: 2 | Y44: 0 | Z44: 0 | AA44: AI1:AI6 | AB44: AJ2:AJ4 | AC44: 0 | AD44: 0 | AE44: 0 | AF44: 0 | AG44: 0 | AH44: 0 | AJ44: 1 | AK44: 0 | AL44: 0
F45: RAMB18 | G45: 0.5 | I45: 0.25 | J45: 1 | K45: NO_CHANGE | L45: 0.5 | N45: 0.25 | O45: 1 | P45: NO_CHANGE | Q45: 0.5 | R45: 0 | S45: 0 | T45: 0 | U45: 5 | V45: 5 | W45: 2 | X45: 2 | Y45: 0 | Z45: 0 | AA45: AI1:AI6 | AB45: AJ2:AJ4 | AC45: 0 | AD45: 0 | AE45: 0 | AF45: 0 | AG45: 0 | AH45: 0 | AJ45: 1 | AK45: 0 | AL45: 0
F46: RAMB18 | G46: 0.5 | I46: 0.25 | J46: 1 | K46: NO_CHANGE | L46: 0.5 | N46: 0.25 | O46: 1 | P46: NO_CHANGE | Q46: 0.5 | R46: 0 | S46: 0 | T46: 0 | U46: 5 | V46: 5 | W46: 2 | X46: 2 | Y46: 0 | Z46: 0 | AA46: AI1:AI6 | AB46: AJ2:AJ4 | AC46: 0 | AD46: 0 | AE46: 0 | AF46: 0 | AG46: 0 | AH46: 0 | AJ46: 1 | AK46: 0 | AL46: 0
F47: RAMB18 | G47: 0.5 | I47: 0.25 | J47: 1 | K47: NO_CHANGE | L47: 0.5 | N47: 0.25 | O47: 1 | P47: NO_CHANGE | Q47: 0.5 | R47: 0 | S47: 0 | T47: 0 | U47: 5 | V47: 5 | W47: 2 | X47: 2 | Y47: 0 | Z47: 0 | AA47: AI1:AI6 | AB47: AJ2:AJ4 | AC47: 0 | AD47: 0 | AE47: 0 | AF47: 0 | AG47: 0 | AH47: 0 | AJ47: 1 | AK47: 0 | AL47: 0
F48: RAMB18 | G48: 0.5 | I48: 0.25 | J48: 1 | K48: NO_CHANGE | L48: 0.5 | N48: 0.25 | O48: 1 | P48: NO_CHANGE | Q48: 0.5 | R48: 0 | S48: 0 | T48: 0 | U48: 5 | V48: 5 | W48: 2 | X48: 2 | Y48: 0 | Z48: 0 | AA48: AI1:AI6 | AB48: AJ2:AJ4 | AC48: 0 | AD48: 0 | AE48: 0 | AF48: 0 | AG48: 0 | AH48: 0 | AJ48: 1 | AK48: 0 | AL48: 0
F49: RAMB18 | G49: 0.5 | I49: 0.25 | J49: 1 | K49: NO_CHANGE | L49: 0.5 | N49: 0.25 | O49: 1 | P49: NO_CHANGE | Q49: 0.5 | R49: 0 | S49: 0 | T49: 0 | U49: 5 | V49: 5 | W49: 2 | X49: 2 | Y49: 0 | Z49: 0 | AA49: AI1:AI6 | AB49: AJ2:AJ4 | AC49: 0 | AD49: 0 | AE49: 0 | AF49: 0 | AG49: 0 | AH49: 0 | AJ49: 1 | AK49: 0 | AL49: 0
F50: RAMB18 | G50: 0.5 | I50: 0.25 | J50: 1 | K50: NO_CHANGE | L50: 0.5 | N50: 0.25 | O50: 1 | P50: NO_CHANGE | Q50: 0.5 | R50: 0 | S50: 0 | T50: 0 | U50: 5 | V50: 5 | W50: 2 | X50: 2 | Y50: 0 | Z50: 0 | AA50: AI1:AI6 | AB50: AJ2:AJ4 | AC50: 0 | AD50: 0 | AE50: 0 | AF50: 0 | AG50: 0 | AH50: 0 | AJ50: 1 | AK50: 0 | AL50: 0
F51: RAMB18 | G51: 0.5 | I51: 0.25 | J51: 1 | K51: NO_CHANGE | L51: 0.5 | N51: 0.25 | O51: 1 | P51: NO_CHANGE | Q51: 0.5 | R51: 0 | S51: 0 | T51: 0 | U51: 5 | V51: 5 | W51: 2 | X51: 2 | Y51: 0 | Z51: 0 | AA51: AI1:AI6 | AB51: AJ2:AJ4 | AC51: 0 | AD51: 0 | AE51: 0 | AF51: 0 | AG51: 0 | AH51: 0 | AJ51: 1 | AK51: 0 | AL51: 0
F52: RAMB18 | G52: 0.5 | I52: 0.25 | J52: 1 | K52: NO_CHANGE | L52: 0.5 | N52: 0.25 | O52: 1 | P52: NO_CHANGE | Q52: 0.5 | R52: 0 | S52: 0 | T52: 0 | U52: 5 | V52: 5 | W52: 2 | X52: 2 | Y52: 0 | Z52: 0 | AA52: AI1:AI6 | AB52: AJ2:AJ4 | AC52: 0 | AD52: 0 | AE52: 0 | AF52: 0 | AG52: 0 | AH52: 0 | AJ52: 1 | AK52: 0 | AL52: 0
F53: RAMB18 | G53: 0.5 | I53: 0.25 | J53: 1 | K53: NO_CHANGE | L53: 0.5 | N53: 0.25 | O53: 1 | P53: NO_CHANGE | Q53: 0.5 | R53: 0 | S53: 0 | T53: 0 | U53: 5 | V53: 5 | W53: 2 | X53: 2 | Y53: 0 | Z53: 0 | AA53: AI1:AI6 | AB53: AJ2:AJ4 | AC53: 0 | AD53: 0 | AE53: 0 | AF53: 0 | AG53: 0 | AH53: 0 | AJ53: 1 | AK53: 0 | AL53: 0
F54: RAMB18 | G54: 0.5 | I54: 0.25 | J54: 1 | K54: NO_CHANGE | L54: 0.5 | N54: 0.25 | O54: 1 | P54: NO_CHANGE | Q54: 0.5 | R54: 0 | S54: 0 | T54: 0 | U54: 5 | V54: 5 | W54: 2 | X54: 2 | Y54: 0 | Z54: 0 | AA54: AI1:AI6 | AB54: AJ2:AJ4 | AC54: 0 | AD54: 0 | AE54: 0 | AF54: 0 | AG54: 0 | AH54: 0 | AJ54: 1 | AK54: 0 | AL54: 0
F55: RAMB18 | G55: 0.5 | I55: 0.25 | J55: 1 | K55: NO_CHANGE | L55: 0.5 | N55: 0.25 | O55: 1 | P55: NO_CHANGE | Q55: 0.5 | R55: 0 | S55: 0 | T55: 0 | U55: 5 | V55: 5 | W55: 2 | X55: 2 | Y55: 0 | Z55: 0 | AA55: AI1:AI6 | AB55: AJ2:AJ4 | AC55: 0 | AD55: 0 | AE55: 0 | AF55: 0 | AG55: 0 | AH55: 0 | AJ55: 1 | AK55: 0 | AL55: 0
F56: RAMB18 | G56: 0.5 | I56: 0.25 | J56: 1 | K56: NO_CHANGE | L56: 0.5 | N56: 0.25 | O56: 1 | P56: NO_CHANGE | Q56: 0.5 | R56: 0 | S56: 0 | T56: 0 | U56: 5 | V56: 5 | W56: 2 | X56: 2 | Y56: 0 | Z56: 0 | AA56: AI1:AI6 | AB56: AJ2:AJ4 | AC56: 0 | AD56: 0 | AE56: 0 | AF56: 0 | AG56: 0 | AH56: 0 | AJ56: 1 | AK56: 0 | AL56: 0
F57: RAMB18 | G57: 0.5 | I57: 0.25 | J57: 1 | K57: NO_CHANGE | L57: 0.5 | N57: 0.25 | O57: 1 | P57: NO_CHANGE | Q57: 0.5 | R57: 0 | S57: 0 | T57: 0 | U57: 5 | V57: 5 | W57: 2 | X57: 2 | Y57: 0 | Z57: 0 | AA57: AI1:AI6 | AB57: AJ2:AJ4 | AC57: 0 | AD57: 0 | AE57: 0 | AF57: 0 | AG57: 0 | AH57: 0 | AJ57: 1 | AK57: 0 | AL57: 0
F58: RAMB18 | G58: 0.5 | I58: 0.25 | J58: 1 | K58: NO_CHANGE | L58: 0.5 | N58: 0.25 | O58: 1 | P58: NO_CHANGE | Q58: 0.5 | R58: 0 | S58: 0 | T58: 0 | U58: 5 | V58: 5 | W58: 2 | X58: 2 | Y58: 0 | Z58: 0 | AA58: AI1:AI6 | AB58: AJ2:AJ4 | AC58: 0 | AD58: 0 | AE58: 0 | AF58: 0 | AG58: 0 | AH58: 0 | AJ58: 1 | AK58: 0 | AL58: 0
F59: RAMB18 | G59: 0.5 | I59: 0.25 | J59: 1 | K59: NO_CHANGE | L59: 0.5 | N59: 0.25 | O59: 1 | P59: NO_CHANGE | Q59: 0.5 | R59: 0 | S59: 0 | T59: 0 | U59: 5 | V59: 5 | W59: 2 | X59: 2 | Y59: 0 | Z59: 0 | AA59: AI1:AI6 | AB59: AJ2:AJ4 | AC59: 0 | AD59: 0 | AE59: 0 | AF59: 0 | AG59: 0 | AH59: 0 | AJ59: 1 | AK59: 0 | AL59: 0
F60: RAMB18 | G60: 0.5 | I60: 0.25 | J60: 1 | K60: NO_CHANGE | L60: 0.5 | N60: 0.25 | O60: 1 | P60: NO_CHANGE | Q60: 0.5 | R60: 0 | S60: 0 | T60: 0 | U60: 5 | V60: 5 | W60: 2 | X60: 2 | Y60: 0 | Z60: 0 | AA60: AI1:AI6 | AB60: AJ2:AJ4 | AC60: 0 | AD60: 0 | AE60: 0 | AF60: 0 | AG60: 0 | AH60: 0 | AJ60: 1 | AK60: 0 | AL60: 0
F61: RAMB18 | G61: 0.5 | I61: 0.25 | J61: 1 | K61: NO_CHANGE | L61: 0.5 | N61: 0.25 | O61: 1 | P61: NO_CHANGE | Q61: 0.5 | R61: 0 | S61: 0 | T61: 0 | U61: 5 | V61: 5 | W61: 2 | X61: 2 | Y61: 0 | Z61: 0 | AA61: AI1:AI6 | AB61: AJ2:AJ4 | AC61: 0 | AD61: 0 | AE61: 0 | AF61: 0 | AG61: 0 | AH61: 0 | AJ61: 1 | AK61: 0 | AL61: 0
F62: RAMB18 | G62: 0.5 | I62: 0.25 | J62: 1 | K62: NO_CHANGE | L62: 0.5 | N62: 0.25 | O62: 1 | P62: NO_CHANGE | Q62: 0.5 | R62: 0 | S62: 0 | T62: 0 | U62: 5 | V62: 5 | W62: 2 | X62: 2 | Y62: 0 | Z62: 0 | AA62: AI1:AI6 | AB62: AJ2:AJ4 | AC62: 0 | AD62: 0 | AE62: 0 | AF62: 0 | AG62: 0 | AH62: 0 | AJ62: 1 | AK62: 0 | AL62: 0
F63: RAMB18 | G63: 0.5 | I63: 0.25 | J63: 1 | K63: NO_CHANGE | L63: 0.5 | N63: 0.25 | O63: 1 | P63: NO_CHANGE | Q63: 0.5 | R63: 0 | S63: 0 | T63: 0 | U63: 5 | V63: 5 | W63: 2 | X63: 2 | Y63: 0 | Z63: 0 | AA63: AI1:AI6 | AB63: AJ2:AJ4 | AC63: 0 | AD63: 0 | AE63: 0 | AF63: 0 | AG63: 0 | AH63: 0 | AJ63: 1 | AK63: 0 | AL63: 0
F64: RAMB18 | G64: 0.5 | I64: 0.25 | J64: 1 | K64: NO_CHANGE | L64: 0.5 | N64: 0.25 | O64: 1 | P64: NO_CHANGE | Q64: 0.5 | R64: 0 | S64: 0 | T64: 0 | U64: 5 | V64: 5 | W64: 2 | X64: 2 | Y64: 0 | Z64: 0 | AA64: AI1:AI6 | AB64: AJ2:AJ4 | AC64: 0 | AD64: 0 | AE64: 0 | AF64: 0 | AG64: 0 | AH64: 0 | AJ64: 1 | AK64: 0 | AL64: 0
F65: RAMB18 | G65: 0.5 | I65: 0.25 | J65: 1 | K65: NO_CHANGE | L65: 0.5 | N65: 0.25 | O65: 1 | P65: NO_CHANGE | Q65: 0.5 | R65: 0 | S65: 0 | T65: 0 | U65: 5 | V65: 5 | W65: 2 | X65: 2 | Y65: 0 | Z65: 0 | AA65: AI1:AI6 | AB65: AJ2:AJ4 | AC65: 0 | AD65: 0 | AE65: 0 | AF65: 0 | AG65: 0 | AH65: 0 | AJ65: 1 | AK65: 0 | AL65: 0
F66: RAMB18 | G66: 0.5 | I66: 0.25 | J66: 1 | K66: NO_CHANGE | L66: 0.5 | N66: 0.25 | O66: 1 | P66: NO_CHANGE | Q66: 0.5 | R66: 0 | S66: 0 | T66: 0 | U66: 5 | V66: 5 | W66: 2 | X66: 2 | Y66: 0 | Z66: 0 | AA66: AI1:AI6 | AB66: AJ2:AJ4 | AC66: 0 | AD66: 0 | AE66: 0 | AF66: 0 | AG66: 0 | AH66: 0 | AJ66: 1 | AK66: 0 | AL66: 0
F67: RAMB18 | G67: 0.5 | I67: 0.25 | J67: 1 | K67: NO_CHANGE | L67: 0.5 | N67: 0.25 | O67: 1 | P67: NO_CHANGE | Q67: 0.5 | R67: 0 | S67: 0 | T67: 0 | U67: 5 | V67: 5 | W67: 2 | X67: 2 | Y67: 0 | Z67: 0 | AA67: AI1:AI6 | AB67: AJ2:AJ4 | AC67: 0 | AD67: 0 | AE67: 0 | AF67: 0 | AG67: 0 | AH67: 0 | AJ67: 1 | AK67: 0 | AL67: 0
F68: RAMB18 | G68: 0.5 | I68: 0.25 | J68: 1 | K68: NO_CHANGE | L68: 0.5 | N68: 0.25 | O68: 1 | P68: NO_CHANGE | Q68: 0.5 | R68: 0 | S68: 0 | T68: 0 | U68: 5 | V68: 5 | W68: 2 | X68: 2 | Y68: 0 | Z68: 0 | AA68: AI1:AI6 | AB68: AJ2:AJ4 | AC68: 0 | AD68: 0 | AE68: 0 | AF68: 0 | AG68: 0 | AH68: 0 | AJ68: 1 | AK68: 0 | AL68: 0
F69: RAMB18 | G69: 0.5 | I69: 0.25 | J69: 1 | K69: NO_CHANGE | L69: 0.5 | N69: 0.25 | O69: 1 | P69: NO_CHANGE | Q69: 0.5 | R69: 0 | S69: 0 | T69: 0 | U69: 5 | V69: 5 | W69: 2 | X69: 2 | Y69: 0 | Z69: 0 | AA69: AI1:AI6 | AB69: AJ2:AJ4 | AC69: 0 | AD69: 0 | AE69: 0 | AF69: 0 | AG69: 0 | AH69: 0 | AJ69: 1 | AK69: 0 | AL69: 0
F70: RAMB18 | G70: 0.5 | I70: 0.25 | J70: 1 | K70: NO_CHANGE | L70: 0.5 | N70: 0.25 | O70: 1 | P70: NO_CHANGE | Q70: 0.5 | R70: 0 | S70: 0 | T70: 0 | U70: 5 | V70: 5 | W70: 2 | X70: 2 | Y70: 0 | Z70: 0 | AA70: AI1:AI6 | AB70: AJ2:AJ4 | AC70: 0 | AD70: 0 | AE70: 0 | AF70: 0 | AG70: 0 | AH70: 0 | AJ70: 1 | AK70: 0 | AL70: 0
F71: RAMB18 | G71: 0.5 | I71: 0.25 | J71: 1 | K71: NO_CHANGE | L71: 0.5 | N71: 0.25 | O71: 1 | P71: NO_CHANGE | Q71: 0.5 | R71: 0 | S71: 0 | T71: 0 | U71: 5 | V71: 5 | W71: 2 | X71: 2 | Y71: 0 | Z71: 0 | AA71: AI1:AI6 | AB71: AJ2:AJ4 | AC71: 0 | AD71: 0 | AE71: 0 | AF71: 0 | AG71: 0 | AH71: 0 | AJ71: 1 | AK71: 0 | AL71: 0
F72: RAMB18 | G72: 0.5 | I72: 0.25 | J72: 1 | K72: NO_CHANGE | L72: 0.5 | N72: 0.25 | O72: 1 | P72: NO_CHANGE | Q72: 0.5 | R72: 0 | S72: 0 | T72: 0 | U72: 5 | V72: 5 | W72: 2 | X72: 2 | Y72: 0 | Z72: 0 | AA72: AI1:AI6 | AB72: AJ2:AJ4 | AC72: 0 | AD72: 0 | AE72: 0 | AF72: 0 | AG72: 0 | AH72: 0 | AJ72: 1 | AK72: 0 | AL72: 0
F73: RAMB18 | G73: 0.5 | I73: 0.25 | J73: 1 | K73: NO_CHANGE | L73: 0.5 | N73: 0.25 | O73: 1 | P73: NO_CHANGE | Q73: 0.5 | R73: 0 | S73: 0 | T73: 0 | U73: 5 | V73: 5 | W73: 2 | X73: 2 | Y73: 0 | Z73: 0 | AA73: AI1:AI6 | AB73: AJ2:AJ4 | AC73: 0 | AD73: 0 | AE73: 0 | AF73: 0 | AG73: 0 | AH73: 0 | AJ73: 1 | AK73: 0 | AL73: 0
F74: RAMB18 | G74: 0.5 | I74: 0.25 | J74: 1 | K74: NO_CHANGE | L74: 0.5 | N74: 0.25 | O74: 1 | P74: NO_CHANGE | Q74: 0.5 | R74: 0 | S74: =(VCCINT/1000)*VCCINT_N*(IF($Z74=1,MAX($AD74,$AF74),$AD74+$AF74)+$AC74+$AH74)*IF($AJ74>0,OFFSET(POWER_OPT,OFFSET(OPTIMIZATION,0,3),3),1) -> 0 | T74: =VCCBRAM/1000*(IF($Z74=1,MAX($AE74,$AG74),$AE74+$AG74))*IF($AJ74>0,OFFSET(POWER_OPT,OFFSET(OPTIMIZATION,0,3),3),1) -> 0 | U74: =IF(LEN($F74)=0,0,MATCH(IF((LEFT($F74,4)="RAMB")+($F74="CASC (pair)"),$F74 & IF($AK74=1,"NO_CHANGE",$K74),IF(AND($H74<>$M74,OR($F74="FIFO18",$F74="FIFO36")),"ASYNC_" & $F74,$F74)),BRAM_MODE_LIST,FALSE)) -> 5 | V74: =IF(LEN($F74)=0,0,MATCH(IF((LEFT($F74,4)="RAMB")+($F74="CASC (pair)"),$F74 & IF((RIGHT($F74,3)="SDP"),"NO_CHANGE", IF($AL74=1,"NO_CHANGE",$P74)),IF(AND($H74<>$M74,OR($F74="FIFO18",$F74="FIFO36")),"ASYNC_" & $F74,$F74)),BRAM_MODE_LIST,FALSE)) -> 5 | W74: 2 | X74: 2 | Y74: 0 | Z74: 0 | AA74: AI1:AI6 | AB74: AJ2:AJ4 | AC74: =$Y74*4*($H74+$M74)*OFFSET(CLOCK_DATA,5,4) -> 0 | AD74: =$E74*MIN(1,LN(1+$G74*5 + 1.33))*(($H74*IF(AND($AJ74=1,$N74=1,$Z74=2),MIN($I74,$Q74),IF(AND($AJ74=1,$I74=1,$L74>0,$N74>0,$Q74=0),$L74,$I74))*IF($Z74=0,(1-$L74),1)*OFFSET(BRAM_TABLE,$W74,$U74)) + ($H74*IF(AND($AJ74=1,$N74=1,$Z74=2),MIN($I74,$Q74),IF(AND($AJ74=1,$I74=1,$L74>0,$N74>0,$Q74=0),$L74,$I74))*IF($Z74=0,$L74,0)*OFFSET(BRAM_TABLE,$W74,$U74+1)))/1000 -> 0 | AE74: =$E74*0.7*(($H74*IF(AND($AJ74=1,$N74=1,$Z74=2),MIN($I74,$Q74),IF(AND($AJ74=1,$I74=1,$L74>0,$N74>0,$Q74=0),$L74,$I74))*IF($Z74=0,(1-$L74),IF($Z74=1,1,0.5)))*OFFSET(BRAM_TABLE,$W74+9,$U74) + ($H74*IF(AND($AJ74=1,$N74=1,$Z74=2),MIN($I74,$Q74),IF(AND($AJ74=1,$I74=1,$L74>0,$N74>0,$Q74=0),$L74,$I74))*IF($Z74=0,$L74,0))*OFFSET(BRAM_TABLE,$W74+9,$U74+1))/1000 -> 0 | AF74: =$E74*MIN(1,LN(1+$G74*5 + 1.33))*($M74*IF(AND($Z74=0,$AJ74=1,$N74=1,$Q74>0,$I74>0,$L74=0),$Q74,$N74)*IF($Z74=0,1-$Q74,IF($Z74=1,0,0.5))*OFFSET(BRAM_TABLE,$X74,$V74) + ($M74*IF(AND($Z74=0,$AJ74=1,$N74=1,$Q74>0,$I74>0,$L74=0),$Q74,$N74)*$Q74)*OFFSET(BRAM_TABLE,$X74,$V74+1))/1000 -> 0 | AG74: =$E74*0.7*($M74*IF(AND($Z74=0,$AJ74=1,$N74=1,$Q74>0,$I74>0,$L74=0),$Q74,$N74)*IF($Z74=0,1-$L74,IF($Z74=1,0,0.5))*OFFSET(BRAM_TABLE,$X74+9,$V74)+$Q74*$M74*IF(AND($Z74=0,$AJ74=1,$N74=1,$Q74>0,$I74>0,$L74=0),$Q74,$N74)*OFFSET(BRAM_TABLE,$X74+9,$V74+1))/1000 -> 0 | AH74: =(IF(Z74=0,IF(OR($P74="NO_CHANGE",$AL74=1),1-$Q74,2),0)*$O74*$M74*IF(AND($Z74=0,$AJ74=1,$N74=1,$Q74>0,$I74>0,$L74=0),$Q74,$N74)+IF(Z74>0,1,IF(OR($K74="NO_CHANGE",$AK74=1),1-$L74,2))*$J74*$H74*IF(AND($AJ74=1,$N74=1,$Z74=2),MIN($I74,$Q74),IF(AND($AJ74=1,$Z74=0,$I74=1,$L74>0,$N74>0,$Q74=0),$L74,$I74)))*$E74*$G74*OFFSET(FANOUT,5,13) -> 0 | AJ74: 1 | AK74: 0 | AL74: 0
F75: RAMB18 | G75: 0.5 | I75: 0.25 | J75: 1 | K75: NO_CHANGE | L75: 0.5 | N75: 0.25 | O75: 1 | P75: NO_CHANGE | Q75: 0.5 | R75: =IF((AD75+AF75)<=0,0,((IF($AF75>0,$O75+8,0)*$M75*$N75+IF($AD75>0,$J75+8,0)*$H75*$I75)*$G75/(IF($AF75>0,$O75+8,0)+IF($AD75>0,$J75+8,0)))) -> 0 | S75: 0 | T75: 0 | U75: 5 | V75: 5 | W75: =MATCH(IF(J75=64,72,J75),BRAM_WIDTH_LIST,FALSE) -> 2 | X75: =MATCH(IF(O75=64,72,O75),BRAM_WIDTH_LIST,FALSE) -> 2 | Y75: =IF(($F75="RAMB18")+($F75="RAMB18SDP")+($F75="FIFO18")+($F75="FIFO18_36"),INT(($E75+1)/2),IF(($F75="CASC (pair)"),2*$E75,$E75)) -> 0 | Z75: =IF(($F75="RAMB18")+($F75="RAMB36")+($F75="CASC (pair)"),0,IF(ISERR(FIND("SDP", $F75)),1,2)) -> 0 | AA75: =IF(LEN($F75)=0,"AI1:AI1",IF($F75="RAMB18","AI1:AI6",IF($F75="RAMB36","AI1:AI7",IF($F75="FIFO18","AI4:AI6",IF($F75="FIFO36","AI4:AI7",IF(($F75="FIFO18_36")+(F75="RAMB18SDP"),"AI7",IF($F75="CASC (pair)","AI2",IF(RIGHT(F75,3)="ECC","AI9","AI8")))))))) -> AI1:AI6 | AB75: =IF(LEFT($F75,4)="FIFO","AJ1",IF((LEN($F75)>8)*(MID($F75,7,3)="SDP"),"AJ2:AJ3","AJ2:AJ4")) -> AJ2:AJ4 | AC75: 0 | AD75: 0 | AE75: 0 | AF75: 0 | AG75: 0 | AH75: 0 | AJ75: =IF(AND($Z75<>1,$A75<>1,$U$1<>"off"),1,0) -> 1 | AK75: =IF(AND($AJ75=1,OR($Z75=2,$Q75=0,$L75=0),$H75<>$M75),1,0) -> 0 | AL75: 0
F76: RAMB18 | G76: 0.5 | I76: 0.25 | J76: 1 | K76: NO_CHANGE | L76: 0.5 | N76: 0.25 | O76: 1 | P76: NO_CHANGE | Q76: 0.5 | R76: 0 | S76: 0 | T76: 0 | U76: 5 | V76: 5 | W76: 2 | X76: 2 | Y76: 0 | Z76: 0 | AA76: AI1:AI6 | AB76: AJ2:AJ4 | AC76: 0 | AD76: 0 | AE76: 0 | AF76: 0 | AG76: 0 | AH76: 0 | AJ76: 1 | AK76: 0 | AL76: 0
F77: RAMB18 | G77: 0.5 | I77: 0.25 | J77: 1 | K77: NO_CHANGE | L77: 0.5 | N77: 0.25 | O77: 1 | P77: NO_CHANGE | Q77: 0.5 | R77: 0 | S77: 0 | T77: 0 | U77: 5 | V77: 5 | W77: 2 | X77: 2 | Y77: 0 | Z77: 0 | AA77: AI1:AI6 | AB77: AJ2:AJ4 | AC77: 0 | AD77: 0 | AE77: 0 | AF77: 0 | AG77: 0 | AH77: 0 | AJ77: 1 | AK77: 0 | AL77: 0
F78: RAMB18 | G78: 0.5 | I78: 0.25 | J78: 1 | K78: NO_CHANGE | L78: 0.5 | N78: 0.25 | O78: 1 | P78: NO_CHANGE | Q78: 0.5 | R78: 0 | S78: 0 | T78: 0 | U78: 5 | V78: 5 | W78: 2 | X78: 2 | Y78: 0 | Z78: 0 | AA78: AI1:AI6 | AB78: AJ2:AJ4 | AC78: 0 | AD78: 0 | AE78: 0 | AF78: 0 | AG78: 0 | AH78: 0 | AJ78: 1 | AK78: 0 | AL78: 0
F79: RAMB18 | G79: 0.5 | I79: 0.25 | J79: 1 | K79: NO_CHANGE | L79: 0.5 | N79: 0.25 | O79: 1 | P79: NO_CHANGE | Q79: 0.5 | R79: 0 | S79: 0 | T79: 0 | U79: 5 | V79: 5 | W79: 2 | X79: 2 | Y79: 0 | Z79: 0 | AA79: AI1:AI6 | AB79: AJ2:AJ4 | AC79: 0 | AD79: 0 | AE79: 0 | AF79: 0 | AG79: 0 | AH79: 0 | AJ79: 1 | AK79: 0 | AL79: 0
F80: RAMB18 | G80: 0.5 | I80: 0.25 | J80: 1 | K80: NO_CHANGE | L80: 0.5 | N80: 0.25 | O80: 1 | P80: NO_CHANGE | Q80: 0.5 | R80: 0 | S80: 0 | T80: 0 | U80: 5 | V80: 5 | W80: 2 | X80: 2 | Y80: 0 | Z80: 0 | AA80: AI1:AI6 | AB80: AJ2:AJ4 | AC80: 0 | AD80: 0 | AE80: 0 | AF80: 0 | AG80: 0 | AH80: 0 | AJ80: 1 | AK80: 0 | AL80: 0
F81: RAMB18 | G81: 0.5 | I81: 0.25 | J81: 1 | K81: NO_CHANGE | L81: 0.5 | N81: 0.25 | O81: 1 | P81: NO_CHANGE | Q81: 0.5 | R81: 0 | S81: 0 | T81: 0 | U81: 5 | V81: 5 | W81: 2 | X81: 2 | Y81: 0 | Z81: 0 | AA81: AI1:AI6 | AB81: AJ2:AJ4 | AC81: 0 | AD81: 0 | AE81: 0 | AF81: 0 | AG81: 0 | AH81: 0 | AJ81: 1 | AK81: 0 | AL81: 0
F82: RAMB18 | G82: 0.5 | I82: 0.25 | J82: 1 | K82: NO_CHANGE | L82: 0.5 | N82: 0.25 | O82: 1 | P82: NO_CHANGE | Q82: 0.5 | R82: 0 | S82: 0 | T82: 0 | U82: 5 | V82: 5 | W82: 2 | X82: 2 | Y82: 0 | Z82: 0 | AA82: AI1:AI6 | AB82: AJ2:AJ4 | AC82: 0 | AD82: 0 | AE82: 0 | AF82: 0 | AG82: 0 | AH82: 0 | AJ82: 1 | AK82: 0 | AL82: 0
F83: RAMB18 | G83: 0.5 | I83: 0.25 | J83: 1 | K83: NO_CHANGE | L83: 0.5 | N83: 0.25 | O83: 1 | P83: NO_CHANGE | Q83: 0.5 | R83: 0 | S83: 0 | T83: 0 | U83: 5 | V83: 5 | W83: 2 | X83: 2 | Y83: 0 | Z83: 0 | AA83: AI1:AI6 | AB83: AJ2:AJ4 | AC83: 0 | AD83: 0 | AE83: 0 | AF83: 0 | AG83: 0 | AH83: 0 | AJ83: 1 | AK83: 0 | AL83: 0
F84: RAMB18 | G84: 0.5 | I84: 0.25 | J84: 1 | K84: NO_CHANGE | L84: 0.5 | N84: 0.25 | O84: 1 | P84: NO_CHANGE | Q84: 0.5 | R84: 0 | S84: 0 | T84: 0 | U84: 5 | V84: 5 | W84: 2 | X84: 2 | Y84: 0 | Z84: 0 | AA84: AI1:AI6 | AB84: AJ2:AJ4 | AC84: 0 | AD84: 0 | AE84: 0 | AF84: 0 | AG84: 0 | AH84: 0 | AJ84: 1 | AK84: 0 | AL84: 0
F85: RAMB18 | G85: 0.5 | I85: 0.25 | J85: 1 | K85: NO_CHANGE | L85: 0.5 | N85: 0.25 | O85: 1 | P85: NO_CHANGE | Q85: 0.5 | R85: 0 | S85: 0 | T85: 0 | U85: 5 | V85: 5 | W85: 2 | X85: 2 | Y85: 0 | Z85: 0 | AA85: AI1:AI6 | AB85: AJ2:AJ4 | AC85: 0 | AD85: 0 | AE85: 0 | AF85: 0 | AG85: 0 | AH85: 0 | AJ85: 1 | AK85: 0 | AL85: 0
F86: RAMB18 | G86: 0.5 | I86: 0.25 | J86: 1 | K86: NO_CHANGE | L86: 0.5 | N86: 0.25 | O86: 1 | P86: NO_CHANGE | Q86: 0.5 | R86: 0 | S86: 0 | T86: 0 | U86: 5 | V86: 5 | W86: 2 | X86: 2 | Y86: 0 | Z86: 0 | AA86: AI1:AI6 | AB86: AJ2:AJ4 | AC86: 0 | AD86: 0 | AE86: 0 | AF86: 0 | AG86: 0 | AH86: 0 | AJ86: 1 | AK86: 0 | AL86: 0
F87: RAMB18 | G87: 0.5 | I87: 0.25 | J87: 1 | K87: NO_CHANGE | L87: 0.5 | N87: 0.25 | O87: 1 | P87: NO_CHANGE | Q87: 0.5 | R87: 0 | S87: 0 | T87: 0 | U87: 5 | V87: 5 | W87: 2 | X87: 2 | Y87: 0 | Z87: 0 | AA87: AI1:AI6 | AB87: AJ2:AJ4 | AC87: 0 | AD87: 0 | AE87: 0 | AF87: 0 | AG87: 0 | AH87: 0 | AJ87: 1 | AK87: 0 | AL87: 0
F88: RAMB18 | G88: 0.5 | I88: 0.25 | J88: 1 | K88: NO_CHANGE | L88: 0.5 | N88: 0.25 | O88: 1 | P88: NO_CHANGE | Q88: 0.5 | R88: 0 | S88: 0 | T88: 0 | U88: 5 | V88: 5 | W88: 2 | X88: 2 | Y88: 0 | Z88: 0 | AA88: AI1:AI6 | AB88: AJ2:AJ4 | AC88: 0 | AD88: 0 | AE88: 0 | AF88: 0 | AG88: 0 | AH88: 0 | AJ88: 1 | AK88: 0 | AL88: 0
F89: RAMB18 | G89: 0.5 | I89: 0.25 | J89: 1 | K89: NO_CHANGE | L89: 0.5 | N89: 0.25 | O89: 1 | P89: NO_CHANGE | Q89: 0.5 | R89: 0 | S89: 0 | T89: 0 | U89: 5 | V89: 5 | W89: 2 | X89: 2 | Y89: 0 | Z89: 0 | AA89: AI1:AI6 | AB89: AJ2:AJ4 | AC89: 0 | AD89: 0 | AE89: 0 | AF89: 0 | AG89: 0 | AH89: 0 | AJ89: 1 | AK89: 0 | AL89: 0
F90: RAMB18 | G90: 0.5 | I90: 0.25 | J90: 1 | K90: NO_CHANGE | L90: 0.5 | N90: 0.25 | O90: 1 | P90: NO_CHANGE | Q90: 0.5 | R90: 0 | S90: 0 | T90: 0 | U90: 5 | V90: 5 | W90: 2 | X90: 2 | Y90: 0 | Z90: 0 | AA90: AI1:AI6 | AB90: AJ2:AJ4 | AC90: 0 | AD90: 0 | AE90: 0 | AF90: 0 | AG90: 0 | AH90: 0 | AJ90: 1 | AK90: 0 | AL90: 0
F91: RAMB18 | G91: 0.5 | I91: 0.25 | J91: 1 | K91: NO_CHANGE | L91: 0.5 | N91: 0.25 | O91: 1 | P91: NO_CHANGE | Q91: 0.5 | R91: 0 | S91: 0 | T91: 0 | U91: 5 | V91: 5 | W91: 2 | X91: 2 | Y91: 0 | Z91: 0 | AA91: AI1:AI6 | AB91: AJ2:AJ4 | AC91: 0 | AD91: 0 | AE91: 0 | AF91: 0 | AG91: 0 | AH91: 0 | AJ91: 1 | AK91: 0 | AL91: 0
F92: RAMB18 | G92: 0.5 | I92: 0.25 | J92: 1 | K92: NO_CHANGE | L92: 0.5 | N92: 0.25 | O92: 1 | P92: NO_CHANGE | Q92: 0.5 | R92: 0 | S92: 0 | T92: 0 | U92: 5 | V92: 5 | W92: 2 | X92: 2 | Y92: 0 | Z92: 0 | AA92: AI1:AI6 | AB92: AJ2:AJ4 | AC92: 0 | AD92: 0 | AE92: 0 | AF92: 0 | AG92: 0 | AH92: 0 | AJ92: 1 | AK92: 0 | AL92: 0
F93: RAMB18 | G93: 0.5 | I93: 0.25 | J93: 1 | K93: NO_CHANGE | L93: 0.5 | N93: 0.25 | O93: 1 | P93: NO_CHANGE | Q93: 0.5 | R93: 0 | S93: 0 | T93: 0 | U93: 5 | V93: 5 | W93: 2 | X93: 2 | Y93: 0 | Z93: 0 | AA93: AI1:AI6 | AB93: AJ2:AJ4 | AC93: 0 | AD93: 0 | AE93: 0 | AF93: 0 | AG93: 0 | AH93: 0 | AJ93: 1 | AK93: 0 | AL93: 0
F94: RAMB18 | G94: 0.5 | I94: 0.25 | J94: 1 | K94: NO_CHANGE | L94: 0.5 | N94: 0.25 | O94: 1 | P94: NO_CHANGE | Q94: 0.5 | R94: 0 | S94: 0 | T94: 0 | U94: 5 | V94: 5 | W94: 2 | X94: 2 | Y94: 0 | Z94: 0 | AA94: AI1:AI6 | AB94: AJ2:AJ4 | AC94: 0 | AD94: 0 | AE94: 0 | AF94: 0 | AG94: 0 | AH94: 0 | AJ94: 1 | AK94: 0 | AL94: 0
F95: RAMB18 | G95: 0.5 | I95: 0.25 | J95: 1 | K95: NO_CHANGE | L95: 0.5 | N95: 0.25 | O95: 1 | P95: NO_CHANGE | Q95: 0.5 | R95: 0 | S95: 0 | T95: 0 | U95: 5 | V95: 5 | W95: 2 | X95: 2 | Y95: 0 | Z95: 0 | AA95: AI1:AI6 | AB95: AJ2:AJ4 | AC95: 0 | AD95: 0 | AE95: 0 | AF95: 0 | AG95: 0 | AH95: 0 | AJ95: 1 | AK95: 0 | AL95: 0
F96: RAMB18 | G96: 0.5 | I96: 0.25 | J96: 1 | K96: NO_CHANGE | L96: 0.5 | N96: 0.25 | O96: 1 | P96: NO_CHANGE | Q96: 0.5 | R96: 0 | S96: 0 | T96: 0 | U96: 5 | V96: 5 | W96: 2 | X96: 2 | Y96: 0 | Z96: 0 | AA96: AI1:AI6 | AB96: AJ2:AJ4 | AC96: 0 | AD96: 0 | AE96: 0 | AF96: 0 | AG96: 0 | AH96: 0 | AJ96: 1 | AK96: 0 | AL96: 0
F97: RAMB18 | G97: 0.5 | I97: 0.25 | J97: 1 | K97: NO_CHANGE | L97: 0.5 | N97: 0.25 | O97: 1 | P97: NO_CHANGE | Q97: 0.5 | R97: 0 | S97: 0 | T97: 0 | U97: 5 | V97: 5 | W97: 2 | X97: 2 | Y97: 0 | Z97: 0 | AA97: AI1:AI6 | AB97: AJ2:AJ4 | AC97: 0 | AD97: 0 | AE97: 0 | AF97: 0 | AG97: 0 | AH97: 0 | AJ97: 1 | AK97: 0 | AL97: 0
F98: RAMB18 | G98: 0.5 | I98: 0.25 | J98: 1 | K98: NO_CHANGE | L98: 0.5 | N98: 0.25 | O98: 1 | P98: NO_CHANGE | Q98: 0.5 | R98: 0 | S98: 0 | T98: 0 | U98: 5 | V98: 5 | W98: 2 | X98: 2 | Y98: 0 | Z98: 0 | AA98: AI1:AI6 | AB98: AJ2:AJ4 | AC98: 0 | AD98: 0 | AE98: 0 | AF98: 0 | AG98: 0 | AH98: 0 | AJ98: 1 | AK98: 0 | AL98: 0
F99: RAMB18 | G99: 0.5 | I99: 0.25 | J99: 1 | K99: NO_CHANGE | L99: 0.5 | N99: 0.25 | O99: 1 | P99: NO_CHANGE | Q99: 0.5 | R99: 0 | S99: 0 | T99: 0 | U99: 5 | V99: 5 | W99: 2 | X99: 2 | Y99: 0 | Z99: 0 | AA99: AI1:AI6 | AB99: AJ2:AJ4 | AC99: 0 | AD99: 0 | AE99: 0 | AF99: 0 | AG99: 0 | AH99: 0 | AJ99: 1 | AK99: 0 | AL99: 0
F100: RAMB18 | G100: 0.5 | I100: 0.25 | J100: 1 | K100: NO_CHANGE | L100: 0.5 | N100: 0.25 | O100: 1 | P100: NO_CHANGE | Q100: 0.5 | R100: 0 | S100: 0 | T100: 0 | U100: 5 | V100: 5 | W100: 2 | X100: 2 | Y100: 0 | Z100: 0 | AA100: AI1:AI6 | AB100: AJ2:AJ4 | AC100: 0 | AD100: 0 | AE100: 0 | AF100: 0 | AG100: 0 | AH100: 0 | AJ100: 1 | AK100: 0 | AL100: 0
F101: RAMB18 | G101: 0.5 | I101: 0.25 | J101: 1 | K101: NO_CHANGE | L101: 0.5 | N101: 0.25 | O101: 1 | P101: NO_CHANGE | Q101: 0.5 | R101: 0 | S101: 0 | T101: 0 | U101: 5 | V101: 5 | W101: 2 | X101: 2 | Y101: 0 | Z101: 0 | AA101: AI1:AI6 | AB101: AJ2:AJ4 | AC101: 0 | AD101: 0 | AE101: 0 | AF101: 0 | AG101: 0 | AH101: 0 | AJ101: 1 | AK101: 0 | AL101: 0
F102: RAMB18 | G102: 0.5 | I102: 0.25 | J102: 1 | K102: NO_CHANGE | L102: 0.5 | N102: 0.25 | O102: 1 | P102: NO_CHANGE | Q102: 0.5 | R102: 0 | S102: 0 | T102: 0 | U102: 5 | V102: 5 | W102: 2 | X102: 2 | Y102: 0 | Z102: 0 | AA102: AI1:AI6 | AB102: AJ2:AJ4 | AC102: 0 | AD102: 0 | AE102: 0 | AF102: 0 | AG102: 0 | AH102: 0 | AJ102: 1 | AK102: 0 | AL102: 0
F103: RAMB18 | G103: 0.5 | I103: 0.25 | J103: 1 | K103: NO_CHANGE | L103: 0.5 | N103: 0.25 | O103: 1 | P103: NO_CHANGE | Q103: 0.5 | R103: 0 | S103: 0 | T103: 0 | U103: 5 | V103: 5 | W103: 2 | X103: 2 | Y103: 0 | Z103: 0 | AA103: AI1:AI6 | AB103: AJ2:AJ4 | AC103: 0 | AD103: 0 | AE103: 0 | AF103: 0 | AG103: 0 | AH103: 0 | AJ103: 1 | AK103: 0 | AL103: 0
F104: RAMB18 | G104: 0.5 | I104: 0.25 | J104: 1 | K104: NO_CHANGE | L104: 0.5 | N104: 0.25 | O104: 1 | P104: NO_CHANGE | Q104: 0.5 | R104: 0 | S104: 0 | T104: 0 | U104: 5 | V104: 5 | W104: 2 | X104: 2 | Y104: 0 | Z104: 0 | AA104: AI1:AI6 | AB104: AJ2:AJ4 | AC104: 0 | AD104: 0 | AE104: 0 | AF104: 0 | AG104: 0 | AH104: 0 | AJ104: 1 | AK104: 0 | AL104: 0
F105: RAMB18 | G105: 0.5 | I105: 0.25 | J105: 1 | K105: NO_CHANGE | L105: 0.5 | N105: 0.25 | O105: 1 | P105: NO_CHANGE | Q105: 0.5 | R105: 0 | S105: 0 | T105: 0 | U105: 5 | V105: 5 | W105: 2 | X105: 2 | Y105: 0 | Z105: 0 | AA105: AI1:AI6 | AB105: AJ2:AJ4 | AC105: 0 | AD105: 0 | AE105: 0 | AF105: 0 | AG105: 0 | AH105: 0 | AJ105: 1 | AK105: 0 | AL105: 0
F106: RAMB18 | G106: 0.5 | I106: 0.25 | J106: 1 | K106: NO_CHANGE | L106: 0.5 | N106: 0.25 | O106: 1 | P106: NO_CHANGE | Q106: 0.5 | R106: 0 | S106: 0 | T106: 0 | U106: 5 | V106: 5 | W106: 2 | X106: 2 | Y106: 0 | Z106: 0 | AA106: AI1:AI6 | AB106: AJ2:AJ4 | AC106: 0 | AD106: 0 | AE106: 0 | AF106: 0 | AG106: 0 | AH106: 0 | AJ106: 1 | AK106: 0 | AL106: 0
F107: RAMB18 | G107: 0.5 | I107: 0.25 | J107: 1 | K107: NO_CHANGE | L107: 0.5 | N107: 0.25 | O107: 1 | P107: NO_CHANGE | Q107: 0.5 | R107: 0 | S107: 0 | T107: 0 | U107: 5 | V107: 5 | W107: 2 | X107: 2 | Y107: 0 | Z107: 0 | AA107: AI1:AI6 | AB107: AJ2:AJ4 | AC107: 0 | AD107: 0 | AE107: 0 | AF107: 0 | AG107: 0 | AH107: 0 | AJ107: 1 | AK107: 0 | AL107: 0
F108: RAMB18 | G108: 0.5 | I108: 0.25 | J108: 1 | K108: NO_CHANGE | L108: 0.5 | N108: 0.25 | O108: 1 | P108: NO_CHANGE | Q108: 0.5 | R108: 0 | S108: 0 | T108: 0 | U108: 5 | V108: 5 | W108: 2 | X108: 2 | Y108: 0 | Z108: 0 | AA108: AI1:AI6 | AB108: AJ2:AJ4 | AC108: 0 | AD108: 0 | AE108: 0 | AF108: 0 | AG108: 0 | AH108: 0 | AJ108: 1 | AK108: 0 | AL108: 0
F109: RAMB18 | G109: 0.5 | I109: 0.25 | J109: 1 | K109: NO_CHANGE | L109: 0.5 | N109: 0.25 | O109: 1 | P109: NO_CHANGE | Q109: 0.5 | R109: 0 | S109: 0 | T109: 0 | U109: 5 | V109: 5 | W109: 2 | X109: 2 | Y109: 0 | Z109: 0 | AA109: AI1:AI6 | AB109: AJ2:AJ4 | AC109: 0 | AD109: 0 | AE109: 0 | AF109: 0 | AG109: 0 | AH109: 0 | AJ109: 1 | AK109: 0 | AL109: 0
F110: RAMB18 | G110: 0.5 | I110: 0.25 | J110: 1 | K110: NO_CHANGE | L110: 0.5 | N110: 0.25 | O110: 1 | P110: NO_CHANGE | Q110: 0.5 | R110: 0 | S110: 0 | T110: 0 | U110: 5 | V110: 5 | W110: 2 | X110: 2 | Y110: 0 | Z110: 0 | AA110: AI1:AI6 | AB110: AJ2:AJ4 | AC110: 0 | AD110: 0 | AE110: 0 | AF110: 0 | AG110: 0 | AH110: 0 | AJ110: 1 | AK110: 0 | AL110: 0
F111: RAMB18 | G111: 0.5 | I111: 0.25 | J111: 1 | K111: NO_CHANGE | L111: 0.5 | N111: 0.25 | O111: 1 | P111: NO_CHANGE | Q111: 0.5 | R111: 0 | S111: 0 | T111: 0 | U111: 5 | V111: 5 | W111: 2 | X111: 2 | Y111: 0 | Z111: 0 | AA111: AI1:AI6 | AB111: AJ2:AJ4 | AC111: 0 | AD111: 0 | AE111: 0 | AF111: 0 | AG111: 0 | AH111: 0 | AJ111: 1 | AK111: 0 | AL111: 0
F112: RAMB18 | G112: 0.5 | I112: 0.25 | J112: 1 | K112: NO_CHANGE | L112: 0.5 | N112: 0.25 | O112: 1 | P112: NO_CHANGE | Q112: 0.5 | R112: 0 | S112: 0 | T112: 0 | U112: 5 | V112: 5 | W112: 2 | X112: 2 | Y112: 0 | Z112: 0 | AA112: AI1:AI6 | AB112: AJ2:AJ4 | AC112: 0 | AD112: 0 | AE112: 0 | AF112: 0 | AG112: 0 | AH112: 0 | AJ112: 1 | AK112: 0 | AL112: 0
F113: RAMB18 | G113: 0.5 | I113: 0.25 | J113: 1 | K113: NO_CHANGE | L113: 0.5 | N113: 0.25 | O113: 1 | P113: NO_CHANGE | Q113: 0.5 | R113: 0 | S113: 0 | T113: 0 | U113: 5 | V113: 5 | W113: 2 | X113: 2 | Y113: 0 | Z113: 0 | AA113: AI1:AI6 | AB113: AJ2:AJ4 | AC113: 0 | AD113: 0 | AE113: 0 | AF113: 0 | AG113: 0 | AH113: 0 | AJ113: 1 | AK113: 0 | AL113: 0
F114: RAMB18 | G114: 0.5 | I114: 0.25 | J114: 1 | K114: NO_CHANGE | L114: 0.5 | N114: 0.25 | O114: 1 | P114: NO_CHANGE | Q114: 0.5 | R114: 0 | S114: 0 | T114: 0 | U114: 5 | V114: 5 | W114: 2 | X114: 2 | Y114: 0 | Z114: 0 | AA114: AI1:AI6 | AB114: AJ2:AJ4 | AC114: 0 | AD114: 0 | AE114: 0 | AF114: 0 | AG114: 0 | AH114: 0 | AJ114: 1 | AK114: 0 | AL114: 0
F115: RAMB18 | G115: 0.5 | I115: 0.25 | J115: 1 | K115: NO_CHANGE | L115: 0.5 | N115: 0.25 | O115: 1 | P115: NO_CHANGE | Q115: 0.5 | R115: 0 | S115: 0 | T115: 0 | U115: 5 | V115: 5 | W115: 2 | X115: 2 | Y115: 0 | Z115: 0 | AA115: AI1:AI6 | AB115: AJ2:AJ4 | AC115: 0 | AD115: 0 | AE115: 0 | AF115: 0 | AG115: 0 | AH115: 0 | AJ115: 1 | AK115: 0 | AL115: 0
F116: RAMB18 | G116: 0.5 | I116: 0.25 | J116: 1 | K116: NO_CHANGE | L116: 0.5 | N116: 0.25 | O116: 1 | P116: NO_CHANGE | Q116: 0.5 | R116: 0 | S116: 0 | T116: 0 | U116: 5 | V116: 5 | W116: 2 | X116: 2 | Y116: 0 | Z116: 0 | AA116: AI1:AI6 | AB116: AJ2:AJ4 | AC116: 0 | AD116: 0 | AE116: 0 | AF116: 0 | AG116: 0 | AH116: 0 | AJ116: 1 | AK116: 0 | AL116: 0
F117: RAMB18 | G117: 0.5 | I117: 0.25 | J117: 1 | K117: NO_CHANGE | L117: 0.5 | N117: 0.25 | O117: 1 | P117: NO_CHANGE | Q117: 0.5 | R117: 0 | S117: 0 | T117: 0 | U117: 5 | V117: 5 | W117: 2 | X117: 2 | Y117: 0 | Z117: 0 | AA117: AI1:AI6 | AB117: AJ2:AJ4 | AC117: 0 | AD117: 0 | AE117: 0 | AF117: 0 | AG117: 0 | AH117: 0 | AJ117: 1 | AK117: 0 | AL117: 0
F118: RAMB18 | G118: 0.5 | I118: 0.25 | J118: 1 | K118: NO_CHANGE | L118: 0.5 | N118: 0.25 | O118: 1 | P118: NO_CHANGE | Q118: 0.5 | R118: 0 | S118: 0 | T118: 0 | U118: 5 | V118: 5 | W118: 2 | X118: 2 | Y118: 0 | Z118: 0 | AA118: AI1:AI6 | AB118: AJ2:AJ4 | AC118: 0 | AD118: 0 | AE118: 0 | AF118: 0 | AG118: 0 | AH118: 0 | AJ118: 1 | AK118: 0 | AL118: 0
F119: RAMB18 | G119: 0.5 | I119: 0.25 | J119: 1 | K119: NO_CHANGE | L119: 0.5 | N119: 0.25 | O119: 1 | P119: NO_CHANGE | Q119: 0.5 | R119: 0 | S119: 0 | T119: 0 | U119: 5 | V119: 5 | W119: 2 | X119: 2 | Y119: 0 | Z119: 0 | AA119: AI1:AI6 | AB119: AJ2:AJ4 | AC119: 0 | AD119: 0 | AE119: 0 | AF119: 0 | AG119: 0 | AH119: 0 | AJ119: 1 | AK119: 0 | AL119: 0
F120: RAMB18 | G120: 0.5 | I120: 0.25 | J120: 1 | K120: NO_CHANGE | L120: 0.5 | N120: 0.25 | O120: 1 | P120: NO_CHANGE | Q120: 0.5 | R120: 0 | S120: 0 | T120: 0 | U120: 5 | V120: 5 | W120: 2 | X120: 2 | Y120: 0 | Z120: 0 | AA120: AI1:AI6 | AB120: AJ2:AJ4 | AC120: 0 | AD120: 0 | AE120: 0 | AF120: 0 | AG120: 0 | AH120: 0 | AJ120: 1 | AK120: 0 | AL120: 0
F121: RAMB18 | G121: 0.5 | I121: 0.25 | J121: 1 | K121: NO_CHANGE | L121: 0.5 | N121: 0.25 | O121: 1 | P121: NO_CHANGE | Q121: 0.5 | R121: 0 | S121: 0 | T121: 0 | U121: 5 | V121: 5 | W121: 2 | X121: 2 | Y121: 0 | Z121: 0 | AA121: AI1:AI6 | AB121: AJ2:AJ4 | AC121: 0 | AD121: 0 | AE121: 0 | AF121: 0 | AG121: 0 | AH121: 0 | AJ121: 1 | AK121: 0 | AL121: 0
F122: RAMB18 | G122: 0.5 | I122: 0.25 | J122: 1 | K122: NO_CHANGE | L122: 0.5 | N122: 0.25 | O122: 1 | P122: NO_CHANGE | Q122: 0.5 | R122: 0 | S122: 0 | T122: 0 | U122: 5 | V122: 5 | W122: 2 | X122: 2 | Y122: 0 | Z122: 0 | AA122: AI1:AI6 | AB122: AJ2:AJ4 | AC122: 0 | AD122: 0 | AE122: 0 | AF122: 0 | AG122: 0 | AH122: 0 | AJ122: 1 | AK122: 0 | AL122: 0
F123: RAMB18 | G123: 0.5 | I123: 0.25 | J123: 1 | K123: NO_CHANGE | L123: 0.5 | N123: 0.25 | O123: 1 | P123: NO_CHANGE | Q123: 0.5 | R123: 0 | S123: 0 | T123: 0 | U123: 5 | V123: 5 | W123: 2 | X123: 2 | Y123: 0 | Z123: 0 | AA123: AI1:AI6 | AB123: AJ2:AJ4 | AC123: 0 | AD123: 0 | AE123: 0 | AF123: 0 | AG123: 0 | AH123: 0 | AJ123: 1 | AK123: 0 | AL123: 0
F124: RAMB18 | G124: 0.5 | I124: 0.25 | J124: 1 | K124: NO_CHANGE | L124: 0.5 | N124: 0.25 | O124: 1 | P124: NO_CHANGE | Q124: 0.5 | R124: 0 | S124: 0 | T124: 0 | U124: 5 | V124: 5 | W124: 2 | X124: 2 | Y124: 0 | Z124: 0 | AA124: AI1:AI6 | AB124: AJ2:AJ4 | AC124: 0 | AD124: 0 | AE124: 0 | AF124: 0 | AG124: 0 | AH124: 0 | AJ124: 1 | AK124: 0 | AL124: 0
F125: RAMB18 | G125: 0.5 | I125: 0.25 | J125: 1 | K125: NO_CHANGE | L125: 0.5 | N125: 0.25 | O125: 1 | P125: NO_CHANGE | Q125: 0.5 | R125: 0 | S125: 0 | T125: 0 | U125: 5 | V125: 5 | W125: 2 | X125: 2 | Y125: 0 | Z125: 0 | AA125: AI1:AI6 | AB125: AJ2:AJ4 | AC125: 0 | AD125: 0 | AE125: 0 | AF125: 0 | AG125: 0 | AH125: 0 | AJ125: 1 | AK125: 0 | AL125: 0
F126: RAMB18 | G126: 0.5 | I126: 0.25 | J126: 1 | K126: NO_CHANGE | L126: 0.5 | N126: 0.25 | O126: 1 | P126: NO_CHANGE | Q126: 0.5 | R126: 0 | S126: 0 | T126: 0 | U126: 5 | V126: 5 | W126: 2 | X126: 2 | Y126: 0 | Z126: 0 | AA126: AI1:AI6 | AB126: AJ2:AJ4 | AC126: 0 | AD126: 0 | AE126: 0 | AF126: 0 | AG126: 0 | AH126: 0 | AJ126: 1 | AK126: 0 | AL126: 0
